Workbook

Sheet aStart
G1: =" "&Brief!$K$13&" "&Brief!$K$14&" "&Brief!$K$15 -> SV Rothebusch 1922 e.V. 21. Optik Giepen Pokal 03/04. Febr. 2018
F2: =IF($B$18="A",$B$18,"") -> 
F3: =IF($B$18="B",$B$18,"") -> 
F4: =IF($B$18="C",$B$18,"") -> 
F5: =IF($B$18="D",$B$18,"") -> 
F6: =IF($B$18="E",$B$18,"") -> 
F7: =IF($B$18="F",$B$18,"") -> 
F8: =IF($B$18="G",$B$18,"") -> 
F9: =IF($B$18="K",$B$18,"") -> 
C10: ... | F10: =IF($B$18="M",$B$18,"") -> 
B12: Start
H14: Herzlich Willkommen zum
H16: Wertungsprogramm
H18: für das Mannschaftspokalschießen
G22: Um sich mit dem Programm vertraut zu machen, lesen Sie bitte zunächst in der Hilfe " ? " weiter.
V29: © 2010 by Uwe Schneider
G41: =G9 -> 0
G42: =" "&K42&" "&$D$3 -> 1. Mannschaft | K42: 1. Mannschaft | L42: ="" ->  | M42: 587 | N42: 1 | P42: =" "&T42&" "&$D$3 -> 1. Mannschaft | T42: 1. Mannschaft | U42: ¢ | V42: =SUM(V43:V47) -> 585 | W42: 2
G43: =IF(H43=0,"",COUNTIF(G$42:G42,">0")+G$9+1) -> 1 | H43: Stewart, Patrik | I43: 98 | J43: 99 | K43: 1 | L43: ¢ | M43: =I43+J43 -> 197 | N43: 2 | P43: =IF(Q43=0,"",COUNTIF(P$42:P42,">0")+P$9+1) -> 1 | Q43: Doubtfire, Euphegenia | R43: 99 | S43: 99 | T43: 1 | U43: ¢ | V43: =R43+S43 -> 198 | W43: 3
G44: =IF(H44=0,"",COUNTIF(G$42:G43,">0")+G$9+1) -> 2 | H44: Frakes, Jonathan | I44: 95 | J44: 98 | K44: 3 | M44: =I44+J44 -> 193 | N44: 10 | P44: =IF(Q44=0,"",COUNTIF(P$42:P43,">0")+P$9+1) -> 2 | Q44: Granger, Hermine | R44: 96 | S44: 99 | T44: 2 | U44: ¢ | V44: =R44+S44 -> 195 | W44: 4
G45: =IF(H45=0,"",COUNTIF(G$42:G44,">0")+G$9+1) -> 3 | H45: Spinner, Brent | I45: 98 | J45: 92 | K45: 4 | M45: =I45+J45 -> 190 | N45: 22 | P45: =IF(Q45=0,"",COUNTIF(P$42:P44,">0")+P$9+1) -> 3 | Q45: Troi, Deanna | R45: 97 | S45: 95 | T45: 3 | V45: =R45+S45 -> 192 | W45: 9
G46: =IF(H46=0,"",COUNTIF(G$42:G45,">0")+G$9+1) -> 4 | H46: Dorn, Michael | I46: 98 | J46: 99 | K46: 2 | L46: ¢ | M46: =I46+J46 -> 197 | N46: 3 | P46: =IF(Q46=0,"",COUNTIF(P$42:P45,">0")+P$9+1) -> 
G47: =IF(H47=0,"",COUNTIF(G$42:G46,">0")+G$9+1) ->  | P47: =IF(Q47=0,"",COUNTIF(P$42:P46,">0")+P$9+1) -> 
G48: =" "&K48&" "&$D$3 -> 2. Mannschaft | K48: 2. Mannschaft | L48: ="" ->  | P48: =" "&T48&" "&$D$3 -> 2. Mannschaft | T48: 2. Mannschaft | U48: ="" ->  | V48: =SUM(V49:V51) -> 323
G49: =IF(H49=0,"",COUNTIF(G$42:G48,">0")+G$9+1) -> 5 | H49: Williams, Robin | I49: 91 | J49: 97 | K49: 2 | M49: =I49+J49 -> 188 | N49: 31 | P49: =IF(Q49=0,"",COUNTIF(P$42:P48,">0")+P$9+1) -> 4 | Q49: Lovegood, Luna | R49: 78 | S49: 85 | T49: 1 | U49: ¢ | V49: =R49+S49 -> 163 | W49: 58
B50: Schützenbund San Francisco 1994 | G50: =IF(H50=0,"",COUNTIF(G$42:G49,">0")+G$9+1) -> 6 | H50: Brosnan, Pierce | I50: 96 | J50: 96 | K50: 1 | L50: ¢ | M50: =I50+J50 -> 192 | N50: 12 | P50: =IF(Q50=0,"",COUNTIF(P$42:P49,">0")+P$9+1) -> 
B51: Shooting club Hogwarts 1000 | G51: =IF(H51=0,"",COUNTIF(G$42:G50,">0")+G$9+1) ->  | P51: =IF(Q51=0,"",COUNTIF(P$42:P50,">0")+P$9+1) -> 5 | Q51: Delacour, Fleur Isabelle | R51: 81 | S51: 79 | T51: 2 | V51: =R51+S51 -> 160 | W51: 71
G52: =IF(H52=0,"",COUNTIF(G$42:G51,">0")+G$9+1) ->  | P52: =IF(Q52=0,"",COUNTIF(P$42:P51,">0")+P$9+1) -> 
G53: =IF(H53=0,"",COUNTIF(G$42:G52,">0")+G$9+1) ->  | P53: =IF(Q53=0,"",COUNTIF(P$42:P52,">0")+P$9+1) -> 
G54: =" "&K54&" "&$D$3 -> 3. Mannschaft | K54: 3. Mannschaft | L54: ="" ->  | M54: =M55+M57+M59 -> 536 | N54: 22 | P54: =" "&T54&" "&$D$3 -> 3. Mannschaft | T54: 3. Mannschaft | U54: ="" -> 
G55: =IF(H55=0,"",COUNTIF(G$42:G54,">0")+G$9+1) -> 7 | H55: Potter, Harry | I55: 96 | J55: 93 | K55: 1 | L55: ¢ | M55: =I55+J55 -> 189 | N55: 24 | P55: =IF(Q55=0,"",COUNTIF(P$42:P54,">0")+P$9+1) -> 
G56: =IF(H56=0,"",COUNTIF(G$42:G55,">0")+G$9+1) -> 8 | H56: Weasley, Ron | I56: 78 | J56: 78 | K56: 4 | M56: =I56+J56 -> 156 | N56: 112 | P56: =IF(Q56=0,"",COUNTIF(P$42:P55,">0")+P$9+1) -> 6 | Q56: Yar, Tasha | R56: 94 | S56: 97 | T56: 1 | V56: =R56+S56 -> 191 | W56: 11
G57: =IF(H57=0,"",COUNTIF(G$42:G56,">0")+G$9+1) -> 9 | H57: Hagrid, Rubeus | I57: 85 | J57: 87 | K57: 3 | M57: =I57+J57 -> 172 | N57: 48 | P57: =IF(Q57=0,"",COUNTIF(P$42:P56,">0")+P$9+1) -> 
G58: =IF(H58=0,"",COUNTIF(G$42:G57,">0")+G$9+1) -> 10 | H58: Longbottom, Neville | I58: 69 | J58: 75 | K58: 5 | L58: ¢ | M58: =I58+J58 -> 144 | N58: 211 | P58: =IF(Q58=0,"",COUNTIF(P$42:P57,">0")+P$9+1) -> 
G59: =IF(H59=0,"",COUNTIF(G$42:G58,">0")+G$9+1) -> 11 | H59: Black, Sirius | I59: 87 | J59: 88 | K59: 2 | M59: =I59+J59 -> 175 | N59: 39 | P59: =IF(Q59=0,"",COUNTIF(P$42:P58,">0")+P$9+1) -> 

Sheet Hilfe
B1: 10 | D1: =Brief!D1 -> Schützen | G1: =" "&Brief!$K$13&" "&Brief!$K$14&" "&Brief!$K$15 -> SV Rothebusch 1922 e.V. 21. Optik Giepen Pokal 03/04. Febr. 2018 | W1: =" "&Brief!$K$13&" "&Brief!$K$14&" "&Brief!$K$15 -> SV Rothebusch 1922 e.V. 21. Optik Giepen Pokal 03/04. Febr. 2018 | AM1: =" "&Brief!$K$13&" "&Brief!$K$14&" "&Brief!$K$15 -> SV Rothebusch 1922 e.V. 21. Optik Giepen Pokal 03/04. Febr. 2018 | BC1: =" "&Brief!$K$13&" "&Brief!$K$14&" "&Brief!$K$15 -> SV Rothebusch 1922 e.V. 21. Optik Giepen Pokal 03/04. Febr. 2018 | BS1: =" "&Brief!$K$13&" "&Brief!$K$14&" "&Brief!$K$15 -> SV Rothebusch 1922 e.V. 21. Optik Giepen Pokal 03/04. Febr. 2018 | CI1: =" "&Brief!$K$13&" "&Brief!$K$14&" "&Brief!$K$15 -> SV Rothebusch 1922 e.V. 21. Optik Giepen Pokal 03/04. Febr. 2018 | CY1: =" "&Brief!$K$13&" "&Brief!$K$14&" "&Brief!$K$15 -> SV Rothebusch 1922 e.V. 21. Optik Giepen Pokal 03/04. Febr. 2018
B2: ? Einleitung | D2: =Brief!D2 -> Damen
B3: + Briefe | D3: =Brief!D3 -> Freistehend
B4: 8 Eingabe | D4: =Brief!D4 -> Aufgelegt | G4: Hilfe | M4: Einleitung | W4: Hilfe | AC4: Briefe | AM4: Hilfe | AS4: Eingabe in Vereine | BC4: Hilfe | BI4: Daten | BS4: Hilfe | BY4: Ergebnislisten | CI4: Hilfe | CO4: { Urkunden | CY4: Hilfe | DE4: Ausdruck
B5: WICHTIGE REGELN . | D5: =Brief!D5 -> 
B6: INFOs der Eingabe . | D6: =Brief!D6 -> 
B7: : Daten | D7: =Brief!D7 ->  | W7: Angaben zum Wettkampf Eingabe der Adressen Ausdruck Einladungen etc. | AM7: Angabe der Teilnehmer Auswahl der Mannschaften Eingabe der Wertungen | BC7: Meldelisten, Standlisten, Starterlisten | BS7: 1/10 ... Zehntelwertung, Grundsätze der Wertung | CI7: Erste Bedienungen, Funktionsbutton`s, Druckeinstellung | CY7: Ausdruck der Hilfe
B8: 8 Eingabe | D8: =Brief!D8 -> 
B9: { Urkunden | D9: =Brief!D9 ->  | E9: Fehlt
B10: ? Vorschau (Druck) | D10: =Brief!D10 ->  | E10: Fehlt
G11: Vielen Dank für Ihren Aufruf der Hilfefunktion | P11: + Briefe | W11: Briefe ... Allgemein | AF11: ? Einleitung | AM11: Eingabe der Daten in die Vereine | AV11: + Briefe | BC11: Daten, ... | BL11: 8 Eingabe | BS11: Listen, ... / Ergebnislisten | CB11: : Daten | CI11: Gestaltung & Ausdruck der Urkunden | CR11: 4 Listen | CY11: =G11 -> Vielen Dank für Ihren Aufruf der Hilfefunktion | DH11: Einleitung
B12: Hilfe | G12: Ich hoffe ich kann Ihnen weiterhelfen | P12: Ansicht (100 %) | W12: Angaben zum Wettkampf I | AF12: Wettkampf II | AM12: Teilnehmerangaben | AV12: Wichtige Regeln | BC12: Meldelisten, Standlisten, Starterlisten | BL12: 4 Listen | BS12: 1/10 ... Zehntelwertung der verschiedenen Listen. | CB12: Wertung | CI12: Erste Bedienungselemente | CR12: Funktionen | CY12: =G12 -> Ich hoffe ich kann Ihnen weiterhelfen | DH12: © 2010 by Uwe Schneider
B13: Seite | D13: 1 | BC13: Meldeliste | BD13: Ein Ausdruck über die Anzahl der Teilnehmer je Verein.
G14: Sie haben über diese Button`s | M14: die Möglichkeit innerhalb des Programms zu navigieren | W14: Zunächst haben Sie die Möglichkeit die allgemeinen Angaben zum Wettkampf einzutragen. | AM14: über : | AO14: kommen Sie in die Auswahlliste, in der Sie die Teilnehmer eintragen können. | BD14: Aufgeschlüsselt nach den Diziplinen, Mannschaften und Einzelstartern. | BS14: über : | BU14: können Sie die Zehntelwertung freigeben | CI14: über : | CK14: erreichen Sie die einzelnen Diziplinen der Einzel- und Mannschaftswertung | DC14: Über diese Button`s können Sie in den Hauptbereichen navigieren.
W15: Die ersten Angaben (Ausrichter, Name & Datum der Veranstaltung) werden nur für den Kopf und die Ausdrucke verwendet. | AO15: Die entsprechenden Spalten stehen für die benannten Disziplinen. | BD15: Einzelstarter (weniger als drei Starter) werden nicht in den Mannschaften gezählt. | BU15: Das Format der Eingabe ist: 123,4 | DC15: Je nach Hauptbereich sind nicht alle Funktionen direkt zu erreichen.
G16: Dieses Programm ist in verschiedenen Hauptbereiche unterteilt: | W16: Bei durchnummerierten Wettkampfscheiben haben sie ebenfalls die Möglichkeit die jeweiligen Nr. der einzelnen Starter auszudrucken. | AO16: Die in den Spalten genannten Teilnehmern können nur in dieser Diziplinen ausgewählt werden. | BU16: Sollten Sie keine Wertungsmaschine einsetzten, können Sie zur | CI16: Schützen Freistehend | CM16: nach der Auswahl können Sie in dem Druckbereich die Daten zuweisen | CY16: 1 | CZ16: ? | DA16: Hilfefunktion | DC16: Kurze Informationen zur Verwendung dieses Programms
B17: 10 Einleitung | G17: 1 | H17: ? | I17: Hilfefunktion | K17: Kurze Informationen zur Verwendung dieses Programms | X17: Außerdem erhalten Sie hier eine Kurzübersicht über die gemeldeten Teilnehmer & Mannschaften. | AO17: Zusätzlich haben Sie die Möglichkeit die Sportpassnummer zu Ihrer Info einzutragen. | BC17: Standliste | BD17: Wohl die größte Vereinfachung dieses Programmes. | BU17: Festlegung der Rangfolge auch ganze Zahlen verwenden. | CI17: Ausrichter : | CJ17: D 15 | CK17: =Brief!$K$87 -> Schützenverein Rothebusch 1922 e.V. | CM17: < bedeutet z.B., das die Angaben für den Ausrichter in D 15 enthalten sind. | CY17: 2 | CZ17: + | DA17: Briefe | DC17: Gestaltung & Ausdruck für Einladungen etc.
B18: 20 Briefe = V11 (22) | G18: 2 | H18: + | I18: Briefe | K18: Gestaltung & Ausdruck für Einladungen etc. | AO18: Eine Sortierfunktion nach Nr. und Name erleichtert die Suche. | BD18: Nach Angabe der Standaufsicht auf der ersten Seite, können Sie für jeden Wettkampftag | BS18: TIPP: | BU18: Mit jeder Freigabe der Zehntelwertung wird die Liste neu sortiert. | CM18: Ihre Eingabe muss "Variabel" sein. D.h.: | CQ18: =D15 | CR18: > Richtig | CY18: 3 | CZ18: : | DA18: Dateneingabe | DC18: Wichtige Eingabe Ihrer allgemeinen Daten zum Wettkampf
B19: 30 Daten | G19: 3 | H19: : | I19: Dateneingabe | K19: Wichtige Eingabe Ihrer allgemeinen Daten zum Wettkampf | W19: Angaben zum Wettkampf 1 | BD19: alle 30 Minuten / je Stand, einen Verein auswählen. | CM19: Keinesfalls als "Absolut"`en Link. D.h.: | CQ19: =$D$15 | CR19: > Falsch | CY19: 4 | CZ19: 8 | DA19: Eingabe | DC19: Eingabe der Mannschaften & Wettkampfergebnisse
B20: 40 Eingabe | G20: 4 | H20: 8 | I20: Eingabe | K20: Eingabe der Mannschaften & Wettkampfergebnisse | BD20: Dabei werden die noch zu vergebenden Startzeiten je Verein gesondert angegeben. | BS20: über : | BU20: kommen sie in die weiteren Klassen. (oder der Mannschaftswertung) | CM20: Dadurch würden die Angaben des 2. & 3. Platzes nicht stimmen. | CY20: 5 | CZ20: 4 | DA20: Listen | DC20: Auswertung der Wettkampfergebnisse (incl. Zehntelwertung)
B21: 50 Teilnehmer | G21: 5 | H21: 4 | I21: Listen | K21: Auswertung der Wettkampfergebnisse (incl. Zehntelwertung) | W21: Sie können zwei (/ vier) Klassen bestimmen in der Sie die Disziplinen festlegen können. | AM21: über : | AO21: können Sie die eingetragenen Namen zusammen mit den Vereinsdaten ausdrucken. | BD21: Die jeweilige Startzeit des Wettkampftages wird auf die Standliste übertragen. | CY21: 6 | CZ21: { | DA21: Urkunden | DC21: Ausdruck der Urkunden nach Ihren Vorgaben (Excelkenntnisse ggf. erforderlich)
B22: 60 Listen | G22: 6 | H22: { | I22: Urkunden | K22: Ausdruck der Urkunden nach Ihren Vorgaben (Excelkenntnisse ggf. erforderlich) | W22: Dazu sind fast alle Felder zu "Auswahlfeldern" konfiguriert, die Sie teilweise selber festlegen können. | BD22: Lediglich die Endzeit wird noch nicht direkt berücksichtigt. | BS22: Mannschaften | BU22: Wenn alle Einzelergebnisse geprüft wurden, kommen sie zur Mannschaftswertung | CI22: über : | CK22: wird die erste gestaltete Seite auf die Plätze 2. & 3. übertragen. | CY22: (6) | CZ22:  | DA22: Eingabe | DC22: Umschaltung für mehr als 12 Vereine ( in der Eingabe / als Option)
B23: 70 Zehntelwertung | G23: (6) | H23: çè | I23: Eingabe | K23: Umschaltung für mehr als 12 Vereine (nur in Eingabe / als Option) | W23: Für jede Klasse können Sie Angaben über die Auswahl treffen bezüglich der Waffe, Entfernung und Schussanzahl je Scheibe. | BS23: TIPP: | BU23: Aus der Mannschaftswertung kommen Sie in die Liste über Einzelwertung "Ansicht" zurück. | CK23: erreichen Sie die Vorschau. (Beachten Sie die Tipps zur Druckeinstellung)
B24: 80 Urkunden | G24: Je nach dem Bereich in dem Sie sich befinden, sind nicht alle Hauptbereiche direkt zu erreichen. | W24: Anschließend erfolgt die Benennung der Diziplin, sowie die Art, ggf. Altersangabe und die Anzahl der Schüsse. | AM24: mit : | BC24: Starterliste | BD24: Ein kompletter Ausdruck der angemeldeten Teilnehmer | CK24: wird Ihre gestaltete Seite kopiert und im Sicherungsbereich gespeichert. | DC24: Über die Einleitung erreichen Sie auch
B25: 90 Ausdruck = CX | AO25: kann in dem Eingabefeld die Auswahlfunktion freigeschaltet werden. | BD25: aufgeschlüsselt nach der jeweiligen Diziplin und dem Verein. | BS25: über : | BU25: kommen Sie in die jeweiligeDruckansicht. | CI25: (eig. Entwurf) | CK25: Löscht den bisherigen Entwurf und Kopiert die Seite aus dem Sicherungsbereich (und kopiert diese auf 2.&3.) | DC25: die Ansichtsgröße und die Löschfunktion
B26: Druckbereich CY11 - DJ__ | G26: Hier | I26: haben Sie die Möglichkeit die Größe der Ansicht auf Ihren Bildschirm einzustellen | W26: In ersten Teil werden auch Angaben zu den Wettkampftagen angefragt. | AO26: Dabei sind wichtige Regeln zu beachten. | BU26: Es werden immer alle Seiten zum Ausdruck vorbereitet. Sollten jedoch keine | CI26: (Vorlage) | CK26: Löscht den bisherigen Entwurf und Kopiert die Vorlage des Programms (und kopiert diese auf 2.&3.)
W27: Diese werden für die Einladungen und die Interne Starterliste benötigt. | BC27: TIPP: | BD27: Alle Listen können als Information ausgedruckt werden. | BU27: Wertungsdaten vorhanden sein, bleiben die Datenzeilen weiss. | CY27: =W11 -> Briefe ... Allgemein | DH27: + Briefe
G28: Hier | I28: Sie alle Ihren Daten bezüglich der Teilnehmer / Mannschaften | W28: TIPP: | X28: Sollte ggf. vorgeschossen werden, kann nach dem Versenden der Startzeiten noch ein zusätzlicher Termin | BD28: Prüfen Sie in der Vorschau wieviele Seiten ausgedruckt werden sollen. | BS28: TIPP: | BU28: In der Druckansicht ist Anzahl der erforderlichen Ausdruckseiten festzustellen. | CY28: Angaben zum Wettkampf Eingabe der Adressen Ausdruck Einladungen etc. | DH28: © 2010 by Uwe Schneider
R29: © 2010 by Uwe Schneider | X29: hinter den offizellen Starttagen eingetragen werden. | AH29: © 2010 by Uwe Schneider | AX29: © 2010 by Uwe Schneider | BD29: Überzählige Seiten werden nicht bedruckt. | BN29: © 2010 by Uwe Schneider | CD29: © 2010 by Uwe Schneider | CT29: © 2010 by Uwe Schneider | CY29: Zunächst haben Sie die Möglichkeit die allgemeinen Angaben zum Wettkampf einzutragen.
CY30: Die ersten Angaben (Ausrichter, Name & Datum der Veranstaltung) werden nur für den Kopf und die Ausdrucke verwendet.
CY31: Bei durchnummerierten Wettkampfscheiben haben sie ebenfalls die Möglichkeit die jeweiligen Nr. der einzelnen Starter auszudrucken.
CZ32: Außerdem erhalten Sie hier eine Kurzübersicht über die gemeldeten Teilnehmer & Mannschaften.
CY34: Angaben zum Wettkampf 1
CY35: Sie können zwei (/ vier) Klassen bestimmen in der Sie die Disziplinen festlegen können.
CY36: Dazu sind fast alle Felder zu "Auswahlfeldern" konfiguriert, die Sie teilweise selber festlegen können.
CY37: Für jede Klasse können Sie Angaben über die Auswahl treffen bezüglich der Waffe, Entfernung und Schussanzahl je Scheibe.
CY38: Anschließend erfolgt die Benennung der Diziplin, sowie die Art, ggf. Altersangabe und die Anzahl der Schüsse.
CY39: In ersten Teil werden auch Angaben zu den Wettkampftagen angefragt.
CY40: Diese werden für die Einladungen und die Interne Starterliste benötigt.
G41: Option ANSICHT | P41: Start | W41: Briefe ... Wettkampfdaten | AF41: Wettkampf I | AM41: Eingabe der Daten in die Vereine | AV41: Teilnehmer | BS41: Listen, ... / Ergebnislisten | CB41: 1/10 Wertung | CI41: Gestaltung & Ausdruck der Urkunden | CR41: Erste Bedienung | CY41: TIPP: | CZ41: Sollte ggf. vorgeschossen werden, kann nach dem Versenden der Startzeiten noch ein zusätzlicher Termin
B42: Hilfe | G42: Hier haben Sie die Möglichkeit Ihre Bildschirmgröße anzupassen. | P42: + Briefe | W42: Angaben zum Wettkampf II | AF42: Adressen | AM42: WICHTIGE REGELN !!! Zur Auswahl der Mannschaften | AV42: Eingabefehler | BS42: Grundsätze der Wertung (Rangfolge) | CB42: { Urkunden | CI42: Die Funktionsbutton`s für die Gestaltung Ihrer Urkunde | CR42: Druckseinstellung | CZ42: hinter den offizellen Starttagen eingetragen werden.
B43: Seite | D43: 2 | W43: Informationen zum Wettkampf 2 | BS43: Wertung
J44: Ihre aktuelle Ansichtsgröße ist: | K44: 1.15 | AM44: TOP 1 | AN44: Die Teilnehmer müssen fortlaufend innerhalb der Mannschaften eingetragen werden. | BT44: Jede Wertung (Platzierung) erfolgt nach folgenden Grundsätzen: | CJ44: Schriften | CO44: Schriftfarbe | CS44: Schrifttyp | CY44: Informationen zum Wettkampf 2
W45: Für die Einladungen an die Vereine könne Sie hier Angaben eintragen | AN45: Keinesfalls dürfen innerhalb der ersten drei Startern Startplätze frei bleiben !!! | BS45: 1. | BT45: Bei gleichem Ringergebnis wird automatisch die bessere zweite Serie gewertet | CY45: Für die Einladungen an die Vereine könne Sie hier Angaben eintragen
W46: Neben dem Austragungsort und dem Anmeldeschluß auch weitere Informationen die den Wettkampf betreffen. | AN46: Diese führt zu Zählfehlern bei den Teilnehmerlisten und der Trennung zwischen | BT46: Dieses gilt ebenfalls auch bei der Mannschaftswertung | CY46: Neben dem Austragungsort und dem Anmeldeschluß auch weitere Informationen die den Wettkampf betreffen.
W47: Alle diese Daten werden lediglich für den Schriftwechsel benötigt. | AN47: Mannschaften und Einzelstartern. | BT47: 90 | BU47: 80 | BV47: =SUM(BT47:BU47) -> 170 | BW47: ="= 2. Platz" -> = 2. Platz | CI47: ./. | CJ47: < nicht belegt > | CL47: ./. | CN47: Grün | CP47: Standard | CR47: Fett | CT47: Standard | CY47: Alle diese Daten werden lediglich für den Schriftwechsel benötigt.
BT48: 80 | BU48: 90 | BV48: =SUM(BT48:BU48) -> 170 | BW48: ="= 1. Platz" -> = 1. Platz | CI48: Arial | CL48: Blackadder | CN48: Meeresgrün | CP48: Blau | CR48: Kursiv | CT48: Tiefgestellt
W49: Angaben zur Urkunde | AM49: TOP 2 | AN49: Damit die Sortier- und Zählfunktion genutzt werden kann, sind die jeweiligen Mannschaften je Diziplin | BT49: 70 | BU49: 90 | BV49: =SUM(BT49:BU49) -> 160 | BW49: >> Mannschaftsergeb. = | BY49: =SUM(BV47:BV49) -> 500 | BZ49: >260 = 2.Platz | CI49: Calisto MT | CL49: Comic Sans MS | CN49: Gelbgrün | CP49: Hellblau | CR49: Mitte | CT49: Standard | CY49: Angaben zur Urkunde
AN50: (mit mehr als zwei Teilnehmern) zuerst einzutragen. | BU50: =SUM(BU47:BU49) -> 260 | CI50: Elephant | CL50: Lucida Callig. | CN50: Grellgrün | CP50: Himmelblau | CR50: Links | CT50: Rechts | CY50: Diese Angaben werden für die Urkunden benötigt. Achten Sie daher bitte auf die korrekte Schreibweisen.
W51: Diese Angaben werden für die Urkunden benötigt. Achten Sie daher bitte auf die korrekte Schreibweisen. | AN51: Erst anschließend sollte in den Mannschaften die Einzelstarter (bis zwei Teilnehmern) eingetragen werden. | BT51: 78 | BU51: 90 | BV51: =SUM(BT51:BU51) -> 168 | BW51: >> Mannschaftsergeb. = | BY51: =SUM(BV51:BV53) -> 500 | BZ51: >270 = 1.Platz | CI51: Rockwell Ext. | CL51: Times New Ro. | CN51: Hellgrün | CP51: Türkis | CR51: Verbinden von Zellen | CT51: aufheben
AN52: Es macht keinen Sinn, wenn beispielsweise im ersten und dritten Feld Mannschaften eingetragen sind, | BT52: 73 | BU52: 90 | BV52: =SUM(BT52:BU52) -> 163 | CY52: Auswahlmöglichkeiten
W53: Auswahlmöglichkeiten | AN53: (1 & 3. Mannschaft) und die 2. Mannschaft wegfällt. | BT53: 79 | BU53: 90 | BV53: =SUM(BT53:BU53) -> 169 | CY53: Wie zuvor benannt werden die Auswahlfelder hier festgelegt.
BU54: =SUM(BU51:BU53) -> 270 | CY54: Sie können in den Bereichen:
W55: Wie zuvor benannt werden die Auswahlfelder hier festgelegt. | AM55: TOP 3 | AN55: Sollte bei einer Mannschaft ein Teilnehmer wegfallen ( 0 Wertung), sollte der Name nicht gelöscht werden. | BS55: 2. | BT55: Wenn trotzdem ein gleicher Rang / Platz vorhanden ist, kann in den Listen | CY55: Diziplin (nur Klasse 3&4), sowie die Waffengattung, Entfernung, Anzahl der Gesamtschüsse und die Einzelschüsse ändern.
W56: Sie können in den Bereichen: | AN56: Auch wenn im Mannschaftsergebnis letzendlich ggf. nur zwei gültige Wertungen erfolgen. | BT56: eine ggf. notwendige Zehntelwertung eingetragen werden. | CY56: Die Diziplin (Klasse 1&2), sowie die Art der Diziplin sind vom Programm vorgegeben.
W57: Diziplin (nur Klasse 3&4), sowie die Waffengattung, Entfernung, Anzahl der Gesamtschüsse und die Einzelschüsse ändern. | AN57: Durch das Entfernen von Teilnehmern während des Wettkampfs, werden die Startnummern verändert.
H58: Dieses Feld sollten Sie vollständig sehen! | W58: Die Diziplin (Klasse 1&2), sowie die Art der Diziplin sind vom Programm vorgegeben. | BS58: TIPP: | BT58: Für den unwahrscheinlichen Fall, das zwei Mannschaften dasselbe Endergebniss haben,
R59: © 2010 by Uwe Schneider | AH59: © 2010 by Uwe Schneider | AX59: © 2010 by Uwe Schneider | BT59: ist unbedingt für jeden Starter der entsp. Mannschaften eine Zehntelwertung zu machen. | CD59: © 2010 by Uwe Schneider | CT59: © 2010 by Uwe Schneider
CY60: =W71&" & Ausdruck Einladungen" -> Briefe ... Adressen & Ausdruck Einladungen | DH60: + Briefe
CY61: =W72 -> Eingabe der Adressen | DH61: © 2010 by Uwe Schneider
CY62: Adressenliste
CY63: Die interne Verwaltung der Anschriften erfolgt über die Buchstaben (A-Z).
CY64: Für die Darstellung innerhalb des Programms und der internen Listen wird eine Kurzbezeichnung des Vereins benötigt.
CY65: Auf den Ergebnisslisten, sowie auf den Urkunden steht dann der vollständige Vereinsname.
CY66: Die weiteren Angaben zu den Vereinen werden lediglich als INFO in den Vereinsanzeigen und für Anschreiben benötigt.
CY67: Insgesamt können Sie 12 (/ 24) Vereine eintragen.
CY68: TIPP: | CZ68: Beachten Sie bitte, das die ersten sechs Vereine (A-F) über vier Mannschaften > (4) < je Diziplin verfügen.
CZ69: In allen weiteren Vereinen können lediglich drei Mannschaften > (3) < a 5 Teilnehmer eingetrgen werden.
CY70: über : | DA70: können Sie alle Angaben zum Wettkampf und die Adressen ausdrucken.
G71: Option LÖSCHEN | P71: Einleitung | W71: Briefe ... Adressen | AF71: Wettkampf II | AM71: Eingabe der Daten in die Vereine | AV71: Wichtige Regeln | CI71: Gestaltung & Ausdruck der Urkunden | CR71: Funktionen
B72: Hilfe | G72: Achtung, hiermit werden alle Ihre Wettkampfdaten gelöscht. | W72: Eingabe der Adressen | AF72: Anschreiben | AM72: Ansichtsbeispiel incl. Fehlern der Eingabe | AV72: Erläuterung | CI72: Die Druckeinstellung über > "Datei" > "Seite einrichten" | CR72: Danksagung | CY72: Anschreiben (Einladung, etc.)
B73: Seite | D73: 3 | CY73: über : | DA73: können Sie die Einladungen und die Teilnahmebestätigung auswählen.
G74: Gelöscht werden : | W74: Adressenliste | CP74: über Datei / Seite einrichten, kommen Sie | DA74: mit "A & B" können Sie zwei Anschreiben frei formulieren.
CP75: in das nebenstehende Fenster | CY75: Neben dem Absender (incl. Tel. & Adresse), können Sie auch die Funktion innerhalb des Schützenvereins angeben.
W76: Die interne Verwaltung der Anschriften erfolgt über die Buchstaben (A-Z). | CY76: Die Angabe des Empfängers erfolgt über ein Auswahlfeld, welches auf die eingetragenen Daten verweist.
G77: 1 | H77: ? | I77: Hilfefunktion | K77: Keine Löschung von Daten | W77: Für die Darstellung innerhalb des Programms und der internen Listen wird eine Kurzbezeichnung des Vereins benötigt. | CP77: Damit können Sie Ihren Druckbereich | CY77: Zusammen mit der Einladung wird auf der zweiten Seite ebenfalls eine Anlage "Startkarten" mit ausgedruckt.
G78: 2 | H78: + | I78: Briefe | K78: Keine Löschung von Daten | W78: Auf den Ergebnisslisten, sowie auf den Urkunden steht dann der vollständige Vereinsname. | CP78: der Urkunde anpassen. | CY78: Mit der Teilnahmebestätigung werden ebenfalls die Startzeiten des angeschriebenen Vereins mit ausgedruckt..
G79: 3 | H79: : | I79: Dateneingabe | K79: Löschung der Startzeiten (Stände) | W79: Die weiteren Angaben zu den Vereinen werden lediglich als INFO in den Vereinsanzeigen und für Anschreiben benötigt. | AQ79: Bild | CY79: Bei der "Frei" zu formulierenden Briefen haben Sie noch die Möglichkeit eine "Betreff-" Zeile anzugeben.
G80: 4 | H80: 8 | I80: Eingabe | K80: Löschung der Mannschaften & Ergebnisse | W80: Insgesamt können Sie 12 (/ 24) Vereine eintragen. | CP80: Beachten Sie aber:
G81: 5 | H81: 4 | I81: Listen | K81: Löschung der Wettkampfergebnisse (incl. Zehntelwertung) | CO81: 1. | CP81: Die Vertikale Summe müßte im Normalfall | CY81: =AM11 -> Eingabe der Daten in die Vereine | DH81: 8 Eingabe
G82: 6 | H82: { | I82: Urkunden | K82: Keine Löschung von Daten | W82: TIPP: | X82: Beachten Sie bitte, das die ersten sechs Vereine (A-F) über vier Mannschaften > (4) < je Diziplin verfügen. | CP82: bei DIN A4 > 20,5 cm betragen | CY82: =$AM$7 -> Angabe der Teilnehmer Auswahl der Mannschaften Eingabe der Wertungen | DH82: © 2010 by Uwe Schneider
X83: In allen weiteren Vereinen können lediglich drei Mannschaften > (3) < a 5 Teilnehmer eingetrgen werden. | CO83: 2. | CP83: Lassen Sie unterhalb der Platzierung | CY83: über :
CP84: ausreichend Platz für die Unterschriften | CZ84: kommen Sie in die Auswahlliste, in der Sie die Teilnehmer eintragen können.
H85: Daten gelöscht | W85: über : | Y85: können Sie alle Angaben zum Wettkampf und die Adressen ausdrucken. | CO85: 3. | CP85: Am einfachsten ist die Anpassung der | CZ85: Die entsprechenden Spalten stehen für die benannten Disziplinen.
CP86: Druckvorlage über die Vorschau. | CZ86: Die in den Spalten genannten Teilnehmern können nur in dieser Diziplinen ausgewählt werden.
CZ87: Zusätzlich haben Sie die Möglichkeit die Sportpassnummer zu Ihrer Info einzutragen.
I88: NEIN, ich möchte meine Daten nicht löschen | P88: JA, | CZ88: Eine Sortierfunktion nach Nr. und Name erleichtert die Suche.
R89: © 2010 by Uwe Schneider | AH89: © 2010 by Uwe Schneider | AX89: © 2010 by Uwe Schneider | CT89: © 2010 by Uwe Schneider | CY89: über :
CZ90: können Sie die eingetragenen Namen zusammen mit den Vereinsdaten ausdrucken.
CY91: mit :
CZ92: kann in dem Eingabefeld die Auswahlfunktion freigeschaltet werden.
CZ93: Dabei sind wichtige Regeln zu beachten.
CY95: =$AM$42 -> WICHTIGE REGELN !!! Zur Auswahl der Mannschaften
CY96: TOP 1 | CZ96: Die Teilnehmer müssen fortlaufend innerhalb der Mannschaften eingetragen werden.
CZ97: Keinesfalls dürfen innerhalb der ersten drei Startern Startplätze frei bleiben !!!
CZ98: Diese führt zu Zählfehlern bei den Teilnehmerlisten und der Trennung zwischen
CZ99: Mannschaften und Einzelstartern.
CY100: TOP 2 | CZ100: Damit die Sortier- und Zählfunktion genutzt werden kann, sind die jeweiligen Mannschaften je Diziplin
W101: Briefe ... Einladungen etc. | AF101: Adressen | AM101: Eingabe der Daten in die Vereine | AV101: Eingabefehler | CI101: Danksagung | CR101: Druckeinstellung | CZ101: (mit mehr als zwei Teilnehmern) zuerst einzutragen.
B102: Hilfe | W102: Ausdruck: Anschreiben, Einladungen etc. | AF102: 8 Eingabe | AM102: Informationen in der Eingabe | AV102: : Daten | CR102: Ausdruck Hilfe | CZ102: Erst anschließend sollte in den Mannschaften die Einzelstarter (bis zwei Teilnehmern) eingetragen werden.
B103: Seite | D103: 4 | CJ103: Ich möchte mich ganz herzlich bei meiner Mutter bedanken, die mir mit viel Mühe | CZ103: Es macht keinen Sinn, wenn beispielsweise im ersten und dritten Feld Mannschaften eingetragen sind,
W104: Anschreiben (Einladung, etc.) | AQ104: Im Kopfbereich befinden sich die Gesamtzähler der Startnummern, | CJ104: die verschiedenen Anforderungen an solch ein Programm aufgezeigt hat. | CZ104: (1 & 3. Mannschaft) und die 2. Mannschaft wegfällt.
AQ105: und die entsprechende Diziplin sowie die Klasse (1-4). | CJ105: Auch hoffe ich, das die Pokalschießen im Schützenverein Rothebusch immer | CY105: TOP 3 | CZ105: Sollte bei einer Mannschaft ein Teilnehmer wegfallen ( 0 Wertung), sollte der Name nicht gelöscht werden.
W106: über : | Y106: können Sie die Einladungen und die Teilnahmebestätigung auswählen. | AQ106: < Im mittleren Balken befindet sich die Mannschaft incl. der Wertung | CJ106: wieder ein großer Erfolg werden. | CZ106: Auch wenn im Mannschaftsergebnis letzendlich ggf. nur zwei gültige Wertungen erfolgen.
Y107: mit "A & B" können Sie zwei Anschreiben frei formulieren. | AQ107: Die unteren Felder beinhalten die Einzelergebnisse mit der | CZ107: Durch das Entfernen von Teilnehmern während des Wettkampfs, werden die Startnummern verändert.
AQ108: Startnummer, den Wertungen und das Gesamtergebniss. | CJ108: Es war mit sehr viel Mühe verbunden dieses Programm zu schreiben.
W109: Neben dem Absender (incl. Tel. & Adresse), können Sie auch die Funktion innerhalb des Schützenvereins angeben. | AQ109: Zusätzlich sind folgende Angaben zu entnehmern: | CJ109: Insgesamt waren ca. 150 Std. notwendig und ich hatte einige Rückschläge. | CY109: =$AM$11&" II" -> Eingabe der Daten in die Vereine II | DH109: 8 Eingabe
W110: Die Angabe des Empfängers erfolgt über ein Auswahlfeld, welches auf die eingetragenen Daten verweist. | AP110: 4. | AQ110: Wertung / Rang, innerhalb der Mannschaft. | CJ110: Daher möchte ich Sie bitten dieses Programm nicht unerlaubt zu kopieren | CY110: =$AM$7 -> Angabe der Teilnehmer Auswahl der Mannschaften Eingabe der Wertungen | DH110: © 2010 by Uwe Schneider
AP111: ¢. | AQ111: Zeichen für eine Angabe der Zehntelwertung. | CJ111: und die Sperren zu umgehen, um dieses Prg. anderweitig zu nutzen.
W112: Zusammen mit der Einladung wird auf der zweiten Seite ebenfalls eine Anlage "Startkarten" mit ausgedruckt. | AP112: 22. | AQ112: eine vorläufige Rangfolge innerhalb der Diziplin (ohne Zehntelwertung). | CJ112: Ich danke Ihnen dafür.
W113: Mit der Teilnahmebestätigung werden ebenfalls die Startzeiten des angeschriebenen Vereins mit ausgedruckt..
CJ114: In diesem Sinne wünsche ich allen Teilnehmern an den Pokalschießen
W115: Bei der "Frei" zu formulierenden Briefen haben Sie noch die Möglichkeit eine "Betreff-" Zeile anzugeben. | CJ115: ein "Gut Schuß"
CJ117: Uwe Schneider | CO117: Oberhausen, den . | CP117: 2010-01-31
AH119: © 2010 by Uwe Schneider | AX119: © 2010 by Uwe Schneider | CT119: © 2010 by Uwe Schneider
DC129: Im Kopfbereich befinden sich die Gesamtzähler der Startnummern,
DC130: und die entsprechende Diziplin sowie die Klasse (1-4).
DC131: < Im mittleren Balken befindet sich die Mannschaft incl. der Wertung
B132: Hilfe | DC132: Die unteren Felder beinhalten die Einzelergebnisse mit der
B133: Seite | D133: 5 | DC133: Startnummer, den Wertungen und das Gesamtergebniss.
DC134: Zusätzlich sind folgende Angaben zu entnehmern:
DB135: 4. | DC135: Wertung / Rang, innerhalb der Mannschaft.
DB136: ¢. | DC136: Zeichen für eine Angabe der Zehntelwertung.
DB137: 22. | DC137: eine vorläufige Rangfolge innerhalb der Diziplin (ohne Zehntelwertung).
CY139: =$BC$11 -> Daten, ... | DH139: : Daten
CY140: Meldelisten, Standlisten, Starterlisten | DH140: © 2010 by Uwe Schneider
CY141: Meldeliste | CZ141: Ein Ausdruck über die Anzahl der Teilnehmer je Verein.
CZ142: Aufgeschlüsselt nach den Diziplinen, Mannschaften und Einzelstartern.
CZ143: Einzelstarter (weniger als drei Starter) werden nicht in den Mannschaften gezählt.
CY144: Standliste | CZ144: Wohl die größte Vereinfachung dieses Programmes.
CZ145: Nach Angabe der Standaufsicht auf der ersten Seite, können Sie für jeden Wettkampftag
CZ146: alle 30 Minuten / je Stand, einen Verein auswählen.
CZ147: Dabei werden die noch zu vergebenden Startzeiten je Verein gesondert angegeben.
CZ148: Die jeweilige Startzeit des Wettkampftages wird auf die Standliste übertragen.
CZ149: Lediglich die Endzeit wird noch nicht direkt berücksichtigt.
CY150: Starterliste | CZ150: Ein kompletter Ausdruck der angemeldeten Teilnehmer
CZ151: aufgeschlüsselt nach der jeweiligen Diziplin und dem Verein.
CY152: TIPP: | CZ152: Alle Listen können als Information ausgedruckt werden.
CZ153: Prüfen Sie in der Vorschau wieviele Seiten ausgedruckt werden sollen.
CZ154: Überzählige Seiten werden nicht bedruckt.
CY158: =$BS$11 -> Listen, ... / Ergebnislisten | DH158: 4 Listen
CY159: =$BS$7 -> 1/10 ... Zehntelwertung, Grundsätze der Wertung | DH159: © 2010 by Uwe Schneider
CY160: über : | DA160: können Sie die Zehntelwertung freigeben, bzw. in die Druckansicht wechseln.
DA161: Das Format der Eingabe ist: 123,4
DA162: Sollten Sie keine Wertungsmaschine einsetzten, können Sie zur
DA163: Festlegung der Rangfolge auch ganze Zahlen verwenden.
CY164: TIPP: | DA164: Mit jeder Freigabe der Zehntelwertung wird die Liste neu sortiert.
CY165: über : | DA165: kommen sie in die weiteren Klassen. (oder der Mannschaftswertung)
CY166: Mannschaften | DA166: Wenn alle Einzelergebnisse geprüft wurden, kommen sie zur Mannschaftswertung
CY167: TIPP: | DA167: Aus der Mannschaftswertung kommen Sie in die Liste über Einzelwertung "Ansicht" zurück.
CY168: über : | DA168: kommen Sie in die jeweiligeDruckansicht.
DA169: Es werden immer alle Seiten zum Ausdruck vorbereitet. Sollten jedoch keine
DA170: Wertungsdaten vorhanden sein, bleiben die Datenzeilen weiss.
CY171: TIPP: | DA171: In der Druckansicht ist Anzahl der erforderlichen Ausdruckseiten festzustellen.
CY172: TIPP: | CZ172: Für den unwahrscheinlichen Fall, das zwei Mannschaften dasselbe Endergebniss haben,
CZ173: ist unbedingt für jeden Starter der entsp. Mannschaften eine Zehntelwertung zu machen.
CY174: Wertung | DA174: Jede Wertung (Platzierung) erfolgt nach folgenden Grundsätzen:
CY175: 1. | CZ175: Bei gleichem Ringergebnis wird automatisch die bessere zweite Serie gewertet
CZ176: Dieses gilt ebenfalls auch bei der Mannschaftswertung
CZ177: 90 | DA177: 80 | DB177: =SUM(CZ177:DA177) -> 170 | DC177: ="= 2. Platz" -> = 2. Platz
CZ178: 80 | DA178: 90 | DB178: =SUM(CZ178:DA178) -> 170 | DC178: ="= 1. Platz" -> = 1. Platz
CZ179: 70 | DA179: 90 | DB179: =SUM(CZ179:DA179) -> 160 | DC179: >> Mannschaftsergeb. = | DE179: =SUM(DB177:DB179) -> 500 | DF179: >260 = 2.Platz
DA180: =SUM(DA177:DA179) -> 260
CZ181: 78 | DA181: 90 | DB181: =SUM(CZ181:DA181) -> 168 | DC181: >> Mannschaftsergeb. = | DE181: =SUM(DB181:DB183) -> 500 | DF181: >270 = 1.Platz
CZ182: 73 | DA182: 90 | DB182: =SUM(CZ182:DA182) -> 163
CZ183: 79 | DA183: 90 | DB183: =SUM(CZ183:DA183) -> 169
DA184: =SUM(DA181:DA183) -> 270
CY185: 2. | CZ185: Wenn trotzdem ein gleicher Rang / Platz vorhanden ist, kann in den Listen
CZ186: eine ggf. notwendige Zehntelwertung eingetragen werden.
CY188: =$CI$11 -> Gestaltung & Ausdruck der Urkunden | DH188: { Urkunden
CY189: =$CI$7 -> Erste Bedienungen, Funktionsbutton`s, Druckeinstellung | DH189: © 2010 by Uwe Schneider
CY190: über : | DA190: erreichen Sie die einzelnen Diziplinen der Einzel- und Mannschaftswertung
CY192: Schützen Freistehend | DC192: nach der Auswahl können Sie in dem Druckbereich die Daten zuweisen
CY193: Ausricht. | CZ193: D 15 | DA193: =Brief!$K$87 -> Schützenverein Rothebusch 1922 e.V. | DC193: < bedeutet z.B., das die Angaben für den Ausrichter in D 15 enthalten sind.
DC194: Ihre Eingabe muss "Variabel" sein. D.h.: | DG194: =D15 | DH194: > Richtig
DC195: Keinesfalls als "Absolut"`en Link. D.h.: | DG195: =$D$15 | DH195: > Falsch
DC196: Dadurch würden die Angaben des 2. & 3. Platzes nicht stimmen.
CY198: über : | DA198: wird die erste gestaltete Seite auf die Plätze 2. & 3. übertragen.
DA199: erreichen Sie die Vorschau. (Beachten Sie die Tipps zur Druckeinstellung)
DA200: wird Ihre gestaltete Seite kopiert und im Sicherungsbereich gespeichert.
CY201: (eig. Entwurf) | DA201: Löscht den bisherigen Entwurf und Kopiert die Seite aus dem Sicherungsbereich (und kopiert diese auf 2.&3.)
CY202: (Vorlage) | DA202: Löscht den bisherigen Entwurf und Kopiert die Vorlage des Programms (und kopiert diese auf 2.&3.)
CY207: =$CI$11&" II" -> Gestaltung & Ausdruck der Urkunden II | DH207: { Urkunden
CY208: =$CI$7 -> Erste Bedienungen, Funktionsbutton`s, Druckeinstellung | DH208: © 2010 by Uwe Schneider
DA210: Schriften | DE210: Schriftfarbe | DH210: Schrifttyp
CZ213: ./. | DA213: < nicht belegt > | DC213: ./. | DD213: Grün | DF213: Standard | DG213: Fett | DI213: Standard
CZ214: Arial | DC214: Blackadder | DD214: Meeresgrün | DF214: Blau | DG214: Kursiv | DI214: Tiefgestellt
CZ215: Calisto MT | DC215: Comic Sans MS | DD215: Gelbgrün | DF215: Hellblau | DG215: Mitte | DI215: Standard
CZ216: Elephant | DC216: Lucida Callig. | DD216: Grellgrün | DF216: Himmelblau | DG216: Links | DI216: Rechts
CZ217: Rockwell Ext. | DC217: Times New Ro. | DD217: Hellgrün | DF217: Türkis | DG217: Verbinden von Zellen | DI217: aufheben
DF220: über Datei / Seite einrichten, kommen Sie
DF221: in das nebenstehende Fenster
DF223: Damit können Sie Ihren Druckbereich
DF224: der Urkunde anpassen.
DF226: Beachten Sie aber:
DE227: 1. | DF227: Die Vertikale Summe müßte im Normalfall
DF228: bei DIN A4 > 20,5 cm betragen
DE229: 2. | DF229: Lassen Sie unterhalb der Platzierung
DF230: ausreichend Platz für die Unterschriften
DE231: 3. | DF231: Am einfachsten ist die Anpassung der
... 15 more rows

Sheet Brief
B1: 72 | D1: =IF(Brief!K44=0,"",Brief!K44) -> Schützen | G1: =" "&Brief!$K$13&" "&Brief!$K$14&" "&Brief!$K$15 -> SV Rothebusch 1922 e.V. 21. Optik Giepen Pokal 03/04. Febr. 2018 | V1: =" "&Brief!$K$13&" "&Brief!$K$14&" "&Brief!$K$15 -> SV Rothebusch 1922 e.V. 21. Optik Giepen Pokal 03/04. Febr. 2018 | AI1: =" "&Brief!$K$13&" "&Brief!$K$14&" "&Brief!$K$15 -> SV Rothebusch 1922 e.V. 21. Optik Giepen Pokal 03/04. Febr. 2018 | AV1: =" "&Brief!$K$13&" "&Brief!$K$14&" "&Brief!$K$15 -> SV Rothebusch 1922 e.V. 21. Optik Giepen Pokal 03/04. Febr. 2018 | BM1: =" "&Brief!$K$13&" "&Brief!$K$14&" "&Brief!$K$15 -> SV Rothebusch 1922 e.V. 21. Optik Giepen Pokal 03/04. Febr. 2018 | BY1: 0 | BZ1: ="" ->  | CJ1: =" "&Brief!$K$13&" "&Brief!$K$14&" "&Brief!$K$15 -> SV Rothebusch 1922 e.V. 21. Optik Giepen Pokal 03/04. Febr. 2018 | CX1: =" "&Brief!$K$13&" "&Brief!$K$14&" "&Brief!$K$15 -> SV Rothebusch 1922 e.V. 21. Optik Giepen Pokal 03/04. Febr. 2018
A2: 10 | B2: 1.# Veranstaltung | D2: =IF(Brief!K47=0,"",Brief!K47) -> Damen | BY2: 1 | BZ2: 10:00 - 10:30 | CF2: <
A3: 12 | B3: Wettkampf / Info : | D3: =IF(Brief!L44=0,"",Brief!L44) -> Freistehend | BY3: 2 | BZ3: 10:30 - 11:00 | CA3: =Daten!$B$6 -> 03.02 | CB3: 6 | CC3: =Daten!$C$6 -> 04.02 | CF3: <
A4: 30 | B4: 2.# Adressen | D4: =IF(Brief!L45=0,"",Brief!L45) -> Aufgelegt | G4: Briefe | M4: Angaben | V4: Briefe | Y4: Adressen | AI4: Briefe | AL4: Adressen & Info | AV4: Briefe | AZ4: Einladung | BM4: Briefe | BQ4: Startzeiten | BY4: 3 | BZ4: 11:00 - 11:30 | CA4: =Daten!$B$7 ->  | CB4: 7 | CC4: =Daten!$C$7 ->  | CF4: < | CJ4: Briefe | CN4: Frei "A" | CX4: Briefe | DB4: Frei "B"
A5: 32 | B5: A - D : | C5: O - R : | D5: =IF(Brief!K50=0,"",Brief!K50) ->  | BY5: 4 | BZ5: 11:30 - 12:00 | CA5: =Daten!$B$8 ->  | CB5: 8 | CC5: =Daten!$C$8 ->  | CF5: <
A6: 34 | B6: E - H : | C6: S - V : | D6: =IF(Brief!L50=0,"",Brief!L50) ->  | BY6: 5 | BZ6: 12:00 - 12:30 | CA6: =Daten!$B$9 ->  | CB6: 9 | CC6: =Daten!$C$9 ->  | CF6: <
A7: 36 | B7: K - N : | C7: W - Z : | D7: =IF(Brief!L51=0,"",Brief!L51) ->  | AV7: Absender : | AW7: Ute Schneider | AZ7: Abs. Strasse : | BA7: Schwarzwaldstr. 38 | BM7: Absender : | BQ7: Abs. Strasse : | BR7: Schwarzwaldstr. 38 | BY7: 6 | BZ7: 12:30 - 13:00 | CF7: < | CJ7: Absender : | CK7: =$X$19 -> Ute Schneider | CN7: Abs. Strasse : | CO7: Schwarzwaldstr. 38 | CX7: Absender : | CY7: =$X$19 -> Ute Schneider | DB7: Abs. Strasse : | DC7: Schwarzwaldstr. 38
A8: 70 | B8: 3.# Briefe | D8: =IF(Brief!K53=0,"",Brief!K53) ->  | AV8: Funktion : | AW8: Schießleitung | AZ8: Abs. PLZ / Ort : | BA8: 46119 Oberhausen | BM8: Funktion : | BN8: Schießleitung | BQ8: Abs. PLZ / Ort : | BR8: 46119 Oberhausen | BY8: 7 | BZ8: 13:00 - 13:30 | CF8: < | CJ8: Funktion : | CK8: Schießleitung | CN8: Abs. PLZ / Ort : | CO8: 46119 Oberhausen | CX8: Funktion : | CY8: Schießleitung | DB8: Abs. PLZ / Ort : | DC8: 46119 Oberhausen | DE8: > CU = 99
A9: 72 | B9: Startkarten | C9: Startlisten | D9: =IF(Brief!L53=0,"",Brief!L53) ->  | AV9: Empfänger : | AW9: BSG 1862 Oberhausen | AZ9: Abs. Telefon : | BA9: 0208 / 60 12 16 | BM9: Empfänger : | BN9: Hubertus | BQ9: Abs. Telefon : | BR9: 0208 / 60 12 16 | BY9: 8 | BZ9: 13:30 - 14:00 | CF9: < | CJ9: Empfänger : | CK9: SV Rothebusch 1922 e.V. | CN9: Abs. Telefon : | CO9: 0208 / 60 12 16 | CX9: Empfänger : | CY9: Buschhausen | DB9: Abs. Telefon : | DC9: 0208 / 60 12 16 | DE9: CV / DE
A10: 74 | B10: Frei zu Gestalten: | D10: =IF(Brief!L54=0,"",Brief!L54) ->  | AU10: Anlage: Formular Startkarten | AV10: Anlage : | AW10: Formular Startkarten | AZ10: Datum : | BA10: 2017-12-14 | BM10: TIPP : | BN10: Ausdruckseiten kontrollieren | BQ10: Datum : | BR10: =NOW() -> 2018-02-05T11:14:19.790 | BY10: 9 | BZ10: 14:00 - 14:30 | CF10: < | CJ10: Betrifft : | CN10: Datum : | CO10: =NOW() -> 2018-02-05T11:14:19.790 | CX10: Betrifft : | DB10: Datum : | DC10: =NOW() -> 2018-02-05T11:14:19.790
G11: Angaben zur Veranstaltung | BY11: 10 | BZ11: 14:30 - 15:00
B12: Briefe | V12: A | W12: Verein - Kurz | X12: SV Rothebusch 1922 e.V. | Z12: B | AA12: Verein - Kurz | AB12: ABSV 1921 | AI12: Ausrichter : (Verein) | AJ12: =IF(K13=0,"",K13) -> SV Rothebusch 1922 e.V. | BY12: 11 | BZ12: 15:00 - 15:30
J13: Ausrichter : (Verein) | K13: SV Rothebusch 1922 e.V. | N13: < Kopf | W13: Vereinsname | X13: Schützenverein Rothebusch 1922 e.V. | AA13: Vereinsname | AB13: ABSV 1921 Oberhausen e.V. | AI13: Name der Veranstaltung : | AJ13: =IF(K14=0,"",K14) -> 21. Optik Giepen Pokal | AM13: Datum der Veranstaltung : | AN13: =IF(K15=0,"",K15) -> 03/04. Febr. 2018 | BY13: 12 | BZ13: 15:30 - 16:00
B14: A | C14: =$AH$45 -> SV Rothebusch 1922 e.V. | J14: Name der Veranstaltung : | K14: 21. Optik Giepen Pokal | V14: (4) | W14: Vereinsnummer | X14: 1111 | Z14: (4) | AA14: Vereinsnummer | AB14: 1105 | AM14: Siegerehrung : | AN14: =K83 -> 2014-02-09 | AO14: =N83 -> 1930 | BY14: 13 | BZ14: 16:00 - 16:30
B15: B | C15: =$AH$46 -> ABSV 1921 | J15: Datum der Veranstaltung : | K15: 03/04. Febr. 2018 | W15: Geschäftsführung | X15: Schneider, Ute | AA15: Geschäftsführung | AB15: Granieczny, Ludwig | AI15: jeweils | AJ15: =IF(P45=0,"",P45) -> 30 | AK15: =IF(Q45=0,"",Q45)&" "&IF(P46=0,"",P46) -> je Durchgang incl. Probeschüsse | AM15: Anmeldungen | AV15: Mitglied im Deutschen und Rheinischen Schützenbund e.V. Mitglieds-Nr.: 01111 Mitglied im Stadtsportbund Oberhausen e.V. | BM15: Mitglied im Deutschen und Rheinischen Schützenbund e.V. Mitglieds-Nr.: 01111 Mitglied im Stadtsportbund Oberhausen e.V. | BY15: 14 | BZ15: 16:30 - 17:00 | CJ15: Mitglied im Deutschen und Rheinischen Schützenbund e.V. Mitglieds-Nr.: 01111 Mitglied im Stadtsportbund Oberhausen e.V. | CX15: Mitglied im Deutschen und Rheinischen Schützenbund e.V. Mitglieds-Nr.: 01111 Mitglied im Stadtsportbund Oberhausen e.V.
B16: C | C16: =$AH$47 -> Buschhausen | J16: Erste Scheiben-Nr. & Menge : | K16: 4001 | L16: 5 | M16: 5 | N16: < max. Schießstände | W16: Strasse | X16: Schwarzwaldstr. 38 | AA16: Strasse | AB16: Sachsenstr. 8 | AI16: =IF(K43=0,"",K43) -> Luftgewehr | AJ16: =IF(M43=0,"",M43) -> 10 m | AK16: =IF(N43=0,"",N43) -> 1 Schuss | AL16: =IF(O43=0,"",O43) -> Scheibe | AM16: =IF(N19=0,"",N19) -> Mannschaft | AN16: =IF(O19=0,"",O19) -> Starter Ges. | AO16: =IF(P19=0,"",P19) -> (Einzel) | BY16: 15 | BZ16: 17:00 - 17:30
B17: D | C17: =$AH$48 -> BSG Holten | J17: der 2. Schütze beginnt dann mit : | K17: =K16+L16 -> 4006 | L17: ="- "&K18 -> - 4010 | M17: =DatLi!$I$8 -> 5055 | N17: < bis "..." benötigte Scheiben | W17: PLZ / Ort | X17: 46119 Oberhausen | AA17: PLZ / Ort | AB17: 46149 Oberhausen | AG17: 1 | AI17: =IF($K$44=0,"",$K$44) -> Schützen | AJ17: =IF($L$44=0,"",$L$44) -> Freistehend | AK17: =IF($M$44=0,"",$M$44) -> ab 12 | AL17: =IF($N$44=0,"",$N$44) -> 20 Schuss | AM17: =N20 -> 4 | AN17: 16 | AO17: 0 | BY17: 16 | BZ17: 17:30 - 18:00
B18: E | C18: =$AH$49 -> 1882 Osterfeld | K18: =K17+L16-1 -> 4010 | W18: Telefon | X18: 0208 / 60 83 85 | AA18: Telefon | AJ18: =IF($L$45=0,"",$L$45) -> Aufgelegt | AK18: =IF($M$45=0,"",$M$45) -> ab 45 | AL18: =IF($N$44=0,"",$N$44) -> 20 Schuss | AM18: 15 | AN18: 62 | AO18: 0 | AV18: =$X$13&" "& $X$15&"; "&$X$16&"; "&$X$17 -> Schützenverein Rothebusch 1922 e.V. Schneider, Ute; Schwarzwaldstr. 38; 46119 Oberhausen | BA18: Abs.: | BM18: =$X$13&" "& $X$15&"; "&$X$16&"; "&$X$17 -> Schützenverein Rothebusch 1922 e.V. Schneider, Ute; Schwarzwaldstr. 38; 46119 Oberhausen | BR18: Abs.: | BY18: 17 | BZ18: 18:00 - 18:30 | CJ18: =$X$13&" "& $X$15&"; "&$X$16&"; "&$X$17 -> Schützenverein Rothebusch 1922 e.V. Schneider, Ute; Schwarzwaldstr. 38; 46119 Oberhausen | CO18: Abs.: | CX18: =$X$13&" "& $X$15&"; "&$X$16&"; "&$X$17 -> Schützenverein Rothebusch 1922 e.V. Schneider, Ute; Schwarzwaldstr. 38; 46119 Oberhausen | DC18: Abs.:
B19: F | C19: =$AH$50 -> Hubertus | M19: Kurz | N19: Mannschaft | O19: Starter Ges. | P19: (Einzel) | W19: Sportwart | X19: Ute Schneider | AA19: Sportwart | AI19: =IF(K46=0,"",K46) -> Luftgewehr | AJ19: =IF(M46=0,"",M46) -> 10 m | AK19: =IF(N46=0,"",N46) -> 1 Schuss | AL19: =IF(O46=0,"",O46) -> Scheibe | AV19: =VLOOKUP($AW$9,$AH$45:$AO$68,2,FALSE) -> BSG 1862 Oberhausen | BA19: =IF(AW7=0,"",AW7) -> Ute Schneider | BM19: =VLOOKUP($BN$9,$AH$45:$AO$68,2,FALSE) -> BSV St. Hubertus Ob-Sterkrade e.V. | BR19: =IF(BN7=0,"",BN7) ->  | BY19: 18 | BZ19: 18:30 - 19:00 | CJ19: =VLOOKUP($CK$9,$AH$45:$AO$68,2,FALSE) -> Schützenverein Rothebusch 1922 e.V. | CO19: =IF(CK7=0,"",CK7) -> Ute Schneider | CX19: =VLOOKUP($CY$9,$AH$45:$AO$68,2,FALSE) -> ABSV Buschhausen 1950 e.V. | DC19: =IF(CY7=0,"",CY7) -> Ute Schneider
B20: G | C20: =$AH$51 -> St. Lirich | H20: 1 | I20: Disziplin : | K20: =IF($K$44=0,"",$K$44) -> Schützen | L20: =IF($L$44=0,"",$L$44) -> Freistehend | M20: =IF(L20="","",LEFT(K20,1)&LEFT(L20,1)) -> SF | N20: =Klasse_1!$AM$9 -> 4 | O20: =Klasse_1!$AM$7 -> 16 | P20: =Klasse_1!$AM$8 -> 0 | W20: Telefon | X20: 0208 / 60 12 16 | AA20: Telefon | AG20: 2 | AI20: =IF($K$47=0,"",$K$47) -> Damen | AJ20: =IF($L$47=0,"",$L$47) -> Freistehend | AK20: =IF($M$47=0,"",$M$47) -> ab 12 | AL20: =IF($N$44=0,"",$N$44) -> 20 Schuss | AM20: =N22 -> 0 | AN20: 0 | AO20: 0 | BA20: =IF(AW8=0,"",AW8) -> Schießleitung | BR20: =IF(BN8=0,"",BN8) -> Schießleitung | BY20: 19 | BZ20: 19:00 - 19:30 | CO20: =IF(CK8=0,"",CK8) -> Schießleitung | DC20: =IF(CY8=0,"",CY8) -> Schießleitung
B21: H | C21: =$AH$52 -> Waidmannsheil | G21: 5 | L21: =IF($L$45=0,"",$L$45) -> Aufgelegt | M21: =IF(L21="","",LEFT(K20,1)&LEFT(L21,1)) -> SA | N21: =Klasse_1!$BI$9 -> 15 | O21: =Klasse_1!$BI$7 -> 62 | P21: =Klasse_1!$BI$8 -> 0 | V21: C | W21: Verein - Kurz | X21: Buschhausen | Z21: D | AA21: Verein - Kurz | AB21: BSG Holten | AJ21: =IF($L$48=0,"",$L$48) -> Aufgelegt | AK21: =IF($M$48=0,"",$M$48) -> ab 45 | AL21: =IF($N$44=0,"",$N$44) -> 20 Schuss | AM21: 0 | AN21: 0 | AO21: 0 | AV21: =VLOOKUP($AW$9,$AH$45:$AO$68,3,FALSE) -> Ortz, Manfred | BA21: =IF(BA7=0,"",BA7) -> Schwarzwaldstr. 38 | BM21: =VLOOKUP($BN$9,$AH$45:$AO$68,3,FALSE) -> Schulte Zurhausen, Theodor | BR21: =IF(BR7=0,"",BR7) -> Schwarzwaldstr. 38 | BY21: 20 | BZ21: 19:30 - 20:00 | CJ21: =VLOOKUP($CK$9,$AH$45:$AO$68,3,FALSE) -> Schneider, Ute | CO21: =IF(CO7=0,"",CO7) -> Schwarzwaldstr. 38 | CX21: =VLOOKUP($CY$9,$AH$45:$AO$68,3,FALSE) -> Awischus, Mark | DC21: =IF(DC7=0,"",DC7) -> Schwarzwaldstr. 38
B22: K | C22: =$AH$53 -> Klosterhardt | G22: 10 | H22: 2 | I22: Disziplin : | K22: =IF($K$47=0,"",$K$47) -> Damen | L22: =IF($L$47=0,"",$L$47) -> Freistehend | M22: =IF(L22="","",LEFT(K22,1)&LEFT(L22,1)) -> DF | N22: =Klasse_2!$AM$9 -> 0 | O22: =Klasse_2!$AM$7 -> 0 | P22: =Klasse_2!$AM$8 -> 0 | W22: Vereinsname | X22: ABSV Buschhausen 1950 e.V. | AA22: Vereinsname | AB22: BSGi Holten 1308 e.V. | AI22: =IF(K49=0,"",K49) ->  | AJ22: =IF(M49=0,"",M49) ->  | AK22: =IF(N49=0,"",N49) ->  | AL22: =IF(O49=0,"",O49) ->  | AV22: =VLOOKUP($AW$9,$AH$45:$AO$68,4,FALSE) -> Erzberger Str. 67 | BA22: =IF(BA8=0,"",BA8) -> 46119 Oberhausen | BM22: =VLOOKUP($BN$9,$AH$45:$AO$68,4,FALSE) ->  | BR22: =IF(BR8=0,"",BR8) -> 46119 Oberhausen | BY22: 21 | BZ22: 20:00 - 20:30 | CJ22: =VLOOKUP($CK$9,$AH$45:$AO$68,4,FALSE) -> Schwarzwaldstr. 38 | CO22: =IF(CO8=0,"",CO8) -> 46119 Oberhausen | CX22: =VLOOKUP($CY$9,$AH$45:$AO$68,4,FALSE) -> Friesenstr. 63 | DC22: =IF(DC8=0,"",DC8) -> 46119 Oberhausen
B23: L | C23: =$AH$54 -> Königshardt | L23: =IF($L$48=0,"",$L$48) -> Aufgelegt | M23: =IF(L23="","",LEFT(K22,1)&LEFT(L23,1)) -> DA | N23: =Klasse_2!$BI$9 -> 0 | O23: =Klasse_2!$BI$7 -> 0 | P23: =Klasse_2!$BI$8 -> 0 | V23: (4) | W23: Vereinsnummer | X23: 1108 | Z23: (4) | AA23: Vereinsnummer | AB23: 1106 | AG23: 3 | AI23: =IF($K$50=0,"",$K$50) ->  | AJ23: =IF($L$50=0,"",$L$50) ->  | AK23: =IF($M$50=0,"",$M$50) ->  | AL23: =IF($N$50=0,"",$N$50) ->  | AV23: =VLOOKUP($AW$9,$AH$45:$AO$68,5,FALSE) -> 46145 Oberhausen | BA23: =IF(BA9=0,"",BA9) -> 0208 / 60 12 16 | BM23: =VLOOKUP($BN$9,$AH$45:$AO$68,5,FALSE) -> 46117 Oberhausen | BR23: =IF(BR9=0,"",BR9) -> 0208 / 60 12 16 | BY23: 22 | BZ23: 20:30 - 21:00 | CJ23: =VLOOKUP($CK$9,$AH$45:$AO$68,5,FALSE) -> 46119 Oberhausen | CO23: =IF(CO9=0,"",CO9) -> 0208 / 60 12 16 | CX23: =VLOOKUP($CY$9,$AH$45:$AO$68,5,FALSE) -> 46149 Oberhausen | DC23: =IF(DC9=0,"",DC9) -> 0208 / 60 12 16
B24: M | C24: =$AH$55 -> BSG 1862 Oberhausen | G24: (Option) | H24: 3 | I24: Disziplin : | K24: =IF($K$50=0,"",$K$50) ->  | L24: =IF($L$50=0,"",$L$50) ->  | M24: =IF(L24="","",LEFT(K24,1)&LEFT(L24,1)) ->  | N24: ="" ->  | O24: ="" ->  | P24: ="" ->  | W24: Geschäftsführung | X24: Awischus, Mark | AA24: Geschäftsführung | AB24: Bylicki, Kai | AJ24: =IF($L$51=0,"",$L$51) ->  | AK24: =IF($M$51=0,"",$M$51) ->  | AL24: =IF($N$51=0,"",$N$51) ->  | BY24: 23 | BZ24: ="" -> 
B25: N | C25: =$AH$56 -> 1981 Mitte | L25: =IF($L$51=0,"",$L$51) ->  | M25: =IF(L25="","",LEFT(K24,1)&LEFT(L25,1)) ->  | N25: ="" ->  | O25: ="" ->  | P25: ="" ->  | W25: Strasse | X25: Friesenstr. 63 | AA25: Strasse | AB25: Weierstr. 95 | AI25: =IF(K52=0,"",K52) ->  | AJ25: =IF(M52=0,"",M52) ->  | AK25: =IF(N52=0,"",N52) ->  | AL25: =IF(O52=0,"",O52) ->  | BB25: =BA10 -> 2017-12-14 | BS25: =BR10 -> 2018-02-05T11:14:19.790 | BY25: 24 | BZ25: ="" ->  | CP25: =CO10 -> 2018-02-05T11:14:19.790 | DD25: =DC10 -> 2018-02-05T11:14:19.790
H26: 4 | I26: Disziplin : | K26: =IF($K$53=0,"",$K$53) ->  | L26: =IF($L$53=0,"",$L$53) ->  | M26: =IF(L26="","",LEFT(K26,1)&LEFT(L26,1)) ->  | N26: ="" ->  | O26: ="" ->  | P26: ="" ->  | W26: PLZ / Ort | X26: 46149 Oberhausen | AA26: PLZ / Ort | AB26: 46149 Oberhausen | AG26: 4 | AI26: =IF($K$53=0,"",$K$53) ->  | AJ26: =IF($L$53=0,"",$L$53) ->  | AK26: =IF($M$53=0,"",$M$53) ->  | AL26: =IF($N$53=0,"",$N$53) ->  | AV26: EINLADUNG | BM26: Startzeiten | BY26: 25 | BZ26: ="" ->  | CJ26: =IF(CK10=0,"",CK10) ->  | CX26: =IF(CY10=0,"",CY10) -> 
L27: =IF($L$54=0,"",$L$54) ->  | M27: =IF(L27="","",LEFT(K26,1)&LEFT(L27,1)) ->  | N27: ="" ->  | O27: ="" ->  | P27: ="" ->  | W27: Telefon | AA27: Telefon | AJ27: =IF($L$54=0,"",$L$54) ->  | AK27: =IF($M$54=0,"",$M$54) ->  | AL27: =IF($N$54=0,"",$N$54) ->  | AY27: ="zum "&$K$14&" am: "&$K$15 -> zum 21. Optik Giepen Pokal am: 03/04. Febr. 2018 | BP27: ="zum "&$K$14&" am: "&$K$15 -> zum 21. Optik Giepen Pokal am: 03/04. Febr. 2018 | BY27: 26 | BZ27: ="" ->  | CM27: ="zum "&$K$14&" am: "&$K$15 -> zum 21. Optik Giepen Pokal am: 03/04. Febr. 2018 | DA27: ="zum "&$K$14&" am: "&$K$15 -> zum 21. Optik Giepen Pokal am: 03/04. Febr. 2018
M28: Gesamt : | N28: =SUM(N20:N27) -> 19 | O28: =SUM(O20:O27) -> 78 | P28: =SUM(P20:P27) -> 0 | W28: Sportwart | AA28: Sportwart | AL28: =IF(M28=0,"X",M28) -> Gesamt : | AM28: =IF(N28=0,"X",N28) -> 19 | AN28: =IF(O28=0,"X",O28) -> 78 | AO28: =IF(P28=0,"X",P28) -> X | AY28: ="Veranstalter: "&$K$13 -> Veranstalter: SV Rothebusch 1922 e.V. | BP28: ="Veranstalter: "&$K$13 -> Veranstalter: SV Rothebusch 1922 e.V. | BY28: 27 | BZ28: ="" ->  | CM28: ="Veranstalter: "&$K$13 -> Veranstalter: SV Rothebusch 1922 e.V. | DA28: ="Veranstalter: "&$K$13 -> Veranstalter: SV Rothebusch 1922 e.V.
N29: Mannschaft | O29: Starter Ges. | P29: (Einzel) | W29: Telefon | AA29: Telefon | AI29: =IF(K56="","","Wettkampftag 1 / 2 :") -> Wettkampftag 1 / 2 : | AJ29: =IF(K56=0,"",K56) -> 03.02 | AK29: =IF(L56=0,"",L56) -> 11:00:00 | AL29: =IF(M56=0,"",M56) -> 18:00:00 | AM29: =IF(K57=0,"",K57) -> 04.02 | AN29: =IF(L57=0,"",L57) -> 11:30:00 | AO29: =IF(M57=0,"",M57) -> 18:00:00 | BY29: 28 | BZ29: ="" -> 
AI30: =IF(K58="","","Wettkampftag 3 / 4 :") ->  | AJ30: =IF(K58=0,"",K58) ->  | AK30: =IF(L58=0,"",L58) ->  | AL30: =IF(M58=0,"",M58) ->  | AM30: =IF(K59=0,"",K59) ->  | AN30: =IF(L59=0,"",L59) ->  | AO30: =IF(M59=0,"",M59) ->  | AV30: Austragungsort: | AW30: =$K$73 -> Schießstand Schützenverein Rothebusch 1922 e.V. | BM30: Liebe Schützinnen, liebe Schützen | BY30: 29 | BZ30: ="" ->  | CJ30: Austragungsort: | CK30: Schießstand Schützenverein Rothebusch 1922 e.V.
AI31: =IF(O56="","","Wettkampftag 5 / 6 :") ->  | AJ31: =IF(O56=0,"",O56) ->  | AK31: =IF(P56=0,"",P56) ->  | AL31: =IF(Q56=0,"",Q56) ->  | AM31: =IF(O57=0,"",O57) ->  | AN31: =IF(P57=0,"",P57) ->  | AO31: =IF(Q57=0,"",Q57) ->  | AW31: =$K$74 -> Nürnberger Str. 99, 46117 Oberhausen | BY31: 30 | BZ31: ="" ->  | CK31: Nürnberger Str. 99 46117 Oberhausen
AI32: =IF(O58="","","Wettkampftag 7 / 8 :") ->  | AJ32: =IF(O58=0,"",O58) ->  | AK32: =IF(P58=0,"",P58) ->  | AL32: =IF(Q58=0,"",Q58) ->  | AM32: =IF(O59=0,"",O59) ->  | AN32: =IF(P59=0,"",P59) ->  | AO32: =IF(Q59=0,"",Q59) ->  | BM32: ="wir freuen uns wieder über die zahlreichen Meldungen zu unserem "&Brief!$K$14&" am "&Brief!$K$15&" und übersenden Euch die Starterlisten." -> wir freuen uns wieder über die zahlreichen Meldungen zu unserem 21. Optik Giepen Pokal am 03/04. Febr. 2018 und übersenden Euch die Starterlisten. | BY32: 31 | BZ32: ="" -> 
AI33: Info 1 | AJ33: =K76 -> NEU: Mannschaften gemischte Wertung Schützinnen und Schützen können in einer Mannschaft schießen. Je Mannschaft mind 3 Teilnehmer (gewertet) max. 5 Teilnehmer | AV33: =$AI$29 -> Wettkampftag 1 / 2 : | AX33: =$AJ$29 -> 03.02 | AY33: =$AK$29 -> 11:00:00 | AZ33: =$AL$29 -> 18:00:00 | BA33: =$AM$29 -> 04.02 | BB33: =$AN$29 -> 11:30:00 | BC33: =$AO$29 -> 18:00:00 | BY33: 32 | BZ33: ="" ->  | CJ33: Wettkampftag 1/2 | CL33: 08. Febr. | CM33: 10.00 | CN33: 18.00 | CO33: 09. Febr. | CP33: 10.00 | CQ33: 18.00
AV34: =$AI$30 ->  | AX34: =$AJ$30 ->  | AY34: =$AK$30 ->  | AZ34: =$AL$30 ->  | BA34: =$AM$30 ->  | BB34: =$AN$30 ->  | BC34: =$AO$30 ->  | BM34: Wir bitten, die namentlichen Eintragungen selbst vorzunehmen und dafür Sorge zu tragen, daß die Schützinnen / Schützen mind. 30 Minuten vor der jeweiligen Startzeit anwesend sind. | BY34: 33 | BZ34: ="" -> 
AV35: =$AI$31 ->  | AX35: =$AJ$31 ->  | AY35: =$AK$31 ->  | AZ35: =$AL$31 ->  | BA35: =$AM$31 ->  | BB35: =$AN$31 ->  | BC35: =$AO$31 ->  | BY35: 34 | BZ35: ="" ->  | CJ35: Luftgewehr | CK35: 10m | CL35: Schützen | CM35: Freistehend 12-44 | CN35: ab 12 Jahre | CO35: 20 Schuss
AI36: Info 2 | AJ36: =K78 -> Die ersten drei Mannschaften jeder Klasse (Freistehend / Aufgelegt), sowie jeweils besten Einzelschützinnen und -schützen erhalten einen Pokal. Die Plazierten erhalten eine Urkunde. | AV36: =$AI$32 ->  | AX36: =$AJ$32 ->  | AY36: =$AK$32 ->  | AZ36: =$AL$32 ->  | BA36: =$AM$32 ->  | BB36: =$AN$32 ->  | BC36: =$AO$32 ->  | BY36: 35 | BZ36: ="" ->  | CM36: Aufgelegt | CN36: ab 45 Jahre | CO36: 20 Schuss
AV37: =AI16 -> Luftgewehr | AW37: =AJ16 -> 10 m | AX37: =AI17 -> Schützen | AY37: =AJ17 -> Freistehend | AZ37: =$AK$17 -> ab 12 | BA37: =AL17 -> 20 Schuss | BM37: Mit freundlichem Schützengruß "Gut Schuß" | BY37: 36 | BZ37: ="" -> 
AV38: ="je "&N43&" Schuss auf die " -> je 1 Schuss Schuss auf die | AW38: =IF(O43=0,"",O43) -> Scheibe | AY38: =AJ18 -> Aufgelegt | AZ38: =$AK$18 -> ab 45 | BA38: =AL18 -> 20 Schuss | BB38: =K82 -> 8 | BC38: =IF(BB38=0,"","je Mannschaft") -> je Mannschaft | BY38: 37 | BZ38: ="" ->  | CL38: Damen | CM38: Freistehend | CN38: ab 12 Jahre | CO38: 20 Schuss
AI39: Info 3 | AJ39: =K80 -> Die Schützinnen und Schützen müssen 30 min vor der jeweiligen Startzeit anwesend sein. Es gilt die Sportordnung des Deutschen Schützenbundes in der am ersten Wettkampftag gültigen Fassung. Für Einsprüche ist eine Bearbeitungsgebühr von 25,- € zu entrichten. | AX39: =AI20 -> Damen | AY39: =AJ20 -> Freistehend | AZ39: =$AK$20 -> ab 12 | BA39: =AL20 -> 20 Schuss | BB39: =N82 -> 3 | BC39: =IF(BB39=0,"","Einzelstarter") -> Einzelstarter | BY39: 38 | BZ39: ="" ->  | CM39: Aufgelegt | CN39: ab 45 Jahre | CO39: 20 Schuss
AY40: =AJ21 -> Aufgelegt | AZ40: =$AK$21 -> ab 45 | BA40: =AL21 -> 20 Schuss | BM40: =IF(BN7=0,"",BN7) ->  | BY40: 39 | BZ40: ="" ->  | CJ40: Mannschaften können gemischt werden.
G41: Angaben zum Wettkampf | AV41: =AI22 ->  | AW41: =AJ22 ->  | AX41: =AI23 ->  | AY41: =AJ23 ->  | AZ41: =$AK$23 ->  | BA41: =AL23 ->  | BM41: =IF(BN8=0,"",BN8) -> Schießleitung | BT41: © 2010 by Uwe Schneider | BY41: 40 | BZ41: ="" -> 
B42: Briefe | V42: E | W42: Verein - Kurz | X42: 1882 Osterfeld | Z42: F | AA42: Verein - Kurz | AB42: Hubertus | AO42: © 2010 by Uwe Schneider | AV42: =IF(O49=0,"","je "&N49&" Schuss auf die ") ->  | AW42: =IF(O49=0,"",O49) ->  | AY42: =AJ24 ->  | AZ42: =$AK$24 ->  | BA42: =AL24 ->  | BB42: =IF(O50=0,"",O50) ->  | BC42: =IF(BB42="","","je Mannschaft") ->  | BH42: S | BI42: R | BJ42: # | BM42: Anlage: | BO42: Startzeiten Anzahl _ | BP42: ê | BW42: Sort | BX42: Rang | BY42: # | BZ42: Datum | CA42: Zeit | CB42: Anz. | CC42: Startzeit > | CJ42: Startgeld: | CL42: Mannschaft | CM42: 8,00 Euro
J43: Durchführung : (Auswahl) | K43: Luftgewehr | M43: 10 m | N43: 1 Schuss | O43: Scheibe | W43: Vereinsname | X43: BSV 1882 Osterfeld e.V. | AA43: Vereinsname | AB43: BSV St. Hubertus Ob-Sterkrade e.V. | AX43: =AI26 ->  | AY43: =AJ26 ->  | AZ43: =$AK$26 ->  | BA43: =AL26 ->  | BB43: =IF(O51=0,"",O51) ->  | BC43: =IF(BB43="","","Einzelstarter") ->  | BH43: 2 | BI43: =$BX$44 -> 2 | BJ43: =VLOOKUP(BH43,$BW$43:$CC$178,6,FALSE) -> 3 | BO43: =IF(BI43="","",VLOOKUP(BI43,$BW$43:$CC$178,7,FALSE)) -> Startzeit > 03.02 ; 11:30 - 12:00 > _ | BP43: =IF(BI43="","",VLOOKUP(BI43,$BW$43:$CC$178,6,FALSE)) -> 3 | BW43: 1 | BX43: =IF(CB43=0,"",BW43) ->  | BY43: =Daten!Z13 -> 3 | BZ43: =Daten!$B$6 -> 03.02 | CA43: =VLOOKUP(BY43,$BY$1:$BZ$41,2,FALSE) -> 11:00 - 11:30 | CB43: =COUNTIF(Daten!AC13:AL13,$BN$9) -> 0 | CC43: =IF(CB43=0,"",$CC$42&" "&BZ43&" ; "&CA43&" > _ ") ->  | CL43: Einzelschütze | CM43: 3,00 Euro
B44: A | C44: =$AH$45 -> SV Rothebusch 1922 e.V. | H44: 1 | I44: Disziplin : | K44: Schützen | L44: Freistehend | M44: ab 12 | N44: 20 Schuss | V44: (4) | W44: Vereinsnummer | X44: 1102 | Z44: (4) | AA44: Vereinsnummer | AB44: 011 23 | AG44: # | AH44: V-Kurz | AI44: Verein | AJ44: Geschäftsführung | AK44: Anschrift | AL44: PLZ / Ort | AM44: Tel.1 | AN44: Sportwart | AO44: Tel.Sportwart | AP44: VereinsNr. | AY44: =AJ27 ->  | AZ44: =$AK$27 ->  | BA44: =AL27 ->  | BH44: 3 | BI44: =$BX$45 -> 3 | BJ44: 2 | BO44: Startzeit > 03.02 ; 12:00 - 12:30 > _ | BP44: 2 | BW44: 2 | BX44: =IF(CB44=0,"",BW44) -> 2 | BY44: =Daten!Z14 -> 4 | BZ44: =Daten!$B$6 -> 03.02 | CA44: 11:30 - 12:00 | CB44: =COUNTIF(Daten!AC14:AL14,$BN$9) -> 3 | CC44: =IF(CB44=0,"",$CC$42&" "&BZ44&" ; "&CA44&" > _ ") -> Startzeit > 03.02 ; 11:30 - 12:00 > _
B45: B | C45: =$AH$46 -> ABSV 1921 | L45: Aufgelegt | M45: ab 45 | N45: 20 Schuss | P45: 30 | Q45: je Durchgang | W45: Geschäftsführung | X45: Wahl. Claudia | AA45: Geschäftsführung | AB45: Schulte Zurhausen, Theodor | AG45: A | AH45: =IF($X$12=0,"",$X$12) -> SV Rothebusch 1922 e.V. | AI45: =IF($X$13=0,"",$X$13) -> Schützenverein Rothebusch 1922 e.V. | AJ45: =IF($X$15=0,"",$X$15) -> Schneider, Ute | AK45: =IF($X$16=0,"",$X$16) -> Schwarzwaldstr. 38 | AL45: =IF($X$17=0,"",$X$17) -> 46119 Oberhausen | AM45: =IF($X$18=0,"",$X$18) -> 0208 / 60 83 85 | AN45: =IF($X$19=0,"",$X$19) -> Ute Schneider | AO45: =IF($X$20=0,"",$X$20) -> 0208 / 60 12 16 | AP45: =IF($X$14=0,"",$X$14) -> 1111 | AW45: =AJ33 -> NEU: Mannschaften gemischte Wertung Schützinnen und Schützen können in einer Mannschaft schießen. Je Mannschaft mind 3 Teilnehmer (gewertet) max. 5 Teilnehmer | BH45: 4 | BI45: =$BX$46 -> 4 | BJ45: 1 | BO45: Startzeit > 03.02 ; 12:30 - 13:00 > _ | BP45: 1 | BW45: 3 | BX45: 3 | BY45: =Daten!Z15 -> 5 | BZ45: =Daten!$B$6 -> 03.02 | CA45: 12:00 - 12:30 | CB45: =COUNTIF(Daten!AC15:AL15,$BN$9) -> 2 | CC45: Startzeit > 03.02 ; 12:00 - 12:30 > _ | CL45: je Mannschaft min3/max 5 Schützinnen oder Schützen
B46: C | C46: =$AH$47 -> Buschhausen | J46: Durchführung : (Auswahl) | K46: Luftgewehr | M46: 10 m | N46: 1 Schuss | O46: Scheibe | P46: incl. Probeschüsse | W46: Strasse | X46: Fahnhorststr.69 | AA46: Strasse | AG46: B | AH46: =IF($AB$12=0,"",$AB$12) -> ABSV 1921 | AI46: =IF($AB$13=0,"",$AB$13) -> ABSV 1921 Oberhausen e.V. | AJ46: =IF($AB$15=0,"",$AB$15) -> Granieczny, Ludwig | AK46: =IF($AB$16=0,"",$AB$16) -> Sachsenstr. 8 | AL46: =IF($AB$17=0,"",$AB$17) -> 46149 Oberhausen | AM46: =IF($AB$18=0,"",$AB$18) ->  | AN46: =IF($AB$19=0,"",$AB$19) ->  | AO46: =IF($AB$20=0,"",$AB$20) ->  | AP46: =IF($AB$14=0,"",$AB$14) -> 1105 | BH46: 24 | BI46: =$BX$66 -> 24 | BJ46: 1 | BO46: Startzeit > 04.02 ; 14:30 - 15:00 > _ | BP46: 1 | BW46: 4 | BX46: 4 | BY46: =Daten!Z16 -> 6 | BZ46: =Daten!$B$6 -> 03.02 | CA46: 12:30 - 13:00 | CB46: =COUNTIF(Daten!AC16:AL16,$BN$9) -> 1 | CC46: Startzeit > 03.02 ; 12:30 - 13:00 > _
B47: D | C47: =$AH$48 -> BSG Holten | H47: 2 | I47: Disziplin : | K47: Damen | L47: Freistehend | M47: ab 12 | N47: 20 Schuss | W47: PLZ / Ort | X47: 46147 Oberhausen | AA47: PLZ / Ort | AB47: 46117 Oberhausen | AG47: C | AH47: =IF($X$21=0,"",$X$21) -> Buschhausen | AI47: =IF($X$22=0,"",$X$22) -> ABSV Buschhausen 1950 e.V. | AJ47: =IF($X$24=0,"",$X$24) -> Awischus, Mark | AK47: =IF($X$25=0,"",$X$25) -> Friesenstr. 63 | AL47: =IF($X$26=0,"",$X$26) -> 46149 Oberhausen | AM47: =IF($X$27=0,"",$X$27) ->  | AN47: =IF($X$28=0,"",$X$28) ->  | AO47: =IF($X$29=0,"",$X$29) ->  | AP47: =IF($X$23=0,"",$X$23) -> 1108 | BH47: 25 | BI47: =$BX$67 -> 25 | BJ47: 1 | BO47: Startzeit > 04.02 ; 15:00 - 15:30 > _ | BP47: 1 | BW47: 5 | BY47: =Daten!Z17 -> 7 | BZ47: =Daten!$B$6 -> 03.02 | CA47: 13:00 - 13:30 | CB47: =COUNTIF(Daten!AC17:AL17,$BN$9) -> 0 | CJ47: Schießzeit: | CL47: 30 Min je Durchgang incl. Probeschüsse
B48: E | C48: =$AH$49 -> 1882 Osterfeld | L48: Aufgelegt | M48: ab 45 | N48: 20 Schuss | W48: Telefon | AA48: Telefon | AG48: D | AH48: =IF($AB$21=0,"",$AB$21) -> BSG Holten | AI48: =IF($AB$22=0,"",$AB$22) -> BSGi Holten 1308 e.V. | AJ48: =IF($AB$24=0,"",$AB$24) -> Bylicki, Kai | AK48: =IF($AB$25=0,"",$AB$25) -> Weierstr. 95 | AL48: =IF($AB$26=0,"",$AB$26) -> 46149 Oberhausen | AM48: =IF($AB$27=0,"",$AB$27) ->  | AN48: =IF($AB$28=0,"",$AB$28) ->  | AO48: =IF($AB$29=0,"",$AB$29) ->  | AP48: =IF($AB$23=0,"",$AB$23) -> 1106 | AV48: Schießzeit: | AW48: =P45&" min je Durchgang incl. Probeschüsse" -> 30 min je Durchgang incl. Probeschüsse | BH48: 26 | BI48: =$BX$68 -> 26 | BJ48: 2 | BO48: Startzeit > 04.02 ; 15:30 - 16:00 > _ | BP48: 2 | BW48: 6 | BY48: =Daten!Z18 -> 8 | BZ48: =Daten!$B$6 -> 03.02 | CA48: 13:30 - 14:00 | CB48: =COUNTIF(Daten!AC18:AL18,$BN$9) -> 0
B49: F | C49: =$AH$50 -> Hubertus | G49: ( 3&4 als Option ) | J49: Durchführung : (Auswahl) | W49: Sportwart | AA49: Sportwart | AG49: E | AH49: =IF($X$42=0,"",$X$42) -> 1882 Osterfeld | AI49: =IF($X$43=0,"",$X$43) -> BSV 1882 Osterfeld e.V. | AJ49: =IF($X$45=0,"",$X$45) -> Wahl. Claudia | AK49: =IF($X$46=0,"",$X$46) -> Fahnhorststr.69 | AL49: =IF($X$47=0,"",$X$47) -> 46147 Oberhausen | AM49: =IF($X$48=0,"",$X$48) ->  | AN49: =IF($X$49=0,"",$X$49) ->  | AO49: =IF($X$50=0,"",$X$50) ->  | AP49: =IF($X$44=0,"",$X$44) -> 1102 | BH49: 27 | BI49: =$BX$69 ->  | BJ49: 0 | BW49: 7 | BY49: =Daten!Z19 -> 9 | BZ49: =Daten!$B$6 -> 03.02 | CA49: 14:00 - 14:30 | CB49: =COUNTIF(Daten!AC19:AL19,$BN$9) -> 0 | CJ49: Anmeldeschluß: | CL49: 2014-01-25 | CM49: an Ute Schneider, Schwarzwaldstr. 38, 46119 Oberhausen
B50: G | C50: =$AH$51 -> St. Lirich | H50: 3 | I50: Disziplin : | W50: Telefon | AA50: Telefon | AG50: F | AH50: =IF($AB$42=0,"",$AB$42) -> Hubertus | AI50: =IF($AB$43=0,"",$AB$43) -> BSV St. Hubertus Ob-Sterkrade e.V. | AJ50: =IF($AB$45=0,"",$AB$45) -> Schulte Zurhausen, Theodor | AK50: =IF($AB$46=0,"",$AB$46) ->  | AL50: =IF($AB$47=0,"",$AB$47) -> 46117 Oberhausen | AM50: =IF($AB$48=0,"",$AB$48) ->  | AN50: =IF($AB$49=0,"",$AB$49) ->  | AO50: =IF($AB$50=0,"",$AB$50) ->  | AP50: =IF($AB$44=0,"",$AB$44) -> 011 23 | AV50: Anmeldeschluß: | AW50: 2018-01-18 | AY50: ="an: "&L75 -> an: Ute Schneider, Schwarzwaldstr. 38, 46119 Oberhausen | BH50: 28 | BI50: =$BX$70 ->  | BJ50: 0 | BW50: 8 | BY50: =Daten!Z20 -> 10 | BZ50: =Daten!$B$6 -> 03.02 | CA50: 14:30 - 15:00 | CB50: =COUNTIF(Daten!AC20:AL20,$BN$9) -> 0 | CJ50: Weiteres: | CL50: Die ersten drei Mannschaften jeder Klasse, sowie die jeweils besten
B51: H | C51: =$AH$52 -> Waidmannsheil | P51: 30 | Q51: je Durchgang | V51: G | W51: Verein - Kurz | X51: St. Lirich | Z51: H | AA51: Verein - Kurz | AB51: Waidmannsheil | AG51: G | AH51: =IF($X$51=0,"",$X$51) -> St. Lirich | AI51: =IF($X$52=0,"",$X$52) -> St. Sebastianus 1893 Ob. - Lirich e.V. | AJ51: =IF($X$54=0,"",$X$54) -> Müller, Gerd | AK51: =IF($X$55=0,"",$X$55) -> Ulmenstr. 108 | AL51: =IF($X$56=0,"",$X$56) -> 46049 Oberhausen | AM51: =IF($X$57=0,"",$X$57) ->  | AN51: =IF($X$58=0,"",$X$58) ->  | AO51: =IF($X$59=0,"",$X$59) ->  | AP51: =IF($X$53=0,"",$X$53) -> 1110 | BH51: 21 | BI51: =$BX$63 ->  | BJ51: 0 | BW51: 9 | BY51: =Daten!Z21 -> 11 | BZ51: =Daten!$B$6 -> 03.02 | CA51: 15:00 - 15:30 | CB51: =COUNTIF(Daten!AC21:AL21,$BN$9) -> 0 | CL51: Einzelschützinnen/ Schützen erhslten einen Pokal.
B52: K | C52: =$AH$53 -> Klosterhardt | J52: Durchführung : (Auswahl) | P52: incl. Probeschüsse | W52: Vereinsname | X52: St. Sebastianus 1893 Ob. - Lirich e.V. | AA52: Vereinsname | AB52: BSV Waidmannsheil 1956 e.V. | AG52: H | AH52: =IF($AB$51=0,"",$AB$51) -> Waidmannsheil | AI52: =IF($AB$52=0,"",$AB$52) -> BSV Waidmannsheil 1956 e.V. | AJ52: =IF($AB$54=0,"",$AB$54) -> Groos, Christof | AK52: =IF($AB$55=0,"",$AB$55) -> Wasgenwaldstr. | AL52: =IF($AB$56=0,"",$AB$56) -> 46119 Oberhausen | AM52: =IF($AB$57=0,"",$AB$57) ->  | AN52: =IF($AB$58=0,"",$AB$58) ->  | AO52: =IF($AB$59=0,"",$AB$59) ->  | AP52: =IF($AB$53=0,"",$AB$53) -> 011 21 | AV52: Weiteres: | AW52: =AJ36 -> Die ersten drei Mannschaften jeder Klasse (Freistehend / Aufgelegt), sowie jeweils besten Einzelschützinnen und -schützen erhalten einen Pokal. Die Plazierten erhalten eine Urkunde. | BH52: 22 | BI52: =$BX$64 ->  | BJ52: 0 | BW52: 10 | BY52: =Daten!Z22 -> 12 | BZ52: =Daten!$B$6 -> 03.02 | CA52: 15:30 - 16:00 | CB52: =COUNTIF(Daten!AC22:AL22,$BN$9) -> 0 | CL52: Die Plazierten erhalten eine Urkunde
B53: L | C53: =$AH$54 -> Königshardt | H53: 4 | I53: Disziplin : | V53: (3) | W53: Vereinsnummer | X53: 1110 | Z53: (3) | AA53: Vereinsnummer | AB53: 011 21 | AG53: K | AH53: =IF($X$72=0,"",$X$72) -> Klosterhardt | AI53: =IF($X$73=0,"",$X$73) -> SV Klosterhardt 1925 e.V. | AJ53: =IF($X$75=0,"",$X$75) -> Hauth, Hans Peter | AK53: =IF($X$76=0,"",$X$76) -> Siegesstr. 154 | AL53: =IF($X$77=0,"",$X$77) -> 46147 Oberhausen | AM53: =IF($X$78=0,"",$X$78) ->  | AN53: =IF($X$79=0,"",$X$79) ->  | AO53: =IF($X$80=0,"",$X$80) ->  | AP53: =IF($X$74=0,"",$X$74) -> 011 01 | BH53: 23 | BI53: =$BX$65 ->  | BJ53: 0 | BW53: 11 | BY53: =Daten!Z23 -> 13 | BZ53: =Daten!$B$6 -> 03.02 | CA53: 16:00 - 16:30 | CB53: =COUNTIF(Daten!AC23:AL23,$BN$9) -> 0 | CL53: Die Schützinnen/ Schützen müssen 30 Min vor der jeweoligen Startzeit
B54: M | C54: =$AH$55 -> BSG 1862 Oberhausen | W54: Geschäftsführung | X54: Müller, Gerd | AA54: Geschäftsführung | AB54: Groos, Christof | AG54: L | AH54: =IF($AB$72=0,"",$AB$72) -> Königshardt | AI54: =IF($AB$73=0,"",$AB$73) -> BSV Königshardt 1878 e.V. | AJ54: =IF($AB$75=0,"",$AB$75) -> Luft, Michael | AK54: =IF($AB$76=0,"",$AB$76) -> Pfalzgrafenstr. 65 | AL54: =IF($AB$77=0,"",$AB$77) -> 46147 Oberhausen | AM54: =IF($AB$78=0,"",$AB$78) ->  | AN54: =IF($AB$79=0,"",$AB$79) ->  | AO54: =IF($AB$80=0,"",$AB$80) ->  | AP54: =IF($AB$74=0,"",$AB$74) -> 011 1 | BH54: 1 | BI54: =$BX$43 ->  | BJ54: 0 | BW54: 12 | BY54: =Daten!Z24 -> 14 | BZ54: =Daten!$B$6 -> 03.02 | CA54: 16:30 - 17:00 | CB54: =COUNTIF(Daten!AC24:AL24,$BN$9) -> 0 | CL54: anwesend sein. Es gilt die Sportordnung des DSB in der am ersten
B55: N | C55: =$AH$56 -> 1981 Mitte | K55: " als Text" | O55: " als Text" | W55: Strasse | X55: Ulmenstr. 108 | AA55: Strasse | AB55: Wasgenwaldstr. | AG55: M | AH55: =IF($X$81=0,"",$X$81) -> BSG 1862 Oberhausen | AI55: =IF($X$82=0,"",$X$82) -> BSG 1862 Oberhausen | AJ55: =IF($X$84=0,"",$X$84) -> Ortz, Manfred | AK55: =IF($X$85=0,"",$X$85) -> Erzberger Str. 67 | AL55: =IF($X$86=0,"",$X$86) -> 46145 Oberhausen | AM55: =IF($X$87=0,"",$X$87) ->  | AN55: =IF($X$88=0,"",$X$88) ->  | AO55: =IF($X$89=0,"",$X$89) ->  | AP55: =IF($X$83=0,"",$X$83) -> 011 04 | AW55: =AJ39 -> Die Schützinnen und Schützen müssen 30 min vor der jeweiligen Startzeit anwesend sein. Es gilt die Sportordnung des Deutschen Schützenbundes in der am ersten Wettkampftag gültigen Fassung. Für Einsprüche ist eine Bearbeitungsgebühr von 25,- € zu entrichten. | BH55: 19 | BI55: =$BX$61 ->  | BJ55: 0 | BW55: 13 | BY55: =Daten!Z25 -> 15 | BZ55: =Daten!$B$6 -> 03.02 | CA55: 17:00 - 17:30 | CB55: =COUNTIF(Daten!AC25:AL25,$BN$9) -> 0 | CL55: Wettkampftag gültigen Fassung.
J56: Wettkampftag 1 : | K56: 03.02 | L56: 11:00:00 | M56: 18:00:00 | N56: Tag 5 : | W56: PLZ / Ort | X56: 46049 Oberhausen | AA56: PLZ / Ort | AB56: 46119 Oberhausen | AG56: N | AH56: =IF($AB$81=0,"",$AB$81) -> 1981 Mitte | AI56: =IF($AB$82=0,"",$AB$82) -> BSV 1981 Osterfeld-Mitte e.V. | AJ56: =IF($AB$84=0,"",$AB$84) -> Willi Jochmann | AK56: =IF($AB$85=0,"",$AB$85) -> Richrad Dehmel Str. 15 | AL56: =IF($AB$86=0,"",$AB$86) -> 46119 Oberhausen | AM56: =IF($AB$87=0,"",$AB$87) ->  | AN56: =IF($AB$88=0,"",$AB$88) ->  | AO56: =IF($AB$89=0,"",$AB$89) ->  | AP56: =IF($AB$83=0,"",$AB$83) ->  | BH56: 20 | BI56: =$BX$62 ->  | BJ56: 0 | BW56: 14 | BY56: =Daten!Z26 -> 16 | BZ56: =Daten!$B$6 -> 03.02 | CA56: 17:30 - 18:00 | CB56: =COUNTIF(Daten!AC26:AL26,$BN$9) -> 0 | CL56: Für Einsprüche ist eine Bearbeitungsgebühr con 25,00 Euro zu
J57: Wettkampftag 2 : | K57: 04.02 | L57: 11:30:00 | M57: 18:00:00 | N57: Tag 6 : | W57: Telefon | AA57: Telefon | AG57: O | AH57: =IF($X$102=0,"",$X$102) ->  | AI57: ="" ->  | AJ57: ="" ->  | AK57: ="" ->  | AL57: ="" ->  | AM57: ="" ->  | AN57: ="" ->  | AO57: ="" ->  | AP57: ="" ->  | BH57: 5 | BI57: =$BX$47 ->  | BJ57: 0 | BW57: 15 | BY57: =Daten!Z27 -> 17 | BZ57: =Daten!$B$6 -> 03.02 | CA57: 18:00 - 18:30 | CB57: =COUNTIF(Daten!AC27:AL27,$BN$9) -> 0 | CL57: entrichten.
J58: Wettkampftag 3 : | N58: Tag 7 : | W58: Sportwart | AA58: Sportwart | AG58: P | AH58: =IF($AB$102=0,"",$AB$102) ->  | AI58: ="" ->  | AJ58: ="" ->  | AK58: ="" ->  | AL58: ="" ->  | AM58: ="" ->  | AN58: ="" ->  | AO58: ="" ->  | AP58: ="" ->  | BH58: 29 | BI58: =$BX$71 ->  | BJ58: 0 | BW58: 16 | BY58: =Daten!Z28 -> 18 | BZ58: =Daten!$B$6 -> 03.02 | CA58: 18:30 - 19:00 | CB58: =COUNTIF(Daten!AC28:AL28,$BN$9) -> 0
J59: Wettkampftag 4 : | N59: Tag 8 : | W59: Telefon | AA59: Telefon | AG59: Q | AH59: =IF($X$111=0,"",$X$111) ->  | AI59: ="" ->  | AJ59: ="" ->  | AK59: ="" ->  | AL59: ="" ->  | AM59: ="" ->  | AN59: ="" ->  | AO59: ="" ->  | AP59: ="" ->  | AV59: Mit freundlichem Schützengruß "Gut Schuß" | BH59: 6 | BI59: =$BX$48 ->  | BJ59: 0 | BW59: 17 | BY59: =Daten!Z29 -> 19 | BZ59: =Daten!$B$6 -> 03.02 | CA59: 19:00 - 19:30 | CB59: =COUNTIF(Daten!AC29:AL29,$BN$9) -> 0 | CJ59: Mit freundlichem Schützengruß "Gut Schuß" | CX59: Mit freundlichem Schützengruß "Gut Schuß"
AG60: R | AH60: =IF($AB$111=0,"",$AB$111) ->  | AI60: ="" ->  | AJ60: ="" ->  | AK60: ="" ->  | AL60: ="" ->  | AM60: ="" ->  | AN60: ="" ->  | AO60: ="" ->  | AP60: ="" ->  | BH60: 7 | BI60: =$BX$49 ->  | BJ60: 0 | BW60: 18 | BY60: =Daten!Z43 -> 4 | BZ60: =Daten!$C$6 -> 04.02 | CA60: 11:30 - 12:00 | CB60: =COUNTIF(Daten!AC43:AL43,$BN$9) -> 0
AG61: S | AH61: =IF($X$132=0,"",$X$132) ->  | AI61: ="" ->  | AJ61: ="" ->  | AK61: ="" ->  | AL61: ="" ->  | AM61: ="" ->  | AN61: ="" ->  | AO61: ="" ->  | AP61: ="" ->  | AV61: =IF(AW7=0,"",AW7) -> Ute Schneider | AX61: Jürgen Theisen | BH61: 8 | BI61: =$BX$50 ->  | BJ61: 0 | BW61: 19 | BY61: =Daten!Z44 -> 5 | BZ61: =Daten!$C$6 -> 04.02 | CA61: 12:00 - 12:30 | CB61: =COUNTIF(Daten!AC44:AL44,$BN$9) -> 0 | CJ61: =IF(CK7=0,"",CK7) -> Ute Schneider | CX61: =IF(CY7=0,"",CY7) -> Ute Schneider
AG62: T | AH62: =IF($AB$132=0,"",$AB$132) ->  | AI62: ="" ->  | AJ62: ="" ->  | AK62: ="" ->  | AL62: ="" ->  | AM62: ="" ->  | AN62: ="" ->  | AO62: ="" ->  | AP62: ="" ->  | AV62: =IF(AW8=0,"",AW8) -> Schießleitung | AX62: Sportleiter | BD62: © 2010 by Uwe Schneider | BH62: 30 | BI62: =$BX$72 ->  | BJ62: 0 | BW62: 20 | BY62: =Daten!Z45 -> 6 | BZ62: =Daten!$C$6 -> 04.02 | CA62: 12:30 - 13:00 | CB62: =COUNTIF(Daten!AC45:AL45,$BN$9) -> 0 | CJ62: =IF(CK8=0,"",CK8) -> Schießleitung | CQ62: © 2010 by Uwe Schneider | CX62: =IF(CY8=0,"",CY8) -> Schießleitung | DE62: © 2010 by Uwe Schneider
AG63: U | AH63: =IF($X$141=0,"",$X$141) ->  | AI63: ="" ->  | AJ63: ="" ->  | AK63: ="" ->  | AL63: ="" ->  | AM63: ="" ->  | AN63: ="" ->  | AO63: ="" ->  | AP63: ="" ->  | BH63: 9 | BI63: =$BX$51 ->  | BJ63: 0 | BW63: 21 | BY63: =Daten!Z46 -> 7 | BZ63: =Daten!$C$6 -> 04.02 | CA63: 13:00 - 13:30 | CB63: =COUNTIF(Daten!AC46:AL46,$BN$9) -> 0
AG64: V | AH64: =IF($AB$141=0,"",$AB$141) ->  | AI64: ="" ->  | AJ64: ="" ->  | AK64: ="" ->  | AL64: ="" ->  | AM64: ="" ->  | AN64: ="" ->  | AO64: ="" ->  | AP64: ="" ->  | AT64: 1. Mannschaft | AW64: =$AI$45 -> Schützenverein Rothebusch 1922 e.V. | BC64: __. Mannschaft | BH64: 10 | BI64: =$BX$52 ->  | BJ64: 0 | BT64: =IF($BP$64="","","Startzeiten 02 "&$BN$9) ->  | BW64: 22 | BY64: =Daten!Z47 -> 8 | BZ64: =Daten!$C$6 -> 04.02 | CA64: 13:30 - 14:00 | CB64: =COUNTIF(Daten!AC47:AL47,$BN$9) -> 0
AG65: W | AH65: =IF($X$162=0,"",$X$162) ->  | AI65: ="" ->  | AJ65: ="" ->  | AK65: ="" ->  | AL65: ="" ->  | AM65: ="" ->  | AN65: ="" ->  | AO65: ="" ->  | AP65: ="" ->  | AT65: =Brief!$K$44&" / "&Brief!$K$47&" *" -> Schützen / Damen * | BC65: =Brief!$K$44&" / "&Brief!$K$47&" *" -> Schützen / Damen * | BH65: 11 | BI65: =$BX$53 ->  | BJ65: 0 | BW65: 23 | BY65: =Daten!Z48 -> 9 | BZ65: =Daten!$C$6 -> 04.02 | CA65: 14:00 - 14:30 | CB65: =COUNTIF(Daten!AC48:AL48,$BN$9) -> 0
AG66: X | AH66: =IF($AB$162=0,"",$AB$162) ->  | AI66: ="" ->  | AJ66: ="" ->  | AK66: ="" ->  | AL66: ="" ->  | AM66: ="" ->  | AN66: ="" ->  | AO66: ="" ->  | AP66: ="" ->  | AT66: =Brief!$K$50&" / "&Brief!$K$53&" *" -> / * | BC66: =Brief!$K$50&" / "&Brief!$K$53&" *" -> / * | BH66: 12 | BI66: =$BX$54 ->  | BJ66: 0 | BW66: 24 | BX66: 24 | BY66: =Daten!Z49 -> 10 | BZ66: =Daten!$C$6 -> 04.02 | CA66: 14:30 - 15:00 | CB66: =COUNTIF(Daten!AC49:AL49,$BN$9) -> 1 | CC66: Startzeit > 04.02 ; 14:30 - 15:00 > _
AG67: Y | AH67: =IF($X$171=0,"",$X$171) ->  | AI67: ="" ->  | AJ67: ="" ->  | AK67: ="" ->  | AL67: ="" ->  | AM67: ="" ->  | AN67: ="" ->  | AO67: ="" ->  | AP67: ="" ->  | AT67: =Brief!$L$44&" / "&Brief!$L$45&" *" -> Freistehend / Aufgelegt * | AW67: =Brief!$K$14&" "&Brief!$K$15 -> 21. Optik Giepen Pokal 03/04. Febr. 2018 | BC67: =Brief!$L$44&" / "&Brief!$L$45&" *" -> Freistehend / Aufgelegt * | BH67: 32 | BI67: =$BX$74 ->  | BJ67: 0 | BW67: 25 | BX67: 25 | BY67: =Daten!Z50 -> 11 | BZ67: =Daten!$C$6 -> 04.02 | CA67: 15:00 - 15:30 | CB67: =COUNTIF(Daten!AC50:AL50,$BN$9) -> 1 | CC67: Startzeit > 04.02 ; 15:00 - 15:30 > _
AG68: Z | AH68: =IF($AB$171=0,"",$AB$171) ->  | AI68: ="" ->  | AJ68: ="" ->  | AK68: ="" ->  | AL68: ="" ->  | AM68: ="" ->  | AN68: ="" ->  | AO68: ="" ->  | AP68: ="" ->  | AV68: Startkarte für: | AW68: =$AV$19 -> BSG 1862 Oberhausen | AZ68: Startkarte für: | BA68: =$AV$19 -> BSG 1862 Oberhausen | BH68: 31 | BI68: =$BX$73 ->  | BJ68: 0 | BW68: 26 | BX68: 26 | BY68: =Daten!Z51 -> 12 | BZ68: =Daten!$C$6 -> 04.02 | CA68: 15:30 - 16:00 | CB68: =COUNTIF(Daten!AC51:AL51,$BN$9) -> 2 | CC68: Startzeit > 04.02 ; 15:30 - 16:00 > _
AP69: ="" ->  | AV69: Sportpaß-Nr. | AW69: Name, Vorname | AY69: Geb.- Datum | AZ69: Sportpaß-Nr. | BA69: Name, Vorname | BC69: Geb.- Datum | BH69: 13 | BI69: =$BX$55 ->  | BJ69: 0 | BW69: 27 | BY69: =Daten!Z52 -> 13 | BZ69: =Daten!$C$6 -> 04.02 | CA69: 16:00 - 16:30 | CB69: =COUNTIF(Daten!AC52:AL52,$BN$9) -> 0
AT70: 1 | AZ70: 1 | BH70: 18 | BI70: =$BX$60 ->  | BJ70: 0 | BW70: 28 | BY70: =Daten!Z53 -> 14 | BZ70: =Daten!$C$6 -> 04.02 | CA70: 16:30 - 17:00 | CB70: =COUNTIF(Daten!AC53:AL53,$BN$9) -> 0
G71: Information zum Wettkampf | AT71: 2 | AZ71: 2 | BH71: 14 | BI71: =$BX$56 ->  | BJ71: 0 | BW71: 29 | BY71: =Daten!Z54 -> 15 | BZ71: =Daten!$C$6 -> 04.02 | CA71: 17:00 - 17:30 | CB71: =COUNTIF(Daten!AC54:AL54,$BN$9) -> 0
B72: Briefe | V72: K | W72: Verein - Kurz | X72: Klosterhardt | Z72: L | AA72: Verein - Kurz | AB72: Königshardt | BH72: 33 | BI72: =$BX$75 ->  | BJ72: 0 | BW72: 30 | BY72: =Daten!Z55 -> 16 | BZ72: =Daten!$C$6 -> 04.02 | CA72: 17:30 - 18:00 | CB72: =COUNTIF(Daten!AC55:AL55,$BN$9) -> 0
J73: Austragungsort : | K73: Schießstand Schützenverein Rothebusch 1922 e.V. | W73: Vereinsname | X73: SV Klosterhardt 1925 e.V. | AA73: Vereinsname | AB73: BSV Königshardt 1878 e.V. | AT73: 3 | AZ73: 3 | BH73: 15 | BI73: =$BX$57 ->  | BJ73: 0 | BW73: 31 | BY73: =Daten!Z56 -> 17 | BZ73: =Daten!$C$6 -> 04.02 | CA73: 18:00 - 18:30 | CB73: =COUNTIF(Daten!AC56:AL56,$BN$9) -> 0
B74: A | C74: =$AH$45 -> SV Rothebusch 1922 e.V. | J74: Anschrift 1 : | K74: Nürnberger Str. 99, 46117 Oberhausen | V74: (3) | W74: Vereinsnummer | X74: 011 01 | Z74: (3) | AA74: Vereinsnummer | AB74: 011 1 | AT74: 4 | AZ74: 4 | BH74: 16 | BI74: =$BX$58 ->  | BJ74: 0 | BW74: 32 | BY74: =Daten!Z57 -> 18 | BZ74: =Daten!$C$6 -> 04.02 | CA74: 18:30 - 19:00 | CB74: =COUNTIF(Daten!AC57:AL57,$BN$9) -> 0
B75: B | C75: =$AH$46 -> ABSV 1921 | J75: Anmeldungen bis / an : | K75: 2014-01-25 | L75: Ute Schneider, Schwarzwaldstr. 38, 46119 Oberhausen | W75: Geschäftsführung | X75: Hauth, Hans Peter | AA75: Geschäftsführung | AB75: Luft, Michael | BH75: 17 | BI75: =$BX$59 ->  | BJ75: =VLOOKUP(BH75,$BW$43:$CC$178,6,FALSE) -> 0 | BO75: =IF(BI75="","",VLOOKUP(BI75,$BW$43:$CC$178,7,FALSE)) ->  | BP75: =IF(BI75="","",VLOOKUP(BI75,$BW$43:$CC$178,6,FALSE)) ->  | BW75: 33 | BY75: =Daten!Z58 -> 19 | BZ75: =Daten!$C$6 -> 04.02 | CA75: =VLOOKUP(BY75,$BY$1:$BZ$41,2,FALSE) -> 19:00 - 19:30 | CB75: =COUNTIF(Daten!AC58:AL58,$BN$9) -> 0
B76: C | C76: =$AH$47 -> Buschhausen | G76: Absatz in Info mit: | J76: Info 1 : | K76: NEU: Mannschaften gemischte Wertung Schützinnen und Schützen können in einer Mannschaft schießen. Je Mannschaft mind 3 Teilnehmer (gewertet) max. 5 Teilnehmer | W76: Strasse | X76: Siegesstr. 154 | AA76: Strasse | AB76: Pfalzgrafenstr. 65 | AT76: 5 | AZ76: 5 | BD76: * nicht zutreffendes streichen | BH76: 34 | BI76: =$BX$76 ->  | BJ76: 0 | BW76: 34 | BY76: =Daten!Z59 -> 20 | BZ76: =Daten!$C$6 -> 04.02 | CA76: 19:30 - 20:00 | CB76: =COUNTIF(Daten!AC59:AL59,$BN$9) -> 0
B77: D | C77: =$AH$48 -> BSG Holten | G77: "Alt" & "Return" | W77: PLZ / Ort | X77: 46147 Oberhausen | AA77: PLZ / Ort | AB77: 46147 Oberhausen | AT77: 1. Mannschaft | AW77: =$AI$45 -> Schützenverein Rothebusch 1922 e.V. | BC77: __. Mannschaft | BH77: 35 | BI77: =$BX$77 ->  | BJ77: 0 | BW77: 35 | BY77: =Daten!Z83 -> 24 | BZ77: =Daten!$B$7 ->  | CB77: =COUNTIF(Daten!AC83:AL83,$BN$9) -> 0
B78: E | C78: =$AH$49 -> 1882 Osterfeld | J78: Info 2 : | K78: Die ersten drei Mannschaften jeder Klasse (Freistehend / Aufgelegt), sowie jeweils besten Einzelschützinnen und -schützen erhalten einen Pokal. Die Plazierten erhalten eine Urkunde. | W78: Telefon | AA78: Telefon | AT78: =Brief!$K$44&" / "&Brief!$K$47&" *" -> Schützen / Damen * | BC78: =Brief!$K$44&" / "&Brief!$K$47&" *" -> Schützen / Damen * | BH78: 36 | BI78: =$BX$78 ->  | BJ78: 0 | BW78: 36 | BY78: =Daten!Z84 -> 25 | BZ78: =Daten!$B$7 ->  | CB78: =COUNTIF(Daten!AC84:AL84,$BN$9) -> 0
B79: F | C79: =$AH$50 -> Hubertus | W79: Sportwart | AA79: Sportwart | AT79: =Brief!$K$50&" / "&Brief!$K$53&" *" -> / * | BC79: =Brief!$K$50&" / "&Brief!$K$53&" *" -> / * | BH79: 37 | BI79: =$BX$79 ->  | BJ79: 0 | BW79: 37 | BY79: =Daten!Z85 -> 26 | BZ79: =Daten!$B$7 ->  | CB79: =COUNTIF(Daten!AC85:AL85,$BN$9) -> 0
B80: G | C80: =$AH$51 -> St. Lirich | J80: Info 3 : | K80: Die Schützinnen und Schützen müssen 30 min vor der jeweiligen Startzeit anwesend sein. Es gilt die Sportordnung des Deutschen Schützenbundes in der am ersten Wettkampftag gültigen Fassung. Für Einsprüche ist eine Bearbeitungsgebühr von 25,- € zu entrichten. | W80: Telefon | AA80: Telefon | AT80: =Brief!$L$44&" / "&Brief!$L$45&" *" -> Freistehend / Aufgelegt * | AW80: =Brief!$K$14&" "&Brief!$K$15 -> 21. Optik Giepen Pokal 03/04. Febr. 2018 | BC80: =Brief!$L$44&" / "&Brief!$L$45&" *" -> Freistehend / Aufgelegt * | BH80: 38 | BI80: =$BX$80 ->  | BJ80: 0 | BW80: 38 | BY80: =Daten!Z86 -> 27 | BZ80: =Daten!$B$7 ->  | CB80: =COUNTIF(Daten!AC86:AL86,$BN$9) -> 0
B81: H | C81: =$AH$52 -> Waidmannsheil | V81: M | W81: Verein - Kurz | X81: BSG 1862 Oberhausen | Z81: N | AA81: Verein - Kurz | AB81: 1981 Mitte | AV81: Startkarte für: | AW81: =$AV$19 -> BSG 1862 Oberhausen | AZ81: Startkarte für: | BA81: =$AV$19 -> BSG 1862 Oberhausen | BH81: 39 | BI81: =$BX$81 ->  | BJ81: 0 | BW81: 39 | BY81: =Daten!Z87 -> 28 | BZ81: =Daten!$B$7 ->  | CB81: =COUNTIF(Daten!AC87:AL87,$BN$9) -> 0
B82: K | C82: =$AH$53 -> Klosterhardt | J82: Startgeld : | K82: 8 | L82: € je Mannschaft (max. 5) | N82: 3 | O82: € je Teilnehmer | W82: Vereinsname | X82: BSG 1862 Oberhausen | AA82: Vereinsname | AB82: BSV 1981 Osterfeld-Mitte e.V. | AV82: Sportpaß-Nr. | AW82: Name, Vorname | AY82: Geb.- Datum | AZ82: Sportpaß-Nr. | BA82: Name, Vorname | BC82: Geb.- Datum | BH82: 40 | BI82: =$BX$82 ->  | BJ82: 0 | BW82: 40 | BY82: =Daten!Z88 -> 29 | BZ82: =Daten!$B$7 ->  | CB82: =COUNTIF(Daten!AC88:AL88,$BN$9) -> 0
B83: L | C83: =$AH$54 -> Königshardt | J83: Siegerehrung : | K83: 2014-02-09 | M83: um ca.: | N83: 1930 | V83: (3) | W83: Vereinsnummer | X83: 011 04 | Z83: (3) | AA83: Vereinsnummer | AT83: 1 | AZ83: 1 | BH83: 41 | BI83: =$BX$83 ->  | BJ83: 0 | BW83: 41 | BY83: =Daten!Z89 -> 30 | BZ83: =Daten!$B$7 ->  | CB83: =COUNTIF(Daten!AC89:AL89,$BN$9) -> 0
B84: M | C84: =$AH$55 -> BSG 1862 Oberhausen | W84: Geschäftsführung | X84: Ortz, Manfred | AA84: Geschäftsführung | AB84: Willi Jochmann | AT84: 2 | AZ84: 2 | BH84: 42 | BI84: =$BX$84 ->  | BJ84: 0 | BW84: 42 | BY84: =Daten!Z90 -> 31 | BZ84: =Daten!$B$7 ->  | CB84: =COUNTIF(Daten!AC90:AL90,$BN$9) -> 0
B85: N | C85: =$AH$56 -> 1981 Mitte | G85: Angaben zur Urkunde | W85: Strasse | X85: Erzberger Str. 67 | AA85: Strasse | AB85: Richrad Dehmel Str. 15 | BH85: 43 | BI85: =$BX$85 ->  | BJ85: 0 | BW85: 43 | BY85: =Daten!Z91 -> 32 | BZ85: =Daten!$B$7 ->  | CB85: =COUNTIF(Daten!AC91:AL91,$BN$9) -> 0
W86: PLZ / Ort | X86: 46145 Oberhausen | AA86: PLZ / Ort | AB86: 46119 Oberhausen | AT86: 3 | AZ86: 3 | BH86: 44 | BI86: =$BX$86 ->  | BJ86: 0 | BW86: 44 | BY86: =Daten!Z92 -> 33 | BZ86: =Daten!$B$7 ->  | CB86: =COUNTIF(Daten!AC92:AL92,$BN$9) -> 0
J87: Ausrichter : (Verein) | K87: Schützenverein Rothebusch 1922 e.V. | W87: Telefon | AA87: Telefon | AT87: 4 | AZ87: 4 | BH87: 45 | BI87: =$BX$87 ->  | BJ87: 0 | BW87: 45 | BY87: =Daten!Z93 -> 34 | BZ87: =Daten!$B$7 ->  | CB87: =COUNTIF(Daten!AC93:AL93,$BN$9) -> 0
J88: Name der Veranstaltung : | K88: 17 | L88: Mannschaftspokalschießen | O88: #@# Einzel | Q88: : Text Einzel | W88: Sportwart | AA88: Sportwart | BH88: 46 | BI88: =$BX$88 ->  | BJ88: 0 | BW88: 46 | BY88: =Daten!Z94 -> 35 | BZ88: =Daten!$B$7 ->  | CB88: =COUNTIF(Daten!AC94:AL94,$BN$9) -> 0
J89: Unterschrift zur Urkunde : | K89: Oberhausen - Rothebusch, den | N89: 9. Feb 2014 | O89: #@# Mannschaft | Q89: : Text Mannschaft | W89: Telefon | AA89: Telefon | AT89: 5 | AZ89: 5 | BD89: * nicht zutreffendes streichen | BH89: 47 | BI89: =$BX$89 ->  | BJ89: 0 | BW89: 47 | BY89: =Daten!Z95 -> 36 | BZ89: =Daten!$B$7 ->  | CB89: =COUNTIF(Daten!AC95:AL95,$BN$9) -> 0
AT90: 1. Mannschaft | AW90: =$AI$45 -> Schützenverein Rothebusch 1922 e.V. | BC90: __. Mannschaft | BH90: 48 | BI90: =$BX$90 ->  | BJ90: 0 | BW90: 48 | BY90: =Daten!Z96 -> 37 | BZ90: =Daten!$B$7 ->  | CB90: =COUNTIF(Daten!AC96:AL96,$BN$9) -> 0
AT91: =Brief!$K$44&" / "&Brief!$K$47&" *" -> Schützen / Damen * | BC91: =Brief!$K$44&" / "&Brief!$K$47&" *" -> Schützen / Damen * | BH91: 49 | BI91: =$BX$91 ->  | BJ91: 0 | BW91: 49 | BY91: =Daten!Z97 -> 38 | BZ91: =Daten!$B$7 ->  | CB91: =COUNTIF(Daten!AC97:AL97,$BN$9) -> 0
AT92: =Brief!$K$50&" / "&Brief!$K$53&" *" -> / * | BC92: =Brief!$K$50&" / "&Brief!$K$53&" *" -> / * | BH92: 50 | BI92: =$BX$92 ->  | BJ92: 0 | BW92: 50 | BY92: =Daten!Z98 -> 39 | BZ92: =Daten!$B$7 ->  | CB92: =COUNTIF(Daten!AC98:AL98,$BN$9) -> 0
AT93: =Brief!$L$44&" / "&Brief!$L$45&" *" -> Freistehend / Aufgelegt * | AW93: =Brief!$K$14&" "&Brief!$K$15 -> 21. Optik Giepen Pokal 03/04. Febr. 2018 | BC93: =Brief!$L$44&" / "&Brief!$L$45&" *" -> Freistehend / Aufgelegt * | BH93: 51 | BI93: =$BX$93 ->  | BJ93: 0 | BW93: 51 | BY93: =Daten!Z99 -> 40 | BZ93: =Daten!$B$7 ->  | CB93: =COUNTIF(Daten!AC99:AL99,$BN$9) -> 0
AV94: Startkarte für: | AW94: =$AV$19 -> BSG 1862 Oberhausen | AZ94: Startkarte für: | BA94: =$AV$19 -> BSG 1862 Oberhausen | BH94: 52 | BI94: =$BX$94 ->  | BJ94: 0 | BW94: 52 | BY94: =Daten!Z153 -> 24 | BZ94: =Daten!$C$7 ->  | CB94: =COUNTIF(Daten!AC153:AL153,$BN$9) -> 0
AV95: Sportpaß-Nr. | AW95: Name, Vorname | AY95: Geb.- Datum | AZ95: Sportpaß-Nr. | BA95: Name, Vorname | BC95: Geb.- Datum | BH95: 53 | BI95: =$BX$95 ->  | BJ95: 0 | BW95: 53 | BY95: =Daten!Z154 -> 25 | BZ95: =Daten!$C$7 ->  | CB95: =COUNTIF(Daten!AC154:AL154,$BN$9) -> 0
AT96: 1 | AZ96: 1 | BH96: 54 | BI96: =$BX$96 ->  | BJ96: 0 | BW96: 54 | BY96: =Daten!Z155 -> 26 | BZ96: =Daten!$C$7 ->  | CB96: =COUNTIF(Daten!AC155:AL155,$BN$9) -> 0
AT97: 2 | AZ97: 2 | BH97: 55 | BI97: =$BX$97 ->  | BJ97: 0 | BW97: 55 | BY97: =Daten!Z156 -> 27 | BZ97: =Daten!$C$7 ->  | CB97: =COUNTIF(Daten!AC156:AL156,$BN$9) -> 0
BH98: 56 | BI98: =$BX$98 ->  | BJ98: 0 | BW98: 56 | BY98: =Daten!Z157 -> 28 | BZ98: =Daten!$C$7 ->  | CB98: =COUNTIF(Daten!AC157:AL157,$BN$9) -> 0
AT99: 3 | AZ99: 3 | BH99: 57 | BI99: =$BX$99 ->  | BJ99: 0 | BW99: 57 | BY99: =Daten!Z158 -> 29 | BZ99: =Daten!$C$7 ->  | CB99: =COUNTIF(Daten!AC158:AL158,$BN$9) -> 0
AT100: 4 | AZ100: 4 | BH100: 58 | BI100: =$BX$100 ->  | BJ100: 0 | BW100: 58 | BY100: =Daten!Z159 -> 30 | BZ100: =Daten!$C$7 ->  | CB100: =COUNTIF(Daten!AC159:AL159,$BN$9) -> 0
G101: Auswahlmöglichkeiten | BH101: 59 | BI101: =$BX$101 ->  | BJ101: 0 | BW101: 59 | BY101: =Daten!Z160 -> 31 | BZ101: =Daten!$C$7 ->  | CB101: =COUNTIF(Daten!AC160:AL160,$BN$9) -> 0
B102: Briefe | V102: O | W102: Verein - Kurz | Z102: P | AA102: Verein - Kurz | AT102: 5 | AZ102: 5 | BD102: * nicht zutreffendes streichen | BH102: 60 | BI102: =$BX$102 ->  | BJ102: 0 | BW102: 60 | BY102: =Daten!Z161 -> 32 | BZ102: =Daten!$C$7 ->  | CB102: =COUNTIF(Daten!AC161:AL161,$BN$9) -> 0
G103: Diziplin | J103: Waffengattung | L103: Entf. | M103: Anzahl | N103: jeweils | O103: auf : | Q103: Zeiten | W103: Vereinsname | AA103: Vereinsname | AT103: 1. Mannschaft | AW103: =$AI$45 -> Schützenverein Rothebusch 1922 e.V. | BC103: __. Mannschaft | BH103: 61 | BI103: =$BX$103 ->  | BJ103: 0 | BW103: 61 | BY103: =Daten!Z162 -> 33 | BZ103: =Daten!$C$7 ->  | CB103: =COUNTIF(Daten!AC162:AL162,$BN$9) -> 0
B104: A | C104: =$AH$45 -> SV Rothebusch 1922 e.V. | V104: (3) | W104: Vereinsnummer | Z104: (3) | AA104: Vereinsnummer | AT104: =Brief!$K$44&" / "&Brief!$K$47&" *" -> Schützen / Damen * | BC104: =Brief!$K$44&" / "&Brief!$K$47&" *" -> Schützen / Damen * | BH104: 62 | BI104: =$BX$104 ->  | BJ104: 0 | BW104: 62 | BY104: =Daten!Z163 -> 34 | BZ104: =Daten!$C$7 ->  | CB104: =COUNTIF(Daten!AC163:AL163,$BN$9) -> 0
B105: B | C105: =$AH$46 -> ABSV 1921 | G105: Damen | J105: Luftgewehr | L105: 5 m | M105: 10 Schuss | N105: 1 Schuss | O105: Scheibe | Q105: 10:00:00 | W105: Geschäftsführung | AA105: Geschäftsführung | AT105: =Brief!$K$50&" / "&Brief!$K$53&" *" -> / * | BC105: =Brief!$K$50&" / "&Brief!$K$53&" *" -> / * | BH105: 63 | BI105: =$BX$105 ->  | BJ105: 0 | BW105: 63 | BY105: =Daten!Z164 -> 35 | BZ105: =Daten!$C$7 ->  | CB105: =COUNTIF(Daten!AC164:AL164,$BN$9) -> 0
B106: C | C106: =$AH$47 -> Buschhausen | G106: Schützen | J106: Luftpistole | L106: 10 m | M106: 20 Schuss | N106: 3 Schuss | Q106: 10:30:00 | W106: Strasse | AA106: Strasse | AT106: =Brief!$L$44&" / "&Brief!$L$45&" *" -> Freistehend / Aufgelegt * | AW106: =Brief!$K$14&" "&Brief!$K$15 -> 21. Optik Giepen Pokal 03/04. Febr. 2018 | BC106: =Brief!$L$44&" / "&Brief!$L$45&" *" -> Freistehend / Aufgelegt * | BH106: 64 | BI106: =$BX$106 ->  | BJ106: 0 | BW106: 64 | BY106: =Daten!Z165 -> 36 | BZ106: =Daten!$C$7 ->  | CB106: =COUNTIF(Daten!AC165:AL165,$BN$9) -> 0
B107: D | C107: =$AH$48 -> BSG Holten | G107: Senioren | J107: Kleinkaliber | L107: 20 m | M107: 30 Schuss | Q107: 11:00:00 | W107: PLZ / Ort | AA107: PLZ / Ort | AV107: Startkarte für: | AW107: =$AV$19 -> BSG 1862 Oberhausen | AZ107: Startkarte für: | BA107: =$AV$19 -> BSG 1862 Oberhausen | BH107: 65 | BI107: =$BX$107 ->  | BJ107: =VLOOKUP(BH107,$BW$43:$CC$178,6,FALSE) -> 0 | BO107: =IF(BI107="","",VLOOKUP(BI107,$BW$43:$CC$178,7,FALSE)) ->  | BP107: =IF(BI107="","",VLOOKUP(BI107,$BW$43:$CC$178,6,FALSE)) ->  | BW107: 65 | BY107: =Daten!Z166 -> 37 | BZ107: =Daten!$C$7 ->  | CA107: =VLOOKUP(BY107,$BY$1:$BZ$41,2,FALSE) ->  | CB107: =COUNTIF(Daten!AC166:AL166,$BN$9) -> 0
B108: E | C108: =$AH$49 -> 1882 Osterfeld | G108: Bambini | L108: 25 m | Q108: 11:30:00 | W108: Telefon | AA108: Telefon | AV108: Sportpaß-Nr. | AW108: Name, Vorname | AY108: Geb.- Datum | AZ108: Sportpaß-Nr. | BA108: Name, Vorname | BC108: Geb.- Datum | BH108: 66 | BI108: =$BX$108 ->  | BJ108: 0 | BW108: 66 | BX108: =IF(CB108=0,"",BW108) ->  | BY108: =Daten!Z167 -> 38 | BZ108: =Daten!$C$7 ->  | CB108: =COUNTIF(Daten!AC167:AL167,$BN$9) -> 0 | CC108: =IF(CB108=0,"",$CC$42&" "&BZ108&" ; "&CA108&" > _ ") -> 
B109: F | C109: =$AH$50 -> Hubertus | G109: (Option) | L109: 50 m | Q109: 12:00:00 | W109: Sportwart | AA109: Sportwart | AT109: 1 | AZ109: 1 | BH109: 67 | BI109: =$BX$109 ->  | BJ109: 0 | BW109: 67 | BY109: =Daten!Z168 -> 39 | BZ109: =Daten!$C$7 ->  | CB109: =COUNTIF(Daten!AC168:AL168,$BN$9) -> 0
B110: G | C110: =$AH$51 -> St. Lirich | Q110: 12:30:00 | W110: Telefon | AA110: Telefon | AT110: 2 | AZ110: 2 | BH110: 68 | BI110: =$BX$110 ->  | BJ110: 0 | BW110: 68 | BY110: =Daten!Z169 -> 40 | BZ110: =Daten!$C$7 ->  | CB110: =COUNTIF(Daten!AC169:AL169,$BN$9) -> 0
B111: H | C111: =$AH$52 -> Waidmannsheil | Q111: 13:00:00 | V111: Q | W111: Verein - Kurz | Z111: R | AA111: Verein - Kurz | BH111: 69 | BI111: =$BX$111 ->  | BJ111: 0 | BW111: 69 | BY111: =Daten!Z183 -> 24 | BZ111: =Daten!$B$8 ->  | CB111: =COUNTIF(Daten!AC183:AL183,$BN$9) -> 0
B112: K | C112: =$AH$53 -> Klosterhardt | G112: Diziplin | I112: Art | L112: !!! ACHTUNG !!! | Q112: 13:30:00 | W112: Vereinsname | AA112: Vereinsname | AT112: 3 | AZ112: 3 | BH112: 70 | BI112: =$BX$112 ->  | BJ112: 0 | BW112: 70 | BY112: =Daten!Z184 -> 25 | BZ112: =Daten!$B$8 ->  | CB112: =COUNTIF(Daten!AC184:AL184,$BN$9) -> 0
B113: L | C113: =$AH$54 -> Königshardt | L113: Bei bereits begonnenen Eintragungen, | Q113: 14:00:00 | V113: (3) | W113: Vereinsnummer | Z113: (3) | AA113: Vereinsnummer | AT113: 4 | AZ113: 4 | BH113: 71 | BI113: =$BX$113 ->  | BJ113: 0 | BW113: 71 | BY113: =Daten!Z185 -> 26 | BZ113: =Daten!$B$8 ->  | CB113: =COUNTIF(Daten!AC185:AL185,$BN$9) -> 0
B114: M | C114: =$AH$55 -> BSG 1862 Oberhausen | G114: Damen | I114: Freistehend | L114: sind Änderungen der Auswahl | Q114: 14:30:00 | W114: Geschäftsführung | AA114: Geschäftsführung | BH114: 72 | BI114: =$BX$114 ->  | BJ114: 0 | BW114: 72 | BY114: =Daten!Z186 -> 27 | BZ114: =Daten!$B$8 ->  | CB114: =COUNTIF(Daten!AC186:AL186,$BN$9) -> 0
B115: N | C115: =$AH$56 -> 1981 Mitte | L115: NICHT zu empfehlen! | Q115: 15:00:00 | W115: Strasse | AA115: Strasse | AT115: 5 | AZ115: 5 | BD115: * nicht zutreffendes streichen | BH115: 73 | BI115: =$BX$115 ->  | BJ115: 0 | BW115: 73 | BY115: =Daten!Z187 -> 28 | BZ115: =Daten!$B$8 ->  | CB115: =COUNTIF(Daten!AC187:AL187,$BN$9) -> 0
G116: Schützen | I116: Aufgelegt | Q116: 15:30:00 | W116: PLZ / Ort | AA116: PLZ / Ort | BH116: 74 | BI116: =$BX$116 ->  | BJ116: 0 | BW116: 74 | BY116: =Daten!Z188 -> 29 | BZ116: =Daten!$B$8 ->  | CB116: =COUNTIF(Daten!AC188:AL188,$BN$9) -> 0
Q117: 16:00:00 | W117: Telefon | AA117: Telefon | BH117: 75 | BI117: =$BX$117 ->  | BJ117: 0 | BT117: =IF($BP$117="","","Startzeiten 03 "&$BN$9) ->  | BW117: 75 | BY117: =Daten!Z189 -> 30 | BZ117: =Daten!$B$8 ->  | CB117: =COUNTIF(Daten!AC189:AL189,$BN$9) -> 0
Q118: 16:30:00 | W118: Sportwart | AA118: Sportwart | BH118: 76 | BI118: =$BX$118 ->  | BJ118: 0 | BW118: 76 | BY118: =Daten!Z190 -> 31 | BZ118: =Daten!$B$8 ->  | CB118: =COUNTIF(Daten!AC190:AL190,$BN$9) -> 0
Q119: 17:00:00 | W119: Telefon | AA119: Telefon | BH119: 77 | BI119: =$BX$119 ->  | BJ119: 0 | BW119: 77 | BY119: =Daten!Z191 -> 32 | BZ119: =Daten!$B$8 ->  | CB119: =COUNTIF(Daten!AC191:AL191,$BN$9) -> 0
Q120: 17:30:00 | BH120: 78 | BI120: =$BX$120 ->  | BJ120: 0 | BW120: 78 | BY120: =Daten!Z192 -> 33 | BZ120: =Daten!$B$8 ->  | CB120: =COUNTIF(Daten!AC192:AL192,$BN$9) -> 0
Q121: 18:00:00 | BH121: 79 | BI121: =$BX$121 ->  | BJ121: 0 | BW121: 79 | BY121: =Daten!Z193 -> 34 | BZ121: =Daten!$B$8 ->  | CB121: =COUNTIF(Daten!AC193:AL193,$BN$9) -> 0
Q122: 18:30:00 | BH122: 80 | BI122: =$BX$122 ->  | BJ122: 0 | BW122: 80 | BY122: =Daten!Z194 -> 35 | BZ122: =Daten!$B$8 ->  | CB122: =COUNTIF(Daten!AC194:AL194,$BN$9) -> 0
Q123: 19:00:00 | BH123: 81 | BI123: =$BX$123 ->  | BJ123: 0 | BW123: 81 | BY123: =Daten!Z195 -> 36 | BZ123: =Daten!$B$8 ->  | CB123: =COUNTIF(Daten!AC195:AL195,$BN$9) -> 0
Q124: 19:30:00 | BH124: 82 | BI124: =$BX$124 ->  | BJ124: 0 | BW124: 82 | BY124: =Daten!Z196 -> 37 | BZ124: =Daten!$B$8 ->  | CB124: =COUNTIF(Daten!AC196:AL196,$BN$9) -> 0
Q125: 20:00:00 | BH125: 83 | BI125: =$BX$125 ->  | BJ125: 0 | BW125: 83 | BY125: =Daten!Z197 -> 38 | BZ125: =Daten!$B$8 ->  | CB125: =COUNTIF(Daten!AC197:AL197,$BN$9) -> 0
Q126: 20:30:00 | BH126: 84 | BI126: =$BX$126 ->  | BJ126: 0 | BW126: 84 | BY126: =Daten!Z198 -> 39 | BZ126: =Daten!$B$8 ->  | CB126: =COUNTIF(Daten!AC198:AL198,$BN$9) -> 0
Q127: 21:00:00 | BH127: 85 | BI127: =$BX$127 ->  | BJ127: 0 | BW127: 85 | BY127: =Daten!Z199 -> 40 | BZ127: =Daten!$B$8 ->  | CB127: =COUNTIF(Daten!AC199:AL199,$BN$9) -> 0
BH128: 86 | BI128: =$BX$128 ->  | BJ128: 0 | BW128: 86 | BY128: =Daten!Z213 -> 24 | BZ128: =Daten!$C$8 ->  | CB128: =COUNTIF(Daten!AC213:AL213,$BN$9) -> 0
BH129: 87 | BI129: =$BX$129 ->  | BJ129: 0 | BW129: 87 | BY129: =Daten!Z214 -> 25 | BZ129: =Daten!$C$8 ->  | CB129: =COUNTIF(Daten!AC214:AL214,$BN$9) -> 0
BH130: 88 | BI130: =$BX$130 ->  | BJ130: 0 | BW130: 88 | BY130: =Daten!Z215 -> 26 | BZ130: =Daten!$C$8 ->  | CB130: =COUNTIF(Daten!AC215:AL215,$BN$9) -> 0
BH131: 89 | BI131: =$BX$131 ->  | BJ131: 0 | BW131: 89 | BY131: =Daten!Z216 -> 27 | BZ131: =Daten!$C$8 ->  | CB131: =COUNTIF(Daten!AC216:AL216,$BN$9) -> 0
B132: Briefe | V132: S | W132: Verein - Kurz | Z132: T | AA132: Verein - Kurz | BH132: 90 | BI132: =$BX$132 ->  | BJ132: 0 | BW132: 90 | BY132: =Daten!Z217 -> 28 | BZ132: =Daten!$C$8 ->  | CB132: =COUNTIF(Daten!AC217:AL217,$BN$9) -> 0
W133: Vereinsname | AA133: Vereinsname | BH133: 91 | BI133: =$BX$133 ->  | BJ133: 0 | BW133: 91 | BY133: =Daten!Z218 -> 29 | BZ133: =Daten!$C$8 ->  | CB133: =COUNTIF(Daten!AC218:AL218,$BN$9) -> 0
B134: A | C134: =$AH$45 -> SV Rothebusch 1922 e.V. | V134: (3) | W134: Vereinsnummer | Z134: (3) | AA134: Vereinsnummer | BH134: 92 | BI134: =$BX$134 ->  | BJ134: 0 | BW134: 92 | BY134: =Daten!Z219 -> 30 | BZ134: =Daten!$C$8 ->  | CB134: =COUNTIF(Daten!AC219:AL219,$BN$9) -> 0
B135: B | C135: =$AH$46 -> ABSV 1921 | W135: Geschäftsführung | AA135: Geschäftsführung | BH135: 93 | BI135: =$BX$135 ->  | BJ135: 0 | BW135: 93 | BY135: =Daten!Z220 -> 31 | BZ135: =Daten!$C$8 ->  | CB135: =COUNTIF(Daten!AC220:AL220,$BN$9) -> 0
B136: C | C136: =$AH$47 -> Buschhausen | W136: Strasse | AA136: Strasse | BH136: 94 | BI136: =$BX$136 ->  | BJ136: 0 | BW136: 94 | BY136: =Daten!Z221 -> 32 | BZ136: =Daten!$C$8 ->  | CB136: =COUNTIF(Daten!AC221:AL221,$BN$9) -> 0
B137: D | C137: =$AH$48 -> BSG Holten | W137: PLZ / Ort | AA137: PLZ / Ort | BH137: 95 | BI137: =$BX$137 ->  | BJ137: 0 | BW137: 95 | BY137: =Daten!Z222 -> 33 | BZ137: =Daten!$C$8 ->  | CB137: =COUNTIF(Daten!AC222:AL222,$BN$9) -> 0
B138: E | C138: =$AH$49 -> 1882 Osterfeld | W138: Telefon | AA138: Telefon | BH138: 96 | BI138: =$BX$138 ->  | BJ138: 0 | BW138: 96 | BY138: =Daten!Z223 -> 34 | BZ138: =Daten!$C$8 ->  | CB138: =COUNTIF(Daten!AC223:AL223,$BN$9) -> 0
B139: F | C139: =$AH$50 -> Hubertus | W139: Sportwart | AA139: Sportwart | BH139: 97 | BI139: =$BX$139 ->  | BJ139: =VLOOKUP(BH139,$BW$43:$CC$178,6,FALSE) -> 0 | BO139: =IF(BI139="","",VLOOKUP(BI139,$BW$43:$CC$178,7,FALSE)) ->  | BP139: =IF(BI139="","",VLOOKUP(BI139,$BW$43:$CC$178,6,FALSE)) ->  | BW139: 97 | BY139: =Daten!Z224 -> 35 | BZ139: =Daten!$C$8 ->  | CA139: =VLOOKUP(BY139,$BY$1:$BZ$41,2,FALSE) ->  | CB139: =COUNTIF(Daten!AC224:AL224,$BN$9) -> 0
B140: G | C140: =$AH$51 -> St. Lirich | W140: Telefon | AA140: Telefon | BH140: 98 | BI140: =$BX$140 ->  | BJ140: 0 | BW140: 98 | BY140: =Daten!Z225 -> 36 | BZ140: =Daten!$C$8 ->  | CB140: =COUNTIF(Daten!AC225:AL225,$BN$9) -> 0
B141: H | C141: =$AH$52 -> Waidmannsheil | V141: U | W141: Verein - Kurz | Z141: V | AA141: Verein - Kurz | BH141: 99 | BI141: =$BX$141 ->  | BJ141: 0 | BW141: 99 | BY141: =Daten!Z226 -> 37 | BZ141: =Daten!$C$8 ->  | CB141: =COUNTIF(Daten!AC226:AL226,$BN$9) -> 0
B142: K | C142: =$AH$53 -> Klosterhardt | W142: Vereinsname | AA142: Vereinsname | BH142: 100 | BI142: =$BX$142 ->  | BJ142: 0 | BW142: 100 | BY142: =Daten!Z227 -> 38 | BZ142: =Daten!$C$8 ->  | CB142: =COUNTIF(Daten!AC227:AL227,$BN$9) -> 0
B143: L | C143: =$AH$54 -> Königshardt | V143: (3) | W143: Vereinsnummer | Z143: (3) | AA143: Vereinsnummer | BH143: 101 | BI143: =$BX$143 ->  | BJ143: 0 | BW143: 101 | BY143: =Daten!Z228 -> 39 | BZ143: =Daten!$C$8 ->  | CB143: =COUNTIF(Daten!AC228:AL228,$BN$9) -> 0
B144: M | C144: =$AH$55 -> BSG 1862 Oberhausen | W144: Geschäftsführung | AA144: Geschäftsführung | BH144: 102 | BI144: =$BX$144 ->  | BJ144: 0 | BW144: 102 | BY144: =Daten!Z229 -> 40 | BZ144: =Daten!$C$8 ->  | CB144: =COUNTIF(Daten!AC229:AL229,$BN$9) -> 0
B145: N | C145: =$AH$56 -> 1981 Mitte | W145: Strasse | AA145: Strasse | BH145: 103 | BI145: =$BX$145 ->  | BJ145: 0 | BW145: 103 | BY145: =Daten!Z243 -> 24 | BZ145: =Daten!$B$9 ->  | CB145: =COUNTIF(Daten!AC243:AL243,$BN$9) -> 0
W146: PLZ / Ort | AA146: PLZ / Ort | BH146: 104 | BI146: =$BX$146 ->  | BJ146: 0 | BW146: 104 | BY146: =Daten!Z244 -> 25 | BZ146: =Daten!$B$9 ->  | CB146: =COUNTIF(Daten!AC244:AL244,$BN$9) -> 0
W147: Telefon | AA147: Telefon | BH147: 105 | BI147: =$BX$147 ->  | BJ147: 0 | BW147: 105 | BY147: =Daten!Z245 -> 26 | BZ147: =Daten!$B$9 ->  | CB147: =COUNTIF(Daten!AC245:AL245,$BN$9) -> 0
W148: Sportwart | AA148: Sportwart | BH148: 106 | BI148: =$BX$148 ->  | BJ148: 0 | BW148: 106 | BY148: =Daten!Z246 -> 27 | BZ148: =Daten!$B$9 ->  | CB148: =COUNTIF(Daten!AC246:AL246,$BN$9) -> 0
W149: Telefon | AA149: Telefon | BH149: 107 | BI149: =$BX$149 ->  | BJ149: 0 | BW149: 107 | BY149: =Daten!Z247 -> 28 | BZ149: =Daten!$B$9 ->  | CB149: =COUNTIF(Daten!AC247:AL247,$BN$9) -> 0
BH150: 108 | BI150: =$BX$150 ->  | BJ150: 0 | BW150: 108 | BY150: =Daten!Z248 -> 29 | BZ150: =Daten!$B$9 ->  | CB150: =COUNTIF(Daten!AC248:AL248,$BN$9) -> 0
BH151: 109 | BI151: =$BX$151 ->  | BJ151: 0 | BW151: 109 | BY151: =Daten!Z249 -> 30 | BZ151: =Daten!$B$9 ->  | CB151: =COUNTIF(Daten!AC249:AL249,$BN$9) -> 0
BH152: 110 | BI152: =$BX$152 ->  | BJ152: 0 | BW152: 110 | BY152: =Daten!Z250 -> 31 | BZ152: =Daten!$B$9 ->  | CB152: =COUNTIF(Daten!AC250:AL250,$BN$9) -> 0
BH153: 111 | BI153: =$BX$153 ->  | BJ153: 0 | BW153: 111 | BY153: =Daten!Z251 -> 32 | BZ153: =Daten!$B$9 ->  | CB153: =COUNTIF(Daten!AC251:AL251,$BN$9) -> 0
BH154: 112 | BI154: =$BX$154 ->  | BJ154: 0 | BW154: 112 | BY154: =Daten!Z252 -> 33 | BZ154: =Daten!$B$9 ->  | CB154: =COUNTIF(Daten!AC252:AL252,$BN$9) -> 0
BH155: 113 | BI155: =$BX$155 ->  | BJ155: 0 | BW155: 113 | BY155: =Daten!Z253 -> 34 | BZ155: =Daten!$B$9 ->  | CB155: =COUNTIF(Daten!AC253:AL253,$BN$9) -> 0
BH156: 114 | BI156: =$BX$156 ->  | BJ156: 0 | BW156: 114 | BY156: =Daten!Z254 -> 35 | BZ156: =Daten!$B$9 ->  | CB156: =COUNTIF(Daten!AC254:AL254,$BN$9) -> 0
BH157: 115 | BI157: =$BX$157 ->  | BJ157: 0 | BW157: 115 | BY157: =Daten!Z255 -> 36 | BZ157: =Daten!$B$9 ->  | CB157: =COUNTIF(Daten!AC255:AL255,$BN$9) -> 0
BH158: 116 | BI158: =$BX$158 ->  | BJ158: 0 | BW158: 116 | BY158: =Daten!Z256 -> 37 | BZ158: =Daten!$B$9 ->  | CB158: =COUNTIF(Daten!AC256:AL256,$BN$9) -> 0
BH159: 117 | BI159: =$BX$159 ->  | BJ159: 0 | BW159: 117 | BY159: =Daten!Z257 -> 38 | BZ159: =Daten!$B$9 ->  | CB159: =COUNTIF(Daten!AC257:AL257,$BN$9) -> 0
BH160: 118 | BI160: =$BX$160 ->  | BJ160: 0 | BW160: 118 | BY160: =Daten!Z258 -> 39 | BZ160: =Daten!$B$9 ->  | CB160: =COUNTIF(Daten!AC258:AL258,$BN$9) -> 0
BH161: 119 | BI161: =$BX$161 ->  | BJ161: 0 | BW161: 119 | BY161: =Daten!Z259 -> 40 | BZ161: =Daten!$B$9 ->  | CB161: =COUNTIF(Daten!AC259:AL259,$BN$9) -> 0
B162: Briefe | V162: W | W162: Verein - Kurz | Z162: X | AA162: Verein - Kurz | BH162: 120 | BI162: =$BX$162 ->  | BJ162: 0 | BW162: 120 | BY162: =Daten!Z273 -> 24 | BZ162: =Daten!$C$9 ->  | CB162: =COUNTIF(Daten!AC273:AL273,$BN$9) -> 0
W163: Vereinsname | AA163: Vereinsname | BH163: 121 | BI163: =$BX$163 ->  | BJ163: 0 | BW163: 121 | BY163: =Daten!Z274 -> 25 | BZ163: =Daten!$C$9 ->  | CB163: =COUNTIF(Daten!AC274:AL274,$BN$9) -> 0
B164: A | C164: =$AH$45 -> SV Rothebusch 1922 e.V. | V164: (3) | W164: Vereinsnummer | Z164: (3) | AA164: Vereinsnummer | BH164: 122 | BI164: =$BX$164 ->  | BJ164: 0 | BW164: 122 | BY164: =Daten!Z275 -> 26 | BZ164: =Daten!$C$9 ->  | CB164: =COUNTIF(Daten!AC275:AL275,$BN$9) -> 0
B165: B | C165: =$AH$46 -> ABSV 1921 | W165: Geschäftsführung | AA165: Geschäftsführung | BH165: 123 | BI165: =$BX$165 ->  | BJ165: 0 | BW165: 123 | BY165: =Daten!Z276 -> 27 | BZ165: =Daten!$C$9 ->  | CB165: =COUNTIF(Daten!AC276:AL276,$BN$9) -> 0
B166: C | C166: =$AH$47 -> Buschhausen | W166: Strasse | AA166: Strasse | BH166: 124 | BI166: =$BX$166 ->  | BJ166: 0 | BW166: 124 | BY166: =Daten!Z277 -> 28 | BZ166: =Daten!$C$9 ->  | CB166: =COUNTIF(Daten!AC277:AL277,$BN$9) -> 0
B167: D | C167: =$AH$48 -> BSG Holten | W167: PLZ / Ort | AA167: PLZ / Ort | BH167: 125 | BI167: =$BX$167 ->  | BJ167: 0 | BW167: 125 | BY167: =Daten!Z278 -> 29 | BZ167: =Daten!$C$9 ->  | CB167: =COUNTIF(Daten!AC278:AL278,$BN$9) -> 0
B168: E | C168: =$AH$49 -> 1882 Osterfeld | W168: Telefon | AA168: Telefon | BH168: 126 | BI168: =$BX$168 ->  | BJ168: 0 | BW168: 126 | BY168: =Daten!Z279 -> 30 | BZ168: =Daten!$C$9 ->  | CB168: =COUNTIF(Daten!AC279:AL279,$BN$9) -> 0
B169: F | C169: =$AH$50 -> Hubertus | W169: Sportwart | AA169: Sportwart | BH169: 127 | BI169: =$BX$169 ->  | BJ169: 0 | BW169: 127 | BY169: =Daten!Z280 -> 31 | BZ169: =Daten!$C$9 ->  | CB169: =COUNTIF(Daten!AC280:AL280,$BN$9) -> 0
B170: G | C170: =$AH$51 -> St. Lirich | W170: Telefon | AA170: Telefon | BH170: 128 | BI170: =$BX$170 ->  | BJ170: 0 | BW170: 128 | BY170: =Daten!Z281 -> 32 | BZ170: =Daten!$C$9 ->  | CB170: =COUNTIF(Daten!AC281:AL281,$BN$9) -> 0
B171: H | C171: =$AH$52 -> Waidmannsheil | V171: Y | W171: Verein - Kurz | Z171: Z | AA171: Verein - Kurz | BH171: 129 | BI171: =$BX$171 ->  | BJ171: =VLOOKUP(BH171,$BW$43:$CC$178,6,FALSE) -> 0 | BO171: =IF(BI171="","",VLOOKUP(BI171,$BW$43:$CC$178,7,FALSE)) ->  | BP171: =IF(BI171="","",VLOOKUP(BI171,$BW$43:$CC$178,6,FALSE)) ->  | BW171: 129 | BY171: =Daten!Z282 -> 33 | BZ171: =Daten!$C$9 ->  | CA171: =VLOOKUP(BY171,$BY$1:$BZ$41,2,FALSE) ->  | CB171: =COUNTIF(Daten!AC282:AL282,$BN$9) -> 0
B172: K | C172: =$AH$53 -> Klosterhardt | W172: Vereinsname | AA172: Vereinsname | BH172: 130 | BI172: =$BX$172 ->  | BJ172: 0 | BW172: 130 | BX172: =IF(CB172=0,"",BW172) ->  | BY172: =Daten!Z283 -> 34 | BZ172: =Daten!$C$9 ->  | CB172: =COUNTIF(Daten!AC283:AL283,$BN$9) -> 0 | CC172: =IF(CB172=0,"",$CC$42&" "&BZ172&" ; "&CA172&" > _ ") -> 
B173: L | C173: =$AH$54 -> Königshardt | V173: (3) | W173: Vereinsnummer | Z173: (3) | AA173: Vereinsnummer | BH173: 131 | BI173: =$BX$173 ->  | BJ173: 0 | BW173: 131 | BY173: =Daten!Z284 -> 35 | BZ173: =Daten!$C$9 ->  | CB173: =COUNTIF(Daten!AC284:AL284,$BN$9) -> 0
B174: M | C174: =$AH$55 -> BSG 1862 Oberhausen | W174: Geschäftsführung | AA174: Geschäftsführung | BH174: 132 | BI174: =$BX$174 ->  | BJ174: 0 | BW174: 132 | BY174: =Daten!Z285 -> 36 | BZ174: =Daten!$C$9 ->  | CB174: =COUNTIF(Daten!AC285:AL285,$BN$9) -> 0
B175: N | C175: =$AH$56 -> 1981 Mitte | W175: Strasse | AA175: Strasse | BH175: 133 | BI175: =$BX$175 ->  | BJ175: 0 | BW175: 133 | BY175: =Daten!Z286 -> 37 | BZ175: =Daten!$C$9 ->  | CB175: =COUNTIF(Daten!AC286:AL286,$BN$9) -> 0
W176: PLZ / Ort | AA176: PLZ / Ort | BH176: 134 | BI176: =$BX$176 ->  | BJ176: 0 | BW176: 134 | BY176: =Daten!Z287 -> 38 | BZ176: =Daten!$C$9 ->  | CB176: =COUNTIF(Daten!AC287:AL287,$BN$9) -> 0
W177: Telefon | AA177: Telefon | BH177: 135 | BI177: =$BX$177 ->  | BJ177: 0 | BW177: 135 | BY177: =Daten!Z288 -> 39 | BZ177: =Daten!$C$9 ->  | CB177: =COUNTIF(Daten!AC288:AL288,$BN$9) -> 0
W178: Sportwart | AA178: Sportwart | BH178: 136 | BI178: =$BX$178 ->  | BJ178: 0 | BW178: 136 | BY178: =Daten!Z289 -> 40 | BZ178: =Daten!$C$9 ->  | CB178: =COUNTIF(Daten!AC289:AL289,$BN$9) -> 0
W179: Telefon | AA179: Telefon

Sheet A
D1: =Brief!D1 -> Schützen | G1: =" "&Brief!$K$13&" "&Brief!$K$14&" "&Brief!$K$15 -> SV Rothebusch 1922 e.V. 21. Optik Giepen Pokal 03/04. Febr. 2018 | AA1: =" "&Brief!$K$13&" "&Brief!$K$14&" "&Brief!$K$15 -> SV Rothebusch 1922 e.V. 21. Optik Giepen Pokal 03/04. Febr. 2018 | AU1: =" "&Brief!$K$13&" "&Brief!$K$14&" "&Brief!$K$15 -> SV Rothebusch 1922 e.V. 21. Optik Giepen Pokal 03/04. Febr. 2018 | BJ1: =" "&Brief!$K$13&" "&Brief!$K$14&" "&Brief!$K$15 -> SV Rothebusch 1922 e.V. 21. Optik Giepen Pokal 03/04. Febr. 2018
B2: =Brief!$AH$45 -> SV Rothebusch 1922 e.V. | D2: =Brief!D2 -> Damen | E2: =$AJ$10 -> 22 | F2: =IF($B$18="A",$B$18,"") -> A | Z2: =$F2 -> A | AT2: =$F2 -> A | BI2: =$F2 -> A
B3: =Brief!$AH$46 -> ABSV 1921 | D3: =Brief!D3 -> Freistehend | E3: =B!$AJ$10 -> 22 | F3: =IF($B$18="B",$B$18,"") ->  | Z3: =$F3 ->  | AT3: =$F3 ->  | BI3: =$F3 -> 
B4: =Brief!$AH$47 -> Buschhausen | D4: =Brief!D4 -> Aufgelegt | E4: ='C'!$AJ$10 -> 28 | F4: =IF($B$18="C",$B$18,"") ->  | G4: =VLOOKUP($B$18,Brief!$AG$45:$AO$68,3,FALSE) -> Schützenverein Rothebusch 1922 e.V. | P4: Wertungen | AA4: =VLOOKUP($B$18,Brief!$AG$45:$AO$68,3,FALSE) -> Schützenverein Rothebusch 1922 e.V. | AJ4: Wertungen | AU4: =VLOOKUP($B$18,Brief!$AG$45:$AO$68,3,FALSE) -> Schützenverein Rothebusch 1922 e.V.
B5: =Brief!$AH$48 -> BSG Holten | D5: =Brief!D5 ->  | E5: =D!$AJ$10 -> 28 | F5: =IF($B$18="D",$B$18,"") ->  | BJ5: =VLOOKUP($B$18,Brief!$AG$45:$AO$68,3,FALSE) -> Schützenverein Rothebusch 1922 e.V.
B6: =Brief!$AH$49 -> 1882 Osterfeld | D6: =Brief!D6 ->  | E6: =E!$AJ$10 -> 42 | F6: =IF($B$18="E",$B$18,"") -> 
B7: =Brief!$AH$50 -> Hubertus | D7: =Brief!D7 ->  | E7: =F!$AJ$10 -> 52 | F7: =IF($B$18="F",$B$18,"") ->  | K7: =K9 -> 1 | BK7: Ansprechpartner | BL7: =VLOOKUP($B$18,Brief!$AG$45:$AO$68,4,FALSE) -> Schneider, Ute | BQ7: =NOW() -> 2018-02-05T11:14:19.790 | BR7: =VLOOKUP($B$18,Brief!$AG$45:$AP$68,10,FALSE) -> 1111
B8: =Brief!$AH$51 -> St. Lirich | C8: =Brief!$AH$52 -> Waidmannsheil | D8: =Brief!D8 ->  | E8: ="-"&G!$AJ$10&" -"&H!$AJ$10 -> -56 -74 | F8: =IF($B$18="G",$B$18,"") ->  | H8: =IF(Brief!$K$43=0,"",Brief!$K$43&" "&Brief!$M$43) -> Luftgewehr 10 m | Q8: =IF(Brief!$K$46=0,"",Brief!$K$46&" "&Brief!$M$46) -> Luftgewehr 10 m | AB8: =IF(Brief!$K$49=0,"",Brief!$K$49&" "&Brief!$M$49) ->  | AK8: =IF(Brief!$K$52=0,"",Brief!$K$52&" "&Brief!$M$52) ->  | BK8: Anschrift | BL8: =VLOOKUP($B$18,Brief!$AG$45:$AO$68,5,FALSE) -> Schwarzwaldstr. 38
B9: =Brief!$AH$53 -> Klosterhardt | C9: =Brief!$AH$54 -> Königshardt | D9: =Brief!D9 ->  | E9: ="-"&K!$AJ$10&" -"&L!$AJ$10 -> -78 -78 | F9: =IF($B$18="K",$B$18,"") ->  | G9: 0 | H9: =$D$1 -> Schützen | K9: =SUM(M12:M35)-SUM(M12:M35)+1 -> 1 | P9: =G10 -> 22 | Q9: =$D$2 -> Damen | T9: 2 | AA9: =P10 -> 22 | AB9: =$D$5 ->  | AE9: 3 | AJ9: =AA10 -> 22 | AK9: =$D$8 ->  | AN9: 4 | AU9: Pass | AV9: =$D$1 -> Schützen | AX9: Pass | AY9: =$D$2 -> Damen | BA9: Pass | BB9: =$D$5 ->  | BD9: Pass | BE9: =$D$8 ->  | BK9: PLZ / Ort | BL9: =VLOOKUP($B$18,Brief!$AG$45:$AO$68,6,FALSE) -> 46119 Oberhausen | BQ9: Sportleiter | BR9: =VLOOKUP($B$18,Brief!$AG$45:$AO$68,8,FALSE) -> Ute Schneider
B10: =Brief!$AH$55 -> BSG 1862 Oberhausen | C10: =Brief!$AH$56 -> 1981 Mitte | D10: =Brief!D10 ->  | E10: ="-"&M!$AJ$10&" -"&N!$AJ$10 -> -78 -78 | F10: =IF($B$18="M",$B$18,"") ->  | G10: =MAX(G11:G65) -> 22 | P10: =MAX(P11:P65) -> 22 | AA10: =MAX(AA11:AA65) -> 22 | AJ10: =AA9 -> 22 | AU10: Nr. | AX10: Nr. | BA10: Nr. | BD10: Nr. | BK10: Tel., Ansprechpartner | BL10: =VLOOKUP($B$18,Brief!$AG$45:$AO$68,7,FALSE) -> 0208 / 60 83 85 | BQ10: Telefon, Sportleiter | BR10: =VLOOKUP($B$18,Brief!$AG$45:$AO$68,9,FALSE) -> 0208 / 60 12 16
G11: =G9 -> 0 | P11: =P9 -> 22 | AA11: =AA9 -> 22 | AJ11: =AJ9 -> 22 | BJ11: Nr. | BK11: =$D$1 -> Schützen | BM11: Nr. | BN11: =$D$2 -> Damen | BP11: =IF(BQ11="","","Nr.") ->  | BQ11: =$D$5 ->  | BS11: =IF(BT11="","","Nr.") ->  | BT11: =$D$8 -> 
B12: EINGABE | G12: =" "&K12&" "&$D$3 -> 1. Mannschaft Freistehend | K12: 1. Mannschaft | L12: =VLOOKUP(G15,Klasse_M!$H$12:$O$200,6,FALSE) ->  | M12: =VLOOKUP(G15,Klasse_M!$H$12:$O$200,8,FALSE) -> 0 | N12: =VLOOKUP(G15,Klasse_M!$H$12:$O$200,2,FALSE) -> 1 | P12: =" "&T12&" "&$D$3 -> 1. Mannschaft Freistehend | T12: 1. Mannschaft | U12: =VLOOKUP(P15,Klasse_M!$AD$12:$AK$200,6,FALSE) ->  | V12: =VLOOKUP(P15,Klasse_M!$AD$12:$AK$200,8,FALSE) ->  | W12: =VLOOKUP(P15,Klasse_M!$AD$12:$AK$200,2,FALSE) ->  | AA12: =" "&AE12&" "&$D$3 -> 1. Mannschaft Freistehend | AE12: 1. Mannschaft | AF12: ¢ | AG12: 0 | AJ12: =" "&AN12&" "&$D$3 -> 1. Mannschaft Freistehend | AN12: 1. Mannschaft | AO12: ¢ | AP12: 0 | AV12: Bunse Wolz, Sven | AY12: Emmerich, Natalie | BJ12: =IF(AU12=0,"",AU12) ->  | BK12: =IF(AV12=0,"",AV12) -> Bunse Wolz, Sven | BM12: =IF(AX12=0,"",AX12) ->  | BN12: =IF(AY12=0,"",AY12) -> Emmerich, Natalie | BP12: =IF(BA12=0,"",BA12) ->  | BQ12: =IF(BB12=0,"",BB12) ->  | BS12: =IF(BD12=0,"",BD12) ->  | BT12: =IF(BE12=0,"",BE12) -> 
G13: =IF(H13=0,"",COUNTIF(G$12:G12,">0")+G$9+1) -> 1 | H13: Maslanak, Kevin | K13: =VLOOKUP($G13,Klasse_1!$X$11:$AK$500,11,FALSE) ->  | L13: =VLOOKUP($G13,Klasse_1!$X$11:$AK$500,8,FALSE) ->  | M13: =VLOOKUP($G13,Klasse_1!$X$11:$AK$500,10,FALSE) ->  | N13: =VLOOKUP($G13,Klasse_1!$X$11:$AK$500,2,FALSE) ->  | P13: =IF(Q13=0,"",COUNTIF(P$12:P12,">0")+P$9+1) ->  | T13: =VLOOKUP($P13,Klasse_2!$X$11:$AK$500,11,FALSE) ->  | U13: =VLOOKUP($P13,Klasse_2!$X$11:$AK$500,8,FALSE) ->  | V13: =VLOOKUP($P13,Klasse_2!$X$11:$AK$500,10,FALSE) ->  | W13: =VLOOKUP($P13,Klasse_2!$X$11:$AK$500,2,FALSE) ->  | AA13: =IF(AB13=0,"",COUNTIF(AA$12:AA12,">0")+AA$9+1) ->  | AE13: 0 | AF13: ¢ | AG13: 0 | AJ13: =IF(AK13=0,"",COUNTIF(AJ$12:AJ12,">0")+AJ$9+1) ->  | AN13: 0 | AO13: ¢ | AP13: 0 | AV13: Buschhorn, Edeltraut | AY13: Hickmann, Michelle | BJ13: =IF(AU13=0,"",AU13) ->  | BK13: =IF(AV13=0,"",AV13) -> Buschhorn, Edeltraut | BM13: =IF(AX13=0,"",AX13) ->  | BN13: =IF(AY13=0,"",AY13) -> Hickmann, Michelle | BP13: =IF(BA13=0,"",BA13) ->  | BQ13: =IF(BB13=0,"",BB13) ->  | BS13: =IF(BD13=0,"",BD13) ->  | BT13: =IF(BE13=0,"",BE13) -> 
B14: =$D$1 -> Schützen | C14: =$D$2 -> Damen | G14: =IF(H14=0,"",COUNTIF(G$12:G13,">0")+G$9+1) -> 2 | H14: Weiß, Patricia | K14: =VLOOKUP($G14,Klasse_1!$X$11:$AK$500,11,FALSE) ->  | L14: =VLOOKUP($G14,Klasse_1!$X$11:$AK$500,8,FALSE) ->  | M14: =VLOOKUP($G14,Klasse_1!$X$11:$AK$500,10,FALSE) ->  | N14: =VLOOKUP($G14,Klasse_1!$X$11:$AK$500,2,FALSE) ->  | P14: =IF(Q14=0,"",COUNTIF(P$12:P13,">0")+P$9+1) ->  | T14: =VLOOKUP($P14,Klasse_2!$X$11:$AK$500,11,FALSE) ->  | U14: =VLOOKUP($P14,Klasse_2!$X$11:$AK$500,8,FALSE) ->  | V14: =VLOOKUP($P14,Klasse_2!$X$11:$AK$500,10,FALSE) ->  | W14: =VLOOKUP($P14,Klasse_2!$X$11:$AK$500,2,FALSE) ->  | AA14: =IF(AB14=0,"",COUNTIF(AA$12:AA13,">0")+AA$9+1) ->  | AE14: 0 | AF14: ¢ | AG14: 0 | AJ14: =IF(AK14=0,"",COUNTIF(AJ$12:AJ13,">0")+AJ$9+1) ->  | AN14: 0 | AO14: ¢ | AP14: 0 | AU14: 71 | AV14: Buschhorn, Herbert | AX14: 81 | AY14: Hills, Jana | BJ14: 71 | BK14: Buschhorn, Herbert | BM14: 81 | BN14: Hills, Jana
B15: =$D$5 ->  | C15: =$D$8 ->  | G15: =IF(H15=0,"",COUNTIF(G$12:G14,">0")+G$9+1) -> 3 | H15: Sassenhagen, Christin | K15: =VLOOKUP($G15,Klasse_1!$X$11:$AK$500,11,FALSE) ->  | L15: =VLOOKUP($G15,Klasse_1!$X$11:$AK$500,8,FALSE) ->  | M15: =VLOOKUP($G15,Klasse_1!$X$11:$AK$500,10,FALSE) ->  | N15: =VLOOKUP($G15,Klasse_1!$X$11:$AK$500,2,FALSE) ->  | P15: =IF(Q15=0,"",COUNTIF(P$12:P14,">0")+P$9+1) ->  | T15: =VLOOKUP($P15,Klasse_2!$X$11:$AK$500,11,FALSE) ->  | U15: =VLOOKUP($P15,Klasse_2!$X$11:$AK$500,8,FALSE) ->  | V15: =VLOOKUP($P15,Klasse_2!$X$11:$AK$500,10,FALSE) ->  | W15: =VLOOKUP($P15,Klasse_2!$X$11:$AK$500,2,FALSE) ->  | AA15: =IF(AB15=0,"",COUNTIF(AA$12:AA14,">0")+AA$9+1) ->  | AE15: 0 | AF15: ¢ | AG15: 0 | AJ15: =IF(AK15=0,"",COUNTIF(AJ$12:AJ14,">0")+AJ$9+1) ->  | AN15: 0 | AO15: ¢ | AP15: 0 | AV15: Emmerich, Natalie | AX15: 72 | AY15: Hils, Dagmar | BK15: Emmerich, Natalie | BM15: 72 | BN15: Hils, Dagmar
G16: =IF(H16=0,"",COUNTIF(G$12:G15,">0")+G$9+1) -> 4 | H16: Kortz, Jennifer | K16: =VLOOKUP($G16,Klasse_1!$X$11:$AK$500,11,FALSE) ->  | L16: =VLOOKUP($G16,Klasse_1!$X$11:$AK$500,8,FALSE) ->  | M16: =VLOOKUP($G16,Klasse_1!$X$11:$AK$500,10,FALSE) ->  | N16: =VLOOKUP($G16,Klasse_1!$X$11:$AK$500,2,FALSE) ->  | P16: =IF(Q16=0,"",COUNTIF(P$12:P15,">0")+P$9+1) ->  | T16: =VLOOKUP($P16,Klasse_2!$X$11:$AK$500,11,FALSE) ->  | U16: =VLOOKUP($P16,Klasse_2!$X$11:$AK$500,8,FALSE) ->  | V16: =VLOOKUP($P16,Klasse_2!$X$11:$AK$500,10,FALSE) ->  | W16: =VLOOKUP($P16,Klasse_2!$X$11:$AK$500,2,FALSE) ->  | AA16: =IF(AB16=0,"",COUNTIF(AA$12:AA15,">0")+AA$9+1) ->  | AE16: 0 | AF16: ¢ | AG16: 0 | AJ16: =IF(AK16=0,"",COUNTIF(AJ$12:AJ15,">0")+AJ$9+1) ->  | AN16: 0 | AO16: ¢ | AP16: 0 | AV16: Hickmann, Michelle | AX16: 10 | AY16: Jacubczick, Ulla | BK16: Hickmann, Michelle | BM16: 10 | BN16: Jacubczick, Ulla
G17: =IF(H17=0,"",COUNTIF(G$12:G16,">0")+G$9+1) ->  | K17: =VLOOKUP($G17,Klasse_1!$X$11:$AK$500,11,FALSE) ->  | L17: =VLOOKUP($G17,Klasse_1!$X$11:$AK$500,8,FALSE) ->  | M17: =VLOOKUP($G17,Klasse_1!$X$11:$AK$500,10,FALSE) ->  | N17: =VLOOKUP($G17,Klasse_1!$X$11:$AK$500,2,FALSE) ->  | P17: =IF(Q17=0,"",COUNTIF(P$12:P16,">0")+P$9+1) ->  | T17: =VLOOKUP($P17,Klasse_2!$X$11:$AK$500,11,FALSE) ->  | U17: =VLOOKUP($P17,Klasse_2!$X$11:$AK$500,8,FALSE) ->  | V17: =VLOOKUP($P17,Klasse_2!$X$11:$AK$500,10,FALSE) ->  | W17: =VLOOKUP($P17,Klasse_2!$X$11:$AK$500,2,FALSE) ->  | AA17: =IF(AB17=0,"",COUNTIF(AA$12:AA16,">0")+AA$9+1) ->  | AE17: 0 | AF17: ¢ | AG17: 0 | AJ17: =IF(AK17=0,"",COUNTIF(AJ$12:AJ16,">0")+AJ$9+1) ->  | AN17: 0 | AO17: ¢ | AP17: 0 | AV17: Hils, Dagmar | AY17: Kortz, Jennifer | BK17: Hils, Dagmar | BN17: Kortz, Jennifer
B18: A | G18: =" "&K18&" "&$D$3 -> 2. Mannschaft Freistehend | K18: 2. Mannschaft | L18: =VLOOKUP(G21,Klasse_M!$H$12:$O$200,6,FALSE) ->  | M18: =VLOOKUP(G21,Klasse_M!$H$12:$O$200,8,FALSE) -> 0 | N18: =VLOOKUP(G21,Klasse_M!$H$12:$O$200,2,FALSE) -> 1 | P18: =" "&T18&" "&$D$3 -> 2. Mannschaft Freistehend | T18: 2. Mannschaft | U18: =VLOOKUP(P21,Klasse_M!$AD$12:$AK$200,6,FALSE) ->  | V18: =VLOOKUP(P21,Klasse_M!$AD$12:$AK$200,8,FALSE) ->  | W18: =VLOOKUP(P21,Klasse_M!$AD$12:$AK$200,2,FALSE) ->  | AA18: =" "&AE18&" "&$D$3 -> 2. Mannschaft Freistehend | AE18: 2. Mannschaft | AF18: ¢ | AG18: 0 | AJ18: =" "&AN18&" "&$D$3 -> 2. Mannschaft Freistehend | AN18: 2. Mannschaft | AO18: ¢ | AP18: 0 | AV18: Hils, Jana | AX18: 183 | AY18: Lenßen, Michelle | BK18: Hils, Jana | BM18: 183 | BN18: Lenßen, Michelle
G19: =IF(H19=0,"",COUNTIF(G$12:G18,">0")+G$9+1) -> 5 | H19: Peters Gina-Maria | K19: =VLOOKUP($G19,Klasse_1!$X$11:$AK$500,11,FALSE) ->  | L19: =VLOOKUP($G19,Klasse_1!$X$11:$AK$500,8,FALSE) ->  | M19: =VLOOKUP($G19,Klasse_1!$X$11:$AK$500,10,FALSE) ->  | N19: =VLOOKUP($G19,Klasse_1!$X$11:$AK$500,2,FALSE) ->  | P19: =IF(Q19=0,"",COUNTIF(P$12:P18,">0")+P$9+1) ->  | T19: =VLOOKUP($P19,Klasse_2!$X$11:$AK$500,11,FALSE) ->  | U19: =VLOOKUP($P19,Klasse_2!$X$11:$AK$500,8,FALSE) ->  | V19: =VLOOKUP($P19,Klasse_2!$X$11:$AK$500,10,FALSE) ->  | W19: =VLOOKUP($P19,Klasse_2!$X$11:$AK$500,2,FALSE) ->  | AA19: =IF(AB19=0,"",COUNTIF(AA$12:AA18,">0")+AA$9+1) ->  | AE19: 0 | AF19: ¢ | AG19: 0 | AJ19: =IF(AK19=0,"",COUNTIF(AJ$12:AJ18,">0")+AJ$9+1) ->  | AN19: 0 | AO19: ¢ | AP19: 0 | AV19: Hils, Torsten | AY19: Leue, Isabella | BK19: Hils, Torsten | BN19: Leue, Isabella
B20: =VLOOKUP($B$18,Brief!$AG$45:$AO$68,3,FALSE) -> Schützenverein Rothebusch 1922 e.V. | G20: =IF(H20=0,"",COUNTIF(G$12:G19,">0")+G$9+1) -> 6 | H20: Wiesemann, Matthias | K20: =VLOOKUP($G20,Klasse_1!$X$11:$AK$500,11,FALSE) ->  | L20: =VLOOKUP($G20,Klasse_1!$X$11:$AK$500,8,FALSE) ->  | M20: =VLOOKUP($G20,Klasse_1!$X$11:$AK$500,10,FALSE) ->  | N20: =VLOOKUP($G20,Klasse_1!$X$11:$AK$500,2,FALSE) ->  | P20: =IF(Q20=0,"",COUNTIF(P$12:P19,">0")+P$9+1) ->  | T20: =VLOOKUP($P20,Klasse_2!$X$11:$AK$500,11,FALSE) ->  | U20: =VLOOKUP($P20,Klasse_2!$X$11:$AK$500,8,FALSE) ->  | V20: =VLOOKUP($P20,Klasse_2!$X$11:$AK$500,10,FALSE) ->  | W20: =VLOOKUP($P20,Klasse_2!$X$11:$AK$500,2,FALSE) ->  | AA20: =IF(AB20=0,"",COUNTIF(AA$12:AA19,">0")+AA$9+1) ->  | AE20: 0 | AF20: ¢ | AG20: 0 | AJ20: =IF(AK20=0,"",COUNTIF(AJ$12:AJ19,">0")+AJ$9+1) ->  | AN20: 0 | AO20: ¢ | AP20: 0 | AV20: Jacubczick, Ulla | AY20: Loh, Alexa | BK20: Jacubczick, Ulla | BN20: Loh, Alexa
B21: VereinsNr. | C21: =VLOOKUP($B$18,Brief!$AG$45:$AP$68,10,FALSE) -> 1111 | G21: =IF(H21=0,"",COUNTIF(G$12:G20,">0")+G$9+1) -> 7 | H21: Loh, Alexa | K21: =VLOOKUP($G21,Klasse_1!$X$11:$AK$500,11,FALSE) ->  | L21: =VLOOKUP($G21,Klasse_1!$X$11:$AK$500,8,FALSE) ->  | M21: =VLOOKUP($G21,Klasse_1!$X$11:$AK$500,10,FALSE) ->  | N21: =VLOOKUP($G21,Klasse_1!$X$11:$AK$500,2,FALSE) ->  | P21: =IF(Q21=0,"",COUNTIF(P$12:P20,">0")+P$9+1) ->  | T21: =VLOOKUP($P21,Klasse_2!$X$11:$AK$500,11,FALSE) ->  | U21: =VLOOKUP($P21,Klasse_2!$X$11:$AK$500,8,FALSE) ->  | V21: =VLOOKUP($P21,Klasse_2!$X$11:$AK$500,10,FALSE) ->  | W21: =VLOOKUP($P21,Klasse_2!$X$11:$AK$500,2,FALSE) ->  | AA21: =IF(AB21=0,"",COUNTIF(AA$12:AA20,">0")+AA$9+1) ->  | AE21: 0 | AF21: ¢ | AG21: 0 | AJ21: =IF(AK21=0,"",COUNTIF(AJ$12:AJ20,">0")+AJ$9+1) ->  | AN21: 0 | AO21: ¢ | AP21: 0 | AV21: Karfczyk, Maximilian | AY21: Maslanak, Marlies | BK21: Karfczyk, Maximilian | BN21: Maslanak, Marlies
B22: Anspr. | C22: =VLOOKUP($B$18,Brief!$AG$45:$AO$68,4,FALSE) -> Schneider, Ute | G22: =IF(H22=0,"",COUNTIF(G$12:G21,">0")+G$9+1) -> 8 | H22: Loh, Robin | K22: =VLOOKUP($G22,Klasse_1!$X$11:$AK$500,11,FALSE) ->  | L22: =VLOOKUP($G22,Klasse_1!$X$11:$AK$500,8,FALSE) ->  | M22: =VLOOKUP($G22,Klasse_1!$X$11:$AK$500,10,FALSE) ->  | N22: =VLOOKUP($G22,Klasse_1!$X$11:$AK$500,2,FALSE) ->  | P22: =IF(Q22=0,"",COUNTIF(P$12:P21,">0")+P$9+1) ->  | T22: =VLOOKUP($P22,Klasse_2!$X$11:$AK$500,11,FALSE) ->  | U22: =VLOOKUP($P22,Klasse_2!$X$11:$AK$500,8,FALSE) ->  | V22: =VLOOKUP($P22,Klasse_2!$X$11:$AK$500,10,FALSE) ->  | W22: =VLOOKUP($P22,Klasse_2!$X$11:$AK$500,2,FALSE) ->  | AA22: =IF(AB22=0,"",COUNTIF(AA$12:AA21,">0")+AA$9+1) ->  | AE22: 0 | AF22: ¢ | AG22: 0 | AJ22: =IF(AK22=0,"",COUNTIF(AJ$12:AJ21,">0")+AJ$9+1) ->  | AN22: 0 | AO22: ¢ | AP22: 0 | AV22: Kortz, Jennifer | AX22: 99 | AY22: Paß, Anja | BK22: Kortz, Jennifer | BM22: 99 | BN22: Paß, Anja
B23: Anschrift | C23: =VLOOKUP($B$18,Brief!$AG$45:$AO$68,5,FALSE) -> Schwarzwaldstr. 38 | G23: =IF(H23=0,"",COUNTIF(G$12:G22,">0")+G$9+1) ->  | K23: =VLOOKUP($G23,Klasse_1!$X$11:$AK$500,11,FALSE) ->  | L23: =VLOOKUP($G23,Klasse_1!$X$11:$AK$500,8,FALSE) ->  | M23: =VLOOKUP($G23,Klasse_1!$X$11:$AK$500,10,FALSE) ->  | N23: =VLOOKUP($G23,Klasse_1!$X$11:$AK$500,2,FALSE) ->  | P23: =IF(Q23=0,"",COUNTIF(P$12:P22,">0")+P$9+1) ->  | T23: =VLOOKUP($P23,Klasse_2!$X$11:$AK$500,11,FALSE) ->  | U23: =VLOOKUP($P23,Klasse_2!$X$11:$AK$500,8,FALSE) ->  | V23: =VLOOKUP($P23,Klasse_2!$X$11:$AK$500,10,FALSE) ->  | W23: =VLOOKUP($P23,Klasse_2!$X$11:$AK$500,2,FALSE) ->  | AA23: =IF(AB23=0,"",COUNTIF(AA$12:AA22,">0")+AA$9+1) ->  | AE23: 0 | AF23: ¢ | AG23: 0 | AJ23: =IF(AK23=0,"",COUNTIF(AJ$12:AJ22,">0")+AJ$9+1) ->  | AN23: 0 | AO23: ¢ | AP23: 0 | AU23: 33 | AV23: Laudien, Hans- Werner | AX23: 213 | AY23: Paß, Inge | BJ23: 33 | BK23: Laudien, Hans- Werner | BM23: 213 | BN23: Paß, Inge
B24: PLZ / Ort | C24: =VLOOKUP($B$18,Brief!$AG$45:$AO$68,6,FALSE) -> 46119 Oberhausen | G24: =" "&K24&" "&$D$3 -> 3. Mannschaft Freistehend | K24: 3. Mannschaft | L24: =VLOOKUP(G27,Klasse_M!$H$12:$O$200,6,FALSE) ->  | M24: =VLOOKUP(G27,Klasse_M!$H$12:$O$200,8,FALSE) ->  | N24: =VLOOKUP(G27,Klasse_M!$H$12:$O$200,2,FALSE) ->  | P24: =" "&T24&" "&$D$3 -> 3. Mannschaft Freistehend | T24: 3. Mannschaft | U24: =VLOOKUP(P27,Klasse_M!$AD$12:$AK$200,6,FALSE) ->  | V24: =VLOOKUP(P27,Klasse_M!$AD$12:$AK$200,8,FALSE) ->  | W24: =VLOOKUP(P27,Klasse_M!$AD$12:$AK$200,2,FALSE) ->  | AA24: =" "&AE24&" "&$D$3 -> 3. Mannschaft Freistehend | AE24: 3. Mannschaft | AF24: ¢ | AG24: 0 | AJ24: =" "&AN24&" "&$D$3 -> 3. Mannschaft Freistehend | AN24: 3. Mannschaft | AO24: ¢ | AP24: 0 | AV24: Lenßen, Michelle | AX24: 127 | AY24: Peters, Gina Maria | BK24: =IF(#REF!=0,"",#REF!) ->  | BM24: 127 | BN24: Peters, Gina Maria
B25: Tel. | C25: =VLOOKUP($B$18,Brief!$AG$45:$AO$68,7,FALSE) -> 0208 / 60 83 85 | G25: =IF(H25=0,"",COUNTIF(G$12:G24,">0")+G$9+1) ->  | K25: =VLOOKUP($G25,Klasse_1!$X$11:$AK$500,11,FALSE) ->  | L25: =VLOOKUP($G25,Klasse_1!$X$11:$AK$500,8,FALSE) ->  | M25: =VLOOKUP($G25,Klasse_1!$X$11:$AK$500,10,FALSE) ->  | N25: =VLOOKUP($G25,Klasse_1!$X$11:$AK$500,2,FALSE) ->  | P25: =IF(Q25=0,"",COUNTIF(P$12:P24,">0")+P$9+1) ->  | T25: =VLOOKUP($P25,Klasse_2!$X$11:$AK$500,11,FALSE) ->  | U25: =VLOOKUP($P25,Klasse_2!$X$11:$AK$500,8,FALSE) ->  | V25: =VLOOKUP($P25,Klasse_2!$X$11:$AK$500,10,FALSE) ->  | W25: =VLOOKUP($P25,Klasse_2!$X$11:$AK$500,2,FALSE) ->  | AA25: =IF(AB25=0,"",COUNTIF(AA$12:AA24,">0")+AA$9+1) ->  | AE25: 0 | AF25: ¢ | AG25: 0 | AJ25: =IF(AK25=0,"",COUNTIF(AJ$12:AJ24,">0")+AJ$9+1) ->  | AN25: 0 | AO25: ¢ | AP25: 0 | AV25: Leue, Isabella | AX25: 17 | AY25: Sassenhagen, Christin | BK25: =IF(AV24=0,"",AV24) -> Lenßen, Michelle | BM25: 17 | BN25: Sassenhagen, Christin
B26: Sportleit. | C26: =VLOOKUP($B$18,Brief!$AG$45:$AO$68,8,FALSE) -> Ute Schneider | G26: =IF(H26=0,"",COUNTIF(G$12:G25,">0")+G$9+1) ->  | K26: =VLOOKUP($G26,Klasse_1!$X$11:$AK$500,11,FALSE) ->  | L26: =VLOOKUP($G26,Klasse_1!$X$11:$AK$500,8,FALSE) ->  | M26: =VLOOKUP($G26,Klasse_1!$X$11:$AK$500,10,FALSE) ->  | N26: =VLOOKUP($G26,Klasse_1!$X$11:$AK$500,2,FALSE) ->  | P26: =IF(Q26=0,"",COUNTIF(P$12:P25,">0")+P$9+1) ->  | T26: =VLOOKUP($P26,Klasse_2!$X$11:$AK$500,11,FALSE) ->  | U26: =VLOOKUP($P26,Klasse_2!$X$11:$AK$500,8,FALSE) ->  | V26: =VLOOKUP($P26,Klasse_2!$X$11:$AK$500,10,FALSE) ->  | W26: =VLOOKUP($P26,Klasse_2!$X$11:$AK$500,2,FALSE) ->  | AA26: =IF(AB26=0,"",COUNTIF(AA$12:AA25,">0")+AA$9+1) ->  | AE26: 0 | AF26: ¢ | AG26: 0 | AJ26: =IF(AK26=0,"",COUNTIF(AJ$12:AJ25,">0")+AJ$9+1) ->  | AN26: 0 | AO26: ¢ | AP26: 0 | AV26: Loh, Alexa | AX26: 170 | AY26: Schneider, Ute | BK26: Loh, Alexa | BM26: 170 | BN26: Schneider, Ute
B27: Tel. | C27: =VLOOKUP($B$18,Brief!$AG$45:$AO$68,9,FALSE) -> 0208 / 60 12 16 | G27: =IF(H27=0,"",COUNTIF(G$12:G26,">0")+G$9+1) ->  | K27: =VLOOKUP($G27,Klasse_1!$X$11:$AK$500,11,FALSE) ->  | L27: =VLOOKUP($G27,Klasse_1!$X$11:$AK$500,8,FALSE) ->  | M27: =VLOOKUP($G27,Klasse_1!$X$11:$AK$500,10,FALSE) ->  | N27: =VLOOKUP($G27,Klasse_1!$X$11:$AK$500,2,FALSE) ->  | P27: =IF(Q27=0,"",COUNTIF(P$12:P26,">0")+P$9+1) ->  | T27: =VLOOKUP($P27,Klasse_2!$X$11:$AK$500,11,FALSE) ->  | U27: =VLOOKUP($P27,Klasse_2!$X$11:$AK$500,8,FALSE) ->  | V27: =VLOOKUP($P27,Klasse_2!$X$11:$AK$500,10,FALSE) ->  | W27: =VLOOKUP($P27,Klasse_2!$X$11:$AK$500,2,FALSE) ->  | AA27: =IF(AB27=0,"",COUNTIF(AA$12:AA26,">0")+AA$9+1) ->  | AE27: 0 | AF27: ¢ | AG27: 0 | AJ27: =IF(AK27=0,"",COUNTIF(AJ$12:AJ26,">0")+AJ$9+1) ->  | AN27: 0 | AO27: ¢ | AP27: 0 | AV27: Loh, Robin | AX27: 14 | AY27: Tekaat, Angelika | BK27: Loh, Robin | BM27: 14 | BN27: Tekaat, Angelika
G28: =IF(H28=0,"",COUNTIF(G$12:G27,">0")+G$9+1) ->  | K28: =VLOOKUP($G28,Klasse_1!$X$11:$AK$500,11,FALSE) ->  | L28: =VLOOKUP($G28,Klasse_1!$X$11:$AK$500,8,FALSE) ->  | M28: =VLOOKUP($G28,Klasse_1!$X$11:$AK$500,10,FALSE) ->  | N28: =VLOOKUP($G28,Klasse_1!$X$11:$AK$500,2,FALSE) ->  | P28: =IF(Q28=0,"",COUNTIF(P$12:P27,">0")+P$9+1) ->  | T28: =VLOOKUP($P28,Klasse_2!$X$11:$AK$500,11,FALSE) ->  | U28: =VLOOKUP($P28,Klasse_2!$X$11:$AK$500,8,FALSE) ->  | V28: =VLOOKUP($P28,Klasse_2!$X$11:$AK$500,10,FALSE) ->  | W28: =VLOOKUP($P28,Klasse_2!$X$11:$AK$500,2,FALSE) ->  | AA28: =IF(AB28=0,"",COUNTIF(AA$12:AA27,">0")+AA$9+1) ->  | AE28: 0 | AF28: ¢ | AG28: 0 | AJ28: =IF(AK28=0,"",COUNTIF(AJ$12:AJ27,">0")+AJ$9+1) ->  | AN28: 0 | AO28: ¢ | AP28: 0 | AU28: 214 | AV28: Maslanak, Kevin | AX28: 233 | AY28: Tiemann, Ursel | BJ28: 214 | BK28: Maslanak, Kevin | BM28: 233 | BN28: Tiemann, Ursel
G29: =IF(H29=0,"",COUNTIF(G$12:G28,">0")+G$9+1) ->  | K29: =VLOOKUP($G29,Klasse_1!$X$11:$AK$500,11,FALSE) ->  | L29: =VLOOKUP($G29,Klasse_1!$X$11:$AK$500,8,FALSE) ->  | M29: =VLOOKUP($G29,Klasse_1!$X$11:$AK$500,10,FALSE) ->  | N29: =VLOOKUP($G29,Klasse_1!$X$11:$AK$500,2,FALSE) ->  | P29: =IF(Q29=0,"",COUNTIF(P$12:P28,">0")+P$9+1) ->  | T29: =VLOOKUP($P29,Klasse_2!$X$11:$AK$500,11,FALSE) ->  | U29: =VLOOKUP($P29,Klasse_2!$X$11:$AK$500,8,FALSE) ->  | V29: =VLOOKUP($P29,Klasse_2!$X$11:$AK$500,10,FALSE) ->  | W29: =VLOOKUP($P29,Klasse_2!$X$11:$AK$500,2,FALSE) ->  | AA29: =IF(AB29=0,"",COUNTIF(AA$12:AA28,">0")+AA$9+1) ->  | AE29: 0 | AF29: ¢ | AG29: 0 | AJ29: =IF(AK29=0,"",COUNTIF(AJ$12:AJ28,">0")+AJ$9+1) ->  | AN29: 0 | AO29: ¢ | AP29: 0 | AU29: 232 | AV29: Maslanak, Marlies | AX29: 186 | AY29: Waßer, Andrea | BJ29: 232 | BK29: Maslanak, Marlies | BM29: 186 | BN29: Waßer, Andrea
G30: =" "&K30&" "&$D$3 -> 4. Mannschaft Freistehend | K30: 4. Mannschaft | L30: =VLOOKUP(G33,Klasse_M!$H$12:$O$200,6,FALSE) ->  | M30: =VLOOKUP(G33,Klasse_M!$H$12:$O$200,8,FALSE) ->  | N30: =VLOOKUP(G33,Klasse_M!$H$12:$O$200,2,FALSE) ->  | P30: =" "&T30&" "&$D$3 -> 4. Mannschaft Freistehend | T30: 4. Mannschaft | U30: =VLOOKUP(P33,Klasse_M!$AD$12:$AK$200,6,FALSE) ->  | V30: =VLOOKUP(P33,Klasse_M!$AD$12:$AK$200,8,FALSE) ->  | W30: =VLOOKUP(P33,Klasse_M!$AD$12:$AK$200,2,FALSE) ->  | AA30: =" "&AE30&" "&$D$3 -> 4. Mannschaft Freistehend | AE30: 4. Mannschaft | AF30: ¢ | AG30: 0 | AJ30: =" "&AN30&" "&$D$3 -> 4. Mannschaft Freistehend | AN30: 4. Mannschaft | AO30: ¢ | AP30: 0 | AU30: 85 | AV30: Paß Norbert | AX30: 56 | AY30: Weiß, Patricia | BJ30: 85 | BK30: Paß Norbert | BM30: 56 | BN30: Weiß, Patricia
G31: =IF(H31=0,"",COUNTIF(G$12:G30,">0")+G$9+1) ->  | K31: =VLOOKUP($G31,Klasse_1!$X$11:$AK$500,11,FALSE) ->  | L31: =VLOOKUP($G31,Klasse_1!$X$11:$AK$500,8,FALSE) ->  | M31: =VLOOKUP($G31,Klasse_1!$X$11:$AK$500,10,FALSE) ->  | N31: =VLOOKUP($G31,Klasse_1!$X$11:$AK$500,2,FALSE) ->  | P31: =IF(Q31=0,"",COUNTIF(P$12:P30,">0")+P$9+1) ->  | T31: =VLOOKUP($P31,Klasse_2!$X$11:$AK$500,11,FALSE) ->  | U31: =VLOOKUP($P31,Klasse_2!$X$11:$AK$500,8,FALSE) ->  | V31: =VLOOKUP($P31,Klasse_2!$X$11:$AK$500,10,FALSE) ->  | W31: =VLOOKUP($P31,Klasse_2!$X$11:$AK$500,2,FALSE) ->  | AA31: =IF(AB31=0,"",COUNTIF(AA$12:AA30,">0")+AA$9+1) ->  | AE31: 0 | AF31: ¢ | AG31: 0 | AJ31: =IF(AK31=0,"",COUNTIF(AJ$12:AJ30,">0")+AJ$9+1) ->  | AN31: 0 | AO31: ¢ | AP31: 0 | AU31: 26 | AV31: Paß, Anja | AY31: Buschhorn Edeltraut | BJ31: 26 | BK31: Paß, Anja | BN31: Buschhorn Edeltraut
G32: =IF(H32=0,"",COUNTIF(G$12:G31,">0")+G$9+1) ->  | K32: =VLOOKUP($G32,Klasse_1!$X$11:$AK$500,11,FALSE) ->  | L32: =VLOOKUP($G32,Klasse_1!$X$11:$AK$500,8,FALSE) ->  | M32: =VLOOKUP($G32,Klasse_1!$X$11:$AK$500,10,FALSE) ->  | N32: =VLOOKUP($G32,Klasse_1!$X$11:$AK$500,2,FALSE) ->  | P32: =IF(Q32=0,"",COUNTIF(P$12:P31,">0")+P$9+1) ->  | T32: =VLOOKUP($P32,Klasse_2!$X$11:$AK$500,11,FALSE) ->  | U32: =VLOOKUP($P32,Klasse_2!$X$11:$AK$500,8,FALSE) ->  | V32: =VLOOKUP($P32,Klasse_2!$X$11:$AK$500,10,FALSE) ->  | W32: =VLOOKUP($P32,Klasse_2!$X$11:$AK$500,2,FALSE) ->  | AA32: =IF(AB32=0,"",COUNTIF(AA$12:AA31,">0")+AA$9+1) ->  | AE32: 0 | AF32: ¢ | AG32: 0 | AJ32: =IF(AK32=0,"",COUNTIF(AJ$12:AJ31,">0")+AJ$9+1) ->  | AN32: 0 | AO32: ¢ | AP32: 0 | AV32: Paß, Eugen | BK32: Paß, Eugen
G33: =IF(H33=0,"",COUNTIF(G$12:G32,">0")+G$9+1) ->  | K33: =VLOOKUP($G33,Klasse_1!$X$11:$AK$500,11,FALSE) ->  | L33: =VLOOKUP($G33,Klasse_1!$X$11:$AK$500,8,FALSE) ->  | M33: =VLOOKUP($G33,Klasse_1!$X$11:$AK$500,10,FALSE) ->  | N33: =VLOOKUP($G33,Klasse_1!$X$11:$AK$500,2,FALSE) ->  | P33: =IF(Q33=0,"",COUNTIF(P$12:P32,">0")+P$9+1) ->  | T33: =VLOOKUP($P33,Klasse_2!$X$11:$AK$500,11,FALSE) ->  | U33: =VLOOKUP($P33,Klasse_2!$X$11:$AK$500,8,FALSE) ->  | V33: =VLOOKUP($P33,Klasse_2!$X$11:$AK$500,10,FALSE) ->  | W33: =VLOOKUP($P33,Klasse_2!$X$11:$AK$500,2,FALSE) ->  | AA33: =IF(AB33=0,"",COUNTIF(AA$12:AA32,">0")+AA$9+1) ->  | AE33: 0 | AF33: ¢ | AG33: 0 | AJ33: =IF(AK33=0,"",COUNTIF(AJ$12:AJ32,">0")+AJ$9+1) ->  | AN33: 0 | AO33: ¢ | AP33: 0 | AU33: 125 | AV33: Paß, Inge | BJ33: 125 | BK33: Paß, Inge
G34: =IF(H34=0,"",COUNTIF(G$12:G33,">0")+G$9+1) ->  | K34: =VLOOKUP($G34,Klasse_1!$X$11:$AK$500,11,FALSE) ->  | L34: =VLOOKUP($G34,Klasse_1!$X$11:$AK$500,8,FALSE) ->  | M34: =VLOOKUP($G34,Klasse_1!$X$11:$AK$500,10,FALSE) ->  | N34: =VLOOKUP($G34,Klasse_1!$X$11:$AK$500,2,FALSE) ->  | P34: =IF(Q34=0,"",COUNTIF(P$12:P33,">0")+P$9+1) ->  | T34: =VLOOKUP($P34,Klasse_2!$X$11:$AK$500,11,FALSE) ->  | U34: =VLOOKUP($P34,Klasse_2!$X$11:$AK$500,8,FALSE) ->  | V34: =VLOOKUP($P34,Klasse_2!$X$11:$AK$500,10,FALSE) ->  | W34: =VLOOKUP($P34,Klasse_2!$X$11:$AK$500,2,FALSE) ->  | AA34: =IF(AB34=0,"",COUNTIF(AA$12:AA33,">0")+AA$9+1) ->  | AE34: 0 | AF34: ¢ | AG34: 0 | AJ34: =IF(AK34=0,"",COUNTIF(AJ$12:AJ33,">0")+AJ$9+1) ->  | AN34: 0 | AO34: ¢ | AP34: 0 | AV34: Peters Gina-Maria | BK34: Peters Gina-Maria
G35: =IF(H35=0,"",COUNTIF(G$12:G34,">0")+G$9+1) ->  | K35: =VLOOKUP($G35,Klasse_1!$X$11:$AK$500,11,FALSE) ->  | L35: =VLOOKUP($G35,Klasse_1!$X$11:$AK$500,8,FALSE) ->  | M35: =VLOOKUP($G35,Klasse_1!$X$11:$AK$500,10,FALSE) ->  | N35: =VLOOKUP($G35,Klasse_1!$X$11:$AK$500,2,FALSE) ->  | P35: =IF(Q35=0,"",COUNTIF(P$12:P34,">0")+P$9+1) ->  | T35: =VLOOKUP($P35,Klasse_2!$X$11:$AK$500,11,FALSE) ->  | U35: =VLOOKUP($P35,Klasse_2!$X$11:$AK$500,8,FALSE) ->  | V35: =VLOOKUP($P35,Klasse_2!$X$11:$AK$500,10,FALSE) ->  | W35: =VLOOKUP($P35,Klasse_2!$X$11:$AK$500,2,FALSE) ->  | AA35: =IF(AB35=0,"",COUNTIF(AA$12:AA34,">0")+AA$9+1) ->  | AE35: 0 | AF35: ¢ | AG35: 0 | AJ35: =IF(AK35=0,"",COUNTIF(AJ$12:AJ34,">0")+AJ$9+1) ->  | AN35: 0 | AO35: ¢ | AP35: 0 | AU35: 58 | AV35: Redecker, Günter | BJ35: 58 | BK35: Redecker, Günter
AV36: Sassenhagen, Christin | BK36: Sassenhagen, Christin
AV37: Schäfer, Felix Fabio | BK37: Schäfer, Felix Fabio
AU38: 168 | AV38: Schneider, Udo | BJ38: 168 | BK38: Schneider, Udo
AU39: 75 | AV39: Schneider, Ute | BJ39: 75 | BK39: Schneider, Ute
AU40: 126 | AV40: Tekaat, Angelika | BJ40: 126 | BK40: Tekaat, Angelika
AV41: Theisen, Jürgen | BK41: Theisen, Jürgen
B42: EINGABE | G42: =" "&K42&" "&$D$4 -> 1. Mannschaft Aufgelegt | K42: 1. Mannschaft | L42: =VLOOKUP(G45,Klasse_M!$S$12:$Z$200,6,FALSE) ->  | M42: =VLOOKUP(G45,Klasse_M!$S$12:$Z$200,8,FALSE) -> 0 | N42: =VLOOKUP(G45,Klasse_M!$S$12:$Z$200,2,FALSE) -> 1 | P42: =" "&T42&" "&$D$4 -> 1. Mannschaft Aufgelegt | T42: 1. Mannschaft | U42: =VLOOKUP(P45,Klasse_M!$AO$12:$AV$200,6,FALSE) ->  | V42: =VLOOKUP(P45,Klasse_M!$AO$12:$AV$200,8,FALSE) ->  | W42: =VLOOKUP(P45,Klasse_M!$AO$12:$AV$200,2,FALSE) ->  | AA42: =" "&AE42&" "&$D$4 -> 1. Mannschaft Aufgelegt | AE42: 1. Mannschaft | AF42: ¢ | AG42: 0 | AJ42: =" "&AN42&" "&$D$4 -> 1. Mannschaft Aufgelegt | AN42: 1. Mannschaft | AO42: ¢ | AP42: 0 | AV42: Tiemann, Manfred | BK42: Tiemann, Manfred
G43: =IF(H43=0,"",COUNTIF(G$12:G42,">0")+G$9+1) -> 9 | H43: Paß, Eugen | K43: =VLOOKUP($G43,Klasse_1!$AT$11:$BG$500,11,FALSE) ->  | L43: =VLOOKUP($G43,Klasse_1!$AT$11:$BG$500,8,FALSE) ->  | M43: =VLOOKUP($G43,Klasse_1!$AT$11:$BG$500,10,FALSE) ->  | N43: =VLOOKUP($G43,Klasse_1!$AT$11:$BG$500,2,FALSE) ->  | P43: =IF(Q43=0,"",COUNTIF(P$12:P42,">0")+P$9+1) ->  | T43: =VLOOKUP($P43,Klasse_2!$AT$11:$BG$500,11,FALSE) ->  | U43: =VLOOKUP($P43,Klasse_2!$AT$11:$BG$500,8,FALSE) ->  | V43: =VLOOKUP($P43,Klasse_2!$AT$11:$BG$500,10,FALSE) ->  | W43: =VLOOKUP($P43,Klasse_2!$AT$11:$BG$500,2,FALSE) ->  | AA43: =IF(AB43=0,"",COUNTIF(AA$12:AA42,">0")+AA$9+1) ->  | AE43: 0 | AF43: ¢ | AG43: 0 | AJ43: =IF(AK43=0,"",COUNTIF(AJ$12:AJ42,">0")+AJ$9+1) ->  | AN43: 0 | AO43: ¢ | AP43: 0 | AV43: Tiemann, Ursel | BK43: Tiemann, Ursel
B44: =$D$1 -> Schützen | C44: =$D$2 -> Damen | G44: =IF(H44=0,"",COUNTIF(G$12:G43,">0")+G$9+1) -> 10 | H44: Paß, Anja | K44: =VLOOKUP($G44,Klasse_1!$AT$11:$BG$500,11,FALSE) ->  | L44: =VLOOKUP($G44,Klasse_1!$AT$11:$BG$500,8,FALSE) ->  | M44: =VLOOKUP($G44,Klasse_1!$AT$11:$BG$500,10,FALSE) ->  | N44: =VLOOKUP($G44,Klasse_1!$AT$11:$BG$500,2,FALSE) ->  | P44: =IF(Q44=0,"",COUNTIF(P$12:P43,">0")+P$9+1) ->  | T44: =VLOOKUP($P44,Klasse_2!$AT$11:$BG$500,11,FALSE) ->  | U44: =VLOOKUP($P44,Klasse_2!$AT$11:$BG$500,8,FALSE) ->  | V44: =VLOOKUP($P44,Klasse_2!$AT$11:$BG$500,10,FALSE) ->  | W44: =VLOOKUP($P44,Klasse_2!$AT$11:$BG$500,2,FALSE) ->  | AA44: =IF(AB44=0,"",COUNTIF(AA$12:AA43,">0")+AA$9+1) ->  | AE44: 0 | AF44: ¢ | AG44: 0 | AJ44: =IF(AK44=0,"",COUNTIF(AJ$12:AJ43,">0")+AJ$9+1) ->  | AN44: 0 | AO44: ¢ | AP44: 0 | AU44: 60 | AV44: Waßer, Andrea | BJ44: 60 | BK44: Waßer, Andrea
B45: =$D$5 ->  | C45: =$D$8 ->  | G45: =IF(H45=0,"",COUNTIF(G$12:G44,">0")+G$9+1) -> 11 | H45: Maslanak, Marlies | K45: =VLOOKUP($G45,Klasse_1!$AT$11:$BG$500,11,FALSE) ->  | L45: =VLOOKUP($G45,Klasse_1!$AT$11:$BG$500,8,FALSE) ->  | M45: =VLOOKUP($G45,Klasse_1!$AT$11:$BG$500,10,FALSE) ->  | N45: =VLOOKUP($G45,Klasse_1!$AT$11:$BG$500,2,FALSE) ->  | P45: =IF(Q45=0,"",COUNTIF(P$12:P44,">0")+P$9+1) ->  | T45: =VLOOKUP($P45,Klasse_2!$AT$11:$BG$500,11,FALSE) ->  | U45: =VLOOKUP($P45,Klasse_2!$AT$11:$BG$500,8,FALSE) ->  | V45: =VLOOKUP($P45,Klasse_2!$AT$11:$BG$500,10,FALSE) ->  | W45: =VLOOKUP($P45,Klasse_2!$AT$11:$BG$500,2,FALSE) ->  | AA45: =IF(AB45=0,"",COUNTIF(AA$12:AA44,">0")+AA$9+1) ->  | AE45: 0 | AF45: ¢ | AG45: 0 | AJ45: =IF(AK45=0,"",COUNTIF(AJ$12:AJ44,">0")+AJ$9+1) ->  | AN45: 0 | AO45: ¢ | AP45: 0 | AV45: Waßer, Kevin | BK45: Waßer, Kevin
G46: =IF(H46=0,"",COUNTIF(G$12:G45,">0")+G$9+1) -> 12 | H46: Paß, Inge | K46: =VLOOKUP($G46,Klasse_1!$AT$11:$BG$500,11,FALSE) ->  | L46: =VLOOKUP($G46,Klasse_1!$AT$11:$BG$500,8,FALSE) ->  | M46: =VLOOKUP($G46,Klasse_1!$AT$11:$BG$500,10,FALSE) ->  | N46: =VLOOKUP($G46,Klasse_1!$AT$11:$BG$500,2,FALSE) ->  | P46: =IF(Q46=0,"",COUNTIF(P$12:P45,">0")+P$9+1) ->  | T46: =VLOOKUP($P46,Klasse_2!$AT$11:$BG$500,11,FALSE) ->  | U46: =VLOOKUP($P46,Klasse_2!$AT$11:$BG$500,8,FALSE) ->  | V46: =VLOOKUP($P46,Klasse_2!$AT$11:$BG$500,10,FALSE) ->  | W46: =VLOOKUP($P46,Klasse_2!$AT$11:$BG$500,2,FALSE) ->  | AA46: =IF(AB46=0,"",COUNTIF(AA$12:AA45,">0")+AA$9+1) ->  | AE46: 0 | AF46: ¢ | AG46: 0 | AJ46: =IF(AK46=0,"",COUNTIF(AJ$12:AJ45,">0")+AJ$9+1) ->  | AN46: 0 | AO46: ¢ | AP46: 0 | AV46: Weiß, Patricia | BK46: Weiß, Patricia
G47: =IF(H47=0,"",COUNTIF(G$12:G46,">0")+G$9+1) -> 13 | H47: Hils, Torsten | K47: =VLOOKUP($G47,Klasse_1!$AT$11:$BG$500,11,FALSE) ->  | L47: =VLOOKUP($G47,Klasse_1!$AT$11:$BG$500,8,FALSE) ->  | M47: =VLOOKUP($G47,Klasse_1!$AT$11:$BG$500,10,FALSE) ->  | N47: =VLOOKUP($G47,Klasse_1!$AT$11:$BG$500,2,FALSE) ->  | P47: =IF(Q47=0,"",COUNTIF(P$12:P46,">0")+P$9+1) ->  | T47: =VLOOKUP($P47,Klasse_2!$AT$11:$BG$500,11,FALSE) ->  | U47: =VLOOKUP($P47,Klasse_2!$AT$11:$BG$500,8,FALSE) ->  | V47: =VLOOKUP($P47,Klasse_2!$AT$11:$BG$500,10,FALSE) ->  | W47: =VLOOKUP($P47,Klasse_2!$AT$11:$BG$500,2,FALSE) ->  | AA47: =IF(AB47=0,"",COUNTIF(AA$12:AA46,">0")+AA$9+1) ->  | AE47: 0 | AF47: ¢ | AG47: 0 | AJ47: =IF(AK47=0,"",COUNTIF(AJ$12:AJ46,">0")+AJ$9+1) ->  | AN47: 0 | AO47: ¢ | AP47: 0 | AV47: Wiesemann, Matthias | BK47: Wiesemann, Matthias
B48: =B18 -> A | G48: =" "&K48&" "&$D$4 -> 2. Mannschaft Aufgelegt | K48: 2. Mannschaft | L48: =VLOOKUP(G51,Klasse_M!$S$12:$Z$200,6,FALSE) ->  | M48: =VLOOKUP(G51,Klasse_M!$S$12:$Z$200,8,FALSE) -> 0 | N48: =VLOOKUP(G51,Klasse_M!$S$12:$Z$200,2,FALSE) -> 1 | P48: =" "&T48&" "&$D$4 -> 2. Mannschaft Aufgelegt | T48: 2. Mannschaft | U48: =VLOOKUP(P51,Klasse_M!$AO$12:$AV$200,6,FALSE) ->  | V48: =VLOOKUP(P51,Klasse_M!$AO$12:$AV$200,8,FALSE) ->  | W48: =VLOOKUP(P51,Klasse_M!$AO$12:$AV$200,2,FALSE) ->  | AA48: =" "&AE48&" "&$D$4 -> 2. Mannschaft Aufgelegt | AE48: 2. Mannschaft | AF48: ¢ | AG48: 0 | AJ48: =" "&AN48&" "&$D$4 -> 2. Mannschaft Aufgelegt | AN48: 2. Mannschaft | AO48: ¢ | AP48: 0
G49: =IF(H49=0,"",COUNTIF(G$12:G48,">0")+G$9+1) -> 14 | H49: Tiemann, Manfred | K49: =VLOOKUP($G49,Klasse_1!$AT$11:$BG$500,11,FALSE) ->  | L49: =VLOOKUP($G49,Klasse_1!$AT$11:$BG$500,8,FALSE) ->  | M49: =VLOOKUP($G49,Klasse_1!$AT$11:$BG$500,10,FALSE) ->  | N49: =VLOOKUP($G49,Klasse_1!$AT$11:$BG$500,2,FALSE) ->  | P49: =IF(Q49=0,"",COUNTIF(P$12:P48,">0")+P$9+1) ->  | T49: =VLOOKUP($P49,Klasse_2!$AT$11:$BG$500,11,FALSE) ->  | U49: =VLOOKUP($P49,Klasse_2!$AT$11:$BG$500,8,FALSE) ->  | V49: =VLOOKUP($P49,Klasse_2!$AT$11:$BG$500,10,FALSE) ->  | W49: =VLOOKUP($P49,Klasse_2!$AT$11:$BG$500,2,FALSE) ->  | AA49: =IF(AB49=0,"",COUNTIF(AA$12:AA48,">0")+AA$9+1) ->  | AE49: 0 | AF49: ¢ | AG49: 0 | AJ49: =IF(AK49=0,"",COUNTIF(AJ$12:AJ48,">0")+AJ$9+1) ->  | AN49: 0 | AO49: ¢ | AP49: 0
B50: =VLOOKUP($B$18,Brief!$AG$45:$AO$68,3,FALSE) -> Schützenverein Rothebusch 1922 e.V. | G50: =IF(H50=0,"",COUNTIF(G$12:G49,">0")+G$9+1) -> 15 | H50: Tiemann, Ursel | K50: =VLOOKUP($G50,Klasse_1!$AT$11:$BG$500,11,FALSE) ->  | L50: =VLOOKUP($G50,Klasse_1!$AT$11:$BG$500,8,FALSE) ->  | M50: =VLOOKUP($G50,Klasse_1!$AT$11:$BG$500,10,FALSE) ->  | N50: =VLOOKUP($G50,Klasse_1!$AT$11:$BG$500,2,FALSE) ->  | P50: =IF(Q50=0,"",COUNTIF(P$12:P49,">0")+P$9+1) ->  | T50: =VLOOKUP($P50,Klasse_2!$AT$11:$BG$500,11,FALSE) ->  | U50: =VLOOKUP($P50,Klasse_2!$AT$11:$BG$500,8,FALSE) ->  | V50: =VLOOKUP($P50,Klasse_2!$AT$11:$BG$500,10,FALSE) ->  | W50: =VLOOKUP($P50,Klasse_2!$AT$11:$BG$500,2,FALSE) ->  | AA50: =IF(AB50=0,"",COUNTIF(AA$12:AA49,">0")+AA$9+1) ->  | AE50: 0 | AF50: ¢ | AG50: 0 | AJ50: =IF(AK50=0,"",COUNTIF(AJ$12:AJ49,">0")+AJ$9+1) ->  | AN50: 0 | AO50: ¢ | AP50: 0
B51: VereinsNr. | C51: =VLOOKUP($B$18,Brief!$AG$45:$AP$68,10,FALSE) -> 1111 | G51: =IF(H51=0,"",COUNTIF(G$12:G50,">0")+G$9+1) -> 16 | H51: Hils, Dagmar | K51: =VLOOKUP($G51,Klasse_1!$AT$11:$BG$500,11,FALSE) ->  | L51: =VLOOKUP($G51,Klasse_1!$AT$11:$BG$500,8,FALSE) ->  | M51: =VLOOKUP($G51,Klasse_1!$AT$11:$BG$500,10,FALSE) ->  | N51: =VLOOKUP($G51,Klasse_1!$AT$11:$BG$500,2,FALSE) ->  | P51: =IF(Q51=0,"",COUNTIF(P$12:P50,">0")+P$9+1) ->  | T51: =VLOOKUP($P51,Klasse_2!$AT$11:$BG$500,11,FALSE) ->  | U51: =VLOOKUP($P51,Klasse_2!$AT$11:$BG$500,8,FALSE) ->  | V51: =VLOOKUP($P51,Klasse_2!$AT$11:$BG$500,10,FALSE) ->  | W51: =VLOOKUP($P51,Klasse_2!$AT$11:$BG$500,2,FALSE) ->  | AA51: =IF(AB51=0,"",COUNTIF(AA$12:AA50,">0")+AA$9+1) ->  | AE51: 0 | AF51: ¢ | AG51: 0 | AJ51: =IF(AK51=0,"",COUNTIF(AJ$12:AJ50,">0")+AJ$9+1) ->  | AN51: 0 | AO51: ¢ | AP51: 0
B52: Anspr. | C52: =VLOOKUP($B$18,Brief!$AG$45:$AO$68,4,FALSE) -> Schneider, Ute | G52: =IF(H52=0,"",COUNTIF(G$12:G51,">0")+G$9+1) -> 17 | H52: Theisen, Jürgen | K52: =VLOOKUP($G52,Klasse_1!$AT$11:$BG$500,11,FALSE) ->  | L52: =VLOOKUP($G52,Klasse_1!$AT$11:$BG$500,8,FALSE) ->  | M52: =VLOOKUP($G52,Klasse_1!$AT$11:$BG$500,10,FALSE) ->  | N52: =VLOOKUP($G52,Klasse_1!$AT$11:$BG$500,2,FALSE) ->  | P52: =IF(Q52=0,"",COUNTIF(P$12:P51,">0")+P$9+1) ->  | T52: =VLOOKUP($P52,Klasse_2!$AT$11:$BG$500,11,FALSE) ->  | U52: =VLOOKUP($P52,Klasse_2!$AT$11:$BG$500,8,FALSE) ->  | V52: =VLOOKUP($P52,Klasse_2!$AT$11:$BG$500,10,FALSE) ->  | W52: =VLOOKUP($P52,Klasse_2!$AT$11:$BG$500,2,FALSE) ->  | AA52: =IF(AB52=0,"",COUNTIF(AA$12:AA51,">0")+AA$9+1) ->  | AE52: 0 | AF52: ¢ | AG52: 0 | AJ52: =IF(AK52=0,"",COUNTIF(AJ$12:AJ51,">0")+AJ$9+1) ->  | AN52: 0 | AO52: ¢ | AP52: 0
B53: Anschrift | C53: =VLOOKUP($B$18,Brief!$AG$45:$AO$68,5,FALSE) -> Schwarzwaldstr. 38 | G53: =IF(H53=0,"",COUNTIF(G$12:G52,">0")+G$9+1) ->  | K53: =VLOOKUP($G53,Klasse_1!$AT$11:$BG$500,11,FALSE) ->  | L53: =VLOOKUP($G53,Klasse_1!$AT$11:$BG$500,8,FALSE) ->  | M53: =VLOOKUP($G53,Klasse_1!$AT$11:$BG$500,10,FALSE) ->  | N53: =VLOOKUP($G53,Klasse_1!$AT$11:$BG$500,2,FALSE) ->  | P53: =IF(Q53=0,"",COUNTIF(P$12:P52,">0")+P$9+1) ->  | T53: =VLOOKUP($P53,Klasse_2!$AT$11:$BG$500,11,FALSE) ->  | U53: =VLOOKUP($P53,Klasse_2!$AT$11:$BG$500,8,FALSE) ->  | V53: =VLOOKUP($P53,Klasse_2!$AT$11:$BG$500,10,FALSE) ->  | W53: =VLOOKUP($P53,Klasse_2!$AT$11:$BG$500,2,FALSE) ->  | AA53: =IF(AB53=0,"",COUNTIF(AA$12:AA52,">0")+AA$9+1) ->  | AE53: 0 | AF53: ¢ | AG53: 0 | AJ53: =IF(AK53=0,"",COUNTIF(AJ$12:AJ52,">0")+AJ$9+1) ->  | AN53: 0 | AO53: ¢ | AP53: 0
B54: PLZ / Ort | C54: =VLOOKUP($B$18,Brief!$AG$45:$AO$68,6,FALSE) -> 46119 Oberhausen | G54: =" "&K54&" "&$D$4 -> 3. Mannschaft Aufgelegt | K54: 3. Mannschaft | L54: =VLOOKUP(G57,Klasse_M!$S$12:$Z$200,6,FALSE) ->  | M54: =VLOOKUP(G57,Klasse_M!$S$12:$Z$200,8,FALSE) -> 0 | N54: =VLOOKUP(G57,Klasse_M!$S$12:$Z$200,2,FALSE) -> 1 | P54: =" "&T54&" "&$D$4 -> 3. Mannschaft Aufgelegt | T54: 3. Mannschaft | U54: =VLOOKUP(P57,Klasse_M!$AO$12:$AV$200,6,FALSE) ->  | V54: =VLOOKUP(P57,Klasse_M!$AO$12:$AV$200,8,FALSE) ->  | W54: =VLOOKUP(P57,Klasse_M!$AO$12:$AV$200,2,FALSE) ->  | AA54: =" "&AE54&" "&$D$4 -> 3. Mannschaft Aufgelegt | AE54: 3. Mannschaft | AF54: ¢ | AG54: 0 | AJ54: =" "&AN54&" "&$D$4 -> 3. Mannschaft Aufgelegt | AN54: 3. Mannschaft | AO54: ¢ | AP54: 0
B55: Tel. | C55: =VLOOKUP($B$18,Brief!$AG$45:$AO$68,7,FALSE) -> 0208 / 60 83 85 | G55: =IF(H55=0,"",COUNTIF(G$12:G54,">0")+G$9+1) -> 18 | H55: Redecker, Günter | K55: =VLOOKUP($G55,Klasse_1!$AT$11:$BG$500,11,FALSE) ->  | L55: =VLOOKUP($G55,Klasse_1!$AT$11:$BG$500,8,FALSE) ->  | M55: =VLOOKUP($G55,Klasse_1!$AT$11:$BG$500,10,FALSE) ->  | N55: =VLOOKUP($G55,Klasse_1!$AT$11:$BG$500,2,FALSE) ->  | P55: =IF(Q55=0,"",COUNTIF(P$12:P54,">0")+P$9+1) ->  | T55: =VLOOKUP($P55,Klasse_2!$AT$11:$BG$500,11,FALSE) ->  | U55: =VLOOKUP($P55,Klasse_2!$AT$11:$BG$500,8,FALSE) ->  | V55: =VLOOKUP($P55,Klasse_2!$AT$11:$BG$500,10,FALSE) ->  | W55: =VLOOKUP($P55,Klasse_2!$AT$11:$BG$500,2,FALSE) ->  | AA55: =IF(AB55=0,"",COUNTIF(AA$12:AA54,">0")+AA$9+1) ->  | AE55: 0 | AF55: ¢ | AG55: 0 | AJ55: =IF(AK55=0,"",COUNTIF(AJ$12:AJ54,">0")+AJ$9+1) ->  | AN55: 0 | AO55: ¢ | AP55: 0 | BK55: =IF(AV55=0,"",AV55) ->  | BM55: =IF(AX55=0,"",AX55) ->  | BN55: =IF(AY55=0,"",AY55) ->  | BP55: =IF(BA55=0,"",BA55) ->  | BQ55: =IF(BB55=0,"",BB55) ->  | BS55: =IF(BD55=0,"",BD55) ->  | BT55: =IF(BE55=0,"",BE55) -> 
B56: Sportleit. | C56: =VLOOKUP($B$18,Brief!$AG$45:$AO$68,8,FALSE) -> Ute Schneider | G56: =IF(H56=0,"",COUNTIF(G$12:G55,">0")+G$9+1) -> 19 | H56: Schneider, Ute | K56: =VLOOKUP($G56,Klasse_1!$AT$11:$BG$500,11,FALSE) ->  | L56: =VLOOKUP($G56,Klasse_1!$AT$11:$BG$500,8,FALSE) ->  | M56: =VLOOKUP($G56,Klasse_1!$AT$11:$BG$500,10,FALSE) ->  | N56: =VLOOKUP($G56,Klasse_1!$AT$11:$BG$500,2,FALSE) ->  | P56: =IF(Q56=0,"",COUNTIF(P$12:P55,">0")+P$9+1) ->  | T56: =VLOOKUP($P56,Klasse_2!$AT$11:$BG$500,11,FALSE) ->  | U56: =VLOOKUP($P56,Klasse_2!$AT$11:$BG$500,8,FALSE) ->  | V56: =VLOOKUP($P56,Klasse_2!$AT$11:$BG$500,10,FALSE) ->  | W56: =VLOOKUP($P56,Klasse_2!$AT$11:$BG$500,2,FALSE) ->  | AA56: =IF(AB56=0,"",COUNTIF(AA$12:AA55,">0")+AA$9+1) ->  | AE56: 0 | AF56: ¢ | AG56: 0 | AJ56: =IF(AK56=0,"",COUNTIF(AJ$12:AJ55,">0")+AJ$9+1) ->  | AN56: 0 | AO56: ¢ | AP56: 0 | BK56: =IF(AV56=0,"",AV56) ->  | BM56: =IF(AX56=0,"",AX56) ->  | BN56: =IF(AY56=0,"",AY56) ->  | BP56: =IF(BA56=0,"",BA56) ->  | BQ56: =IF(BB56=0,"",BB56) ->  | BS56: =IF(BD56=0,"",BD56) ->  | BT56: =IF(BE56=0,"",BE56) -> 
B57: Tel. | C57: =VLOOKUP($B$18,Brief!$AG$45:$AO$68,9,FALSE) -> 0208 / 60 12 16 | G57: =IF(H57=0,"",COUNTIF(G$12:G56,">0")+G$9+1) -> 20 | H57: Buschhorn, Herbert | K57: =VLOOKUP($G57,Klasse_1!$AT$11:$BG$500,11,FALSE) ->  | L57: =VLOOKUP($G57,Klasse_1!$AT$11:$BG$500,8,FALSE) ->  | M57: =VLOOKUP($G57,Klasse_1!$AT$11:$BG$500,10,FALSE) ->  | N57: =VLOOKUP($G57,Klasse_1!$AT$11:$BG$500,2,FALSE) ->  | P57: =IF(Q57=0,"",COUNTIF(P$12:P56,">0")+P$9+1) ->  | T57: =VLOOKUP($P57,Klasse_2!$AT$11:$BG$500,11,FALSE) ->  | U57: =VLOOKUP($P57,Klasse_2!$AT$11:$BG$500,8,FALSE) ->  | V57: =VLOOKUP($P57,Klasse_2!$AT$11:$BG$500,10,FALSE) ->  | W57: =VLOOKUP($P57,Klasse_2!$AT$11:$BG$500,2,FALSE) ->  | AA57: =IF(AB57=0,"",COUNTIF(AA$12:AA56,">0")+AA$9+1) ->  | AE57: 0 | AF57: ¢ | AG57: 0 | AJ57: =IF(AK57=0,"",COUNTIF(AJ$12:AJ56,">0")+AJ$9+1) ->  | AN57: 0 | AO57: ¢ | AP57: 0
G58: =IF(H58=0,"",COUNTIF(G$12:G57,">0")+G$9+1) -> 21 | H58: Schneider, Udo | K58: =VLOOKUP($G58,Klasse_1!$AT$11:$BG$500,11,FALSE) ->  | L58: =VLOOKUP($G58,Klasse_1!$AT$11:$BG$500,8,FALSE) ->  | M58: =VLOOKUP($G58,Klasse_1!$AT$11:$BG$500,10,FALSE) ->  | N58: =VLOOKUP($G58,Klasse_1!$AT$11:$BG$500,2,FALSE) ->  | P58: =IF(Q58=0,"",COUNTIF(P$12:P57,">0")+P$9+1) ->  | T58: =VLOOKUP($P58,Klasse_2!$AT$11:$BG$500,11,FALSE) ->  | U58: =VLOOKUP($P58,Klasse_2!$AT$11:$BG$500,8,FALSE) ->  | V58: =VLOOKUP($P58,Klasse_2!$AT$11:$BG$500,10,FALSE) ->  | W58: =VLOOKUP($P58,Klasse_2!$AT$11:$BG$500,2,FALSE) ->  | AA58: =IF(AB58=0,"",COUNTIF(AA$12:AA57,">0")+AA$9+1) ->  | AE58: 0 | AF58: ¢ | AG58: 0 | AJ58: =IF(AK58=0,"",COUNTIF(AJ$12:AJ57,">0")+AJ$9+1) ->  | AN58: 0 | AO58: ¢ | AP58: 0
G59: =IF(H59=0,"",COUNTIF(G$12:G58,">0")+G$9+1) -> 22 | H59: Buschhorn, Edeltraut | K59: =VLOOKUP($G59,Klasse_1!$AT$11:$BG$500,11,FALSE) ->  | L59: =VLOOKUP($G59,Klasse_1!$AT$11:$BG$500,8,FALSE) ->  | M59: =VLOOKUP($G59,Klasse_1!$AT$11:$BG$500,10,FALSE) ->  | N59: =VLOOKUP($G59,Klasse_1!$AT$11:$BG$500,2,FALSE) ->  | P59: =IF(Q59=0,"",COUNTIF(P$12:P58,">0")+P$9+1) ->  | T59: =VLOOKUP($P59,Klasse_2!$AT$11:$BG$500,11,FALSE) ->  | U59: =VLOOKUP($P59,Klasse_2!$AT$11:$BG$500,8,FALSE) ->  | V59: =VLOOKUP($P59,Klasse_2!$AT$11:$BG$500,10,FALSE) ->  | W59: =VLOOKUP($P59,Klasse_2!$AT$11:$BG$500,2,FALSE) ->  | AA59: =IF(AB59=0,"",COUNTIF(AA$12:AA58,">0")+AA$9+1) ->  | AE59: 0 | AF59: ¢ | AG59: 0 | AJ59: =IF(AK59=0,"",COUNTIF(AJ$12:AJ58,">0")+AJ$9+1) ->  | AN59: 0 | AO59: ¢ | AP59: 0
G60: =" "&K60&" "&$D$4 -> 4. Mannschaft Aufgelegt | K60: 4. Mannschaft | L60: =VLOOKUP(G63,Klasse_M!$S$12:$Z$200,6,FALSE) ->  | M60: =VLOOKUP(G63,Klasse_M!$S$12:$Z$200,8,FALSE) ->  | N60: =VLOOKUP(G63,Klasse_M!$S$12:$Z$200,2,FALSE) ->  | P60: =" "&T60&" "&$D$4 -> 4. Mannschaft Aufgelegt | T60: 4. Mannschaft | U60: =VLOOKUP(P63,Klasse_M!$AO$12:$AV$200,6,FALSE) ->  | V60: =VLOOKUP(P63,Klasse_M!$AO$12:$AV$200,8,FALSE) ->  | W60: =VLOOKUP(P63,Klasse_M!$AO$12:$AV$200,2,FALSE) ->  | AA60: =" "&AE60&" "&$D$4 -> 4. Mannschaft Aufgelegt | AE60: 4. Mannschaft | AF60: ¢ | AG60: 0 | AJ60: =" "&AN60&" "&$D$4 -> 4. Mannschaft Aufgelegt | AN60: 4. Mannschaft | AO60: ¢ | AP60: 0
G61: =IF(H61=0,"",COUNTIF(G$12:G60,">0")+G$9+1) ->  | K61: =VLOOKUP($G61,Klasse_1!$AT$11:$BG$500,11,FALSE) ->  | L61: =VLOOKUP($G61,Klasse_1!$AT$11:$BG$500,8,FALSE) ->  | M61: =VLOOKUP($G61,Klasse_1!$AT$11:$BG$500,10,FALSE) ->  | N61: =VLOOKUP($G61,Klasse_1!$AT$11:$BG$500,2,FALSE) ->  | P61: =IF(Q61=0,"",COUNTIF(P$12:P60,">0")+P$9+1) ->  | T61: =VLOOKUP($P61,Klasse_2!$AT$11:$BG$500,11,FALSE) ->  | U61: =VLOOKUP($P61,Klasse_2!$AT$11:$BG$500,8,FALSE) ->  | V61: =VLOOKUP($P61,Klasse_2!$AT$11:$BG$500,10,FALSE) ->  | W61: =VLOOKUP($P61,Klasse_2!$AT$11:$BG$500,2,FALSE) ->  | AA61: =IF(AB61=0,"",COUNTIF(AA$12:AA60,">0")+AA$9+1) ->  | AE61: 0 | AF61: ¢ | AG61: 0 | AJ61: =IF(AK61=0,"",COUNTIF(AJ$12:AJ60,">0")+AJ$9+1) ->  | AN61: 0 | AO61: ¢ | AP61: 0
G62: =IF(H62=0,"",COUNTIF(G$12:G61,">0")+G$9+1) ->  | K62: =VLOOKUP($G62,Klasse_1!$AT$11:$BG$500,11,FALSE) ->  | L62: =VLOOKUP($G62,Klasse_1!$AT$11:$BG$500,8,FALSE) ->  | M62: =VLOOKUP($G62,Klasse_1!$AT$11:$BG$500,10,FALSE) ->  | N62: =VLOOKUP($G62,Klasse_1!$AT$11:$BG$500,2,FALSE) ->  | P62: =IF(Q62=0,"",COUNTIF(P$12:P61,">0")+P$9+1) ->  | T62: =VLOOKUP($P62,Klasse_2!$AT$11:$BG$500,11,FALSE) ->  | U62: =VLOOKUP($P62,Klasse_2!$AT$11:$BG$500,8,FALSE) ->  | V62: =VLOOKUP($P62,Klasse_2!$AT$11:$BG$500,10,FALSE) ->  | W62: =VLOOKUP($P62,Klasse_2!$AT$11:$BG$500,2,FALSE) ->  | AA62: =IF(AB62=0,"",COUNTIF(AA$12:AA61,">0")+AA$9+1) ->  | AE62: 0 | AF62: ¢ | AG62: 0 | AJ62: =IF(AK62=0,"",COUNTIF(AJ$12:AJ61,">0")+AJ$9+1) ->  | AN62: 0 | AO62: ¢ | AP62: 0
G63: =IF(H63=0,"",COUNTIF(G$12:G62,">0")+G$9+1) ->  | K63: =VLOOKUP($G63,Klasse_1!$AT$11:$BG$500,11,FALSE) ->  | L63: =VLOOKUP($G63,Klasse_1!$AT$11:$BG$500,8,FALSE) ->  | M63: =VLOOKUP($G63,Klasse_1!$AT$11:$BG$500,10,FALSE) ->  | N63: =VLOOKUP($G63,Klasse_1!$AT$11:$BG$500,2,FALSE) ->  | P63: =IF(Q63=0,"",COUNTIF(P$12:P62,">0")+P$9+1) ->  | T63: =VLOOKUP($P63,Klasse_2!$AT$11:$BG$500,11,FALSE) ->  | U63: =VLOOKUP($P63,Klasse_2!$AT$11:$BG$500,8,FALSE) ->  | V63: =VLOOKUP($P63,Klasse_2!$AT$11:$BG$500,10,FALSE) ->  | W63: =VLOOKUP($P63,Klasse_2!$AT$11:$BG$500,2,FALSE) ->  | AA63: =IF(AB63=0,"",COUNTIF(AA$12:AA62,">0")+AA$9+1) ->  | AE63: 0 | AF63: ¢ | AG63: 0 | AJ63: =IF(AK63=0,"",COUNTIF(AJ$12:AJ62,">0")+AJ$9+1) ->  | AN63: 0 | AO63: ¢ | AP63: 0
G64: =IF(H64=0,"",COUNTIF(G$12:G63,">0")+G$9+1) ->  | K64: =VLOOKUP($G64,Klasse_1!$AT$11:$BG$500,11,FALSE) ->  | L64: =VLOOKUP($G64,Klasse_1!$AT$11:$BG$500,8,FALSE) ->  | M64: =VLOOKUP($G64,Klasse_1!$AT$11:$BG$500,10,FALSE) ->  | N64: =VLOOKUP($G64,Klasse_1!$AT$11:$BG$500,2,FALSE) ->  | P64: =IF(Q64=0,"",COUNTIF(P$12:P63,">0")+P$9+1) ->  | T64: =VLOOKUP($P64,Klasse_2!$AT$11:$BG$500,11,FALSE) ->  | U64: =VLOOKUP($P64,Klasse_2!$AT$11:$BG$500,8,FALSE) ->  | V64: =VLOOKUP($P64,Klasse_2!$AT$11:$BG$500,10,FALSE) ->  | W64: =VLOOKUP($P64,Klasse_2!$AT$11:$BG$500,2,FALSE) ->  | AA64: =IF(AB64=0,"",COUNTIF(AA$12:AA63,">0")+AA$9+1) ->  | AE64: 0 | AF64: ¢ | AG64: 0 | AJ64: =IF(AK64=0,"",COUNTIF(AJ$12:AJ63,">0")+AJ$9+1) ->  | AN64: 0 | AO64: ¢ | AP64: 0
G65: =IF(H65=0,"",COUNTIF(G$12:G64,">0")+G$9+1) ->  | K65: =VLOOKUP($G65,Klasse_1!$AT$11:$BG$500,11,FALSE) ->  | L65: =VLOOKUP($G65,Klasse_1!$AT$11:$BG$500,8,FALSE) ->  | M65: =VLOOKUP($G65,Klasse_1!$AT$11:$BG$500,10,FALSE) ->  | N65: =VLOOKUP($G65,Klasse_1!$AT$11:$BG$500,2,FALSE) ->  | P65: =IF(Q65=0,"",COUNTIF(P$12:P64,">0")+P$9+1) ->  | T65: =VLOOKUP($P65,Klasse_2!$AT$11:$BG$500,11,FALSE) ->  | U65: =VLOOKUP($P65,Klasse_2!$AT$11:$BG$500,8,FALSE) ->  | V65: =VLOOKUP($P65,Klasse_2!$AT$11:$BG$500,10,FALSE) ->  | W65: =VLOOKUP($P65,Klasse_2!$AT$11:$BG$500,2,FALSE) ->  | AA65: =IF(AB65=0,"",COUNTIF(AA$12:AA64,">0")+AA$9+1) ->  | AE65: 0 | AF65: ¢ | AG65: 0 | AJ65: =IF(AK65=0,"",COUNTIF(AJ$12:AJ64,">0")+AJ$9+1) ->  | AN65: 0 | AO65: ¢ | AP65: 0

Sheet B
D1: =Brief!D1 -> Schützen | G1: =" "&Brief!$K$13&" "&Brief!$K$14&" "&Brief!$K$15 -> SV Rothebusch 1922 e.V. 21. Optik Giepen Pokal 03/04. Febr. 2018 | AA1: =" "&Brief!$K$13&" "&Brief!$K$14&" "&Brief!$K$15 -> SV Rothebusch 1922 e.V. 21. Optik Giepen Pokal 03/04. Febr. 2018 | AU1: =" "&Brief!$K$13&" "&Brief!$K$14&" "&Brief!$K$15 -> SV Rothebusch 1922 e.V. 21. Optik Giepen Pokal 03/04. Febr. 2018 | BJ1: =" "&Brief!$K$13&" "&Brief!$K$14&" "&Brief!$K$15 -> SV Rothebusch 1922 e.V. 21. Optik Giepen Pokal 03/04. Febr. 2018
B2: =Brief!$AH$45 -> SV Rothebusch 1922 e.V. | D2: =Brief!D2 -> Damen | E2: =A!$E$2 -> 22 | F2: =IF($B$18="A",$B$18,"") ->  | Z2: =$F2 ->  | AT2: =$F2 ->  | BI2: =$F2 -> 
B3: =Brief!$AH$46 -> ABSV 1921 | D3: =Brief!D3 -> Freistehend | E3: =A!$E$3 -> 22 | F3: =IF($B$18="B",$B$18,"") -> B | Z3: B | AT3: B | BI3: B
B4: =Brief!$AH$47 -> Buschhausen | D4: =Brief!D4 -> Aufgelegt | E4: =A!$E$4 -> 28 | F4: =IF($B$18="C",$B$18,"") ->  | G4: =VLOOKUP($B$18,Brief!$AG$45:$AO$68,3,FALSE) -> ABSV 1921 Oberhausen e.V. | P4: Wertungen | AA4: =VLOOKUP($B$18,Brief!$AG$45:$AO$68,3,FALSE) -> ABSV 1921 Oberhausen e.V. | AJ4: Wertungen | AU4: =VLOOKUP($B$18,Brief!$AG$45:$AO$68,3,FALSE) -> ABSV 1921 Oberhausen e.V.
B5: =Brief!$AH$48 -> BSG Holten | D5: =Brief!D5 ->  | E5: =A!$E$5 -> 28 | F5: =IF($B$18="D",$B$18,"") ->  | BJ5: =VLOOKUP($B$18,Brief!$AG$45:$AO$68,3,FALSE) -> ABSV 1921 Oberhausen e.V.
B6: =Brief!$AH$49 -> 1882 Osterfeld | D6: =Brief!D6 ->  | E6: =A!$E$6 -> 42 | F6: =IF($B$18="E",$B$18,"") -> 
B7: =Brief!$AH$50 -> Hubertus | D7: =Brief!D7 ->  | E7: =A!$E$7 -> 52 | F7: =IF($B$18="F",$B$18,"") ->  | BK7: Ansprechpartner | BL7: =VLOOKUP($B$18,Brief!$AG$45:$AO$68,4,FALSE) -> Granieczny, Ludwig | BQ7: =NOW() -> 2018-02-05T11:14:19.790 | BR7: =VLOOKUP($B$18,Brief!$AG$45:$AP$68,10,FALSE) -> 1105
B8: =Brief!$AH$51 -> St. Lirich | C8: =Brief!$AH$52 -> Waidmannsheil | D8: =Brief!D8 ->  | E8: =A!$E$8 -> -56 -74 | F8: =IF($B$18="G",$B$18,"") ->  | H8: =IF(Brief!$K$43=0,"",Brief!$K$43&" "&Brief!$M$43) -> Luftgewehr 10 m | Q8: =IF(Brief!$K$46=0,"",Brief!$K$46&" "&Brief!$M$46) -> Luftgewehr 10 m | AB8: =IF(Brief!$K$49=0,"",Brief!$K$49&" "&Brief!$M$49) ->  | AK8: =IF(Brief!$K$52=0,"",Brief!$K$52&" "&Brief!$M$52) ->  | BK8: Anschrift | BL8: =VLOOKUP($B$18,Brief!$AG$45:$AO$68,5,FALSE) -> Sachsenstr. 8
B9: =Brief!$AH$53 -> Klosterhardt | C9: =Brief!$AH$54 -> Königshardt | D9: =Brief!D9 ->  | E9: =A!$E$9 -> -78 -78 | F9: =IF($B$18="K",$B$18,"") ->  | G9: =A!$AJ$10 -> 22 | H9: =$D$1 -> Schützen | K9: 1 | P9: =G10 -> 22 | Q9: =$D$2 -> Damen | T9: 2 | AA9: =P10 -> 22 | AB9: =$D$5 ->  | AE9: 3 | AJ9: =AA10 -> 22 | AK9: =$D$8 ->  | AN9: 4 | AU9: Pass | AV9: =$D$1 -> Schützen | AX9: Pass | AY9: =$D$2 -> Damen | BA9: Pass | BB9: =$D$5 ->  | BD9: Pass | BE9: =$D$8 ->  | BK9: PLZ / Ort | BL9: =VLOOKUP($B$18,Brief!$AG$45:$AO$68,6,FALSE) -> 46149 Oberhausen | BQ9: Sportleiter | BR9: =VLOOKUP($B$18,Brief!$AG$45:$AO$68,8,FALSE) -> 
B10: =Brief!$AH$55 -> BSG 1862 Oberhausen | C10: =Brief!$AH$56 -> 1981 Mitte | D10: =Brief!D10 ->  | E10: =A!$E$10 -> -78 -78 | F10: =IF($B$18="M",$B$18,"") ->  | G10: =MAX(G11:G65) -> 22 | P10: =MAX(P11:P65) -> 22 | AA10: =MAX(AA11:AA65) -> 22 | AJ10: =AA9 -> 22 | AU10: Nr. | AX10: Nr. | BA10: Nr. | BD10: Nr. | BK10: Tel., Ansprechpartner | BL10: =VLOOKUP($B$18,Brief!$AG$45:$AO$68,7,FALSE) ->  | BQ10: Telefon, Sportleiter | BR10: =VLOOKUP($B$18,Brief!$AG$45:$AO$68,9,FALSE) -> 
G11: =G9 -> 22 | P11: =P9 -> 22 | AA11: =AA9 -> 22 | AJ11: =AJ9 -> 22 | BJ11: Nr. | BK11: =$D$1 -> Schützen | BM11: Nr. | BN11: =$D$2 -> Damen | BP11: =IF(BQ11="","","Nr.") ->  | BQ11: =$D$5 ->  | BS11: =IF(BT11="","","Nr.") ->  | BT11: =$D$8 -> 
B12: EINGABE | G12: =" "&K12&" "&$D$3 -> 1. Mannschaft Freistehend | K12: 1. Mannschaft | L12: =VLOOKUP(G15,Klasse_M!$H$12:$O$200,6,FALSE) ->  | M12: =VLOOKUP(G15,Klasse_M!$H$12:$O$200,8,FALSE) ->  | N12: =VLOOKUP(G15,Klasse_M!$H$12:$O$200,2,FALSE) ->  | P12: =" "&T12&" "&$D$3 -> 1. Mannschaft Freistehend | T12: 1. Mannschaft | U12: =VLOOKUP(P15,Klasse_M!$AD$12:$AK$200,6,FALSE) ->  | V12: =VLOOKUP(P15,Klasse_M!$AD$12:$AK$200,8,FALSE) ->  | W12: =VLOOKUP(P15,Klasse_M!$AD$12:$AK$200,2,FALSE) ->  | AA12: =" "&AE12&" "&$D$3 -> 1. Mannschaft Freistehend | AE12: 1. Mannschaft | AF12: ¢ | AG12: 0 | AJ12: =" "&AN12&" "&$D$3 -> 1. Mannschaft Freistehend | AN12: 1. Mannschaft | AO12: ¢ | AP12: 0 | AU12: 13 | AV12: Granieczny, Ludwig | AX12: 6 | AY12: Jochum, Heidi | BJ12: =IF(AU12=0,"",AU12) -> 13 | BK12: =IF(AV12=0,"",AV12) -> Granieczny, Ludwig | BM12: =IF(AX12=0,"",AX12) -> 6 | BN12: =IF(AY12=0,"",AY12) -> Jochum, Heidi | BP12: =IF(BA12=0,"",BA12) ->  | BQ12: =IF(BB12=0,"",BB12) ->  | BS12: =IF(BD12=0,"",BD12) ->  | BT12: =IF(BE12=0,"",BE12) -> 
G13: =IF(H13=0,"",COUNTIF(G$12:G12,">0")+G$9+1) ->  | K13: =VLOOKUP($G13,Klasse_1!$X$11:$AK$500,11,FALSE) ->  | L13: =VLOOKUP($G13,Klasse_1!$X$11:$AK$500,8,FALSE) ->  | M13: =VLOOKUP($G13,Klasse_1!$X$11:$AK$500,10,FALSE) ->  | N13: =VLOOKUP($G13,Klasse_1!$X$11:$AK$500,2,FALSE) ->  | P13: =IF(Q13=0,"",COUNTIF(P$12:P12,">0")+P$9+1) ->  | T13: =VLOOKUP($P13,Klasse_2!$X$11:$AK$500,11,FALSE) ->  | U13: =VLOOKUP($P13,Klasse_2!$X$11:$AK$500,8,FALSE) ->  | V13: =VLOOKUP($P13,Klasse_2!$X$11:$AK$500,10,FALSE) ->  | W13: =VLOOKUP($P13,Klasse_2!$X$11:$AK$500,2,FALSE) ->  | AA13: =IF(AB13=0,"",COUNTIF(AA$12:AA12,">0")+AA$9+1) ->  | AE13: 0 | AF13: ¢ | AG13: 0 | AJ13: =IF(AK13=0,"",COUNTIF(AJ$12:AJ12,">0")+AJ$9+1) ->  | AN13: 0 | AO13: ¢ | AP13: 0 | AU13: 40 | AV13: Hensel, Wolfgang | AX13: 27 | BJ13: 40 | BK13: Hensel, Wolfgang | BM13: 27
B14: =$D$1 -> Schützen | C14: =$D$2 -> Damen | G14: =IF(H14=0,"",COUNTIF(G$12:G13,">0")+G$9+1) ->  | K14: =VLOOKUP($G14,Klasse_1!$X$11:$AK$500,11,FALSE) ->  | L14: =VLOOKUP($G14,Klasse_1!$X$11:$AK$500,8,FALSE) ->  | M14: =VLOOKUP($G14,Klasse_1!$X$11:$AK$500,10,FALSE) ->  | N14: =VLOOKUP($G14,Klasse_1!$X$11:$AK$500,2,FALSE) ->  | P14: =IF(Q14=0,"",COUNTIF(P$12:P13,">0")+P$9+1) ->  | T14: =VLOOKUP($P14,Klasse_2!$X$11:$AK$500,11,FALSE) ->  | U14: =VLOOKUP($P14,Klasse_2!$X$11:$AK$500,8,FALSE) ->  | V14: =VLOOKUP($P14,Klasse_2!$X$11:$AK$500,10,FALSE) ->  | W14: =VLOOKUP($P14,Klasse_2!$X$11:$AK$500,2,FALSE) ->  | AA14: =IF(AB14=0,"",COUNTIF(AA$12:AA13,">0")+AA$9+1) ->  | AE14: 0 | AF14: ¢ | AG14: 0 | AJ14: =IF(AK14=0,"",COUNTIF(AJ$12:AJ13,">0")+AJ$9+1) ->  | AN14: 0 | AO14: ¢ | AP14: 0 | AU14: 15 | AV14: Hundscheid, Burkhart | AX14: 34 | BJ14: 15 | BK14: Hundscheid, Burkhart | BM14: 34
B15: =$D$5 ->  | C15: =$D$8 ->  | G15: =IF(H15=0,"",COUNTIF(G$12:G14,">0")+G$9+1) ->  | K15: =VLOOKUP($G15,Klasse_1!$X$11:$AK$500,11,FALSE) ->  | L15: =VLOOKUP($G15,Klasse_1!$X$11:$AK$500,8,FALSE) ->  | M15: =VLOOKUP($G15,Klasse_1!$X$11:$AK$500,10,FALSE) ->  | N15: =VLOOKUP($G15,Klasse_1!$X$11:$AK$500,2,FALSE) ->  | P15: =IF(Q15=0,"",COUNTIF(P$12:P14,">0")+P$9+1) ->  | T15: =VLOOKUP($P15,Klasse_2!$X$11:$AK$500,11,FALSE) ->  | U15: =VLOOKUP($P15,Klasse_2!$X$11:$AK$500,8,FALSE) ->  | V15: =VLOOKUP($P15,Klasse_2!$X$11:$AK$500,10,FALSE) ->  | W15: =VLOOKUP($P15,Klasse_2!$X$11:$AK$500,2,FALSE) ->  | AA15: =IF(AB15=0,"",COUNTIF(AA$12:AA14,">0")+AA$9+1) ->  | AE15: 0 | AF15: ¢ | AG15: 0 | AJ15: =IF(AK15=0,"",COUNTIF(AJ$12:AJ14,">0")+AJ$9+1) ->  | AN15: 0 | AO15: ¢ | AP15: 0 | AU15: 3 | AV15: Jochum, Heidi | AX15: 12 | BJ15: 3 | BK15: Jochum, Heidi | BM15: 12
G16: =IF(H16=0,"",COUNTIF(G$12:G15,">0")+G$9+1) ->  | K16: =VLOOKUP($G16,Klasse_1!$X$11:$AK$500,11,FALSE) ->  | L16: =VLOOKUP($G16,Klasse_1!$X$11:$AK$500,8,FALSE) ->  | M16: =VLOOKUP($G16,Klasse_1!$X$11:$AK$500,10,FALSE) ->  | N16: =VLOOKUP($G16,Klasse_1!$X$11:$AK$500,2,FALSE) ->  | P16: =IF(Q16=0,"",COUNTIF(P$12:P15,">0")+P$9+1) ->  | T16: =VLOOKUP($P16,Klasse_2!$X$11:$AK$500,11,FALSE) ->  | U16: =VLOOKUP($P16,Klasse_2!$X$11:$AK$500,8,FALSE) ->  | V16: =VLOOKUP($P16,Klasse_2!$X$11:$AK$500,10,FALSE) ->  | W16: =VLOOKUP($P16,Klasse_2!$X$11:$AK$500,2,FALSE) ->  | AA16: =IF(AB16=0,"",COUNTIF(AA$12:AA15,">0")+AA$9+1) ->  | AE16: 0 | AF16: ¢ | AG16: 0 | AJ16: =IF(AK16=0,"",COUNTIF(AJ$12:AJ15,">0")+AJ$9+1) ->  | AN16: 0 | AO16: ¢ | AP16: 0 | AU16: 9 | AV16: Jochum, Jürgen | AX16: 6 | BJ16: 9 | BK16: Jochum, Jürgen | BM16: 6
G17: =IF(H17=0,"",COUNTIF(G$12:G16,">0")+G$9+1) ->  | K17: =VLOOKUP($G17,Klasse_1!$X$11:$AK$500,11,FALSE) ->  | L17: =VLOOKUP($G17,Klasse_1!$X$11:$AK$500,8,FALSE) ->  | M17: =VLOOKUP($G17,Klasse_1!$X$11:$AK$500,10,FALSE) ->  | N17: =VLOOKUP($G17,Klasse_1!$X$11:$AK$500,2,FALSE) ->  | P17: =IF(Q17=0,"",COUNTIF(P$12:P16,">0")+P$9+1) ->  | T17: =VLOOKUP($P17,Klasse_2!$X$11:$AK$500,11,FALSE) ->  | U17: =VLOOKUP($P17,Klasse_2!$X$11:$AK$500,8,FALSE) ->  | V17: =VLOOKUP($P17,Klasse_2!$X$11:$AK$500,10,FALSE) ->  | W17: =VLOOKUP($P17,Klasse_2!$X$11:$AK$500,2,FALSE) ->  | AA17: =IF(AB17=0,"",COUNTIF(AA$12:AA16,">0")+AA$9+1) ->  | AE17: 0 | AF17: ¢ | AG17: 0 | AJ17: =IF(AK17=0,"",COUNTIF(AJ$12:AJ16,">0")+AJ$9+1) ->  | AN17: 0 | AO17: ¢ | AP17: 0 | AU17: 17 | AV17: Kniat, Helmut | AX17: 83 | BJ17: 17 | BK17: Kniat, Helmut | BM17: 83
B18: B | G18: =" "&K18&" "&$D$3 -> 2. Mannschaft Freistehend | K18: 2. Mannschaft | L18: =VLOOKUP(G21,Klasse_M!$H$12:$O$200,6,FALSE) ->  | M18: =VLOOKUP(G21,Klasse_M!$H$12:$O$200,8,FALSE) ->  | N18: =VLOOKUP(G21,Klasse_M!$H$12:$O$200,2,FALSE) ->  | P18: =" "&T18&" "&$D$3 -> 2. Mannschaft Freistehend | T18: 2. Mannschaft | U18: =VLOOKUP(P21,Klasse_M!$AD$12:$AK$200,6,FALSE) ->  | V18: =VLOOKUP(P21,Klasse_M!$AD$12:$AK$200,8,FALSE) ->  | W18: =VLOOKUP(P21,Klasse_M!$AD$12:$AK$200,2,FALSE) ->  | AA18: =" "&AE18&" "&$D$3 -> 2. Mannschaft Freistehend | AE18: 2. Mannschaft | AF18: ¢ | AG18: 0 | AJ18: =" "&AN18&" "&$D$3 -> 2. Mannschaft Freistehend | AN18: 2. Mannschaft | AO18: ¢ | AP18: 0 | AU18: 63 | AV18: Löblein, Thomas | AX18: 49 | BJ18: 63 | BK18: Löblein, Thomas | BM18: 49
G19: =IF(H19=0,"",COUNTIF(G$12:G18,">0")+G$9+1) ->  | K19: =VLOOKUP($G19,Klasse_1!$X$11:$AK$500,11,FALSE) ->  | L19: =VLOOKUP($G19,Klasse_1!$X$11:$AK$500,8,FALSE) ->  | M19: =VLOOKUP($G19,Klasse_1!$X$11:$AK$500,10,FALSE) ->  | N19: =VLOOKUP($G19,Klasse_1!$X$11:$AK$500,2,FALSE) ->  | P19: =IF(Q19=0,"",COUNTIF(P$12:P18,">0")+P$9+1) ->  | T19: =VLOOKUP($P19,Klasse_2!$X$11:$AK$500,11,FALSE) ->  | U19: =VLOOKUP($P19,Klasse_2!$X$11:$AK$500,8,FALSE) ->  | V19: =VLOOKUP($P19,Klasse_2!$X$11:$AK$500,10,FALSE) ->  | W19: =VLOOKUP($P19,Klasse_2!$X$11:$AK$500,2,FALSE) ->  | AA19: =IF(AB19=0,"",COUNTIF(AA$12:AA18,">0")+AA$9+1) ->  | AE19: 0 | AF19: ¢ | AG19: 0 | AJ19: =IF(AK19=0,"",COUNTIF(AJ$12:AJ18,">0")+AJ$9+1) ->  | AN19: 0 | AO19: ¢ | AP19: 0 | AU19: 90 | BJ19: 90
B20: =VLOOKUP($B$18,Brief!$AG$45:$AO$68,3,FALSE) -> ABSV 1921 Oberhausen e.V. | G20: =IF(H20=0,"",COUNTIF(G$12:G19,">0")+G$9+1) ->  | K20: =VLOOKUP($G20,Klasse_1!$X$11:$AK$500,11,FALSE) ->  | L20: =VLOOKUP($G20,Klasse_1!$X$11:$AK$500,8,FALSE) ->  | M20: =VLOOKUP($G20,Klasse_1!$X$11:$AK$500,10,FALSE) ->  | N20: =VLOOKUP($G20,Klasse_1!$X$11:$AK$500,2,FALSE) ->  | P20: =IF(Q20=0,"",COUNTIF(P$12:P19,">0")+P$9+1) ->  | T20: =VLOOKUP($P20,Klasse_2!$X$11:$AK$500,11,FALSE) ->  | U20: =VLOOKUP($P20,Klasse_2!$X$11:$AK$500,8,FALSE) ->  | V20: =VLOOKUP($P20,Klasse_2!$X$11:$AK$500,10,FALSE) ->  | W20: =VLOOKUP($P20,Klasse_2!$X$11:$AK$500,2,FALSE) ->  | AA20: =IF(AB20=0,"",COUNTIF(AA$12:AA19,">0")+AA$9+1) ->  | AE20: 0 | AF20: ¢ | AG20: 0 | AJ20: =IF(AK20=0,"",COUNTIF(AJ$12:AJ19,">0")+AJ$9+1) ->  | AN20: 0 | AO20: ¢ | AP20: 0
B21: VereinsNr. | C21: =VLOOKUP($B$18,Brief!$AG$45:$AP$68,10,FALSE) -> 1105 | G21: =IF(H21=0,"",COUNTIF(G$12:G20,">0")+G$9+1) ->  | K21: =VLOOKUP($G21,Klasse_1!$X$11:$AK$500,11,FALSE) ->  | L21: =VLOOKUP($G21,Klasse_1!$X$11:$AK$500,8,FALSE) ->  | M21: =VLOOKUP($G21,Klasse_1!$X$11:$AK$500,10,FALSE) ->  | N21: =VLOOKUP($G21,Klasse_1!$X$11:$AK$500,2,FALSE) ->  | P21: =IF(Q21=0,"",COUNTIF(P$12:P20,">0")+P$9+1) ->  | T21: =VLOOKUP($P21,Klasse_2!$X$11:$AK$500,11,FALSE) ->  | U21: =VLOOKUP($P21,Klasse_2!$X$11:$AK$500,8,FALSE) ->  | V21: =VLOOKUP($P21,Klasse_2!$X$11:$AK$500,10,FALSE) ->  | W21: =VLOOKUP($P21,Klasse_2!$X$11:$AK$500,2,FALSE) ->  | AA21: =IF(AB21=0,"",COUNTIF(AA$12:AA20,">0")+AA$9+1) ->  | AE21: 0 | AF21: ¢ | AG21: 0 | AJ21: =IF(AK21=0,"",COUNTIF(AJ$12:AJ20,">0")+AJ$9+1) ->  | AN21: 0 | AO21: ¢ | AP21: 0
B22: Anspr. | C22: =VLOOKUP($B$18,Brief!$AG$45:$AO$68,4,FALSE) -> Granieczny, Ludwig | G22: =IF(H22=0,"",COUNTIF(G$12:G21,">0")+G$9+1) ->  | K22: =VLOOKUP($G22,Klasse_1!$X$11:$AK$500,11,FALSE) ->  | L22: =VLOOKUP($G22,Klasse_1!$X$11:$AK$500,8,FALSE) ->  | M22: =VLOOKUP($G22,Klasse_1!$X$11:$AK$500,10,FALSE) ->  | N22: =VLOOKUP($G22,Klasse_1!$X$11:$AK$500,2,FALSE) ->  | P22: =IF(Q22=0,"",COUNTIF(P$12:P21,">0")+P$9+1) ->  | T22: =VLOOKUP($P22,Klasse_2!$X$11:$AK$500,11,FALSE) ->  | U22: =VLOOKUP($P22,Klasse_2!$X$11:$AK$500,8,FALSE) ->  | V22: =VLOOKUP($P22,Klasse_2!$X$11:$AK$500,10,FALSE) ->  | W22: =VLOOKUP($P22,Klasse_2!$X$11:$AK$500,2,FALSE) ->  | AA22: =IF(AB22=0,"",COUNTIF(AA$12:AA21,">0")+AA$9+1) ->  | AE22: 0 | AF22: ¢ | AG22: 0 | AJ22: =IF(AK22=0,"",COUNTIF(AJ$12:AJ21,">0")+AJ$9+1) ->  | AN22: 0 | AO22: ¢ | AP22: 0
B23: Anschrift | C23: =VLOOKUP($B$18,Brief!$AG$45:$AO$68,5,FALSE) -> Sachsenstr. 8 | G23: =IF(H23=0,"",COUNTIF(G$12:G22,">0")+G$9+1) ->  | K23: =VLOOKUP($G23,Klasse_1!$X$11:$AK$500,11,FALSE) ->  | L23: =VLOOKUP($G23,Klasse_1!$X$11:$AK$500,8,FALSE) ->  | M23: =VLOOKUP($G23,Klasse_1!$X$11:$AK$500,10,FALSE) ->  | N23: =VLOOKUP($G23,Klasse_1!$X$11:$AK$500,2,FALSE) ->  | P23: =IF(Q23=0,"",COUNTIF(P$12:P22,">0")+P$9+1) ->  | T23: =VLOOKUP($P23,Klasse_2!$X$11:$AK$500,11,FALSE) ->  | U23: =VLOOKUP($P23,Klasse_2!$X$11:$AK$500,8,FALSE) ->  | V23: =VLOOKUP($P23,Klasse_2!$X$11:$AK$500,10,FALSE) ->  | W23: =VLOOKUP($P23,Klasse_2!$X$11:$AK$500,2,FALSE) ->  | AA23: =IF(AB23=0,"",COUNTIF(AA$12:AA22,">0")+AA$9+1) ->  | AE23: 0 | AF23: ¢ | AG23: 0 | AJ23: =IF(AK23=0,"",COUNTIF(AJ$12:AJ22,">0")+AJ$9+1) ->  | AN23: 0 | AO23: ¢ | AP23: 0
B24: PLZ / Ort | C24: =VLOOKUP($B$18,Brief!$AG$45:$AO$68,6,FALSE) -> 46149 Oberhausen | G24: =" "&K24&" "&$D$3 -> 3. Mannschaft Freistehend | K24: 3. Mannschaft | L24: =VLOOKUP(G27,Klasse_M!$H$12:$O$200,6,FALSE) ->  | M24: =VLOOKUP(G27,Klasse_M!$H$12:$O$200,8,FALSE) ->  | N24: =VLOOKUP(G27,Klasse_M!$H$12:$O$200,2,FALSE) ->  | P24: =" "&T24&" "&$D$3 -> 3. Mannschaft Freistehend | T24: 3. Mannschaft | U24: =VLOOKUP(P27,Klasse_M!$AD$12:$AK$200,6,FALSE) ->  | V24: =VLOOKUP(P27,Klasse_M!$AD$12:$AK$200,8,FALSE) ->  | W24: =VLOOKUP(P27,Klasse_M!$AD$12:$AK$200,2,FALSE) ->  | AA24: =" "&AE24&" "&$D$3 -> 3. Mannschaft Freistehend | AE24: 3. Mannschaft | AF24: ¢ | AG24: 0 | AJ24: =" "&AN24&" "&$D$3 -> 3. Mannschaft Freistehend | AN24: 3. Mannschaft | AO24: ¢ | AP24: 0
B25: Tel. | C25: =VLOOKUP($B$18,Brief!$AG$45:$AO$68,7,FALSE) ->  | G25: =IF(H25=0,"",COUNTIF(G$12:G24,">0")+G$9+1) ->  | K25: =VLOOKUP($G25,Klasse_1!$X$11:$AK$500,11,FALSE) ->  | L25: =VLOOKUP($G25,Klasse_1!$X$11:$AK$500,8,FALSE) ->  | M25: =VLOOKUP($G25,Klasse_1!$X$11:$AK$500,10,FALSE) ->  | N25: =VLOOKUP($G25,Klasse_1!$X$11:$AK$500,2,FALSE) ->  | P25: =IF(Q25=0,"",COUNTIF(P$12:P24,">0")+P$9+1) ->  | T25: =VLOOKUP($P25,Klasse_2!$X$11:$AK$500,11,FALSE) ->  | U25: =VLOOKUP($P25,Klasse_2!$X$11:$AK$500,8,FALSE) ->  | V25: =VLOOKUP($P25,Klasse_2!$X$11:$AK$500,10,FALSE) ->  | W25: =VLOOKUP($P25,Klasse_2!$X$11:$AK$500,2,FALSE) ->  | AA25: =IF(AB25=0,"",COUNTIF(AA$12:AA24,">0")+AA$9+1) ->  | AE25: 0 | AF25: ¢ | AG25: 0 | AJ25: =IF(AK25=0,"",COUNTIF(AJ$12:AJ24,">0")+AJ$9+1) ->  | AN25: 0 | AO25: ¢ | AP25: 0
B26: Sportleit. | C26: =VLOOKUP($B$18,Brief!$AG$45:$AO$68,8,FALSE) ->  | G26: =IF(H26=0,"",COUNTIF(G$12:G25,">0")+G$9+1) ->  | K26: =VLOOKUP($G26,Klasse_1!$X$11:$AK$500,11,FALSE) ->  | L26: =VLOOKUP($G26,Klasse_1!$X$11:$AK$500,8,FALSE) ->  | M26: =VLOOKUP($G26,Klasse_1!$X$11:$AK$500,10,FALSE) ->  | N26: =VLOOKUP($G26,Klasse_1!$X$11:$AK$500,2,FALSE) ->  | P26: =IF(Q26=0,"",COUNTIF(P$12:P25,">0")+P$9+1) ->  | T26: =VLOOKUP($P26,Klasse_2!$X$11:$AK$500,11,FALSE) ->  | U26: =VLOOKUP($P26,Klasse_2!$X$11:$AK$500,8,FALSE) ->  | V26: =VLOOKUP($P26,Klasse_2!$X$11:$AK$500,10,FALSE) ->  | W26: =VLOOKUP($P26,Klasse_2!$X$11:$AK$500,2,FALSE) ->  | AA26: =IF(AB26=0,"",COUNTIF(AA$12:AA25,">0")+AA$9+1) ->  | AE26: 0 | AF26: ¢ | AG26: 0 | AJ26: =IF(AK26=0,"",COUNTIF(AJ$12:AJ25,">0")+AJ$9+1) ->  | AN26: 0 | AO26: ¢ | AP26: 0
B27: Tel. | C27: =VLOOKUP($B$18,Brief!$AG$45:$AO$68,9,FALSE) ->  | G27: =IF(H27=0,"",COUNTIF(G$12:G26,">0")+G$9+1) ->  | K27: =VLOOKUP($G27,Klasse_1!$X$11:$AK$500,11,FALSE) ->  | L27: =VLOOKUP($G27,Klasse_1!$X$11:$AK$500,8,FALSE) ->  | M27: =VLOOKUP($G27,Klasse_1!$X$11:$AK$500,10,FALSE) ->  | N27: =VLOOKUP($G27,Klasse_1!$X$11:$AK$500,2,FALSE) ->  | P27: =IF(Q27=0,"",COUNTIF(P$12:P26,">0")+P$9+1) ->  | T27: =VLOOKUP($P27,Klasse_2!$X$11:$AK$500,11,FALSE) ->  | U27: =VLOOKUP($P27,Klasse_2!$X$11:$AK$500,8,FALSE) ->  | V27: =VLOOKUP($P27,Klasse_2!$X$11:$AK$500,10,FALSE) ->  | W27: =VLOOKUP($P27,Klasse_2!$X$11:$AK$500,2,FALSE) ->  | AA27: =IF(AB27=0,"",COUNTIF(AA$12:AA26,">0")+AA$9+1) ->  | AE27: 0 | AF27: ¢ | AG27: 0 | AJ27: =IF(AK27=0,"",COUNTIF(AJ$12:AJ26,">0")+AJ$9+1) ->  | AN27: 0 | AO27: ¢ | AP27: 0
G28: =IF(H28=0,"",COUNTIF(G$12:G27,">0")+G$9+1) ->  | K28: =VLOOKUP($G28,Klasse_1!$X$11:$AK$500,11,FALSE) ->  | L28: =VLOOKUP($G28,Klasse_1!$X$11:$AK$500,8,FALSE) ->  | M28: =VLOOKUP($G28,Klasse_1!$X$11:$AK$500,10,FALSE) ->  | N28: =VLOOKUP($G28,Klasse_1!$X$11:$AK$500,2,FALSE) ->  | P28: =IF(Q28=0,"",COUNTIF(P$12:P27,">0")+P$9+1) ->  | T28: =VLOOKUP($P28,Klasse_2!$X$11:$AK$500,11,FALSE) ->  | U28: =VLOOKUP($P28,Klasse_2!$X$11:$AK$500,8,FALSE) ->  | V28: =VLOOKUP($P28,Klasse_2!$X$11:$AK$500,10,FALSE) ->  | W28: =VLOOKUP($P28,Klasse_2!$X$11:$AK$500,2,FALSE) ->  | AA28: =IF(AB28=0,"",COUNTIF(AA$12:AA27,">0")+AA$9+1) ->  | AE28: 0 | AF28: ¢ | AG28: 0 | AJ28: =IF(AK28=0,"",COUNTIF(AJ$12:AJ27,">0")+AJ$9+1) ->  | AN28: 0 | AO28: ¢ | AP28: 0
G29: =IF(H29=0,"",COUNTIF(G$12:G28,">0")+G$9+1) ->  | K29: =VLOOKUP($G29,Klasse_1!$X$11:$AK$500,11,FALSE) ->  | L29: =VLOOKUP($G29,Klasse_1!$X$11:$AK$500,8,FALSE) ->  | M29: =VLOOKUP($G29,Klasse_1!$X$11:$AK$500,10,FALSE) ->  | N29: =VLOOKUP($G29,Klasse_1!$X$11:$AK$500,2,FALSE) ->  | P29: =IF(Q29=0,"",COUNTIF(P$12:P28,">0")+P$9+1) ->  | T29: =VLOOKUP($P29,Klasse_2!$X$11:$AK$500,11,FALSE) ->  | U29: =VLOOKUP($P29,Klasse_2!$X$11:$AK$500,8,FALSE) ->  | V29: =VLOOKUP($P29,Klasse_2!$X$11:$AK$500,10,FALSE) ->  | W29: =VLOOKUP($P29,Klasse_2!$X$11:$AK$500,2,FALSE) ->  | AA29: =IF(AB29=0,"",COUNTIF(AA$12:AA28,">0")+AA$9+1) ->  | AE29: 0 | AF29: ¢ | AG29: 0 | AJ29: =IF(AK29=0,"",COUNTIF(AJ$12:AJ28,">0")+AJ$9+1) ->  | AN29: 0 | AO29: ¢ | AP29: 0
G30: =" "&K30&" "&$D$3 -> 4. Mannschaft Freistehend | K30: 4. Mannschaft | L30: =VLOOKUP(G33,Klasse_M!$H$12:$O$200,6,FALSE) ->  | M30: =VLOOKUP(G33,Klasse_M!$H$12:$O$200,8,FALSE) ->  | N30: =VLOOKUP(G33,Klasse_M!$H$12:$O$200,2,FALSE) ->  | P30: =" "&T30&" "&$D$3 -> 4. Mannschaft Freistehend | T30: 4. Mannschaft | U30: =VLOOKUP(P33,Klasse_M!$AD$12:$AK$200,6,FALSE) ->  | V30: =VLOOKUP(P33,Klasse_M!$AD$12:$AK$200,8,FALSE) ->  | W30: =VLOOKUP(P33,Klasse_M!$AD$12:$AK$200,2,FALSE) ->  | AA30: =" "&AE30&" "&$D$3 -> 4. Mannschaft Freistehend | AE30: 4. Mannschaft | AF30: ¢ | AG30: 0 | AJ30: =" "&AN30&" "&$D$3 -> 4. Mannschaft Freistehend | AN30: 4. Mannschaft | AO30: ¢ | AP30: 0
G31: =IF(H31=0,"",COUNTIF(G$12:G30,">0")+G$9+1) ->  | K31: =VLOOKUP($G31,Klasse_1!$X$11:$AK$500,11,FALSE) ->  | L31: =VLOOKUP($G31,Klasse_1!$X$11:$AK$500,8,FALSE) ->  | M31: =VLOOKUP($G31,Klasse_1!$X$11:$AK$500,10,FALSE) ->  | N31: =VLOOKUP($G31,Klasse_1!$X$11:$AK$500,2,FALSE) ->  | P31: =IF(Q31=0,"",COUNTIF(P$12:P30,">0")+P$9+1) ->  | T31: =VLOOKUP($P31,Klasse_2!$X$11:$AK$500,11,FALSE) ->  | U31: =VLOOKUP($P31,Klasse_2!$X$11:$AK$500,8,FALSE) ->  | V31: =VLOOKUP($P31,Klasse_2!$X$11:$AK$500,10,FALSE) ->  | W31: =VLOOKUP($P31,Klasse_2!$X$11:$AK$500,2,FALSE) ->  | AA31: =IF(AB31=0,"",COUNTIF(AA$12:AA30,">0")+AA$9+1) ->  | AE31: 0 | AF31: ¢ | AG31: 0 | AJ31: =IF(AK31=0,"",COUNTIF(AJ$12:AJ30,">0")+AJ$9+1) ->  | AN31: 0 | AO31: ¢ | AP31: 0
G32: =IF(H32=0,"",COUNTIF(G$12:G31,">0")+G$9+1) ->  | K32: =VLOOKUP($G32,Klasse_1!$X$11:$AK$500,11,FALSE) ->  | L32: =VLOOKUP($G32,Klasse_1!$X$11:$AK$500,8,FALSE) ->  | M32: =VLOOKUP($G32,Klasse_1!$X$11:$AK$500,10,FALSE) ->  | N32: =VLOOKUP($G32,Klasse_1!$X$11:$AK$500,2,FALSE) ->  | P32: =IF(Q32=0,"",COUNTIF(P$12:P31,">0")+P$9+1) ->  | T32: =VLOOKUP($P32,Klasse_2!$X$11:$AK$500,11,FALSE) ->  | U32: =VLOOKUP($P32,Klasse_2!$X$11:$AK$500,8,FALSE) ->  | V32: =VLOOKUP($P32,Klasse_2!$X$11:$AK$500,10,FALSE) ->  | W32: =VLOOKUP($P32,Klasse_2!$X$11:$AK$500,2,FALSE) ->  | AA32: =IF(AB32=0,"",COUNTIF(AA$12:AA31,">0")+AA$9+1) ->  | AE32: 0 | AF32: ¢ | AG32: 0 | AJ32: =IF(AK32=0,"",COUNTIF(AJ$12:AJ31,">0")+AJ$9+1) ->  | AN32: 0 | AO32: ¢ | AP32: 0
G33: =IF(H33=0,"",COUNTIF(G$12:G32,">0")+G$9+1) ->  | K33: =VLOOKUP($G33,Klasse_1!$X$11:$AK$500,11,FALSE) ->  | L33: =VLOOKUP($G33,Klasse_1!$X$11:$AK$500,8,FALSE) ->  | M33: =VLOOKUP($G33,Klasse_1!$X$11:$AK$500,10,FALSE) ->  | N33: =VLOOKUP($G33,Klasse_1!$X$11:$AK$500,2,FALSE) ->  | P33: =IF(Q33=0,"",COUNTIF(P$12:P32,">0")+P$9+1) ->  | T33: =VLOOKUP($P33,Klasse_2!$X$11:$AK$500,11,FALSE) ->  | U33: =VLOOKUP($P33,Klasse_2!$X$11:$AK$500,8,FALSE) ->  | V33: =VLOOKUP($P33,Klasse_2!$X$11:$AK$500,10,FALSE) ->  | W33: =VLOOKUP($P33,Klasse_2!$X$11:$AK$500,2,FALSE) ->  | AA33: =IF(AB33=0,"",COUNTIF(AA$12:AA32,">0")+AA$9+1) ->  | AE33: 0 | AF33: ¢ | AG33: 0 | AJ33: =IF(AK33=0,"",COUNTIF(AJ$12:AJ32,">0")+AJ$9+1) ->  | AN33: 0 | AO33: ¢ | AP33: 0
G34: =IF(H34=0,"",COUNTIF(G$12:G33,">0")+G$9+1) ->  | K34: =VLOOKUP($G34,Klasse_1!$X$11:$AK$500,11,FALSE) ->  | L34: =VLOOKUP($G34,Klasse_1!$X$11:$AK$500,8,FALSE) ->  | M34: =VLOOKUP($G34,Klasse_1!$X$11:$AK$500,10,FALSE) ->  | N34: =VLOOKUP($G34,Klasse_1!$X$11:$AK$500,2,FALSE) ->  | P34: =IF(Q34=0,"",COUNTIF(P$12:P33,">0")+P$9+1) ->  | T34: =VLOOKUP($P34,Klasse_2!$X$11:$AK$500,11,FALSE) ->  | U34: =VLOOKUP($P34,Klasse_2!$X$11:$AK$500,8,FALSE) ->  | V34: =VLOOKUP($P34,Klasse_2!$X$11:$AK$500,10,FALSE) ->  | W34: =VLOOKUP($P34,Klasse_2!$X$11:$AK$500,2,FALSE) ->  | AA34: =IF(AB34=0,"",COUNTIF(AA$12:AA33,">0")+AA$9+1) ->  | AE34: 0 | AF34: ¢ | AG34: 0 | AJ34: =IF(AK34=0,"",COUNTIF(AJ$12:AJ33,">0")+AJ$9+1) ->  | AN34: 0 | AO34: ¢ | AP34: 0
G35: =IF(H35=0,"",COUNTIF(G$12:G34,">0")+G$9+1) ->  | K35: =VLOOKUP($G35,Klasse_1!$X$11:$AK$500,11,FALSE) ->  | L35: =VLOOKUP($G35,Klasse_1!$X$11:$AK$500,8,FALSE) ->  | M35: =VLOOKUP($G35,Klasse_1!$X$11:$AK$500,10,FALSE) ->  | N35: =VLOOKUP($G35,Klasse_1!$X$11:$AK$500,2,FALSE) ->  | P35: =IF(Q35=0,"",COUNTIF(P$12:P34,">0")+P$9+1) ->  | T35: =VLOOKUP($P35,Klasse_2!$X$11:$AK$500,11,FALSE) ->  | U35: =VLOOKUP($P35,Klasse_2!$X$11:$AK$500,8,FALSE) ->  | V35: =VLOOKUP($P35,Klasse_2!$X$11:$AK$500,10,FALSE) ->  | W35: =VLOOKUP($P35,Klasse_2!$X$11:$AK$500,2,FALSE) ->  | AA35: =IF(AB35=0,"",COUNTIF(AA$12:AA34,">0")+AA$9+1) ->  | AE35: 0 | AF35: ¢ | AG35: 0 | AJ35: =IF(AK35=0,"",COUNTIF(AJ$12:AJ34,">0")+AJ$9+1) ->  | AN35: 0 | AO35: ¢ | AP35: 0
B42: EINGABE | G42: =" "&K42&" "&$D$4 -> 1. Mannschaft Aufgelegt | K42: 1. Mannschaft | L42: =VLOOKUP(G45,Klasse_M!$S$12:$Z$200,6,FALSE) ->  | M42: =VLOOKUP(G45,Klasse_M!$S$12:$Z$200,8,FALSE) ->  | N42: =VLOOKUP(G45,Klasse_M!$S$12:$Z$200,2,FALSE) ->  | P42: =" "&T42&" "&$D$4 -> 1. Mannschaft Aufgelegt | T42: 1. Mannschaft | U42: =VLOOKUP(P45,Klasse_M!$AO$12:$AV$200,6,FALSE) ->  | V42: =VLOOKUP(P45,Klasse_M!$AO$12:$AV$200,8,FALSE) ->  | W42: =VLOOKUP(P45,Klasse_M!$AO$12:$AV$200,2,FALSE) ->  | AA42: =" "&AE42&" "&$D$4 -> 1. Mannschaft Aufgelegt | AE42: 1. Mannschaft | AF42: ¢ | AG42: 0 | AJ42: =" "&AN42&" "&$D$4 -> 1. Mannschaft Aufgelegt | AN42: 1. Mannschaft | AO42: ¢ | AP42: 0
G43: =IF(H43=0,"",COUNTIF(G$12:G42,">0")+G$9+1) ->  | K43: =VLOOKUP($G43,Klasse_1!$AT$11:$BG$500,11,FALSE) ->  | L43: =VLOOKUP($G43,Klasse_1!$AT$11:$BG$500,8,FALSE) ->  | M43: =VLOOKUP($G43,Klasse_1!$AT$11:$BG$500,10,FALSE) ->  | N43: =VLOOKUP($G43,Klasse_1!$AT$11:$BG$500,2,FALSE) ->  | P43: =IF(Q43=0,"",COUNTIF(P$12:P42,">0")+P$9+1) ->  | T43: =VLOOKUP($P43,Klasse_2!$AT$11:$BG$500,11,FALSE) ->  | U43: =VLOOKUP($P43,Klasse_2!$AT$11:$BG$500,8,FALSE) ->  | V43: =VLOOKUP($P43,Klasse_2!$AT$11:$BG$500,10,FALSE) ->  | W43: =VLOOKUP($P43,Klasse_2!$AT$11:$BG$500,2,FALSE) ->  | AA43: =IF(AB43=0,"",COUNTIF(AA$12:AA42,">0")+AA$9+1) ->  | AE43: 0 | AF43: ¢ | AG43: 0 | AJ43: =IF(AK43=0,"",COUNTIF(AJ$12:AJ42,">0")+AJ$9+1) ->  | AN43: 0 | AO43: ¢ | AP43: 0
B44: =$D$1 -> Schützen | C44: =$D$2 -> Damen | G44: =IF(H44=0,"",COUNTIF(G$12:G43,">0")+G$9+1) ->  | K44: =VLOOKUP($G44,Klasse_1!$AT$11:$BG$500,11,FALSE) ->  | L44: =VLOOKUP($G44,Klasse_1!$AT$11:$BG$500,8,FALSE) ->  | M44: =VLOOKUP($G44,Klasse_1!$AT$11:$BG$500,10,FALSE) ->  | N44: =VLOOKUP($G44,Klasse_1!$AT$11:$BG$500,2,FALSE) ->  | P44: =IF(Q44=0,"",COUNTIF(P$12:P43,">0")+P$9+1) ->  | T44: =VLOOKUP($P44,Klasse_2!$AT$11:$BG$500,11,FALSE) ->  | U44: =VLOOKUP($P44,Klasse_2!$AT$11:$BG$500,8,FALSE) ->  | V44: =VLOOKUP($P44,Klasse_2!$AT$11:$BG$500,10,FALSE) ->  | W44: =VLOOKUP($P44,Klasse_2!$AT$11:$BG$500,2,FALSE) ->  | AA44: =IF(AB44=0,"",COUNTIF(AA$12:AA43,">0")+AA$9+1) ->  | AE44: 0 | AF44: ¢ | AG44: 0 | AJ44: =IF(AK44=0,"",COUNTIF(AJ$12:AJ43,">0")+AJ$9+1) ->  | AN44: 0 | AO44: ¢ | AP44: 0
B45: =$D$5 ->  | C45: =$D$8 ->  | G45: =IF(H45=0,"",COUNTIF(G$12:G44,">0")+G$9+1) ->  | K45: =VLOOKUP($G45,Klasse_1!$AT$11:$BG$500,11,FALSE) ->  | L45: =VLOOKUP($G45,Klasse_1!$AT$11:$BG$500,8,FALSE) ->  | M45: =VLOOKUP($G45,Klasse_1!$AT$11:$BG$500,10,FALSE) ->  | N45: =VLOOKUP($G45,Klasse_1!$AT$11:$BG$500,2,FALSE) ->  | P45: =IF(Q45=0,"",COUNTIF(P$12:P44,">0")+P$9+1) ->  | T45: =VLOOKUP($P45,Klasse_2!$AT$11:$BG$500,11,FALSE) ->  | U45: =VLOOKUP($P45,Klasse_2!$AT$11:$BG$500,8,FALSE) ->  | V45: =VLOOKUP($P45,Klasse_2!$AT$11:$BG$500,10,FALSE) ->  | W45: =VLOOKUP($P45,Klasse_2!$AT$11:$BG$500,2,FALSE) ->  | AA45: =IF(AB45=0,"",COUNTIF(AA$12:AA44,">0")+AA$9+1) ->  | AE45: 0 | AF45: ¢ | AG45: 0 | AJ45: =IF(AK45=0,"",COUNTIF(AJ$12:AJ44,">0")+AJ$9+1) ->  | AN45: 0 | AO45: ¢ | AP45: 0
G46: =IF(H46=0,"",COUNTIF(G$12:G45,">0")+G$9+1) ->  | K46: =VLOOKUP($G46,Klasse_1!$AT$11:$BG$500,11,FALSE) ->  | L46: =VLOOKUP($G46,Klasse_1!$AT$11:$BG$500,8,FALSE) ->  | M46: =VLOOKUP($G46,Klasse_1!$AT$11:$BG$500,10,FALSE) ->  | N46: =VLOOKUP($G46,Klasse_1!$AT$11:$BG$500,2,FALSE) ->  | P46: =IF(Q46=0,"",COUNTIF(P$12:P45,">0")+P$9+1) ->  | T46: =VLOOKUP($P46,Klasse_2!$AT$11:$BG$500,11,FALSE) ->  | U46: =VLOOKUP($P46,Klasse_2!$AT$11:$BG$500,8,FALSE) ->  | V46: =VLOOKUP($P46,Klasse_2!$AT$11:$BG$500,10,FALSE) ->  | W46: =VLOOKUP($P46,Klasse_2!$AT$11:$BG$500,2,FALSE) ->  | AA46: =IF(AB46=0,"",COUNTIF(AA$12:AA45,">0")+AA$9+1) ->  | AE46: 0 | AF46: ¢ | AG46: 0 | AJ46: =IF(AK46=0,"",COUNTIF(AJ$12:AJ45,">0")+AJ$9+1) ->  | AN46: 0 | AO46: ¢ | AP46: 0
G47: =IF(H47=0,"",COUNTIF(G$12:G46,">0")+G$9+1) ->  | K47: =VLOOKUP($G47,Klasse_1!$AT$11:$BG$500,11,FALSE) ->  | L47: =VLOOKUP($G47,Klasse_1!$AT$11:$BG$500,8,FALSE) ->  | M47: =VLOOKUP($G47,Klasse_1!$AT$11:$BG$500,10,FALSE) ->  | N47: =VLOOKUP($G47,Klasse_1!$AT$11:$BG$500,2,FALSE) ->  | P47: =IF(Q47=0,"",COUNTIF(P$12:P46,">0")+P$9+1) ->  | T47: =VLOOKUP($P47,Klasse_2!$AT$11:$BG$500,11,FALSE) ->  | U47: =VLOOKUP($P47,Klasse_2!$AT$11:$BG$500,8,FALSE) ->  | V47: =VLOOKUP($P47,Klasse_2!$AT$11:$BG$500,10,FALSE) ->  | W47: =VLOOKUP($P47,Klasse_2!$AT$11:$BG$500,2,FALSE) ->  | AA47: =IF(AB47=0,"",COUNTIF(AA$12:AA46,">0")+AA$9+1) ->  | AE47: 0 | AF47: ¢ | AG47: 0 | AJ47: =IF(AK47=0,"",COUNTIF(AJ$12:AJ46,">0")+AJ$9+1) ->  | AN47: 0 | AO47: ¢ | AP47: 0
B48: =B18 -> B | G48: =" "&K48&" "&$D$4 -> 2. Mannschaft Aufgelegt | K48: 2. Mannschaft | L48: =VLOOKUP(G51,Klasse_M!$S$12:$Z$200,6,FALSE) ->  | M48: =VLOOKUP(G51,Klasse_M!$S$12:$Z$200,8,FALSE) ->  | N48: =VLOOKUP(G51,Klasse_M!$S$12:$Z$200,2,FALSE) ->  | P48: =" "&T48&" "&$D$4 -> 2. Mannschaft Aufgelegt | T48: 2. Mannschaft | U48: =VLOOKUP(P51,Klasse_M!$AO$12:$AV$200,6,FALSE) ->  | V48: =VLOOKUP(P51,Klasse_M!$AO$12:$AV$200,8,FALSE) ->  | W48: =VLOOKUP(P51,Klasse_M!$AO$12:$AV$200,2,FALSE) ->  | AA48: =" "&AE48&" "&$D$4 -> 2. Mannschaft Aufgelegt | AE48: 2. Mannschaft | AF48: ¢ | AG48: 0 | AJ48: =" "&AN48&" "&$D$4 -> 2. Mannschaft Aufgelegt | AN48: 2. Mannschaft | AO48: ¢ | AP48: 0
G49: =IF(H49=0,"",COUNTIF(G$12:G48,">0")+G$9+1) ->  | K49: =VLOOKUP($G49,Klasse_1!$AT$11:$BG$500,11,FALSE) ->  | L49: =VLOOKUP($G49,Klasse_1!$AT$11:$BG$500,8,FALSE) ->  | M49: =VLOOKUP($G49,Klasse_1!$AT$11:$BG$500,10,FALSE) ->  | N49: =VLOOKUP($G49,Klasse_1!$AT$11:$BG$500,2,FALSE) ->  | P49: =IF(Q49=0,"",COUNTIF(P$12:P48,">0")+P$9+1) ->  | T49: =VLOOKUP($P49,Klasse_2!$AT$11:$BG$500,11,FALSE) ->  | U49: =VLOOKUP($P49,Klasse_2!$AT$11:$BG$500,8,FALSE) ->  | V49: =VLOOKUP($P49,Klasse_2!$AT$11:$BG$500,10,FALSE) ->  | W49: =VLOOKUP($P49,Klasse_2!$AT$11:$BG$500,2,FALSE) ->  | AA49: =IF(AB49=0,"",COUNTIF(AA$12:AA48,">0")+AA$9+1) ->  | AE49: 0 | AF49: ¢ | AG49: 0 | AJ49: =IF(AK49=0,"",COUNTIF(AJ$12:AJ48,">0")+AJ$9+1) ->  | AN49: 0 | AO49: ¢ | AP49: 0
B50: =VLOOKUP($B$18,Brief!$AG$45:$AO$68,3,FALSE) -> ABSV 1921 Oberhausen e.V. | G50: =IF(H50=0,"",COUNTIF(G$12:G49,">0")+G$9+1) ->  | K50: =VLOOKUP($G50,Klasse_1!$AT$11:$BG$500,11,FALSE) ->  | L50: =VLOOKUP($G50,Klasse_1!$AT$11:$BG$500,8,FALSE) ->  | M50: =VLOOKUP($G50,Klasse_1!$AT$11:$BG$500,10,FALSE) ->  | N50: =VLOOKUP($G50,Klasse_1!$AT$11:$BG$500,2,FALSE) ->  | P50: =IF(Q50=0,"",COUNTIF(P$12:P49,">0")+P$9+1) ->  | T50: =VLOOKUP($P50,Klasse_2!$AT$11:$BG$500,11,FALSE) ->  | U50: =VLOOKUP($P50,Klasse_2!$AT$11:$BG$500,8,FALSE) ->  | V50: =VLOOKUP($P50,Klasse_2!$AT$11:$BG$500,10,FALSE) ->  | W50: =VLOOKUP($P50,Klasse_2!$AT$11:$BG$500,2,FALSE) ->  | AA50: =IF(AB50=0,"",COUNTIF(AA$12:AA49,">0")+AA$9+1) ->  | AE50: 0 | AF50: ¢ | AG50: 0 | AJ50: =IF(AK50=0,"",COUNTIF(AJ$12:AJ49,">0")+AJ$9+1) ->  | AN50: 0 | AO50: ¢ | AP50: 0
B51: VereinsNr. | C51: =VLOOKUP($B$18,Brief!$AG$45:$AP$68,10,FALSE) -> 1105 | G51: =IF(H51=0,"",COUNTIF(G$12:G50,">0")+G$9+1) ->  | K51: =VLOOKUP($G51,Klasse_1!$AT$11:$BG$500,11,FALSE) ->  | L51: =VLOOKUP($G51,Klasse_1!$AT$11:$BG$500,8,FALSE) ->  | M51: =VLOOKUP($G51,Klasse_1!$AT$11:$BG$500,10,FALSE) ->  | N51: =VLOOKUP($G51,Klasse_1!$AT$11:$BG$500,2,FALSE) ->  | P51: =IF(Q51=0,"",COUNTIF(P$12:P50,">0")+P$9+1) ->  | T51: =VLOOKUP($P51,Klasse_2!$AT$11:$BG$500,11,FALSE) ->  | U51: =VLOOKUP($P51,Klasse_2!$AT$11:$BG$500,8,FALSE) ->  | V51: =VLOOKUP($P51,Klasse_2!$AT$11:$BG$500,10,FALSE) ->  | W51: =VLOOKUP($P51,Klasse_2!$AT$11:$BG$500,2,FALSE) ->  | AA51: =IF(AB51=0,"",COUNTIF(AA$12:AA50,">0")+AA$9+1) ->  | AE51: 0 | AF51: ¢ | AG51: 0 | AJ51: =IF(AK51=0,"",COUNTIF(AJ$12:AJ50,">0")+AJ$9+1) ->  | AN51: 0 | AO51: ¢ | AP51: 0
B52: Anspr. | C52: =VLOOKUP($B$18,Brief!$AG$45:$AO$68,4,FALSE) -> Granieczny, Ludwig | G52: =IF(H52=0,"",COUNTIF(G$12:G51,">0")+G$9+1) ->  | K52: =VLOOKUP($G52,Klasse_1!$AT$11:$BG$500,11,FALSE) ->  | L52: =VLOOKUP($G52,Klasse_1!$AT$11:$BG$500,8,FALSE) ->  | M52: =VLOOKUP($G52,Klasse_1!$AT$11:$BG$500,10,FALSE) ->  | N52: =VLOOKUP($G52,Klasse_1!$AT$11:$BG$500,2,FALSE) ->  | P52: =IF(Q52=0,"",COUNTIF(P$12:P51,">0")+P$9+1) ->  | T52: =VLOOKUP($P52,Klasse_2!$AT$11:$BG$500,11,FALSE) ->  | U52: =VLOOKUP($P52,Klasse_2!$AT$11:$BG$500,8,FALSE) ->  | V52: =VLOOKUP($P52,Klasse_2!$AT$11:$BG$500,10,FALSE) ->  | W52: =VLOOKUP($P52,Klasse_2!$AT$11:$BG$500,2,FALSE) ->  | AA52: =IF(AB52=0,"",COUNTIF(AA$12:AA51,">0")+AA$9+1) ->  | AE52: 0 | AF52: ¢ | AG52: 0 | AJ52: =IF(AK52=0,"",COUNTIF(AJ$12:AJ51,">0")+AJ$9+1) ->  | AN52: 0 | AO52: ¢ | AP52: 0
B53: Anschrift | C53: =VLOOKUP($B$18,Brief!$AG$45:$AO$68,5,FALSE) -> Sachsenstr. 8 | G53: =IF(H53=0,"",COUNTIF(G$12:G52,">0")+G$9+1) ->  | K53: =VLOOKUP($G53,Klasse_1!$AT$11:$BG$500,11,FALSE) ->  | L53: =VLOOKUP($G53,Klasse_1!$AT$11:$BG$500,8,FALSE) ->  | M53: =VLOOKUP($G53,Klasse_1!$AT$11:$BG$500,10,FALSE) ->  | N53: =VLOOKUP($G53,Klasse_1!$AT$11:$BG$500,2,FALSE) ->  | P53: =IF(Q53=0,"",COUNTIF(P$12:P52,">0")+P$9+1) ->  | T53: =VLOOKUP($P53,Klasse_2!$AT$11:$BG$500,11,FALSE) ->  | U53: =VLOOKUP($P53,Klasse_2!$AT$11:$BG$500,8,FALSE) ->  | V53: =VLOOKUP($P53,Klasse_2!$AT$11:$BG$500,10,FALSE) ->  | W53: =VLOOKUP($P53,Klasse_2!$AT$11:$BG$500,2,FALSE) ->  | AA53: =IF(AB53=0,"",COUNTIF(AA$12:AA52,">0")+AA$9+1) ->  | AE53: 0 | AF53: ¢ | AG53: 0 | AJ53: =IF(AK53=0,"",COUNTIF(AJ$12:AJ52,">0")+AJ$9+1) ->  | AN53: 0 | AO53: ¢ | AP53: 0
B54: PLZ / Ort | C54: =VLOOKUP($B$18,Brief!$AG$45:$AO$68,6,FALSE) -> 46149 Oberhausen | G54: =" "&K54&" "&$D$4 -> 3. Mannschaft Aufgelegt | K54: 3. Mannschaft | L54: =VLOOKUP(G57,Klasse_M!$S$12:$Z$200,6,FALSE) ->  | M54: =VLOOKUP(G57,Klasse_M!$S$12:$Z$200,8,FALSE) ->  | N54: =VLOOKUP(G57,Klasse_M!$S$12:$Z$200,2,FALSE) ->  | P54: =" "&T54&" "&$D$4 -> 3. Mannschaft Aufgelegt | T54: 3. Mannschaft | U54: =VLOOKUP(P57,Klasse_M!$AO$12:$AV$200,6,FALSE) ->  | V54: =VLOOKUP(P57,Klasse_M!$AO$12:$AV$200,8,FALSE) ->  | W54: =VLOOKUP(P57,Klasse_M!$AO$12:$AV$200,2,FALSE) ->  | AA54: =" "&AE54&" "&$D$4 -> 3. Mannschaft Aufgelegt | AE54: 3. Mannschaft | AF54: ¢ | AG54: 0 | AJ54: =" "&AN54&" "&$D$4 -> 3. Mannschaft Aufgelegt | AN54: 3. Mannschaft | AO54: ¢ | AP54: 0
B55: Tel. | C55: =VLOOKUP($B$18,Brief!$AG$45:$AO$68,7,FALSE) ->  | G55: =IF(H55=0,"",COUNTIF(G$12:G54,">0")+G$9+1) ->  | K55: =VLOOKUP($G55,Klasse_1!$AT$11:$BG$500,11,FALSE) ->  | L55: =VLOOKUP($G55,Klasse_1!$AT$11:$BG$500,8,FALSE) ->  | M55: =VLOOKUP($G55,Klasse_1!$AT$11:$BG$500,10,FALSE) ->  | N55: =VLOOKUP($G55,Klasse_1!$AT$11:$BG$500,2,FALSE) ->  | P55: =IF(Q55=0,"",COUNTIF(P$12:P54,">0")+P$9+1) ->  | T55: =VLOOKUP($P55,Klasse_2!$AT$11:$BG$500,11,FALSE) ->  | U55: =VLOOKUP($P55,Klasse_2!$AT$11:$BG$500,8,FALSE) ->  | V55: =VLOOKUP($P55,Klasse_2!$AT$11:$BG$500,10,FALSE) ->  | W55: =VLOOKUP($P55,Klasse_2!$AT$11:$BG$500,2,FALSE) ->  | AA55: =IF(AB55=0,"",COUNTIF(AA$12:AA54,">0")+AA$9+1) ->  | AE55: 0 | AF55: ¢ | AG55: 0 | AJ55: =IF(AK55=0,"",COUNTIF(AJ$12:AJ54,">0")+AJ$9+1) ->  | AN55: 0 | AO55: ¢ | AP55: 0
B56: Sportleit. | C56: =VLOOKUP($B$18,Brief!$AG$45:$AO$68,8,FALSE) ->  | G56: =IF(H56=0,"",COUNTIF(G$12:G55,">0")+G$9+1) ->  | K56: =VLOOKUP($G56,Klasse_1!$AT$11:$BG$500,11,FALSE) ->  | L56: =VLOOKUP($G56,Klasse_1!$AT$11:$BG$500,8,FALSE) ->  | M56: =VLOOKUP($G56,Klasse_1!$AT$11:$BG$500,10,FALSE) ->  | N56: =VLOOKUP($G56,Klasse_1!$AT$11:$BG$500,2,FALSE) ->  | P56: =IF(Q56=0,"",COUNTIF(P$12:P55,">0")+P$9+1) ->  | T56: =VLOOKUP($P56,Klasse_2!$AT$11:$BG$500,11,FALSE) ->  | U56: =VLOOKUP($P56,Klasse_2!$AT$11:$BG$500,8,FALSE) ->  | V56: =VLOOKUP($P56,Klasse_2!$AT$11:$BG$500,10,FALSE) ->  | W56: =VLOOKUP($P56,Klasse_2!$AT$11:$BG$500,2,FALSE) ->  | AA56: =IF(AB56=0,"",COUNTIF(AA$12:AA55,">0")+AA$9+1) ->  | AE56: 0 | AF56: ¢ | AG56: 0 | AJ56: =IF(AK56=0,"",COUNTIF(AJ$12:AJ55,">0")+AJ$9+1) ->  | AN56: 0 | AO56: ¢ | AP56: 0
B57: Tel. | C57: =VLOOKUP($B$18,Brief!$AG$45:$AO$68,9,FALSE) ->  | G57: =IF(H57=0,"",COUNTIF(G$12:G56,">0")+G$9+1) ->  | K57: =VLOOKUP($G57,Klasse_1!$AT$11:$BG$500,11,FALSE) ->  | L57: =VLOOKUP($G57,Klasse_1!$AT$11:$BG$500,8,FALSE) ->  | M57: =VLOOKUP($G57,Klasse_1!$AT$11:$BG$500,10,FALSE) ->  | N57: =VLOOKUP($G57,Klasse_1!$AT$11:$BG$500,2,FALSE) ->  | P57: =IF(Q57=0,"",COUNTIF(P$12:P56,">0")+P$9+1) ->  | T57: =VLOOKUP($P57,Klasse_2!$AT$11:$BG$500,11,FALSE) ->  | U57: =VLOOKUP($P57,Klasse_2!$AT$11:$BG$500,8,FALSE) ->  | V57: =VLOOKUP($P57,Klasse_2!$AT$11:$BG$500,10,FALSE) ->  | W57: =VLOOKUP($P57,Klasse_2!$AT$11:$BG$500,2,FALSE) ->  | AA57: =IF(AB57=0,"",COUNTIF(AA$12:AA56,">0")+AA$9+1) ->  | AE57: 0 | AF57: ¢ | AG57: 0 | AJ57: =IF(AK57=0,"",COUNTIF(AJ$12:AJ56,">0")+AJ$9+1) ->  | AN57: 0 | AO57: ¢ | AP57: 0
G58: =IF(H58=0,"",COUNTIF(G$12:G57,">0")+G$9+1) ->  | K58: =VLOOKUP($G58,Klasse_1!$AT$11:$BG$500,11,FALSE) ->  | L58: =VLOOKUP($G58,Klasse_1!$AT$11:$BG$500,8,FALSE) ->  | M58: =VLOOKUP($G58,Klasse_1!$AT$11:$BG$500,10,FALSE) ->  | N58: =VLOOKUP($G58,Klasse_1!$AT$11:$BG$500,2,FALSE) ->  | P58: =IF(Q58=0,"",COUNTIF(P$12:P57,">0")+P$9+1) ->  | T58: =VLOOKUP($P58,Klasse_2!$AT$11:$BG$500,11,FALSE) ->  | U58: =VLOOKUP($P58,Klasse_2!$AT$11:$BG$500,8,FALSE) ->  | V58: =VLOOKUP($P58,Klasse_2!$AT$11:$BG$500,10,FALSE) ->  | W58: =VLOOKUP($P58,Klasse_2!$AT$11:$BG$500,2,FALSE) ->  | AA58: =IF(AB58=0,"",COUNTIF(AA$12:AA57,">0")+AA$9+1) ->  | AE58: 0 | AF58: ¢ | AG58: 0 | AJ58: =IF(AK58=0,"",COUNTIF(AJ$12:AJ57,">0")+AJ$9+1) ->  | AN58: 0 | AO58: ¢ | AP58: 0
G59: =IF(H59=0,"",COUNTIF(G$12:G58,">0")+G$9+1) ->  | K59: =VLOOKUP($G59,Klasse_1!$AT$11:$BG$500,11,FALSE) ->  | L59: =VLOOKUP($G59,Klasse_1!$AT$11:$BG$500,8,FALSE) ->  | M59: =VLOOKUP($G59,Klasse_1!$AT$11:$BG$500,10,FALSE) ->  | N59: =VLOOKUP($G59,Klasse_1!$AT$11:$BG$500,2,FALSE) ->  | P59: =IF(Q59=0,"",COUNTIF(P$12:P58,">0")+P$9+1) ->  | T59: =VLOOKUP($P59,Klasse_2!$AT$11:$BG$500,11,FALSE) ->  | U59: =VLOOKUP($P59,Klasse_2!$AT$11:$BG$500,8,FALSE) ->  | V59: =VLOOKUP($P59,Klasse_2!$AT$11:$BG$500,10,FALSE) ->  | W59: =VLOOKUP($P59,Klasse_2!$AT$11:$BG$500,2,FALSE) ->  | AA59: =IF(AB59=0,"",COUNTIF(AA$12:AA58,">0")+AA$9+1) ->  | AE59: 0 | AF59: ¢ | AG59: 0 | AJ59: =IF(AK59=0,"",COUNTIF(AJ$12:AJ58,">0")+AJ$9+1) ->  | AN59: 0 | AO59: ¢ | AP59: 0
G60: =" "&K60&" "&$D$4 -> 4. Mannschaft Aufgelegt | K60: 4. Mannschaft | L60: =VLOOKUP(G63,Klasse_M!$S$12:$Z$200,6,FALSE) ->  | M60: =VLOOKUP(G63,Klasse_M!$S$12:$Z$200,8,FALSE) ->  | N60: =VLOOKUP(G63,Klasse_M!$S$12:$Z$200,2,FALSE) ->  | P60: =" "&T60&" "&$D$4 -> 4. Mannschaft Aufgelegt | T60: 4. Mannschaft | U60: =VLOOKUP(P63,Klasse_M!$AO$12:$AV$200,6,FALSE) ->  | V60: =VLOOKUP(P63,Klasse_M!$AO$12:$AV$200,8,FALSE) ->  | W60: =VLOOKUP(P63,Klasse_M!$AO$12:$AV$200,2,FALSE) ->  | AA60: =" "&AE60&" "&$D$4 -> 4. Mannschaft Aufgelegt | AE60: 4. Mannschaft | AF60: ¢ | AG60: 0 | AJ60: =" "&AN60&" "&$D$4 -> 4. Mannschaft Aufgelegt | AN60: 4. Mannschaft | AO60: ¢ | AP60: 0
G61: =IF(H61=0,"",COUNTIF(G$12:G60,">0")+G$9+1) ->  | K61: =VLOOKUP($G61,Klasse_1!$AT$11:$BG$500,11,FALSE) ->  | L61: =VLOOKUP($G61,Klasse_1!$AT$11:$BG$500,8,FALSE) ->  | M61: =VLOOKUP($G61,Klasse_1!$AT$11:$BG$500,10,FALSE) ->  | N61: =VLOOKUP($G61,Klasse_1!$AT$11:$BG$500,2,FALSE) ->  | P61: =IF(Q61=0,"",COUNTIF(P$12:P60,">0")+P$9+1) ->  | T61: =VLOOKUP($P61,Klasse_2!$AT$11:$BG$500,11,FALSE) ->  | U61: =VLOOKUP($P61,Klasse_2!$AT$11:$BG$500,8,FALSE) ->  | V61: =VLOOKUP($P61,Klasse_2!$AT$11:$BG$500,10,FALSE) ->  | W61: =VLOOKUP($P61,Klasse_2!$AT$11:$BG$500,2,FALSE) ->  | AA61: =IF(AB61=0,"",COUNTIF(AA$12:AA60,">0")+AA$9+1) ->  | AE61: 0 | AF61: ¢ | AG61: 0 | AJ61: =IF(AK61=0,"",COUNTIF(AJ$12:AJ60,">0")+AJ$9+1) ->  | AN61: 0 | AO61: ¢ | AP61: 0
G62: =IF(H62=0,"",COUNTIF(G$12:G61,">0")+G$9+1) ->  | K62: =VLOOKUP($G62,Klasse_1!$AT$11:$BG$500,11,FALSE) ->  | L62: =VLOOKUP($G62,Klasse_1!$AT$11:$BG$500,8,FALSE) ->  | M62: =VLOOKUP($G62,Klasse_1!$AT$11:$BG$500,10,FALSE) ->  | N62: =VLOOKUP($G62,Klasse_1!$AT$11:$BG$500,2,FALSE) ->  | P62: =IF(Q62=0,"",COUNTIF(P$12:P61,">0")+P$9+1) ->  | T62: =VLOOKUP($P62,Klasse_2!$AT$11:$BG$500,11,FALSE) ->  | U62: =VLOOKUP($P62,Klasse_2!$AT$11:$BG$500,8,FALSE) ->  | V62: =VLOOKUP($P62,Klasse_2!$AT$11:$BG$500,10,FALSE) ->  | W62: =VLOOKUP($P62,Klasse_2!$AT$11:$BG$500,2,FALSE) ->  | AA62: =IF(AB62=0,"",COUNTIF(AA$12:AA61,">0")+AA$9+1) ->  | AE62: 0 | AF62: ¢ | AG62: 0 | AJ62: =IF(AK62=0,"",COUNTIF(AJ$12:AJ61,">0")+AJ$9+1) ->  | AN62: 0 | AO62: ¢ | AP62: 0
G63: =IF(H63=0,"",COUNTIF(G$12:G62,">0")+G$9+1) ->  | K63: =VLOOKUP($G63,Klasse_1!$AT$11:$BG$500,11,FALSE) ->  | L63: =VLOOKUP($G63,Klasse_1!$AT$11:$BG$500,8,FALSE) ->  | M63: =VLOOKUP($G63,Klasse_1!$AT$11:$BG$500,10,FALSE) ->  | N63: =VLOOKUP($G63,Klasse_1!$AT$11:$BG$500,2,FALSE) ->  | P63: =IF(Q63=0,"",COUNTIF(P$12:P62,">0")+P$9+1) ->  | T63: =VLOOKUP($P63,Klasse_2!$AT$11:$BG$500,11,FALSE) ->  | U63: =VLOOKUP($P63,Klasse_2!$AT$11:$BG$500,8,FALSE) ->  | V63: =VLOOKUP($P63,Klasse_2!$AT$11:$BG$500,10,FALSE) ->  | W63: =VLOOKUP($P63,Klasse_2!$AT$11:$BG$500,2,FALSE) ->  | AA63: =IF(AB63=0,"",COUNTIF(AA$12:AA62,">0")+AA$9+1) ->  | AE63: 0 | AF63: ¢ | AG63: 0 | AJ63: =IF(AK63=0,"",COUNTIF(AJ$12:AJ62,">0")+AJ$9+1) ->  | AN63: 0 | AO63: ¢ | AP63: 0
G64: =IF(H64=0,"",COUNTIF(G$12:G63,">0")+G$9+1) ->  | K64: =VLOOKUP($G64,Klasse_1!$AT$11:$BG$500,11,FALSE) ->  | L64: =VLOOKUP($G64,Klasse_1!$AT$11:$BG$500,8,FALSE) ->  | M64: =VLOOKUP($G64,Klasse_1!$AT$11:$BG$500,10,FALSE) ->  | N64: =VLOOKUP($G64,Klasse_1!$AT$11:$BG$500,2,FALSE) ->  | P64: =IF(Q64=0,"",COUNTIF(P$12:P63,">0")+P$9+1) ->  | T64: =VLOOKUP($P64,Klasse_2!$AT$11:$BG$500,11,FALSE) ->  | U64: =VLOOKUP($P64,Klasse_2!$AT$11:$BG$500,8,FALSE) ->  | V64: =VLOOKUP($P64,Klasse_2!$AT$11:$BG$500,10,FALSE) ->  | W64: =VLOOKUP($P64,Klasse_2!$AT$11:$BG$500,2,FALSE) ->  | AA64: =IF(AB64=0,"",COUNTIF(AA$12:AA63,">0")+AA$9+1) ->  | AE64: 0 | AF64: ¢ | AG64: 0 | AJ64: =IF(AK64=0,"",COUNTIF(AJ$12:AJ63,">0")+AJ$9+1) ->  | AN64: 0 | AO64: ¢ | AP64: 0
G65: =IF(H65=0,"",COUNTIF(G$12:G64,">0")+G$9+1) ->  | K65: =VLOOKUP($G65,Klasse_1!$AT$11:$BG$500,11,FALSE) ->  | L65: =VLOOKUP($G65,Klasse_1!$AT$11:$BG$500,8,FALSE) ->  | M65: =VLOOKUP($G65,Klasse_1!$AT$11:$BG$500,10,FALSE) ->  | N65: =VLOOKUP($G65,Klasse_1!$AT$11:$BG$500,2,FALSE) ->  | P65: =IF(Q65=0,"",COUNTIF(P$12:P64,">0")+P$9+1) ->  | T65: =VLOOKUP($P65,Klasse_2!$AT$11:$BG$500,11,FALSE) ->  | U65: =VLOOKUP($P65,Klasse_2!$AT$11:$BG$500,8,FALSE) ->  | V65: =VLOOKUP($P65,Klasse_2!$AT$11:$BG$500,10,FALSE) ->  | W65: =VLOOKUP($P65,Klasse_2!$AT$11:$BG$500,2,FALSE) ->  | AA65: =IF(AB65=0,"",COUNTIF(AA$12:AA64,">0")+AA$9+1) ->  | AE65: 0 | AF65: ¢ | AG65: 0 | AJ65: =IF(AK65=0,"",COUNTIF(AJ$12:AJ64,">0")+AJ$9+1) ->  | AN65: 0 | AO65: ¢ | AP65: 0

Sheet C
D1: =Brief!D1 -> Schützen | G1: =" "&Brief!$K$13&" "&Brief!$K$14&" "&Brief!$K$15 -> SV Rothebusch 1922 e.V. 21. Optik Giepen Pokal 03/04. Febr. 2018 | AA1: =" "&Brief!$K$13&" "&Brief!$K$14&" "&Brief!$K$15 -> SV Rothebusch 1922 e.V. 21. Optik Giepen Pokal 03/04. Febr. 2018 | AU1: =" "&Brief!$K$13&" "&Brief!$K$14&" "&Brief!$K$15 -> SV Rothebusch 1922 e.V. 21. Optik Giepen Pokal 03/04. Febr. 2018 | BJ1: =" "&Brief!$K$13&" "&Brief!$K$14&" "&Brief!$K$15 -> SV Rothebusch 1922 e.V. 21. Optik Giepen Pokal 03/04. Febr. 2018
B2: =Brief!$AH$45 -> SV Rothebusch 1922 e.V. | D2: =Brief!D2 -> Damen | E2: =A!$E$2 -> 22 | F2: =IF($B$18="A",$B$18,"") ->  | Z2: =$F2 ->  | AT2: =$F2 ->  | BI2: =$F2 -> 
B3: =Brief!$AH$46 -> ABSV 1921 | D3: =Brief!D3 -> Freistehend | E3: =A!$E$3 -> 22 | F3: =IF($B$18="B",$B$18,"") -> 
B4: =Brief!$AH$47 -> Buschhausen | D4: =Brief!D4 -> Aufgelegt | E4: =A!$E$4 -> 28 | F4: =IF($B$18="C",$B$18,"") -> C | G4: =VLOOKUP($B$18,Brief!$AG$45:$AO$68,3,FALSE) -> ABSV Buschhausen 1950 e.V. | P4: Wertungen | Z4: C | AA4: =VLOOKUP($B$18,Brief!$AG$45:$AO$68,3,FALSE) -> ABSV Buschhausen 1950 e.V. | AJ4: Wertungen | AT4: C | AU4: =VLOOKUP($B$18,Brief!$AG$45:$AO$68,3,FALSE) -> ABSV Buschhausen 1950 e.V. | BI4: C
B5: =Brief!$AH$48 -> BSG Holten | D5: =Brief!D5 ->  | E5: =A!$E$5 -> 28 | F5: =IF($B$18="D",$B$18,"") ->  | BJ5: =VLOOKUP($B$18,Brief!$AG$45:$AO$68,3,FALSE) -> ABSV Buschhausen 1950 e.V.
B6: =Brief!$AH$49 -> 1882 Osterfeld | D6: =Brief!D6 ->  | E6: =A!$E$6 -> 42 | F6: =IF($B$18="E",$B$18,"") -> 
B7: =Brief!$AH$50 -> Hubertus | D7: =Brief!D7 ->  | E7: =A!$E$7 -> 52 | F7: =IF($B$18="F",$B$18,"") ->  | BK7: Ansprechpartner | BL7: =VLOOKUP($B$18,Brief!$AG$45:$AO$68,4,FALSE) -> Awischus, Mark | BQ7: =NOW() -> 2018-02-05T11:14:19.790 | BR7: =VLOOKUP($B$18,Brief!$AG$45:$AP$68,10,FALSE) -> 1108
B8: =Brief!$AH$51 -> St. Lirich | C8: =Brief!$AH$52 -> Waidmannsheil | D8: =Brief!D8 ->  | E8: =A!$E$8 -> -56 -74 | F8: =IF($B$18="G",$B$18,"") ->  | H8: =IF(Brief!$K$43=0,"",Brief!$K$43&" "&Brief!$M$43) -> Luftgewehr 10 m | Q8: =IF(Brief!$K$46=0,"",Brief!$K$46&" "&Brief!$M$46) -> Luftgewehr 10 m | AB8: =IF(Brief!$K$49=0,"",Brief!$K$49&" "&Brief!$M$49) ->  | AK8: =IF(Brief!$K$52=0,"",Brief!$K$52&" "&Brief!$M$52) ->  | BK8: Anschrift | BL8: =VLOOKUP($B$18,Brief!$AG$45:$AO$68,5,FALSE) -> Friesenstr. 63
B9: =Brief!$AH$53 -> Klosterhardt | C9: =Brief!$AH$54 -> Königshardt | D9: =Brief!D9 ->  | E9: =A!$E$9 -> -78 -78 | F9: =IF($B$18="K",$B$18,"") ->  | G9: =B!$AJ$10 -> 22 | H9: =$D$1 -> Schützen | K9: 1 | P9: =G10 -> 28 | Q9: =$D$2 -> Damen | T9: 2 | AA9: =P10 -> 28 | AB9: =$D$5 ->  | AE9: 3 | AJ9: =AA10 -> 28 | AK9: =$D$8 ->  | AN9: 4 | AU9: Pass | AV9: =$D$1 -> Schützen | AX9: Pass | AY9: =$D$2 -> Damen | BA9: Pass | BB9: =$D$5 ->  | BD9: Pass | BE9: =$D$8 ->  | BK9: PLZ / Ort | BL9: =VLOOKUP($B$18,Brief!$AG$45:$AO$68,6,FALSE) -> 46149 Oberhausen | BQ9: Sportleiter | BR9: =VLOOKUP($B$18,Brief!$AG$45:$AO$68,8,FALSE) -> 
B10: =Brief!$AH$55 -> BSG 1862 Oberhausen | C10: =Brief!$AH$56 -> 1981 Mitte | D10: =Brief!D10 ->  | E10: =A!$E$10 -> -78 -78 | F10: =IF($B$18="M",$B$18,"") ->  | G10: =MAX(G11:G65) -> 28 | P10: =MAX(P11:P65) -> 28 | AA10: =MAX(AA11:AA65) -> 28 | AJ10: =AA9 -> 28 | AU10: Nr. | AX10: Nr. | BA10: Nr. | BD10: Nr. | BK10: Tel., Ansprechpartner | BL10: =VLOOKUP($B$18,Brief!$AG$45:$AO$68,7,FALSE) ->  | BQ10: Telefon, Sportleiter | BR10: =VLOOKUP($B$18,Brief!$AG$45:$AO$68,9,FALSE) -> 
G11: =G9 -> 22 | P11: =P9 -> 28 | AA11: =AA9 -> 28 | AJ11: =AJ9 -> 28 | BJ11: Nr. | BK11: =$D$1 -> Schützen | BM11: Nr. | BN11: =$D$2 -> Damen | BP11: =IF(BQ11="","","Nr.") ->  | BQ11: =$D$5 ->  | BS11: =IF(BT11="","","Nr.") ->  | BT11: =$D$8 -> 
B12: EINGABE | G12: =" "&K12&" "&$D$3 -> 1. Mannschaft Freistehend | K12: 1. Mannschaft | L12: =VLOOKUP(G15,Klasse_M!$H$12:$O$200,6,FALSE) ->  | M12: =VLOOKUP(G15,Klasse_M!$H$12:$O$200,8,FALSE) ->  | N12: =VLOOKUP(G15,Klasse_M!$H$12:$O$200,2,FALSE) ->  | P12: =" "&T12&" "&$D$3 -> 1. Mannschaft Freistehend | T12: 1. Mannschaft | U12: =VLOOKUP(P15,Klasse_M!$AD$12:$AK$200,6,FALSE) ->  | V12: =VLOOKUP(P15,Klasse_M!$AD$12:$AK$200,8,FALSE) ->  | W12: =VLOOKUP(P15,Klasse_M!$AD$12:$AK$200,2,FALSE) ->  | AA12: =" "&AE12&" "&$D$3 -> 1. Mannschaft Freistehend | AE12: 1. Mannschaft | AF12: ¢ | AG12: 0 | AJ12: =" "&AN12&" "&$D$3 -> 1. Mannschaft Freistehend | AN12: 1. Mannschaft | AO12: ¢ | AP12: 0 | AU12: 179 | AV12: Achzenick, Günter | AY12: Achzenick, Ute | BJ12: =IF(AU13=0,"",AU13) ->  | BK12: =IF(AV12=0,"",AV12) -> Achzenick, Günter | BM12: =IF(AX12=0,"",AX12) ->  | BN12: =IF(AY12=0,"",AY12) -> Achzenick, Ute | BP12: =IF(BA12=0,"",BA12) ->  | BQ12: =IF(BB12=0,"",BB12) ->  | BS12: =IF(BD12=0,"",BD12) ->  | BT12: =IF(BE12=0,"",BE12) -> 
G13: =IF(H13=0,"",COUNTIF(G$12:G12,">0")+G$9+1) ->  | K13: =VLOOKUP($G13,Klasse_1!$X$11:$AK$500,11,FALSE) ->  | L13: =VLOOKUP($G13,Klasse_1!$X$11:$AK$500,8,FALSE) ->  | M13: =VLOOKUP($G13,Klasse_1!$X$11:$AK$500,10,FALSE) ->  | N13: =VLOOKUP($G13,Klasse_1!$X$11:$AK$500,2,FALSE) ->  | P13: =IF(Q13=0,"",COUNTIF(P$12:P12,">0")+P$9+1) ->  | T13: =VLOOKUP($P13,Klasse_2!$X$11:$AK$500,11,FALSE) ->  | U13: =VLOOKUP($P13,Klasse_2!$X$11:$AK$500,8,FALSE) ->  | V13: =VLOOKUP($P13,Klasse_2!$X$11:$AK$500,10,FALSE) ->  | W13: =VLOOKUP($P13,Klasse_2!$X$11:$AK$500,2,FALSE) ->  | AA13: =IF(AB13=0,"",COUNTIF(AA$12:AA12,">0")+AA$9+1) ->  | AE13: 0 | AF13: ¢ | AG13: 0 | AJ13: =IF(AK13=0,"",COUNTIF(AJ$12:AJ12,">0")+AJ$9+1) ->  | AN13: 0 | AO13: ¢ | AP13: 0 | AV13: Achzenick, Ute | AX13: 195 | AY13: Awischs-Maron, Bettina | BJ13: =IF(#REF!=0,"",#REF!) ->  | BK13: Achzenick, Ute | BM13: 195 | BN13: Awischs-Maron, Bettina
B14: =$D$1 -> Schützen | C14: =$D$2 -> Damen | G14: =IF(H14=0,"",COUNTIF(G$12:G13,">0")+G$9+1) ->  | K14: =VLOOKUP($G14,Klasse_1!$X$11:$AK$500,11,FALSE) ->  | L14: =VLOOKUP($G14,Klasse_1!$X$11:$AK$500,8,FALSE) ->  | M14: =VLOOKUP($G14,Klasse_1!$X$11:$AK$500,10,FALSE) ->  | N14: =VLOOKUP($G14,Klasse_1!$X$11:$AK$500,2,FALSE) ->  | P14: =IF(Q14=0,"",COUNTIF(P$12:P13,">0")+P$9+1) ->  | T14: =VLOOKUP($P14,Klasse_2!$X$11:$AK$500,11,FALSE) ->  | U14: =VLOOKUP($P14,Klasse_2!$X$11:$AK$500,8,FALSE) ->  | V14: =VLOOKUP($P14,Klasse_2!$X$11:$AK$500,10,FALSE) ->  | W14: =VLOOKUP($P14,Klasse_2!$X$11:$AK$500,2,FALSE) ->  | AA14: =IF(AB14=0,"",COUNTIF(AA$12:AA13,">0")+AA$9+1) ->  | AE14: 0 | AF14: ¢ | AG14: 0 | AJ14: =IF(AK14=0,"",COUNTIF(AJ$12:AJ13,">0")+AJ$9+1) ->  | AN14: 0 | AO14: ¢ | AP14: 0 | AV14: Awischus, Mark | AY14: Balting, Roswita | BJ14: =IF(AU14=0,"",AU14) ->  | BK14: Awischus, Mark | BN14: Balting, Roswita
B15: =$D$5 ->  | C15: =$D$8 ->  | G15: =IF(H15=0,"",COUNTIF(G$12:G14,">0")+G$9+1) ->  | K15: =VLOOKUP($G15,Klasse_1!$X$11:$AK$500,11,FALSE) ->  | L15: =VLOOKUP($G15,Klasse_1!$X$11:$AK$500,8,FALSE) ->  | M15: =VLOOKUP($G15,Klasse_1!$X$11:$AK$500,10,FALSE) ->  | N15: =VLOOKUP($G15,Klasse_1!$X$11:$AK$500,2,FALSE) ->  | P15: =IF(Q15=0,"",COUNTIF(P$12:P14,">0")+P$9+1) ->  | T15: =VLOOKUP($P15,Klasse_2!$X$11:$AK$500,11,FALSE) ->  | U15: =VLOOKUP($P15,Klasse_2!$X$11:$AK$500,8,FALSE) ->  | V15: =VLOOKUP($P15,Klasse_2!$X$11:$AK$500,10,FALSE) ->  | W15: =VLOOKUP($P15,Klasse_2!$X$11:$AK$500,2,FALSE) ->  | AA15: =IF(AB15=0,"",COUNTIF(AA$12:AA14,">0")+AA$9+1) ->  | AE15: 0 | AF15: ¢ | AG15: 0 | AJ15: =IF(AK15=0,"",COUNTIF(AJ$12:AJ14,">0")+AJ$9+1) ->  | AN15: 0 | AO15: ¢ | AP15: 0 | AV15: Awischus-Maron, Bettina | AX15: 47 | AY15: Fiebig, Irmagard | BK15: Awischus-Maron, Bettina | BM15: 47 | BN15: Fiebig, Irmagard
G16: =IF(H16=0,"",COUNTIF(G$12:G15,">0")+G$9+1) ->  | K16: =VLOOKUP($G16,Klasse_1!$X$11:$AK$500,11,FALSE) ->  | L16: =VLOOKUP($G16,Klasse_1!$X$11:$AK$500,8,FALSE) ->  | M16: =VLOOKUP($G16,Klasse_1!$X$11:$AK$500,10,FALSE) ->  | N16: =VLOOKUP($G16,Klasse_1!$X$11:$AK$500,2,FALSE) ->  | P16: =IF(Q16=0,"",COUNTIF(P$12:P15,">0")+P$9+1) ->  | T16: =VLOOKUP($P16,Klasse_2!$X$11:$AK$500,11,FALSE) ->  | U16: =VLOOKUP($P16,Klasse_2!$X$11:$AK$500,8,FALSE) ->  | V16: =VLOOKUP($P16,Klasse_2!$X$11:$AK$500,10,FALSE) ->  | W16: =VLOOKUP($P16,Klasse_2!$X$11:$AK$500,2,FALSE) ->  | AA16: =IF(AB16=0,"",COUNTIF(AA$12:AA15,">0")+AA$9+1) ->  | AE16: 0 | AF16: ¢ | AG16: 0 | AJ16: =IF(AK16=0,"",COUNTIF(AJ$12:AJ15,">0")+AJ$9+1) ->  | AN16: 0 | AO16: ¢ | AP16: 0 | AU16: 4 | AV16: Balting, Roswita | AX16: 160 | AY16: Mülleneisen, Ulrike | BJ16: 4 | BK16: Balting, Roswita | BM16: 160 | BN16: Mülleneisen, Ulrike
G17: =IF(H17=0,"",COUNTIF(G$12:G16,">0")+G$9+1) ->  | K17: =VLOOKUP($G17,Klasse_1!$X$11:$AK$500,11,FALSE) ->  | L17: =VLOOKUP($G17,Klasse_1!$X$11:$AK$500,8,FALSE) ->  | M17: =VLOOKUP($G17,Klasse_1!$X$11:$AK$500,10,FALSE) ->  | N17: =VLOOKUP($G17,Klasse_1!$X$11:$AK$500,2,FALSE) ->  | P17: =IF(Q17=0,"",COUNTIF(P$12:P16,">0")+P$9+1) ->  | T17: =VLOOKUP($P17,Klasse_2!$X$11:$AK$500,11,FALSE) ->  | U17: =VLOOKUP($P17,Klasse_2!$X$11:$AK$500,8,FALSE) ->  | V17: =VLOOKUP($P17,Klasse_2!$X$11:$AK$500,10,FALSE) ->  | W17: =VLOOKUP($P17,Klasse_2!$X$11:$AK$500,2,FALSE) ->  | AA17: =IF(AB17=0,"",COUNTIF(AA$12:AA16,">0")+AA$9+1) ->  | AE17: 0 | AF17: ¢ | AG17: 0 | AJ17: =IF(AK17=0,"",COUNTIF(AJ$12:AJ16,">0")+AJ$9+1) ->  | AN17: 0 | AO17: ¢ | AP17: 0 | AU17: 23 | AV17: Fiebig, Irmgard | AY17: Sperber, Eva Maria | BJ17: 23 | BK17: Fiebig, Irmgard | BN17: Sperber, Eva Maria
B18: C | G18: =" "&K18&" "&$D$3 -> 2. Mannschaft Freistehend | K18: 2. Mannschaft | L18: =VLOOKUP(G21,Klasse_M!$H$12:$O$200,6,FALSE) ->  | M18: =VLOOKUP(G21,Klasse_M!$H$12:$O$200,8,FALSE) ->  | N18: =VLOOKUP(G21,Klasse_M!$H$12:$O$200,2,FALSE) ->  | P18: =" "&T18&" "&$D$3 -> 2. Mannschaft Freistehend | T18: 2. Mannschaft | U18: =VLOOKUP(P21,Klasse_M!$AD$12:$AK$200,6,FALSE) ->  | V18: =VLOOKUP(P21,Klasse_M!$AD$12:$AK$200,8,FALSE) ->  | W18: =VLOOKUP(P21,Klasse_M!$AD$12:$AK$200,2,FALSE) ->  | AA18: =" "&AE18&" "&$D$3 -> 2. Mannschaft Freistehend | AE18: 2. Mannschaft | AF18: ¢ | AG18: 0 | AJ18: =" "&AN18&" "&$D$3 -> 2. Mannschaft Freistehend | AN18: 2. Mannschaft | AO18: ¢ | AP18: 0 | AV18: Flühr, Josef | BK18: Flühr, Josef
G19: =IF(H19=0,"",COUNTIF(G$12:G18,">0")+G$9+1) ->  | K19: =VLOOKUP($G19,Klasse_1!$X$11:$AK$500,11,FALSE) ->  | L19: =VLOOKUP($G19,Klasse_1!$X$11:$AK$500,8,FALSE) ->  | M19: =VLOOKUP($G19,Klasse_1!$X$11:$AK$500,10,FALSE) ->  | N19: =VLOOKUP($G19,Klasse_1!$X$11:$AK$500,2,FALSE) ->  | P19: =IF(Q19=0,"",COUNTIF(P$12:P18,">0")+P$9+1) ->  | T19: =VLOOKUP($P19,Klasse_2!$X$11:$AK$500,11,FALSE) ->  | U19: =VLOOKUP($P19,Klasse_2!$X$11:$AK$500,8,FALSE) ->  | V19: =VLOOKUP($P19,Klasse_2!$X$11:$AK$500,10,FALSE) ->  | W19: =VLOOKUP($P19,Klasse_2!$X$11:$AK$500,2,FALSE) ->  | AA19: =IF(AB19=0,"",COUNTIF(AA$12:AA18,">0")+AA$9+1) ->  | AE19: 0 | AF19: ¢ | AG19: 0 | AJ19: =IF(AK19=0,"",COUNTIF(AJ$12:AJ18,">0")+AJ$9+1) ->  | AN19: 0 | AO19: ¢ | AP19: 0 | AV19: Hammelsbruch, Helmut | BK19: Hammelsbruch, Helmut
B20: =VLOOKUP($B$18,Brief!$AG$45:$AO$68,3,FALSE) -> ABSV Buschhausen 1950 e.V. | G20: =IF(H20=0,"",COUNTIF(G$12:G19,">0")+G$9+1) ->  | K20: =VLOOKUP($G20,Klasse_1!$X$11:$AK$500,11,FALSE) ->  | L20: =VLOOKUP($G20,Klasse_1!$X$11:$AK$500,8,FALSE) ->  | M20: =VLOOKUP($G20,Klasse_1!$X$11:$AK$500,10,FALSE) ->  | N20: =VLOOKUP($G20,Klasse_1!$X$11:$AK$500,2,FALSE) ->  | P20: =IF(Q20=0,"",COUNTIF(P$12:P19,">0")+P$9+1) ->  | T20: =VLOOKUP($P20,Klasse_2!$X$11:$AK$500,11,FALSE) ->  | U20: =VLOOKUP($P20,Klasse_2!$X$11:$AK$500,8,FALSE) ->  | V20: =VLOOKUP($P20,Klasse_2!$X$11:$AK$500,10,FALSE) ->  | W20: =VLOOKUP($P20,Klasse_2!$X$11:$AK$500,2,FALSE) ->  | AA20: =IF(AB20=0,"",COUNTIF(AA$12:AA19,">0")+AA$9+1) ->  | AE20: 0 | AF20: ¢ | AG20: 0 | AJ20: =IF(AK20=0,"",COUNTIF(AJ$12:AJ19,">0")+AJ$9+1) ->  | AN20: 0 | AO20: ¢ | AP20: 0 | AV20: Hammer, Thomas | BK20: Hammer, Thomas
B21: VereinsNr. | C21: =VLOOKUP($B$18,Brief!$AG$45:$AP$68,10,FALSE) -> 1108 | G21: =IF(H21=0,"",COUNTIF(G$12:G20,">0")+G$9+1) ->  | K21: =VLOOKUP($G21,Klasse_1!$X$11:$AK$500,11,FALSE) ->  | L21: =VLOOKUP($G21,Klasse_1!$X$11:$AK$500,8,FALSE) ->  | M21: =VLOOKUP($G21,Klasse_1!$X$11:$AK$500,10,FALSE) ->  | N21: =VLOOKUP($G21,Klasse_1!$X$11:$AK$500,2,FALSE) ->  | P21: =IF(Q21=0,"",COUNTIF(P$12:P20,">0")+P$9+1) ->  | T21: =VLOOKUP($P21,Klasse_2!$X$11:$AK$500,11,FALSE) ->  | U21: =VLOOKUP($P21,Klasse_2!$X$11:$AK$500,8,FALSE) ->  | V21: =VLOOKUP($P21,Klasse_2!$X$11:$AK$500,10,FALSE) ->  | W21: =VLOOKUP($P21,Klasse_2!$X$11:$AK$500,2,FALSE) ->  | AA21: =IF(AB21=0,"",COUNTIF(AA$12:AA20,">0")+AA$9+1) ->  | AE21: 0 | AF21: ¢ | AG21: 0 | AJ21: =IF(AK21=0,"",COUNTIF(AJ$12:AJ20,">0")+AJ$9+1) ->  | AN21: 0 | AO21: ¢ | AP21: 0 | AU21: 74 | AV21: Kilb, Willi | BJ21: 74 | BK21: Kilb, Willi
B22: Anspr. | C22: =VLOOKUP($B$18,Brief!$AG$45:$AO$68,4,FALSE) -> Awischus, Mark | G22: =IF(H22=0,"",COUNTIF(G$12:G21,">0")+G$9+1) ->  | K22: =VLOOKUP($G22,Klasse_1!$X$11:$AK$500,11,FALSE) ->  | L22: =VLOOKUP($G22,Klasse_1!$X$11:$AK$500,8,FALSE) ->  | M22: =VLOOKUP($G22,Klasse_1!$X$11:$AK$500,10,FALSE) ->  | N22: =VLOOKUP($G22,Klasse_1!$X$11:$AK$500,2,FALSE) ->  | P22: =IF(Q22=0,"",COUNTIF(P$12:P21,">0")+P$9+1) ->  | T22: =VLOOKUP($P22,Klasse_2!$X$11:$AK$500,11,FALSE) ->  | U22: =VLOOKUP($P22,Klasse_2!$X$11:$AK$500,8,FALSE) ->  | V22: =VLOOKUP($P22,Klasse_2!$X$11:$AK$500,10,FALSE) ->  | W22: =VLOOKUP($P22,Klasse_2!$X$11:$AK$500,2,FALSE) ->  | AA22: =IF(AB22=0,"",COUNTIF(AA$12:AA21,">0")+AA$9+1) ->  | AE22: 0 | AF22: ¢ | AG22: 0 | AJ22: =IF(AK22=0,"",COUNTIF(AJ$12:AJ21,">0")+AJ$9+1) ->  | AN22: 0 | AO22: ¢ | AP22: 0 | AV22: Mülleneisen, Friedhelm | BK22: Mülleneisen, Friedhelm
B23: Anschrift | C23: =VLOOKUP($B$18,Brief!$AG$45:$AO$68,5,FALSE) -> Friesenstr. 63 | G23: =IF(H23=0,"",COUNTIF(G$12:G22,">0")+G$9+1) ->  | K23: =VLOOKUP($G23,Klasse_1!$X$11:$AK$500,11,FALSE) ->  | L23: =VLOOKUP($G23,Klasse_1!$X$11:$AK$500,8,FALSE) ->  | M23: =VLOOKUP($G23,Klasse_1!$X$11:$AK$500,10,FALSE) ->  | N23: =VLOOKUP($G23,Klasse_1!$X$11:$AK$500,2,FALSE) ->  | P23: =IF(Q23=0,"",COUNTIF(P$12:P22,">0")+P$9+1) ->  | T23: =VLOOKUP($P23,Klasse_2!$X$11:$AK$500,11,FALSE) ->  | U23: =VLOOKUP($P23,Klasse_2!$X$11:$AK$500,8,FALSE) ->  | V23: =VLOOKUP($P23,Klasse_2!$X$11:$AK$500,10,FALSE) ->  | W23: =VLOOKUP($P23,Klasse_2!$X$11:$AK$500,2,FALSE) ->  | AA23: =IF(AB23=0,"",COUNTIF(AA$12:AA22,">0")+AA$9+1) ->  | AE23: 0 | AF23: ¢ | AG23: 0 | AJ23: =IF(AK23=0,"",COUNTIF(AJ$12:AJ22,">0")+AJ$9+1) ->  | AN23: 0 | AO23: ¢ | AP23: 0 | AU23: 171 | AV23: Mülleneisen, Ulrike | BJ23: 171 | BK23: Mülleneisen, Ulrike
B24: PLZ / Ort | C24: =VLOOKUP($B$18,Brief!$AG$45:$AO$68,6,FALSE) -> 46149 Oberhausen | G24: =" "&K24&" "&$D$3 -> 3. Mannschaft Freistehend | K24: 3. Mannschaft | L24: =VLOOKUP(G27,Klasse_M!$H$12:$O$200,6,FALSE) ->  | M24: =VLOOKUP(G27,Klasse_M!$H$12:$O$200,8,FALSE) ->  | N24: =VLOOKUP(G27,Klasse_M!$H$12:$O$200,2,FALSE) ->  | P24: =" "&T24&" "&$D$3 -> 3. Mannschaft Freistehend | T24: 3. Mannschaft | U24: =VLOOKUP(P27,Klasse_M!$AD$12:$AK$200,6,FALSE) ->  | V24: =VLOOKUP(P27,Klasse_M!$AD$12:$AK$200,8,FALSE) ->  | W24: =VLOOKUP(P27,Klasse_M!$AD$12:$AK$200,2,FALSE) ->  | AA24: =" "&AE24&" "&$D$3 -> 3. Mannschaft Freistehend | AE24: 3. Mannschaft | AF24: ¢ | AG24: 0 | AJ24: =" "&AN24&" "&$D$3 -> 3. Mannschaft Freistehend | AN24: 3. Mannschaft | AO24: ¢ | AP24: 0 | AV24: Pens, Holger | BK24: Pens, Holger
B25: Tel. | C25: =VLOOKUP($B$18,Brief!$AG$45:$AO$68,7,FALSE) ->  | G25: =IF(H25=0,"",COUNTIF(G$12:G24,">0")+G$9+1) ->  | K25: =VLOOKUP($G25,Klasse_1!$X$11:$AK$500,11,FALSE) ->  | L25: =VLOOKUP($G25,Klasse_1!$X$11:$AK$500,8,FALSE) ->  | M25: =VLOOKUP($G25,Klasse_1!$X$11:$AK$500,10,FALSE) ->  | N25: =VLOOKUP($G25,Klasse_1!$X$11:$AK$500,2,FALSE) ->  | P25: =IF(Q25=0,"",COUNTIF(P$12:P24,">0")+P$9+1) ->  | T25: =VLOOKUP($P25,Klasse_2!$X$11:$AK$500,11,FALSE) ->  | U25: =VLOOKUP($P25,Klasse_2!$X$11:$AK$500,8,FALSE) ->  | V25: =VLOOKUP($P25,Klasse_2!$X$11:$AK$500,10,FALSE) ->  | W25: =VLOOKUP($P25,Klasse_2!$X$11:$AK$500,2,FALSE) ->  | AA25: =IF(AB25=0,"",COUNTIF(AA$12:AA24,">0")+AA$9+1) ->  | AE25: 0 | AF25: ¢ | AG25: 0 | AJ25: =IF(AK25=0,"",COUNTIF(AJ$12:AJ24,">0")+AJ$9+1) ->  | AN25: 0 | AO25: ¢ | AP25: 0 | AU25: 42 | AV25: Sperber, Eva Maria | BJ25: 42 | BK25: Sperber, Eva Maria
B26: Sportleit. | C26: =VLOOKUP($B$18,Brief!$AG$45:$AO$68,8,FALSE) ->  | G26: =IF(H26=0,"",COUNTIF(G$12:G25,">0")+G$9+1) ->  | K26: =VLOOKUP($G26,Klasse_1!$X$11:$AK$500,11,FALSE) ->  | L26: =VLOOKUP($G26,Klasse_1!$X$11:$AK$500,8,FALSE) ->  | M26: =VLOOKUP($G26,Klasse_1!$X$11:$AK$500,10,FALSE) ->  | N26: =VLOOKUP($G26,Klasse_1!$X$11:$AK$500,2,FALSE) ->  | P26: =IF(Q26=0,"",COUNTIF(P$12:P25,">0")+P$9+1) ->  | T26: =VLOOKUP($P26,Klasse_2!$X$11:$AK$500,11,FALSE) ->  | U26: =VLOOKUP($P26,Klasse_2!$X$11:$AK$500,8,FALSE) ->  | V26: =VLOOKUP($P26,Klasse_2!$X$11:$AK$500,10,FALSE) ->  | W26: =VLOOKUP($P26,Klasse_2!$X$11:$AK$500,2,FALSE) ->  | AA26: =IF(AB26=0,"",COUNTIF(AA$12:AA25,">0")+AA$9+1) ->  | AE26: 0 | AF26: ¢ | AG26: 0 | AJ26: =IF(AK26=0,"",COUNTIF(AJ$12:AJ25,">0")+AJ$9+1) ->  | AN26: 0 | AO26: ¢ | AP26: 0
B27: Tel. | C27: =VLOOKUP($B$18,Brief!$AG$45:$AO$68,9,FALSE) ->  | G27: =IF(H27=0,"",COUNTIF(G$12:G26,">0")+G$9+1) ->  | K27: =VLOOKUP($G27,Klasse_1!$X$11:$AK$500,11,FALSE) ->  | L27: =VLOOKUP($G27,Klasse_1!$X$11:$AK$500,8,FALSE) ->  | M27: =VLOOKUP($G27,Klasse_1!$X$11:$AK$500,10,FALSE) ->  | N27: =VLOOKUP($G27,Klasse_1!$X$11:$AK$500,2,FALSE) ->  | P27: =IF(Q27=0,"",COUNTIF(P$12:P26,">0")+P$9+1) ->  | T27: =VLOOKUP($P27,Klasse_2!$X$11:$AK$500,11,FALSE) ->  | U27: =VLOOKUP($P27,Klasse_2!$X$11:$AK$500,8,FALSE) ->  | V27: =VLOOKUP($P27,Klasse_2!$X$11:$AK$500,10,FALSE) ->  | W27: =VLOOKUP($P27,Klasse_2!$X$11:$AK$500,2,FALSE) ->  | AA27: =IF(AB27=0,"",COUNTIF(AA$12:AA26,">0")+AA$9+1) ->  | AE27: 0 | AF27: ¢ | AG27: 0 | AJ27: =IF(AK27=0,"",COUNTIF(AJ$12:AJ26,">0")+AJ$9+1) ->  | AN27: 0 | AO27: ¢ | AP27: 0
G28: =IF(H28=0,"",COUNTIF(G$12:G27,">0")+G$9+1) ->  | K28: =VLOOKUP($G28,Klasse_1!$X$11:$AK$500,11,FALSE) ->  | L28: =VLOOKUP($G28,Klasse_1!$X$11:$AK$500,8,FALSE) ->  | M28: =VLOOKUP($G28,Klasse_1!$X$11:$AK$500,10,FALSE) ->  | N28: =VLOOKUP($G28,Klasse_1!$X$11:$AK$500,2,FALSE) ->  | P28: =IF(Q28=0,"",COUNTIF(P$12:P27,">0")+P$9+1) ->  | T28: =VLOOKUP($P28,Klasse_2!$X$11:$AK$500,11,FALSE) ->  | U28: =VLOOKUP($P28,Klasse_2!$X$11:$AK$500,8,FALSE) ->  | V28: =VLOOKUP($P28,Klasse_2!$X$11:$AK$500,10,FALSE) ->  | W28: =VLOOKUP($P28,Klasse_2!$X$11:$AK$500,2,FALSE) ->  | AA28: =IF(AB28=0,"",COUNTIF(AA$12:AA27,">0")+AA$9+1) ->  | AE28: 0 | AF28: ¢ | AG28: 0 | AJ28: =IF(AK28=0,"",COUNTIF(AJ$12:AJ27,">0")+AJ$9+1) ->  | AN28: 0 | AO28: ¢ | AP28: 0
G29: =IF(H29=0,"",COUNTIF(G$12:G28,">0")+G$9+1) ->  | K29: =VLOOKUP($G29,Klasse_1!$X$11:$AK$500,11,FALSE) ->  | L29: =VLOOKUP($G29,Klasse_1!$X$11:$AK$500,8,FALSE) ->  | M29: =VLOOKUP($G29,Klasse_1!$X$11:$AK$500,10,FALSE) ->  | N29: =VLOOKUP($G29,Klasse_1!$X$11:$AK$500,2,FALSE) ->  | P29: =IF(Q29=0,"",COUNTIF(P$12:P28,">0")+P$9+1) ->  | T29: =VLOOKUP($P29,Klasse_2!$X$11:$AK$500,11,FALSE) ->  | U29: =VLOOKUP($P29,Klasse_2!$X$11:$AK$500,8,FALSE) ->  | V29: =VLOOKUP($P29,Klasse_2!$X$11:$AK$500,10,FALSE) ->  | W29: =VLOOKUP($P29,Klasse_2!$X$11:$AK$500,2,FALSE) ->  | AA29: =IF(AB29=0,"",COUNTIF(AA$12:AA28,">0")+AA$9+1) ->  | AE29: 0 | AF29: ¢ | AG29: 0 | AJ29: =IF(AK29=0,"",COUNTIF(AJ$12:AJ28,">0")+AJ$9+1) ->  | AN29: 0 | AO29: ¢ | AP29: 0
G30: =" "&K30&" "&$D$3 -> 4. Mannschaft Freistehend | K30: 4. Mannschaft | L30: =VLOOKUP(G33,Klasse_M!$H$12:$O$200,6,FALSE) ->  | M30: =VLOOKUP(G33,Klasse_M!$H$12:$O$200,8,FALSE) ->  | N30: =VLOOKUP(G33,Klasse_M!$H$12:$O$200,2,FALSE) ->  | P30: =" "&T30&" "&$D$3 -> 4. Mannschaft Freistehend | T30: 4. Mannschaft | U30: =VLOOKUP(P33,Klasse_M!$AD$12:$AK$200,6,FALSE) ->  | V30: =VLOOKUP(P33,Klasse_M!$AD$12:$AK$200,8,FALSE) ->  | W30: =VLOOKUP(P33,Klasse_M!$AD$12:$AK$200,2,FALSE) ->  | AA30: =" "&AE30&" "&$D$3 -> 4. Mannschaft Freistehend | AE30: 4. Mannschaft | AF30: ¢ | AG30: 0 | AJ30: =" "&AN30&" "&$D$3 -> 4. Mannschaft Freistehend | AN30: 4. Mannschaft | AO30: ¢ | AP30: 0
G31: =IF(H31=0,"",COUNTIF(G$12:G30,">0")+G$9+1) ->  | K31: =VLOOKUP($G31,Klasse_1!$X$11:$AK$500,11,FALSE) ->  | L31: =VLOOKUP($G31,Klasse_1!$X$11:$AK$500,8,FALSE) ->  | M31: =VLOOKUP($G31,Klasse_1!$X$11:$AK$500,10,FALSE) ->  | N31: =VLOOKUP($G31,Klasse_1!$X$11:$AK$500,2,FALSE) ->  | P31: =IF(Q31=0,"",COUNTIF(P$12:P30,">0")+P$9+1) ->  | T31: =VLOOKUP($P31,Klasse_2!$X$11:$AK$500,11,FALSE) ->  | U31: =VLOOKUP($P31,Klasse_2!$X$11:$AK$500,8,FALSE) ->  | V31: =VLOOKUP($P31,Klasse_2!$X$11:$AK$500,10,FALSE) ->  | W31: =VLOOKUP($P31,Klasse_2!$X$11:$AK$500,2,FALSE) ->  | AA31: =IF(AB31=0,"",COUNTIF(AA$12:AA30,">0")+AA$9+1) ->  | AE31: 0 | AF31: ¢ | AG31: 0 | AJ31: =IF(AK31=0,"",COUNTIF(AJ$12:AJ30,">0")+AJ$9+1) ->  | AN31: 0 | AO31: ¢ | AP31: 0
G32: =IF(H32=0,"",COUNTIF(G$12:G31,">0")+G$9+1) ->  | K32: =VLOOKUP($G32,Klasse_1!$X$11:$AK$500,11,FALSE) ->  | L32: =VLOOKUP($G32,Klasse_1!$X$11:$AK$500,8,FALSE) ->  | M32: =VLOOKUP($G32,Klasse_1!$X$11:$AK$500,10,FALSE) ->  | N32: =VLOOKUP($G32,Klasse_1!$X$11:$AK$500,2,FALSE) ->  | P32: =IF(Q32=0,"",COUNTIF(P$12:P31,">0")+P$9+1) ->  | T32: =VLOOKUP($P32,Klasse_2!$X$11:$AK$500,11,FALSE) ->  | U32: =VLOOKUP($P32,Klasse_2!$X$11:$AK$500,8,FALSE) ->  | V32: =VLOOKUP($P32,Klasse_2!$X$11:$AK$500,10,FALSE) ->  | W32: =VLOOKUP($P32,Klasse_2!$X$11:$AK$500,2,FALSE) ->  | AA32: =IF(AB32=0,"",COUNTIF(AA$12:AA31,">0")+AA$9+1) ->  | AE32: 0 | AF32: ¢ | AG32: 0 | AJ32: =IF(AK32=0,"",COUNTIF(AJ$12:AJ31,">0")+AJ$9+1) ->  | AN32: 0 | AO32: ¢ | AP32: 0
G33: =IF(H33=0,"",COUNTIF(G$12:G32,">0")+G$9+1) ->  | K33: =VLOOKUP($G33,Klasse_1!$X$11:$AK$500,11,FALSE) ->  | L33: =VLOOKUP($G33,Klasse_1!$X$11:$AK$500,8,FALSE) ->  | M33: =VLOOKUP($G33,Klasse_1!$X$11:$AK$500,10,FALSE) ->  | N33: =VLOOKUP($G33,Klasse_1!$X$11:$AK$500,2,FALSE) ->  | P33: =IF(Q33=0,"",COUNTIF(P$12:P32,">0")+P$9+1) ->  | T33: =VLOOKUP($P33,Klasse_2!$X$11:$AK$500,11,FALSE) ->  | U33: =VLOOKUP($P33,Klasse_2!$X$11:$AK$500,8,FALSE) ->  | V33: =VLOOKUP($P33,Klasse_2!$X$11:$AK$500,10,FALSE) ->  | W33: =VLOOKUP($P33,Klasse_2!$X$11:$AK$500,2,FALSE) ->  | AA33: =IF(AB33=0,"",COUNTIF(AA$12:AA32,">0")+AA$9+1) ->  | AE33: 0 | AF33: ¢ | AG33: 0 | AJ33: =IF(AK33=0,"",COUNTIF(AJ$12:AJ32,">0")+AJ$9+1) ->  | AN33: 0 | AO33: ¢ | AP33: 0
G34: =IF(H34=0,"",COUNTIF(G$12:G33,">0")+G$9+1) ->  | K34: =VLOOKUP($G34,Klasse_1!$X$11:$AK$500,11,FALSE) ->  | L34: =VLOOKUP($G34,Klasse_1!$X$11:$AK$500,8,FALSE) ->  | M34: =VLOOKUP($G34,Klasse_1!$X$11:$AK$500,10,FALSE) ->  | N34: =VLOOKUP($G34,Klasse_1!$X$11:$AK$500,2,FALSE) ->  | P34: =IF(Q34=0,"",COUNTIF(P$12:P33,">0")+P$9+1) ->  | T34: =VLOOKUP($P34,Klasse_2!$X$11:$AK$500,11,FALSE) ->  | U34: =VLOOKUP($P34,Klasse_2!$X$11:$AK$500,8,FALSE) ->  | V34: =VLOOKUP($P34,Klasse_2!$X$11:$AK$500,10,FALSE) ->  | W34: =VLOOKUP($P34,Klasse_2!$X$11:$AK$500,2,FALSE) ->  | AA34: =IF(AB34=0,"",COUNTIF(AA$12:AA33,">0")+AA$9+1) ->  | AE34: 0 | AF34: ¢ | AG34: 0 | AJ34: =IF(AK34=0,"",COUNTIF(AJ$12:AJ33,">0")+AJ$9+1) ->  | AN34: 0 | AO34: ¢ | AP34: 0
G35: =IF(H35=0,"",COUNTIF(G$12:G34,">0")+G$9+1) ->  | K35: =VLOOKUP($G35,Klasse_1!$X$11:$AK$500,11,FALSE) ->  | L35: =VLOOKUP($G35,Klasse_1!$X$11:$AK$500,8,FALSE) ->  | M35: =VLOOKUP($G35,Klasse_1!$X$11:$AK$500,10,FALSE) ->  | N35: =VLOOKUP($G35,Klasse_1!$X$11:$AK$500,2,FALSE) ->  | P35: =IF(Q35=0,"",COUNTIF(P$12:P34,">0")+P$9+1) ->  | T35: =VLOOKUP($P35,Klasse_2!$X$11:$AK$500,11,FALSE) ->  | U35: =VLOOKUP($P35,Klasse_2!$X$11:$AK$500,8,FALSE) ->  | V35: =VLOOKUP($P35,Klasse_2!$X$11:$AK$500,10,FALSE) ->  | W35: =VLOOKUP($P35,Klasse_2!$X$11:$AK$500,2,FALSE) ->  | AA35: =IF(AB35=0,"",COUNTIF(AA$12:AA34,">0")+AA$9+1) ->  | AE35: 0 | AF35: ¢ | AG35: 0 | AJ35: =IF(AK35=0,"",COUNTIF(AJ$12:AJ34,">0")+AJ$9+1) ->  | AN35: 0 | AO35: ¢ | AP35: 0
B42: EINGABE | G42: =" "&K42&" "&$D$4 -> 1. Mannschaft Aufgelegt | K42: 1. Mannschaft | L42: =VLOOKUP(G45,Klasse_M!$S$12:$Z$200,6,FALSE) ->  | M42: =VLOOKUP(G45,Klasse_M!$S$12:$Z$200,8,FALSE) -> 0 | N42: =VLOOKUP(G45,Klasse_M!$S$12:$Z$200,2,FALSE) -> 1 | P42: =" "&T42&" "&$D$4 -> 1. Mannschaft Aufgelegt | T42: 1. Mannschaft | U42: =VLOOKUP(P45,Klasse_M!$AO$12:$AV$200,6,FALSE) ->  | V42: =VLOOKUP(P45,Klasse_M!$AO$12:$AV$200,8,FALSE) ->  | W42: =VLOOKUP(P45,Klasse_M!$AO$12:$AV$200,2,FALSE) ->  | AA42: =" "&AE42&" "&$D$4 -> 1. Mannschaft Aufgelegt | AE42: 1. Mannschaft | AF42: ¢ | AG42: 0 | AJ42: =" "&AN42&" "&$D$4 -> 1. Mannschaft Aufgelegt | AN42: 1. Mannschaft | AO42: ¢ | AP42: 0
G43: =IF(H43=0,"",COUNTIF(G$12:G42,">0")+G$9+1) -> 23 | H43: Hammelsbruch, Helmut | K43: =VLOOKUP($G43,Klasse_1!$AT$11:$BG$500,11,FALSE) ->  | L43: =VLOOKUP($G43,Klasse_1!$AT$11:$BG$500,8,FALSE) ->  | M43: =VLOOKUP($G43,Klasse_1!$AT$11:$BG$500,10,FALSE) ->  | N43: =VLOOKUP($G43,Klasse_1!$AT$11:$BG$500,2,FALSE) ->  | P43: =IF(Q43=0,"",COUNTIF(P$12:P42,">0")+P$9+1) ->  | T43: =VLOOKUP($P43,Klasse_2!$AT$11:$BG$500,11,FALSE) ->  | U43: =VLOOKUP($P43,Klasse_2!$AT$11:$BG$500,8,FALSE) ->  | V43: =VLOOKUP($P43,Klasse_2!$AT$11:$BG$500,10,FALSE) ->  | W43: =VLOOKUP($P43,Klasse_2!$AT$11:$BG$500,2,FALSE) ->  | AA43: =IF(AB43=0,"",COUNTIF(AA$12:AA42,">0")+AA$9+1) ->  | AE43: 0 | AF43: ¢ | AG43: 0 | AJ43: =IF(AK43=0,"",COUNTIF(AJ$12:AJ42,">0")+AJ$9+1) ->  | AN43: 0 | AO43: ¢ | AP43: 0
B44: =$D$1 -> Schützen | C44: =$D$2 -> Damen | G44: =IF(H44=0,"",COUNTIF(G$12:G43,">0")+G$9+1) -> 24 | H44: Balting, Roswita | K44: =VLOOKUP($G44,Klasse_1!$AT$11:$BG$500,11,FALSE) ->  | L44: =VLOOKUP($G44,Klasse_1!$AT$11:$BG$500,8,FALSE) ->  | M44: =VLOOKUP($G44,Klasse_1!$AT$11:$BG$500,10,FALSE) ->  | N44: =VLOOKUP($G44,Klasse_1!$AT$11:$BG$500,2,FALSE) ->  | P44: =IF(Q44=0,"",COUNTIF(P$12:P43,">0")+P$9+1) ->  | T44: =VLOOKUP($P44,Klasse_2!$AT$11:$BG$500,11,FALSE) ->  | U44: =VLOOKUP($P44,Klasse_2!$AT$11:$BG$500,8,FALSE) ->  | V44: =VLOOKUP($P44,Klasse_2!$AT$11:$BG$500,10,FALSE) ->  | W44: =VLOOKUP($P44,Klasse_2!$AT$11:$BG$500,2,FALSE) ->  | AA44: =IF(AB44=0,"",COUNTIF(AA$12:AA43,">0")+AA$9+1) ->  | AE44: 0 | AF44: ¢ | AG44: 0 | AJ44: =IF(AK44=0,"",COUNTIF(AJ$12:AJ43,">0")+AJ$9+1) ->  | AN44: 0 | AO44: ¢ | AP44: 0
B45: =$D$5 ->  | C45: =$D$8 ->  | G45: =IF(H45=0,"",COUNTIF(G$12:G44,">0")+G$9+1) -> 25 | H45: Kilb, Willi | K45: =VLOOKUP($G45,Klasse_1!$AT$11:$BG$500,11,FALSE) ->  | L45: =VLOOKUP($G45,Klasse_1!$AT$11:$BG$500,8,FALSE) ->  | M45: =VLOOKUP($G45,Klasse_1!$AT$11:$BG$500,10,FALSE) ->  | N45: =VLOOKUP($G45,Klasse_1!$AT$11:$BG$500,2,FALSE) ->  | P45: =IF(Q45=0,"",COUNTIF(P$12:P44,">0")+P$9+1) ->  | T45: =VLOOKUP($P45,Klasse_2!$AT$11:$BG$500,11,FALSE) ->  | U45: =VLOOKUP($P45,Klasse_2!$AT$11:$BG$500,8,FALSE) ->  | V45: =VLOOKUP($P45,Klasse_2!$AT$11:$BG$500,10,FALSE) ->  | W45: =VLOOKUP($P45,Klasse_2!$AT$11:$BG$500,2,FALSE) ->  | AA45: =IF(AB45=0,"",COUNTIF(AA$12:AA44,">0")+AA$9+1) ->  | AE45: 0 | AF45: ¢ | AG45: 0 | AJ45: =IF(AK45=0,"",COUNTIF(AJ$12:AJ44,">0")+AJ$9+1) ->  | AN45: 0 | AO45: ¢ | AP45: 0
G46: =IF(H46=0,"",COUNTIF(G$12:G45,">0")+G$9+1) ->  | K46: =VLOOKUP($G46,Klasse_1!$AT$11:$BG$500,11,FALSE) ->  | L46: =VLOOKUP($G46,Klasse_1!$AT$11:$BG$500,8,FALSE) ->  | M46: =VLOOKUP($G46,Klasse_1!$AT$11:$BG$500,10,FALSE) ->  | N46: =VLOOKUP($G46,Klasse_1!$AT$11:$BG$500,2,FALSE) ->  | P46: =IF(Q46=0,"",COUNTIF(P$12:P45,">0")+P$9+1) ->  | T46: =VLOOKUP($P46,Klasse_2!$AT$11:$BG$500,11,FALSE) ->  | U46: =VLOOKUP($P46,Klasse_2!$AT$11:$BG$500,8,FALSE) ->  | V46: =VLOOKUP($P46,Klasse_2!$AT$11:$BG$500,10,FALSE) ->  | W46: =VLOOKUP($P46,Klasse_2!$AT$11:$BG$500,2,FALSE) ->  | AA46: =IF(AB46=0,"",COUNTIF(AA$12:AA45,">0")+AA$9+1) ->  | AE46: 0 | AF46: ¢ | AG46: 0 | AJ46: =IF(AK46=0,"",COUNTIF(AJ$12:AJ45,">0")+AJ$9+1) ->  | AN46: 0 | AO46: ¢ | AP46: 0
G47: =IF(H47=0,"",COUNTIF(G$12:G46,">0")+G$9+1) ->  | K47: =VLOOKUP($G47,Klasse_1!$AT$11:$BG$500,11,FALSE) ->  | L47: =VLOOKUP($G47,Klasse_1!$AT$11:$BG$500,8,FALSE) ->  | M47: =VLOOKUP($G47,Klasse_1!$AT$11:$BG$500,10,FALSE) ->  | N47: =VLOOKUP($G47,Klasse_1!$AT$11:$BG$500,2,FALSE) ->  | P47: =IF(Q47=0,"",COUNTIF(P$12:P46,">0")+P$9+1) ->  | T47: =VLOOKUP($P47,Klasse_2!$AT$11:$BG$500,11,FALSE) ->  | U47: =VLOOKUP($P47,Klasse_2!$AT$11:$BG$500,8,FALSE) ->  | V47: =VLOOKUP($P47,Klasse_2!$AT$11:$BG$500,10,FALSE) ->  | W47: =VLOOKUP($P47,Klasse_2!$AT$11:$BG$500,2,FALSE) ->  | AA47: =IF(AB47=0,"",COUNTIF(AA$12:AA46,">0")+AA$9+1) ->  | AE47: 0 | AF47: ¢ | AG47: 0 | AJ47: =IF(AK47=0,"",COUNTIF(AJ$12:AJ46,">0")+AJ$9+1) ->  | AN47: 0 | AO47: ¢ | AP47: 0
B48: =B18 -> C | G48: =" "&K48&" "&$D$4 -> 2. Mannschaft Aufgelegt | K48: 2. Mannschaft | L48: =VLOOKUP(G51,Klasse_M!$S$12:$Z$200,6,FALSE) ->  | M48: =VLOOKUP(G51,Klasse_M!$S$12:$Z$200,8,FALSE) -> 0 | N48: =VLOOKUP(G51,Klasse_M!$S$12:$Z$200,2,FALSE) -> 1 | P48: =" "&T48&" "&$D$4 -> 2. Mannschaft Aufgelegt | T48: 2. Mannschaft | U48: =VLOOKUP(P51,Klasse_M!$AO$12:$AV$200,6,FALSE) ->  | V48: =VLOOKUP(P51,Klasse_M!$AO$12:$AV$200,8,FALSE) ->  | W48: =VLOOKUP(P51,Klasse_M!$AO$12:$AV$200,2,FALSE) ->  | AA48: =" "&AE48&" "&$D$4 -> 2. Mannschaft Aufgelegt | AE48: 2. Mannschaft | AF48: ¢ | AG48: 0 | AJ48: =" "&AN48&" "&$D$4 -> 2. Mannschaft Aufgelegt | AN48: 2. Mannschaft | AO48: ¢ | AP48: 0
G49: =IF(H49=0,"",COUNTIF(G$12:G48,">0")+G$9+1) -> 26 | H49: Sperber, Eva Maria | K49: =VLOOKUP($G49,Klasse_1!$AT$11:$BG$500,11,FALSE) ->  | L49: =VLOOKUP($G49,Klasse_1!$AT$11:$BG$500,8,FALSE) ->  | M49: =VLOOKUP($G49,Klasse_1!$AT$11:$BG$500,10,FALSE) ->  | N49: =VLOOKUP($G49,Klasse_1!$AT$11:$BG$500,2,FALSE) ->  | P49: =IF(Q49=0,"",COUNTIF(P$12:P48,">0")+P$9+1) ->  | T49: =VLOOKUP($P49,Klasse_2!$AT$11:$BG$500,11,FALSE) ->  | U49: =VLOOKUP($P49,Klasse_2!$AT$11:$BG$500,8,FALSE) ->  | V49: =VLOOKUP($P49,Klasse_2!$AT$11:$BG$500,10,FALSE) ->  | W49: =VLOOKUP($P49,Klasse_2!$AT$11:$BG$500,2,FALSE) ->  | AA49: =IF(AB49=0,"",COUNTIF(AA$12:AA48,">0")+AA$9+1) ->  | AE49: 0 | AF49: ¢ | AG49: 0 | AJ49: =IF(AK49=0,"",COUNTIF(AJ$12:AJ48,">0")+AJ$9+1) ->  | AN49: 0 | AO49: ¢ | AP49: 0
B50: =VLOOKUP($B$18,Brief!$AG$45:$AO$68,3,FALSE) -> ABSV Buschhausen 1950 e.V. | G50: =IF(H50=0,"",COUNTIF(G$12:G49,">0")+G$9+1) -> 27 | H50: Hammer, Thomas | K50: =VLOOKUP($G50,Klasse_1!$AT$11:$BG$500,11,FALSE) ->  | L50: =VLOOKUP($G50,Klasse_1!$AT$11:$BG$500,8,FALSE) ->  | M50: =VLOOKUP($G50,Klasse_1!$AT$11:$BG$500,10,FALSE) ->  | N50: =VLOOKUP($G50,Klasse_1!$AT$11:$BG$500,2,FALSE) ->  | P50: =IF(Q50=0,"",COUNTIF(P$12:P49,">0")+P$9+1) ->  | T50: =VLOOKUP($P50,Klasse_2!$AT$11:$BG$500,11,FALSE) ->  | U50: =VLOOKUP($P50,Klasse_2!$AT$11:$BG$500,8,FALSE) ->  | V50: =VLOOKUP($P50,Klasse_2!$AT$11:$BG$500,10,FALSE) ->  | W50: =VLOOKUP($P50,Klasse_2!$AT$11:$BG$500,2,FALSE) ->  | AA50: =IF(AB50=0,"",COUNTIF(AA$12:AA49,">0")+AA$9+1) ->  | AE50: 0 | AF50: ¢ | AG50: 0 | AJ50: =IF(AK50=0,"",COUNTIF(AJ$12:AJ49,">0")+AJ$9+1) ->  | AN50: 0 | AO50: ¢ | AP50: 0
B51: VereinsNr. | C51: =VLOOKUP($B$18,Brief!$AG$45:$AP$68,10,FALSE) -> 1108 | G51: =IF(H51=0,"",COUNTIF(G$12:G50,">0")+G$9+1) -> 28 | H51: Awischus, Mark | K51: =VLOOKUP($G51,Klasse_1!$AT$11:$BG$500,11,FALSE) ->  | L51: =VLOOKUP($G51,Klasse_1!$AT$11:$BG$500,8,FALSE) ->  | M51: =VLOOKUP($G51,Klasse_1!$AT$11:$BG$500,10,FALSE) ->  | N51: =VLOOKUP($G51,Klasse_1!$AT$11:$BG$500,2,FALSE) ->  | P51: =IF(Q51=0,"",COUNTIF(P$12:P50,">0")+P$9+1) ->  | T51: =VLOOKUP($P51,Klasse_2!$AT$11:$BG$500,11,FALSE) ->  | U51: =VLOOKUP($P51,Klasse_2!$AT$11:$BG$500,8,FALSE) ->  | V51: =VLOOKUP($P51,Klasse_2!$AT$11:$BG$500,10,FALSE) ->  | W51: =VLOOKUP($P51,Klasse_2!$AT$11:$BG$500,2,FALSE) ->  | AA51: =IF(AB51=0,"",COUNTIF(AA$12:AA50,">0")+AA$9+1) ->  | AE51: 0 | AF51: ¢ | AG51: 0 | AJ51: =IF(AK51=0,"",COUNTIF(AJ$12:AJ50,">0")+AJ$9+1) ->  | AN51: 0 | AO51: ¢ | AP51: 0
B52: Anspr. | C52: =VLOOKUP($B$18,Brief!$AG$45:$AO$68,4,FALSE) -> Awischus, Mark | G52: =IF(H52=0,"",COUNTIF(G$12:G51,">0")+G$9+1) ->  | K52: =VLOOKUP($G52,Klasse_1!$AT$11:$BG$500,11,FALSE) ->  | L52: =VLOOKUP($G52,Klasse_1!$AT$11:$BG$500,8,FALSE) ->  | M52: =VLOOKUP($G52,Klasse_1!$AT$11:$BG$500,10,FALSE) ->  | N52: =VLOOKUP($G52,Klasse_1!$AT$11:$BG$500,2,FALSE) ->  | P52: =IF(Q52=0,"",COUNTIF(P$12:P51,">0")+P$9+1) ->  | T52: =VLOOKUP($P52,Klasse_2!$AT$11:$BG$500,11,FALSE) ->  | U52: =VLOOKUP($P52,Klasse_2!$AT$11:$BG$500,8,FALSE) ->  | V52: =VLOOKUP($P52,Klasse_2!$AT$11:$BG$500,10,FALSE) ->  | W52: =VLOOKUP($P52,Klasse_2!$AT$11:$BG$500,2,FALSE) ->  | AA52: =IF(AB52=0,"",COUNTIF(AA$12:AA51,">0")+AA$9+1) ->  | AE52: 0 | AF52: ¢ | AG52: 0 | AJ52: =IF(AK52=0,"",COUNTIF(AJ$12:AJ51,">0")+AJ$9+1) ->  | AN52: 0 | AO52: ¢ | AP52: 0
B53: Anschrift | C53: =VLOOKUP($B$18,Brief!$AG$45:$AO$68,5,FALSE) -> Friesenstr. 63 | G53: =IF(H53=0,"",COUNTIF(G$12:G52,">0")+G$9+1) ->  | K53: =VLOOKUP($G53,Klasse_1!$AT$11:$BG$500,11,FALSE) ->  | L53: =VLOOKUP($G53,Klasse_1!$AT$11:$BG$500,8,FALSE) ->  | M53: =VLOOKUP($G53,Klasse_1!$AT$11:$BG$500,10,FALSE) ->  | N53: =VLOOKUP($G53,Klasse_1!$AT$11:$BG$500,2,FALSE) ->  | P53: =IF(Q53=0,"",COUNTIF(P$12:P52,">0")+P$9+1) ->  | T53: =VLOOKUP($P53,Klasse_2!$AT$11:$BG$500,11,FALSE) ->  | U53: =VLOOKUP($P53,Klasse_2!$AT$11:$BG$500,8,FALSE) ->  | V53: =VLOOKUP($P53,Klasse_2!$AT$11:$BG$500,10,FALSE) ->  | W53: =VLOOKUP($P53,Klasse_2!$AT$11:$BG$500,2,FALSE) ->  | AA53: =IF(AB53=0,"",COUNTIF(AA$12:AA52,">0")+AA$9+1) ->  | AE53: 0 | AF53: ¢ | AG53: 0 | AJ53: =IF(AK53=0,"",COUNTIF(AJ$12:AJ52,">0")+AJ$9+1) ->  | AN53: 0 | AO53: ¢ | AP53: 0
B54: PLZ / Ort | C54: =VLOOKUP($B$18,Brief!$AG$45:$AO$68,6,FALSE) -> 46149 Oberhausen | G54: =" "&K54&" "&$D$4 -> 3. Mannschaft Aufgelegt | K54: 3. Mannschaft | L54: =VLOOKUP(G57,Klasse_M!$S$12:$Z$200,6,FALSE) ->  | M54: =VLOOKUP(G57,Klasse_M!$S$12:$Z$200,8,FALSE) ->  | N54: =VLOOKUP(G57,Klasse_M!$S$12:$Z$200,2,FALSE) ->  | P54: =" "&T54&" "&$D$4 -> 3. Mannschaft Aufgelegt | T54: 3. Mannschaft | U54: =VLOOKUP(P57,Klasse_M!$AO$12:$AV$200,6,FALSE) ->  | V54: =VLOOKUP(P57,Klasse_M!$AO$12:$AV$200,8,FALSE) ->  | W54: =VLOOKUP(P57,Klasse_M!$AO$12:$AV$200,2,FALSE) ->  | AA54: =" "&AE54&" "&$D$4 -> 3. Mannschaft Aufgelegt | AE54: 3. Mannschaft | AF54: ¢ | AG54: 0 | AJ54: =" "&AN54&" "&$D$4 -> 3. Mannschaft Aufgelegt | AN54: 3. Mannschaft | AO54: ¢ | AP54: 0
B55: Tel. | C55: =VLOOKUP($B$18,Brief!$AG$45:$AO$68,7,FALSE) ->  | G55: =IF(H55=0,"",COUNTIF(G$12:G54,">0")+G$9+1) ->  | K55: =VLOOKUP($G55,Klasse_1!$AT$11:$BG$500,11,FALSE) ->  | L55: =VLOOKUP($G55,Klasse_1!$AT$11:$BG$500,8,FALSE) ->  | M55: =VLOOKUP($G55,Klasse_1!$AT$11:$BG$500,10,FALSE) ->  | N55: =VLOOKUP($G55,Klasse_1!$AT$11:$BG$500,2,FALSE) ->  | P55: =IF(Q55=0,"",COUNTIF(P$12:P54,">0")+P$9+1) ->  | T55: =VLOOKUP($P55,Klasse_2!$AT$11:$BG$500,11,FALSE) ->  | U55: =VLOOKUP($P55,Klasse_2!$AT$11:$BG$500,8,FALSE) ->  | V55: =VLOOKUP($P55,Klasse_2!$AT$11:$BG$500,10,FALSE) ->  | W55: =VLOOKUP($P55,Klasse_2!$AT$11:$BG$500,2,FALSE) ->  | AA55: =IF(AB55=0,"",COUNTIF(AA$12:AA54,">0")+AA$9+1) ->  | AE55: 0 | AF55: ¢ | AG55: 0 | AJ55: =IF(AK55=0,"",COUNTIF(AJ$12:AJ54,">0")+AJ$9+1) ->  | AN55: 0 | AO55: ¢ | AP55: 0
B56: Sportleit. | C56: =VLOOKUP($B$18,Brief!$AG$45:$AO$68,8,FALSE) ->  | G56: =IF(H56=0,"",COUNTIF(G$12:G55,">0")+G$9+1) ->  | K56: =VLOOKUP($G56,Klasse_1!$AT$11:$BG$500,11,FALSE) ->  | L56: =VLOOKUP($G56,Klasse_1!$AT$11:$BG$500,8,FALSE) ->  | M56: =VLOOKUP($G56,Klasse_1!$AT$11:$BG$500,10,FALSE) ->  | N56: =VLOOKUP($G56,Klasse_1!$AT$11:$BG$500,2,FALSE) ->  | P56: =IF(Q56=0,"",COUNTIF(P$12:P55,">0")+P$9+1) ->  | T56: =VLOOKUP($P56,Klasse_2!$AT$11:$BG$500,11,FALSE) ->  | U56: =VLOOKUP($P56,Klasse_2!$AT$11:$BG$500,8,FALSE) ->  | V56: =VLOOKUP($P56,Klasse_2!$AT$11:$BG$500,10,FALSE) ->  | W56: =VLOOKUP($P56,Klasse_2!$AT$11:$BG$500,2,FALSE) ->  | AA56: =IF(AB56=0,"",COUNTIF(AA$12:AA55,">0")+AA$9+1) ->  | AE56: 0 | AF56: ¢ | AG56: 0 | AJ56: =IF(AK56=0,"",COUNTIF(AJ$12:AJ55,">0")+AJ$9+1) ->  | AN56: 0 | AO56: ¢ | AP56: 0
B57: Tel. | C57: =VLOOKUP($B$18,Brief!$AG$45:$AO$68,9,FALSE) ->  | G57: =IF(H57=0,"",COUNTIF(G$12:G56,">0")+G$9+1) ->  | K57: =VLOOKUP($G57,Klasse_1!$AT$11:$BG$500,11,FALSE) ->  | L57: =VLOOKUP($G57,Klasse_1!$AT$11:$BG$500,8,FALSE) ->  | M57: =VLOOKUP($G57,Klasse_1!$AT$11:$BG$500,10,FALSE) ->  | N57: =VLOOKUP($G57,Klasse_1!$AT$11:$BG$500,2,FALSE) ->  | P57: =IF(Q57=0,"",COUNTIF(P$12:P56,">0")+P$9+1) ->  | T57: =VLOOKUP($P57,Klasse_2!$AT$11:$BG$500,11,FALSE) ->  | U57: =VLOOKUP($P57,Klasse_2!$AT$11:$BG$500,8,FALSE) ->  | V57: =VLOOKUP($P57,Klasse_2!$AT$11:$BG$500,10,FALSE) ->  | W57: =VLOOKUP($P57,Klasse_2!$AT$11:$BG$500,2,FALSE) ->  | AA57: =IF(AB57=0,"",COUNTIF(AA$12:AA56,">0")+AA$9+1) ->  | AE57: 0 | AF57: ¢ | AG57: 0 | AJ57: =IF(AK57=0,"",COUNTIF(AJ$12:AJ56,">0")+AJ$9+1) ->  | AN57: 0 | AO57: ¢ | AP57: 0
G58: =IF(H58=0,"",COUNTIF(G$12:G57,">0")+G$9+1) ->  | K58: =VLOOKUP($G58,Klasse_1!$AT$11:$BG$500,11,FALSE) ->  | L58: =VLOOKUP($G58,Klasse_1!$AT$11:$BG$500,8,FALSE) ->  | M58: =VLOOKUP($G58,Klasse_1!$AT$11:$BG$500,10,FALSE) ->  | N58: =VLOOKUP($G58,Klasse_1!$AT$11:$BG$500,2,FALSE) ->  | P58: =IF(Q58=0,"",COUNTIF(P$12:P57,">0")+P$9+1) ->  | T58: =VLOOKUP($P58,Klasse_2!$AT$11:$BG$500,11,FALSE) ->  | U58: =VLOOKUP($P58,Klasse_2!$AT$11:$BG$500,8,FALSE) ->  | V58: =VLOOKUP($P58,Klasse_2!$AT$11:$BG$500,10,FALSE) ->  | W58: =VLOOKUP($P58,Klasse_2!$AT$11:$BG$500,2,FALSE) ->  | AA58: =IF(AB58=0,"",COUNTIF(AA$12:AA57,">0")+AA$9+1) ->  | AE58: 0 | AF58: ¢ | AG58: 0 | AJ58: =IF(AK58=0,"",COUNTIF(AJ$12:AJ57,">0")+AJ$9+1) ->  | AN58: 0 | AO58: ¢ | AP58: 0
G59: =IF(H59=0,"",COUNTIF(G$12:G58,">0")+G$9+1) ->  | K59: =VLOOKUP($G59,Klasse_1!$AT$11:$BG$500,11,FALSE) ->  | L59: =VLOOKUP($G59,Klasse_1!$AT$11:$BG$500,8,FALSE) ->  | M59: =VLOOKUP($G59,Klasse_1!$AT$11:$BG$500,10,FALSE) ->  | N59: =VLOOKUP($G59,Klasse_1!$AT$11:$BG$500,2,FALSE) ->  | P59: =IF(Q59=0,"",COUNTIF(P$12:P58,">0")+P$9+1) ->  | T59: =VLOOKUP($P59,Klasse_2!$AT$11:$BG$500,11,FALSE) ->  | U59: =VLOOKUP($P59,Klasse_2!$AT$11:$BG$500,8,FALSE) ->  | V59: =VLOOKUP($P59,Klasse_2!$AT$11:$BG$500,10,FALSE) ->  | W59: =VLOOKUP($P59,Klasse_2!$AT$11:$BG$500,2,FALSE) ->  | AA59: =IF(AB59=0,"",COUNTIF(AA$12:AA58,">0")+AA$9+1) ->  | AE59: 0 | AF59: ¢ | AG59: 0 | AJ59: =IF(AK59=0,"",COUNTIF(AJ$12:AJ58,">0")+AJ$9+1) ->  | AN59: 0 | AO59: ¢ | AP59: 0
G60: =" "&K60&" "&$D$4 -> 4. Mannschaft Aufgelegt | K60: 4. Mannschaft | L60: =VLOOKUP(G63,Klasse_M!$S$12:$Z$200,6,FALSE) ->  | M60: =VLOOKUP(G63,Klasse_M!$S$12:$Z$200,8,FALSE) ->  | N60: =VLOOKUP(G63,Klasse_M!$S$12:$Z$200,2,FALSE) ->  | P60: =" "&T60&" "&$D$4 -> 4. Mannschaft Aufgelegt | T60: 4. Mannschaft | U60: =VLOOKUP(P63,Klasse_M!$AO$12:$AV$200,6,FALSE) ->  | V60: =VLOOKUP(P63,Klasse_M!$AO$12:$AV$200,8,FALSE) ->  | W60: =VLOOKUP(P63,Klasse_M!$AO$12:$AV$200,2,FALSE) ->  | AA60: =" "&AE60&" "&$D$4 -> 4. Mannschaft Aufgelegt | AE60: 4. Mannschaft | AF60: ¢ | AG60: 0 | AJ60: =" "&AN60&" "&$D$4 -> 4. Mannschaft Aufgelegt | AN60: 4. Mannschaft | AO60: ¢ | AP60: 0
G61: =IF(H61=0,"",COUNTIF(G$12:G60,">0")+G$9+1) ->  | K61: =VLOOKUP($G61,Klasse_1!$AT$11:$BG$500,11,FALSE) ->  | L61: =VLOOKUP($G61,Klasse_1!$AT$11:$BG$500,8,FALSE) ->  | M61: =VLOOKUP($G61,Klasse_1!$AT$11:$BG$500,10,FALSE) ->  | N61: =VLOOKUP($G61,Klasse_1!$AT$11:$BG$500,2,FALSE) ->  | P61: =IF(Q61=0,"",COUNTIF(P$12:P60,">0")+P$9+1) ->  | T61: =VLOOKUP($P61,Klasse_2!$AT$11:$BG$500,11,FALSE) ->  | U61: =VLOOKUP($P61,Klasse_2!$AT$11:$BG$500,8,FALSE) ->  | V61: =VLOOKUP($P61,Klasse_2!$AT$11:$BG$500,10,FALSE) ->  | W61: =VLOOKUP($P61,Klasse_2!$AT$11:$BG$500,2,FALSE) ->  | AA61: =IF(AB61=0,"",COUNTIF(AA$12:AA60,">0")+AA$9+1) ->  | AE61: 0 | AF61: ¢ | AG61: 0 | AJ61: =IF(AK61=0,"",COUNTIF(AJ$12:AJ60,">0")+AJ$9+1) ->  | AN61: 0 | AO61: ¢ | AP61: 0
G62: =IF(H62=0,"",COUNTIF(G$12:G61,">0")+G$9+1) ->  | K62: =VLOOKUP($G62,Klasse_1!$AT$11:$BG$500,11,FALSE) ->  | L62: =VLOOKUP($G62,Klasse_1!$AT$11:$BG$500,8,FALSE) ->  | M62: =VLOOKUP($G62,Klasse_1!$AT$11:$BG$500,10,FALSE) ->  | N62: =VLOOKUP($G62,Klasse_1!$AT$11:$BG$500,2,FALSE) ->  | P62: =IF(Q62=0,"",COUNTIF(P$12:P61,">0")+P$9+1) ->  | T62: =VLOOKUP($P62,Klasse_2!$AT$11:$BG$500,11,FALSE) ->  | U62: =VLOOKUP($P62,Klasse_2!$AT$11:$BG$500,8,FALSE) ->  | V62: =VLOOKUP($P62,Klasse_2!$AT$11:$BG$500,10,FALSE) ->  | W62: =VLOOKUP($P62,Klasse_2!$AT$11:$BG$500,2,FALSE) ->  | AA62: =IF(AB62=0,"",COUNTIF(AA$12:AA61,">0")+AA$9+1) ->  | AE62: 0 | AF62: ¢ | AG62: 0 | AJ62: =IF(AK62=0,"",COUNTIF(AJ$12:AJ61,">0")+AJ$9+1) ->  | AN62: 0 | AO62: ¢ | AP62: 0
G63: =IF(H63=0,"",COUNTIF(G$12:G62,">0")+G$9+1) ->  | K63: =VLOOKUP($G63,Klasse_1!$AT$11:$BG$500,11,FALSE) ->  | L63: =VLOOKUP($G63,Klasse_1!$AT$11:$BG$500,8,FALSE) ->  | M63: =VLOOKUP($G63,Klasse_1!$AT$11:$BG$500,10,FALSE) ->  | N63: =VLOOKUP($G63,Klasse_1!$AT$11:$BG$500,2,FALSE) ->  | P63: =IF(Q63=0,"",COUNTIF(P$12:P62,">0")+P$9+1) ->  | T63: =VLOOKUP($P63,Klasse_2!$AT$11:$BG$500,11,FALSE) ->  | U63: =VLOOKUP($P63,Klasse_2!$AT$11:$BG$500,8,FALSE) ->  | V63: =VLOOKUP($P63,Klasse_2!$AT$11:$BG$500,10,FALSE) ->  | W63: =VLOOKUP($P63,Klasse_2!$AT$11:$BG$500,2,FALSE) ->  | AA63: =IF(AB63=0,"",COUNTIF(AA$12:AA62,">0")+AA$9+1) ->  | AE63: 0 | AF63: ¢ | AG63: 0 | AJ63: =IF(AK63=0,"",COUNTIF(AJ$12:AJ62,">0")+AJ$9+1) ->  | AN63: 0 | AO63: ¢ | AP63: 0
G64: =IF(H64=0,"",COUNTIF(G$12:G63,">0")+G$9+1) ->  | K64: =VLOOKUP($G64,Klasse_1!$AT$11:$BG$500,11,FALSE) ->  | L64: =VLOOKUP($G64,Klasse_1!$AT$11:$BG$500,8,FALSE) ->  | M64: =VLOOKUP($G64,Klasse_1!$AT$11:$BG$500,10,FALSE) ->  | N64: =VLOOKUP($G64,Klasse_1!$AT$11:$BG$500,2,FALSE) ->  | P64: =IF(Q64=0,"",COUNTIF(P$12:P63,">0")+P$9+1) ->  | T64: =VLOOKUP($P64,Klasse_2!$AT$11:$BG$500,11,FALSE) ->  | U64: =VLOOKUP($P64,Klasse_2!$AT$11:$BG$500,8,FALSE) ->  | V64: =VLOOKUP($P64,Klasse_2!$AT$11:$BG$500,10,FALSE) ->  | W64: =VLOOKUP($P64,Klasse_2!$AT$11:$BG$500,2,FALSE) ->  | AA64: =IF(AB64=0,"",COUNTIF(AA$12:AA63,">0")+AA$9+1) ->  | AE64: 0 | AF64: ¢ | AG64: 0 | AJ64: =IF(AK64=0,"",COUNTIF(AJ$12:AJ63,">0")+AJ$9+1) ->  | AN64: 0 | AO64: ¢ | AP64: 0
G65: =IF(H65=0,"",COUNTIF(G$12:G64,">0")+G$9+1) ->  | K65: =VLOOKUP($G65,Klasse_1!$AT$11:$BG$500,11,FALSE) ->  | L65: =VLOOKUP($G65,Klasse_1!$AT$11:$BG$500,8,FALSE) ->  | M65: =VLOOKUP($G65,Klasse_1!$AT$11:$BG$500,10,FALSE) ->  | N65: =VLOOKUP($G65,Klasse_1!$AT$11:$BG$500,2,FALSE) ->  | P65: =IF(Q65=0,"",COUNTIF(P$12:P64,">0")+P$9+1) ->  | T65: =VLOOKUP($P65,Klasse_2!$AT$11:$BG$500,11,FALSE) ->  | U65: =VLOOKUP($P65,Klasse_2!$AT$11:$BG$500,8,FALSE) ->  | V65: =VLOOKUP($P65,Klasse_2!$AT$11:$BG$500,10,FALSE) ->  | W65: =VLOOKUP($P65,Klasse_2!$AT$11:$BG$500,2,FALSE) ->  | AA65: =IF(AB65=0,"",COUNTIF(AA$12:AA64,">0")+AA$9+1) ->  | AE65: 0 | AF65: ¢ | AG65: 0 | AJ65: =IF(AK65=0,"",COUNTIF(AJ$12:AJ64,">0")+AJ$9+1) ->  | AN65: 0 | AO65: ¢ | AP65: 0

Sheet D
D1: =Brief!D1 -> Schützen | G1: =" "&Brief!$K$13&" "&Brief!$K$14&" "&Brief!$K$15 -> SV Rothebusch 1922 e.V. 21. Optik Giepen Pokal 03/04. Febr. 2018 | AA1: =" "&Brief!$K$13&" "&Brief!$K$14&" "&Brief!$K$15 -> SV Rothebusch 1922 e.V. 21. Optik Giepen Pokal 03/04. Febr. 2018 | AU1: =" "&Brief!$K$13&" "&Brief!$K$14&" "&Brief!$K$15 -> SV Rothebusch 1922 e.V. 21. Optik Giepen Pokal 03/04. Febr. 2018 | BJ1: =" "&Brief!$K$13&" "&Brief!$K$14&" "&Brief!$K$15 -> SV Rothebusch 1922 e.V. 21. Optik Giepen Pokal 03/04. Febr. 2018
B2: =Brief!$AH$45 -> SV Rothebusch 1922 e.V. | D2: =Brief!D2 -> Damen | E2: =A!$E$2 -> 22 | F2: =IF($B$18="A",$B$18,"") ->  | Z2: =$F2 ->  | AT2: =$F2 ->  | BI2: =$F2 -> 
B3: =Brief!$AH$46 -> ABSV 1921 | D3: =Brief!D3 -> Freistehend | E3: =A!$E$3 -> 22 | F3: =IF($B$18="B",$B$18,"") -> 
B4: =Brief!$AH$47 -> Buschhausen | D4: =Brief!D4 -> Aufgelegt | E4: =A!$E$4 -> 28 | F4: =IF($B$18="C",$B$18,"") ->  | G4: =VLOOKUP($B$18,Brief!$AG$45:$AO$68,3,FALSE) -> BSGi Holten 1308 e.V. | P4: Wertungen | AA4: =VLOOKUP($B$18,Brief!$AG$45:$AO$68,3,FALSE) -> BSGi Holten 1308 e.V. | AJ4: Wertungen | AU4: =VLOOKUP($B$18,Brief!$AG$45:$AO$68,3,FALSE) -> BSGi Holten 1308 e.V.
B5: =Brief!$AH$48 -> BSG Holten | D5: =Brief!D5 ->  | E5: =A!$E$5 -> 28 | F5: =IF($B$18="D",$B$18,"") -> D | Z5: D | AT5: D | BI5: D | BJ5: =VLOOKUP($B$18,Brief!$AG$45:$AO$68,3,FALSE) -> BSGi Holten 1308 e.V.
B6: =Brief!$AH$49 -> 1882 Osterfeld | D6: =Brief!D6 ->  | E6: =A!$E$6 -> 42 | F6: =IF($B$18="E",$B$18,"") -> 
B7: =Brief!$AH$50 -> Hubertus | D7: =Brief!D7 ->  | E7: =A!$E$7 -> 52 | F7: =IF($B$18="F",$B$18,"") ->  | BK7: Ansprechpartner | BL7: =VLOOKUP($B$18,Brief!$AG$45:$AO$68,4,FALSE) -> Bylicki, Kai | BQ7: =NOW() -> 2018-02-05T11:14:19.790 | BR7: =VLOOKUP($B$18,Brief!$AG$45:$AP$68,10,FALSE) -> 1106
B8: =Brief!$AH$51 -> St. Lirich | C8: =Brief!$AH$52 -> Waidmannsheil | D8: =Brief!D8 ->  | E8: =A!$E$8 -> -56 -74 | F8: =IF($B$18="G",$B$18,"") ->  | H8: =IF(Brief!$K$43=0,"",Brief!$K$43&" "&Brief!$M$43) -> Luftgewehr 10 m | Q8: =IF(Brief!$K$46=0,"",Brief!$K$46&" "&Brief!$M$46) -> Luftgewehr 10 m | AB8: =IF(Brief!$K$49=0,"",Brief!$K$49&" "&Brief!$M$49) ->  | AK8: =IF(Brief!$K$52=0,"",Brief!$K$52&" "&Brief!$M$52) ->  | BK8: Anschrift | BL8: =VLOOKUP($B$18,Brief!$AG$45:$AO$68,5,FALSE) -> Weierstr. 95
B9: =Brief!$AH$53 -> Klosterhardt | C9: =Brief!$AH$54 -> Königshardt | D9: =Brief!D9 ->  | E9: =A!$E$9 -> -78 -78 | F9: =IF($B$18="K",$B$18,"") ->  | G9: ='C'!$AJ$10 -> 28 | H9: =$D$1 -> Schützen | K9: 1 | P9: =G10 -> 28 | Q9: =$D$2 -> Damen | T9: 2 | AA9: =P10 -> 28 | AB9: =$D$5 ->  | AE9: 3 | AJ9: =AA10 -> 28 | AK9: =$D$8 ->  | AN9: 4 | AU9: Pass | AV9: =$D$1 -> Schützen | AX9: Pass | AY9: =$D$2 -> Damen | BA9: Pass | BB9: =$D$5 ->  | BD9: Pass | BE9: =$D$8 ->  | BK9: PLZ / Ort | BL9: =VLOOKUP($B$18,Brief!$AG$45:$AO$68,6,FALSE) -> 46149 Oberhausen | BQ9: Sportleiter | BR9: =VLOOKUP($B$18,Brief!$AG$45:$AO$68,8,FALSE) -> 
B10: =Brief!$AH$55 -> BSG 1862 Oberhausen | C10: =Brief!$AH$56 -> 1981 Mitte | D10: =Brief!D10 ->  | E10: =A!$E$10 -> -78 -78 | F10: =IF($B$18="M",$B$18,"") ->  | G10: =MAX(G11:G65) -> 28 | P10: =MAX(P11:P65) -> 28 | AA10: =MAX(AA11:AA65) -> 28 | AJ10: =AA9 -> 28 | AU10: Nr. | AX10: Nr. | BA10: Nr. | BD10: Nr. | BK10: Tel., Ansprechpartner | BL10: =VLOOKUP($B$18,Brief!$AG$45:$AO$68,7,FALSE) ->  | BQ10: Telefon, Sportleiter | BR10: =VLOOKUP($B$18,Brief!$AG$45:$AO$68,9,FALSE) -> 
G11: =G9 -> 28 | P11: =P9 -> 28 | AA11: =AA9 -> 28 | AJ11: =AJ9 -> 28 | BJ11: Nr. | BK11: =$D$1 -> Schützen | BM11: Nr. | BN11: =$D$2 -> Damen | BP11: =IF(BQ11="","","Nr.") ->  | BQ11: =$D$5 ->  | BS11: =IF(BT11="","","Nr.") ->  | BT11: =$D$8 -> 
B12: EINGABE | G12: =" "&K12&" "&$D$3 -> 1. Mannschaft Freistehend | K12: 1. Mannschaft | L12: =VLOOKUP(G15,Klasse_M!$H$12:$O$200,6,FALSE) ->  | M12: =VLOOKUP(G15,Klasse_M!$H$12:$O$200,8,FALSE) ->  | N12: =VLOOKUP(G15,Klasse_M!$H$12:$O$200,2,FALSE) ->  | P12: =" "&T12&" "&$D$3 -> 1. Mannschaft Freistehend | T12: 1. Mannschaft | U12: =VLOOKUP(P15,Klasse_M!$AD$12:$AK$200,6,FALSE) ->  | V12: =VLOOKUP(P15,Klasse_M!$AD$12:$AK$200,8,FALSE) ->  | W12: =VLOOKUP(P15,Klasse_M!$AD$12:$AK$200,2,FALSE) ->  | AA12: =" "&AE12&" "&$D$3 -> 1. Mannschaft Freistehend | AE12: 1. Mannschaft | AF12: ¢ | AG12: 0 | AJ12: =" "&AN12&" "&$D$3 -> 1. Mannschaft Freistehend | AN12: 1. Mannschaft | AO12: ¢ | AP12: 0 | AU12: 12 | AV12: Althaus, Bernd | AX12: 150 | AY12: Escher, Marita | BJ12: =IF(AU12=0,"",AU12) -> 12 | BK12: =IF(AV12=0,"",AV12) -> Althaus, Bernd | BM12: =IF(AX12=0,"",AX12) -> 150 | BN12: =IF(AY12=0,"",AY12) -> Escher, Marita | BP12: =IF(BA12=0,"",BA12) ->  | BQ12: =IF(BB12=0,"",BB12) ->  | BS12: =IF(BD12=0,"",BD12) ->  | BT12: =IF(BE12=0,"",BE12) -> 
G13: =IF(H13=0,"",COUNTIF(G$12:G12,">0")+G$9+1) ->  | K13: =VLOOKUP($G13,Klasse_1!$X$11:$AK$500,11,FALSE) ->  | L13: =VLOOKUP($G13,Klasse_1!$X$11:$AK$500,8,FALSE) ->  | M13: =VLOOKUP($G13,Klasse_1!$X$11:$AK$500,10,FALSE) ->  | N13: =VLOOKUP($G13,Klasse_1!$X$11:$AK$500,2,FALSE) ->  | P13: =IF(Q13=0,"",COUNTIF(P$12:P12,">0")+P$9+1) ->  | T13: =VLOOKUP($P13,Klasse_2!$X$11:$AK$500,11,FALSE) ->  | U13: =VLOOKUP($P13,Klasse_2!$X$11:$AK$500,8,FALSE) ->  | V13: =VLOOKUP($P13,Klasse_2!$X$11:$AK$500,10,FALSE) ->  | W13: =VLOOKUP($P13,Klasse_2!$X$11:$AK$500,2,FALSE) ->  | AA13: =IF(AB13=0,"",COUNTIF(AA$12:AA12,">0")+AA$9+1) ->  | AE13: 0 | AF13: ¢ | AG13: 0 | AJ13: =IF(AK13=0,"",COUNTIF(AJ$12:AJ12,">0")+AJ$9+1) ->  | AN13: 0 | AO13: ¢ | AP13: 0 | AV13: Escher, Marita | AX13: 23 | AY13: Ewertz, Heike | BK13: Escher, Marita | BM13: 23 | BN13: Ewertz, Heike
B14: =$D$1 -> Schützen | C14: =$D$2 -> Damen | G14: =IF(H14=0,"",COUNTIF(G$12:G13,">0")+G$9+1) ->  | K14: =VLOOKUP($G14,Klasse_1!$X$11:$AK$500,11,FALSE) ->  | L14: =VLOOKUP($G14,Klasse_1!$X$11:$AK$500,8,FALSE) ->  | M14: =VLOOKUP($G14,Klasse_1!$X$11:$AK$500,10,FALSE) ->  | N14: =VLOOKUP($G14,Klasse_1!$X$11:$AK$500,2,FALSE) ->  | P14: =IF(Q14=0,"",COUNTIF(P$12:P13,">0")+P$9+1) ->  | T14: =VLOOKUP($P14,Klasse_2!$X$11:$AK$500,11,FALSE) ->  | U14: =VLOOKUP($P14,Klasse_2!$X$11:$AK$500,8,FALSE) ->  | V14: =VLOOKUP($P14,Klasse_2!$X$11:$AK$500,10,FALSE) ->  | W14: =VLOOKUP($P14,Klasse_2!$X$11:$AK$500,2,FALSE) ->  | AA14: =IF(AB14=0,"",COUNTIF(AA$12:AA13,">0")+AA$9+1) ->  | AE14: 0 | AF14: ¢ | AG14: 0 | AJ14: =IF(AK14=0,"",COUNTIF(AJ$12:AJ13,">0")+AJ$9+1) ->  | AN14: 0 | AO14: ¢ | AP14: 0 | AV14: Ewertz, Heike | AX14: 174 | AY14: Große, Ilona | BK14: Ewertz, Heike | BM14: 174 | BN14: Große, Ilona
B15: =$D$5 ->  | C15: =$D$8 ->  | G15: =IF(H15=0,"",COUNTIF(G$12:G14,">0")+G$9+1) ->  | K15: =VLOOKUP($G15,Klasse_1!$X$11:$AK$500,11,FALSE) ->  | L15: =VLOOKUP($G15,Klasse_1!$X$11:$AK$500,8,FALSE) ->  | M15: =VLOOKUP($G15,Klasse_1!$X$11:$AK$500,10,FALSE) ->  | N15: =VLOOKUP($G15,Klasse_1!$X$11:$AK$500,2,FALSE) ->  | P15: =IF(Q15=0,"",COUNTIF(P$12:P14,">0")+P$9+1) ->  | T15: =VLOOKUP($P15,Klasse_2!$X$11:$AK$500,11,FALSE) ->  | U15: =VLOOKUP($P15,Klasse_2!$X$11:$AK$500,8,FALSE) ->  | V15: =VLOOKUP($P15,Klasse_2!$X$11:$AK$500,10,FALSE) ->  | W15: =VLOOKUP($P15,Klasse_2!$X$11:$AK$500,2,FALSE) ->  | AA15: =IF(AB15=0,"",COUNTIF(AA$12:AA14,">0")+AA$9+1) ->  | AE15: 0 | AF15: ¢ | AG15: 0 | AJ15: =IF(AK15=0,"",COUNTIF(AJ$12:AJ14,">0")+AJ$9+1) ->  | AN15: 0 | AO15: ¢ | AP15: 0 | AV15: Frericks, Reinhard | AX15: 186 | AY15: Kanthofer, Lore | BK15: Frericks, Reinhard | BM15: 186 | BN15: Kanthofer, Lore
G16: =IF(H16=0,"",COUNTIF(G$12:G15,">0")+G$9+1) ->  | K16: =VLOOKUP($G16,Klasse_1!$X$11:$AK$500,11,FALSE) ->  | L16: =VLOOKUP($G16,Klasse_1!$X$11:$AK$500,8,FALSE) ->  | M16: =VLOOKUP($G16,Klasse_1!$X$11:$AK$500,10,FALSE) ->  | N16: =VLOOKUP($G16,Klasse_1!$X$11:$AK$500,2,FALSE) ->  | P16: =IF(Q16=0,"",COUNTIF(P$12:P15,">0")+P$9+1) ->  | T16: =VLOOKUP($P16,Klasse_2!$X$11:$AK$500,11,FALSE) ->  | U16: =VLOOKUP($P16,Klasse_2!$X$11:$AK$500,8,FALSE) ->  | V16: =VLOOKUP($P16,Klasse_2!$X$11:$AK$500,10,FALSE) ->  | W16: =VLOOKUP($P16,Klasse_2!$X$11:$AK$500,2,FALSE) ->  | AA16: =IF(AB16=0,"",COUNTIF(AA$12:AA15,">0")+AA$9+1) ->  | AE16: 0 | AF16: ¢ | AG16: 0 | AJ16: =IF(AK16=0,"",COUNTIF(AJ$12:AJ15,">0")+AJ$9+1) ->  | AN16: 0 | AO16: ¢ | AP16: 0 | AV16: Große, Ilona | AX16: 37 | AY16: Kühl, Etna | BK16: Große, Ilona | BM16: 37 | BN16: Kühl, Etna
G17: =IF(H17=0,"",COUNTIF(G$12:G16,">0")+G$9+1) ->  | K17: =VLOOKUP($G17,Klasse_1!$X$11:$AK$500,11,FALSE) ->  | L17: =VLOOKUP($G17,Klasse_1!$X$11:$AK$500,8,FALSE) ->  | M17: =VLOOKUP($G17,Klasse_1!$X$11:$AK$500,10,FALSE) ->  | N17: =VLOOKUP($G17,Klasse_1!$X$11:$AK$500,2,FALSE) ->  | P17: =IF(Q17=0,"",COUNTIF(P$12:P16,">0")+P$9+1) ->  | T17: =VLOOKUP($P17,Klasse_2!$X$11:$AK$500,11,FALSE) ->  | U17: =VLOOKUP($P17,Klasse_2!$X$11:$AK$500,8,FALSE) ->  | V17: =VLOOKUP($P17,Klasse_2!$X$11:$AK$500,10,FALSE) ->  | W17: =VLOOKUP($P17,Klasse_2!$X$11:$AK$500,2,FALSE) ->  | AA17: =IF(AB17=0,"",COUNTIF(AA$12:AA16,">0")+AA$9+1) ->  | AE17: 0 | AF17: ¢ | AG17: 0 | AJ17: =IF(AK17=0,"",COUNTIF(AJ$12:AJ16,">0")+AJ$9+1) ->  | AN17: 0 | AO17: ¢ | AP17: 0 | AV17: Kanthofer, Lore | AX17: 258 | AY17: Luft, Sigrid | BK17: Kanthofer, Lore | BM17: 258 | BN17: Luft, Sigrid
B18: D | G18: =" "&K18&" "&$D$3 -> 2. Mannschaft Freistehend | K18: 2. Mannschaft | L18: =VLOOKUP(G21,Klasse_M!$H$12:$O$200,6,FALSE) ->  | M18: =VLOOKUP(G21,Klasse_M!$H$12:$O$200,8,FALSE) ->  | N18: =VLOOKUP(G21,Klasse_M!$H$12:$O$200,2,FALSE) ->  | P18: =" "&T18&" "&$D$3 -> 2. Mannschaft Freistehend | T18: 2. Mannschaft | U18: =VLOOKUP(P21,Klasse_M!$AD$12:$AK$200,6,FALSE) ->  | V18: =VLOOKUP(P21,Klasse_M!$AD$12:$AK$200,8,FALSE) ->  | W18: =VLOOKUP(P21,Klasse_M!$AD$12:$AK$200,2,FALSE) ->  | AA18: =" "&AE18&" "&$D$3 -> 2. Mannschaft Freistehend | AE18: 2. Mannschaft | AF18: ¢ | AG18: 0 | AJ18: =" "&AN18&" "&$D$3 -> 2. Mannschaft Freistehend | AN18: 2. Mannschaft | AO18: ¢ | AP18: 0 | AU18: 253 | AV18: Kühl, Etna | AX18: 56 | AY18: Matten, Marion | BJ18: 253 | BK18: Kühl, Etna | BM18: 56 | BN18: Matten, Marion
G19: =IF(H19=0,"",COUNTIF(G$12:G18,">0")+G$9+1) ->  | K19: =VLOOKUP($G19,Klasse_1!$X$11:$AK$500,11,FALSE) ->  | L19: =VLOOKUP($G19,Klasse_1!$X$11:$AK$500,8,FALSE) ->  | M19: =VLOOKUP($G19,Klasse_1!$X$11:$AK$500,10,FALSE) ->  | N19: =VLOOKUP($G19,Klasse_1!$X$11:$AK$500,2,FALSE) ->  | P19: =IF(Q19=0,"",COUNTIF(P$12:P18,">0")+P$9+1) ->  | T19: =VLOOKUP($P19,Klasse_2!$X$11:$AK$500,11,FALSE) ->  | U19: =VLOOKUP($P19,Klasse_2!$X$11:$AK$500,8,FALSE) ->  | V19: =VLOOKUP($P19,Klasse_2!$X$11:$AK$500,10,FALSE) ->  | W19: =VLOOKUP($P19,Klasse_2!$X$11:$AK$500,2,FALSE) ->  | AA19: =IF(AB19=0,"",COUNTIF(AA$12:AA18,">0")+AA$9+1) ->  | AE19: 0 | AF19: ¢ | AG19: 0 | AJ19: =IF(AK19=0,"",COUNTIF(AJ$12:AJ18,">0")+AJ$9+1) ->  | AN19: 0 | AO19: ¢ | AP19: 0 | AU19: 22 | AV19: Kühl, Horst Jürgen | AX19: 185 | AY19: Oesterbeck, Barbara | BJ19: 22 | BK19: Kühl, Horst Jürgen | BM19: 185 | BN19: Oesterbeck, Barbara
B20: =VLOOKUP($B$18,Brief!$AG$45:$AO$68,3,FALSE) -> BSGi Holten 1308 e.V. | G20: =IF(H20=0,"",COUNTIF(G$12:G19,">0")+G$9+1) ->  | K20: =VLOOKUP($G20,Klasse_1!$X$11:$AK$500,11,FALSE) ->  | L20: =VLOOKUP($G20,Klasse_1!$X$11:$AK$500,8,FALSE) ->  | M20: =VLOOKUP($G20,Klasse_1!$X$11:$AK$500,10,FALSE) ->  | N20: =VLOOKUP($G20,Klasse_1!$X$11:$AK$500,2,FALSE) ->  | P20: =IF(Q20=0,"",COUNTIF(P$12:P19,">0")+P$9+1) ->  | T20: =VLOOKUP($P20,Klasse_2!$X$11:$AK$500,11,FALSE) ->  | U20: =VLOOKUP($P20,Klasse_2!$X$11:$AK$500,8,FALSE) ->  | V20: =VLOOKUP($P20,Klasse_2!$X$11:$AK$500,10,FALSE) ->  | W20: =VLOOKUP($P20,Klasse_2!$X$11:$AK$500,2,FALSE) ->  | AA20: =IF(AB20=0,"",COUNTIF(AA$12:AA19,">0")+AA$9+1) ->  | AE20: 0 | AF20: ¢ | AG20: 0 | AJ20: =IF(AK20=0,"",COUNTIF(AJ$12:AJ19,">0")+AJ$9+1) ->  | AN20: 0 | AO20: ¢ | AP20: 0 | AV20: Luft, Hans Jürgen | AX20: 169 | AY20: Weigl, Carmen | BK20: Luft, Hans Jürgen | BM20: 169 | BN20: Weigl, Carmen
B21: VereinsNr. | C21: =VLOOKUP($B$18,Brief!$AG$45:$AP$68,10,FALSE) -> 1106 | G21: =IF(H21=0,"",COUNTIF(G$12:G20,">0")+G$9+1) ->  | K21: =VLOOKUP($G21,Klasse_1!$X$11:$AK$500,11,FALSE) ->  | L21: =VLOOKUP($G21,Klasse_1!$X$11:$AK$500,8,FALSE) ->  | M21: =VLOOKUP($G21,Klasse_1!$X$11:$AK$500,10,FALSE) ->  | N21: =VLOOKUP($G21,Klasse_1!$X$11:$AK$500,2,FALSE) ->  | P21: =IF(Q21=0,"",COUNTIF(P$12:P20,">0")+P$9+1) ->  | T21: =VLOOKUP($P21,Klasse_2!$X$11:$AK$500,11,FALSE) ->  | U21: =VLOOKUP($P21,Klasse_2!$X$11:$AK$500,8,FALSE) ->  | V21: =VLOOKUP($P21,Klasse_2!$X$11:$AK$500,10,FALSE) ->  | W21: =VLOOKUP($P21,Klasse_2!$X$11:$AK$500,2,FALSE) ->  | AA21: =IF(AB21=0,"",COUNTIF(AA$12:AA20,">0")+AA$9+1) ->  | AE21: 0 | AF21: ¢ | AG21: 0 | AJ21: =IF(AK21=0,"",COUNTIF(AJ$12:AJ20,">0")+AJ$9+1) ->  | AN21: 0 | AO21: ¢ | AP21: 0 | AV21: Luft, Hans Jürgen | AX21: 125 | BK21: Luft, Hans Jürgen | BM21: 125
B22: Anspr. | C22: =VLOOKUP($B$18,Brief!$AG$45:$AO$68,4,FALSE) -> Bylicki, Kai | G22: =IF(H22=0,"",COUNTIF(G$12:G21,">0")+G$9+1) ->  | K22: =VLOOKUP($G22,Klasse_1!$X$11:$AK$500,11,FALSE) ->  | L22: =VLOOKUP($G22,Klasse_1!$X$11:$AK$500,8,FALSE) ->  | M22: =VLOOKUP($G22,Klasse_1!$X$11:$AK$500,10,FALSE) ->  | N22: =VLOOKUP($G22,Klasse_1!$X$11:$AK$500,2,FALSE) ->  | P22: =IF(Q22=0,"",COUNTIF(P$12:P21,">0")+P$9+1) ->  | T22: =VLOOKUP($P22,Klasse_2!$X$11:$AK$500,11,FALSE) ->  | U22: =VLOOKUP($P22,Klasse_2!$X$11:$AK$500,8,FALSE) ->  | V22: =VLOOKUP($P22,Klasse_2!$X$11:$AK$500,10,FALSE) ->  | W22: =VLOOKUP($P22,Klasse_2!$X$11:$AK$500,2,FALSE) ->  | AA22: =IF(AB22=0,"",COUNTIF(AA$12:AA21,">0")+AA$9+1) ->  | AE22: 0 | AF22: ¢ | AG22: 0 | AJ22: =IF(AK22=0,"",COUNTIF(AJ$12:AJ21,">0")+AJ$9+1) ->  | AN22: 0 | AO22: ¢ | AP22: 0 | AV22: Luft, Sigrid | AX22: 10 | BK22: Luft, Sigrid | BM22: 10
B23: Anschrift | C23: =VLOOKUP($B$18,Brief!$AG$45:$AO$68,5,FALSE) -> Weierstr. 95 | G23: =IF(H23=0,"",COUNTIF(G$12:G22,">0")+G$9+1) ->  | K23: =VLOOKUP($G23,Klasse_1!$X$11:$AK$500,11,FALSE) ->  | L23: =VLOOKUP($G23,Klasse_1!$X$11:$AK$500,8,FALSE) ->  | M23: =VLOOKUP($G23,Klasse_1!$X$11:$AK$500,10,FALSE) ->  | N23: =VLOOKUP($G23,Klasse_1!$X$11:$AK$500,2,FALSE) ->  | P23: =IF(Q23=0,"",COUNTIF(P$12:P22,">0")+P$9+1) ->  | T23: =VLOOKUP($P23,Klasse_2!$X$11:$AK$500,11,FALSE) ->  | U23: =VLOOKUP($P23,Klasse_2!$X$11:$AK$500,8,FALSE) ->  | V23: =VLOOKUP($P23,Klasse_2!$X$11:$AK$500,10,FALSE) ->  | W23: =VLOOKUP($P23,Klasse_2!$X$11:$AK$500,2,FALSE) ->  | AA23: =IF(AB23=0,"",COUNTIF(AA$12:AA22,">0")+AA$9+1) ->  | AE23: 0 | AF23: ¢ | AG23: 0 | AJ23: =IF(AK23=0,"",COUNTIF(AJ$12:AJ22,">0")+AJ$9+1) ->  | AN23: 0 | AO23: ¢ | AP23: 0 | AU23: 51 | AV23: Lutz, Uwe | AX23: 119 | BJ23: 51 | BK23: Lutz, Uwe | BM23: 119
B24: PLZ / Ort | C24: =VLOOKUP($B$18,Brief!$AG$45:$AO$68,6,FALSE) -> 46149 Oberhausen | G24: =" "&K24&" "&$D$3 -> 3. Mannschaft Freistehend | K24: 3. Mannschaft | L24: =VLOOKUP(G27,Klasse_M!$H$12:$O$200,6,FALSE) ->  | M24: =VLOOKUP(G27,Klasse_M!$H$12:$O$200,8,FALSE) ->  | N24: =VLOOKUP(G27,Klasse_M!$H$12:$O$200,2,FALSE) ->  | P24: =" "&T24&" "&$D$3 -> 3. Mannschaft Freistehend | T24: 3. Mannschaft | U24: =VLOOKUP(P27,Klasse_M!$AD$12:$AK$200,6,FALSE) ->  | V24: =VLOOKUP(P27,Klasse_M!$AD$12:$AK$200,8,FALSE) ->  | W24: =VLOOKUP(P27,Klasse_M!$AD$12:$AK$200,2,FALSE) ->  | AA24: =" "&AE24&" "&$D$3 -> 3. Mannschaft Freistehend | AE24: 3. Mannschaft | AF24: ¢ | AG24: 0 | AJ24: =" "&AN24&" "&$D$3 -> 3. Mannschaft Freistehend | AN24: 3. Mannschaft | AO24: ¢ | AP24: 0 | AV24: Lutz, Uwe | AX24: 162 | BK24: Lutz, Uwe | BM24: 162
B25: Tel. | C25: =VLOOKUP($B$18,Brief!$AG$45:$AO$68,7,FALSE) ->  | G25: =IF(H25=0,"",COUNTIF(G$12:G24,">0")+G$9+1) ->  | K25: =VLOOKUP($G25,Klasse_1!$X$11:$AK$500,11,FALSE) ->  | L25: =VLOOKUP($G25,Klasse_1!$X$11:$AK$500,8,FALSE) ->  | M25: =VLOOKUP($G25,Klasse_1!$X$11:$AK$500,10,FALSE) ->  | N25: =VLOOKUP($G25,Klasse_1!$X$11:$AK$500,2,FALSE) ->  | P25: =IF(Q25=0,"",COUNTIF(P$12:P24,">0")+P$9+1) ->  | T25: =VLOOKUP($P25,Klasse_2!$X$11:$AK$500,11,FALSE) ->  | U25: =VLOOKUP($P25,Klasse_2!$X$11:$AK$500,8,FALSE) ->  | V25: =VLOOKUP($P25,Klasse_2!$X$11:$AK$500,10,FALSE) ->  | W25: =VLOOKUP($P25,Klasse_2!$X$11:$AK$500,2,FALSE) ->  | AA25: =IF(AB25=0,"",COUNTIF(AA$12:AA24,">0")+AA$9+1) ->  | AE25: 0 | AF25: ¢ | AG25: 0 | AJ25: =IF(AK25=0,"",COUNTIF(AJ$12:AJ24,">0")+AJ$9+1) ->  | AN25: 0 | AO25: ¢ | AP25: 0 | AU25: 33 | AV25: Matten, Marion | AX25: 89 | BJ25: 33 | BK25: Matten, Marion | BM25: 89
B26: Sportleit. | C26: =VLOOKUP($B$18,Brief!$AG$45:$AO$68,8,FALSE) ->  | G26: =IF(H26=0,"",COUNTIF(G$12:G25,">0")+G$9+1) ->  | K26: =VLOOKUP($G26,Klasse_1!$X$11:$AK$500,11,FALSE) ->  | L26: =VLOOKUP($G26,Klasse_1!$X$11:$AK$500,8,FALSE) ->  | M26: =VLOOKUP($G26,Klasse_1!$X$11:$AK$500,10,FALSE) ->  | N26: =VLOOKUP($G26,Klasse_1!$X$11:$AK$500,2,FALSE) ->  | P26: =IF(Q26=0,"",COUNTIF(P$12:P25,">0")+P$9+1) ->  | T26: =VLOOKUP($P26,Klasse_2!$X$11:$AK$500,11,FALSE) ->  | U26: =VLOOKUP($P26,Klasse_2!$X$11:$AK$500,8,FALSE) ->  | V26: =VLOOKUP($P26,Klasse_2!$X$11:$AK$500,10,FALSE) ->  | W26: =VLOOKUP($P26,Klasse_2!$X$11:$AK$500,2,FALSE) ->  | AA26: =IF(AB26=0,"",COUNTIF(AA$12:AA25,">0")+AA$9+1) ->  | AE26: 0 | AF26: ¢ | AG26: 0 | AJ26: =IF(AK26=0,"",COUNTIF(AJ$12:AJ25,">0")+AJ$9+1) ->  | AN26: 0 | AO26: ¢ | AP26: 0 | AV26: Oesterbeck, Barbara | AX26: 289 | BK26: Oesterbeck, Barbara | BM26: 289
B27: Tel. | C27: =VLOOKUP($B$18,Brief!$AG$45:$AO$68,9,FALSE) ->  | G27: =IF(H27=0,"",COUNTIF(G$12:G26,">0")+G$9+1) ->  | K27: =VLOOKUP($G27,Klasse_1!$X$11:$AK$500,11,FALSE) ->  | L27: =VLOOKUP($G27,Klasse_1!$X$11:$AK$500,8,FALSE) ->  | M27: =VLOOKUP($G27,Klasse_1!$X$11:$AK$500,10,FALSE) ->  | N27: =VLOOKUP($G27,Klasse_1!$X$11:$AK$500,2,FALSE) ->  | P27: =IF(Q27=0,"",COUNTIF(P$12:P26,">0")+P$9+1) ->  | T27: =VLOOKUP($P27,Klasse_2!$X$11:$AK$500,11,FALSE) ->  | U27: =VLOOKUP($P27,Klasse_2!$X$11:$AK$500,8,FALSE) ->  | V27: =VLOOKUP($P27,Klasse_2!$X$11:$AK$500,10,FALSE) ->  | W27: =VLOOKUP($P27,Klasse_2!$X$11:$AK$500,2,FALSE) ->  | AA27: =IF(AB27=0,"",COUNTIF(AA$12:AA26,">0")+AA$9+1) ->  | AE27: 0 | AF27: ¢ | AG27: 0 | AJ27: =IF(AK27=0,"",COUNTIF(AJ$12:AJ26,">0")+AJ$9+1) ->  | AN27: 0 | AO27: ¢ | AP27: 0 | AU27: 28 | AV27: Oesterbeck, Werner | BJ27: 28 | BK27: Oesterbeck, Werner
G28: =IF(H28=0,"",COUNTIF(G$12:G27,">0")+G$9+1) ->  | K28: =VLOOKUP($G28,Klasse_1!$X$11:$AK$500,11,FALSE) ->  | L28: =VLOOKUP($G28,Klasse_1!$X$11:$AK$500,8,FALSE) ->  | M28: =VLOOKUP($G28,Klasse_1!$X$11:$AK$500,10,FALSE) ->  | N28: =VLOOKUP($G28,Klasse_1!$X$11:$AK$500,2,FALSE) ->  | P28: =IF(Q28=0,"",COUNTIF(P$12:P27,">0")+P$9+1) ->  | T28: =VLOOKUP($P28,Klasse_2!$X$11:$AK$500,11,FALSE) ->  | U28: =VLOOKUP($P28,Klasse_2!$X$11:$AK$500,8,FALSE) ->  | V28: =VLOOKUP($P28,Klasse_2!$X$11:$AK$500,10,FALSE) ->  | W28: =VLOOKUP($P28,Klasse_2!$X$11:$AK$500,2,FALSE) ->  | AA28: =IF(AB28=0,"",COUNTIF(AA$12:AA27,">0")+AA$9+1) ->  | AE28: 0 | AF28: ¢ | AG28: 0 | AJ28: =IF(AK28=0,"",COUNTIF(AJ$12:AJ27,">0")+AJ$9+1) ->  | AN28: 0 | AO28: ¢ | AP28: 0 | AV28: Oesterbeck, Werner | BK28: Oesterbeck, Werner
G29: =IF(H29=0,"",COUNTIF(G$12:G28,">0")+G$9+1) ->  | K29: =VLOOKUP($G29,Klasse_1!$X$11:$AK$500,11,FALSE) ->  | L29: =VLOOKUP($G29,Klasse_1!$X$11:$AK$500,8,FALSE) ->  | M29: =VLOOKUP($G29,Klasse_1!$X$11:$AK$500,10,FALSE) ->  | N29: =VLOOKUP($G29,Klasse_1!$X$11:$AK$500,2,FALSE) ->  | P29: =IF(Q29=0,"",COUNTIF(P$12:P28,">0")+P$9+1) ->  | T29: =VLOOKUP($P29,Klasse_2!$X$11:$AK$500,11,FALSE) ->  | U29: =VLOOKUP($P29,Klasse_2!$X$11:$AK$500,8,FALSE) ->  | V29: =VLOOKUP($P29,Klasse_2!$X$11:$AK$500,10,FALSE) ->  | W29: =VLOOKUP($P29,Klasse_2!$X$11:$AK$500,2,FALSE) ->  | AA29: =IF(AB29=0,"",COUNTIF(AA$12:AA28,">0")+AA$9+1) ->  | AE29: 0 | AF29: ¢ | AG29: 0 | AJ29: =IF(AK29=0,"",COUNTIF(AJ$12:AJ28,">0")+AJ$9+1) ->  | AN29: 0 | AO29: ¢ | AP29: 0 | AV29: Ohl, Horst | BK29: Ohl, Horst
G30: =" "&K30&" "&$D$3 -> 4. Mannschaft Freistehend | K30: 4. Mannschaft | L30: =VLOOKUP(G33,Klasse_M!$H$12:$O$200,6,FALSE) ->  | M30: =VLOOKUP(G33,Klasse_M!$H$12:$O$200,8,FALSE) ->  | N30: =VLOOKUP(G33,Klasse_M!$H$12:$O$200,2,FALSE) ->  | P30: =" "&T30&" "&$D$3 -> 4. Mannschaft Freistehend | T30: 4. Mannschaft | U30: =VLOOKUP(P33,Klasse_M!$AD$12:$AK$200,6,FALSE) ->  | V30: =VLOOKUP(P33,Klasse_M!$AD$12:$AK$200,8,FALSE) ->  | W30: =VLOOKUP(P33,Klasse_M!$AD$12:$AK$200,2,FALSE) ->  | AA30: =" "&AE30&" "&$D$3 -> 4. Mannschaft Freistehend | AE30: 4. Mannschaft | AF30: ¢ | AG30: 0 | AJ30: =" "&AN30&" "&$D$3 -> 4. Mannschaft Freistehend | AN30: 4. Mannschaft | AO30: ¢ | AP30: 0 | AU30: 44 | AV30: Skawran, Günter | BJ30: 44 | BK30: Skawran, Günter
G31: =IF(H31=0,"",COUNTIF(G$12:G30,">0")+G$9+1) ->  | K31: =VLOOKUP($G31,Klasse_1!$X$11:$AK$500,11,FALSE) ->  | L31: =VLOOKUP($G31,Klasse_1!$X$11:$AK$500,8,FALSE) ->  | M31: =VLOOKUP($G31,Klasse_1!$X$11:$AK$500,10,FALSE) ->  | N31: =VLOOKUP($G31,Klasse_1!$X$11:$AK$500,2,FALSE) ->  | P31: =IF(Q31=0,"",COUNTIF(P$12:P30,">0")+P$9+1) ->  | T31: =VLOOKUP($P31,Klasse_2!$X$11:$AK$500,11,FALSE) ->  | U31: =VLOOKUP($P31,Klasse_2!$X$11:$AK$500,8,FALSE) ->  | V31: =VLOOKUP($P31,Klasse_2!$X$11:$AK$500,10,FALSE) ->  | W31: =VLOOKUP($P31,Klasse_2!$X$11:$AK$500,2,FALSE) ->  | AA31: =IF(AB31=0,"",COUNTIF(AA$12:AA30,">0")+AA$9+1) ->  | AE31: 0 | AF31: ¢ | AG31: 0 | AJ31: =IF(AK31=0,"",COUNTIF(AJ$12:AJ30,">0")+AJ$9+1) ->  | AN31: 0 | AO31: ¢ | AP31: 0 | AV31: Skwran, Norbert | BK31: Skwran, Norbert
G32: =IF(H32=0,"",COUNTIF(G$12:G31,">0")+G$9+1) ->  | K32: =VLOOKUP($G32,Klasse_1!$X$11:$AK$500,11,FALSE) ->  | L32: =VLOOKUP($G32,Klasse_1!$X$11:$AK$500,8,FALSE) ->  | M32: =VLOOKUP($G32,Klasse_1!$X$11:$AK$500,10,FALSE) ->  | N32: =VLOOKUP($G32,Klasse_1!$X$11:$AK$500,2,FALSE) ->  | P32: =IF(Q32=0,"",COUNTIF(P$12:P31,">0")+P$9+1) ->  | T32: =VLOOKUP($P32,Klasse_2!$X$11:$AK$500,11,FALSE) ->  | U32: =VLOOKUP($P32,Klasse_2!$X$11:$AK$500,8,FALSE) ->  | V32: =VLOOKUP($P32,Klasse_2!$X$11:$AK$500,10,FALSE) ->  | W32: =VLOOKUP($P32,Klasse_2!$X$11:$AK$500,2,FALSE) ->  | AA32: =IF(AB32=0,"",COUNTIF(AA$12:AA31,">0")+AA$9+1) ->  | AE32: 0 | AF32: ¢ | AG32: 0 | AJ32: =IF(AK32=0,"",COUNTIF(AJ$12:AJ31,">0")+AJ$9+1) ->  | AN32: 0 | AO32: ¢ | AP32: 0 | AU32: 237 | AV32: Verlande, Martin | BJ32: 237 | BK32: Verlande, Martin
G33: =IF(H33=0,"",COUNTIF(G$12:G32,">0")+G$9+1) ->  | K33: =VLOOKUP($G33,Klasse_1!$X$11:$AK$500,11,FALSE) ->  | L33: =VLOOKUP($G33,Klasse_1!$X$11:$AK$500,8,FALSE) ->  | M33: =VLOOKUP($G33,Klasse_1!$X$11:$AK$500,10,FALSE) ->  | N33: =VLOOKUP($G33,Klasse_1!$X$11:$AK$500,2,FALSE) ->  | P33: =IF(Q33=0,"",COUNTIF(P$12:P32,">0")+P$9+1) ->  | T33: =VLOOKUP($P33,Klasse_2!$X$11:$AK$500,11,FALSE) ->  | U33: =VLOOKUP($P33,Klasse_2!$X$11:$AK$500,8,FALSE) ->  | V33: =VLOOKUP($P33,Klasse_2!$X$11:$AK$500,10,FALSE) ->  | W33: =VLOOKUP($P33,Klasse_2!$X$11:$AK$500,2,FALSE) ->  | AA33: =IF(AB33=0,"",COUNTIF(AA$12:AA32,">0")+AA$9+1) ->  | AE33: 0 | AF33: ¢ | AG33: 0 | AJ33: =IF(AK33=0,"",COUNTIF(AJ$12:AJ32,">0")+AJ$9+1) ->  | AN33: 0 | AO33: ¢ | AP33: 0 | AV33: Weigl, Carmen | BK33: Weigl, Carmen
G34: =IF(H34=0,"",COUNTIF(G$12:G33,">0")+G$9+1) ->  | K34: =VLOOKUP($G34,Klasse_1!$X$11:$AK$500,11,FALSE) ->  | L34: =VLOOKUP($G34,Klasse_1!$X$11:$AK$500,8,FALSE) ->  | M34: =VLOOKUP($G34,Klasse_1!$X$11:$AK$500,10,FALSE) ->  | N34: =VLOOKUP($G34,Klasse_1!$X$11:$AK$500,2,FALSE) ->  | P34: =IF(Q34=0,"",COUNTIF(P$12:P33,">0")+P$9+1) ->  | T34: =VLOOKUP($P34,Klasse_2!$X$11:$AK$500,11,FALSE) ->  | U34: =VLOOKUP($P34,Klasse_2!$X$11:$AK$500,8,FALSE) ->  | V34: =VLOOKUP($P34,Klasse_2!$X$11:$AK$500,10,FALSE) ->  | W34: =VLOOKUP($P34,Klasse_2!$X$11:$AK$500,2,FALSE) ->  | AA34: =IF(AB34=0,"",COUNTIF(AA$12:AA33,">0")+AA$9+1) ->  | AE34: 0 | AF34: ¢ | AG34: 0 | AJ34: =IF(AK34=0,"",COUNTIF(AJ$12:AJ33,">0")+AJ$9+1) ->  | AN34: 0 | AO34: ¢ | AP34: 0 | AV34: Weigl, Udo | BK34: Weigl, Udo
G35: =IF(H35=0,"",COUNTIF(G$12:G34,">0")+G$9+1) ->  | K35: =VLOOKUP($G35,Klasse_1!$X$11:$AK$500,11,FALSE) ->  | L35: =VLOOKUP($G35,Klasse_1!$X$11:$AK$500,8,FALSE) ->  | M35: =VLOOKUP($G35,Klasse_1!$X$11:$AK$500,10,FALSE) ->  | N35: =VLOOKUP($G35,Klasse_1!$X$11:$AK$500,2,FALSE) ->  | P35: =IF(Q35=0,"",COUNTIF(P$12:P34,">0")+P$9+1) ->  | T35: =VLOOKUP($P35,Klasse_2!$X$11:$AK$500,11,FALSE) ->  | U35: =VLOOKUP($P35,Klasse_2!$X$11:$AK$500,8,FALSE) ->  | V35: =VLOOKUP($P35,Klasse_2!$X$11:$AK$500,10,FALSE) ->  | W35: =VLOOKUP($P35,Klasse_2!$X$11:$AK$500,2,FALSE) ->  | AA35: =IF(AB35=0,"",COUNTIF(AA$12:AA34,">0")+AA$9+1) ->  | AE35: 0 | AF35: ¢ | AG35: 0 | AJ35: =IF(AK35=0,"",COUNTIF(AJ$12:AJ34,">0")+AJ$9+1) ->  | AN35: 0 | AO35: ¢ | AP35: 0 | AV35: Seelenmeier, Veit | BK35: Seelenmeier, Veit
AV36: Tinnefeld Axel | BK36: Tinnefeld Axel
B42: EINGABE | G42: =" "&K42&" "&$D$4 -> 1. Mannschaft Aufgelegt | K42: 1. Mannschaft | L42: =VLOOKUP(G45,Klasse_M!$S$12:$Z$200,6,FALSE) ->  | M42: =VLOOKUP(G45,Klasse_M!$S$12:$Z$200,8,FALSE) ->  | N42: =VLOOKUP(G45,Klasse_M!$S$12:$Z$200,2,FALSE) ->  | P42: =" "&T42&" "&$D$4 -> 1. Mannschaft Aufgelegt | T42: 1. Mannschaft | U42: =VLOOKUP(P45,Klasse_M!$AO$12:$AV$200,6,FALSE) ->  | V42: =VLOOKUP(P45,Klasse_M!$AO$12:$AV$200,8,FALSE) ->  | W42: =VLOOKUP(P45,Klasse_M!$AO$12:$AV$200,2,FALSE) ->  | AA42: =" "&AE42&" "&$D$4 -> 1. Mannschaft Aufgelegt | AE42: 1. Mannschaft | AF42: ¢ | AG42: 0 | AJ42: =" "&AN42&" "&$D$4 -> 1. Mannschaft Aufgelegt | AN42: 1. Mannschaft | AO42: ¢ | AP42: 0
G43: =IF(H43=0,"",COUNTIF(G$12:G42,">0")+G$9+1) ->  | K43: =VLOOKUP($G43,Klasse_1!$AT$11:$BG$500,11,FALSE) ->  | L43: =VLOOKUP($G43,Klasse_1!$AT$11:$BG$500,8,FALSE) ->  | M43: =VLOOKUP($G43,Klasse_1!$AT$11:$BG$500,10,FALSE) ->  | N43: =VLOOKUP($G43,Klasse_1!$AT$11:$BG$500,2,FALSE) ->  | P43: =IF(Q43=0,"",COUNTIF(P$12:P42,">0")+P$9+1) ->  | T43: =VLOOKUP($P43,Klasse_2!$AT$11:$BG$500,11,FALSE) ->  | U43: =VLOOKUP($P43,Klasse_2!$AT$11:$BG$500,8,FALSE) ->  | V43: =VLOOKUP($P43,Klasse_2!$AT$11:$BG$500,10,FALSE) ->  | W43: =VLOOKUP($P43,Klasse_2!$AT$11:$BG$500,2,FALSE) ->  | AA43: =IF(AB43=0,"",COUNTIF(AA$12:AA42,">0")+AA$9+1) ->  | AE43: 0 | AF43: ¢ | AG43: 0 | AJ43: =IF(AK43=0,"",COUNTIF(AJ$12:AJ42,">0")+AJ$9+1) ->  | AN43: 0 | AO43: ¢ | AP43: 0
B44: =$D$1 -> Schützen | C44: =$D$2 -> Damen | G44: =IF(H44=0,"",COUNTIF(G$12:G43,">0")+G$9+1) ->  | K44: =VLOOKUP($G44,Klasse_1!$AT$11:$BG$500,11,FALSE) ->  | L44: =VLOOKUP($G44,Klasse_1!$AT$11:$BG$500,8,FALSE) ->  | M44: =VLOOKUP($G44,Klasse_1!$AT$11:$BG$500,10,FALSE) ->  | N44: =VLOOKUP($G44,Klasse_1!$AT$11:$BG$500,2,FALSE) ->  | P44: =IF(Q44=0,"",COUNTIF(P$12:P43,">0")+P$9+1) ->  | T44: =VLOOKUP($P44,Klasse_2!$AT$11:$BG$500,11,FALSE) ->  | U44: =VLOOKUP($P44,Klasse_2!$AT$11:$BG$500,8,FALSE) ->  | V44: =VLOOKUP($P44,Klasse_2!$AT$11:$BG$500,10,FALSE) ->  | W44: =VLOOKUP($P44,Klasse_2!$AT$11:$BG$500,2,FALSE) ->  | AA44: =IF(AB44=0,"",COUNTIF(AA$12:AA43,">0")+AA$9+1) ->  | AE44: 0 | AF44: ¢ | AG44: 0 | AJ44: =IF(AK44=0,"",COUNTIF(AJ$12:AJ43,">0")+AJ$9+1) ->  | AN44: 0 | AO44: ¢ | AP44: 0
B45: =$D$5 ->  | C45: =$D$8 ->  | G45: =IF(H45=0,"",COUNTIF(G$12:G44,">0")+G$9+1) ->  | K45: =VLOOKUP($G45,Klasse_1!$AT$11:$BG$500,11,FALSE) ->  | L45: =VLOOKUP($G45,Klasse_1!$AT$11:$BG$500,8,FALSE) ->  | M45: =VLOOKUP($G45,Klasse_1!$AT$11:$BG$500,10,FALSE) ->  | N45: =VLOOKUP($G45,Klasse_1!$AT$11:$BG$500,2,FALSE) ->  | P45: =IF(Q45=0,"",COUNTIF(P$12:P44,">0")+P$9+1) ->  | T45: =VLOOKUP($P45,Klasse_2!$AT$11:$BG$500,11,FALSE) ->  | U45: =VLOOKUP($P45,Klasse_2!$AT$11:$BG$500,8,FALSE) ->  | V45: =VLOOKUP($P45,Klasse_2!$AT$11:$BG$500,10,FALSE) ->  | W45: =VLOOKUP($P45,Klasse_2!$AT$11:$BG$500,2,FALSE) ->  | AA45: =IF(AB45=0,"",COUNTIF(AA$12:AA44,">0")+AA$9+1) ->  | AE45: 0 | AF45: ¢ | AG45: 0 | AJ45: =IF(AK45=0,"",COUNTIF(AJ$12:AJ44,">0")+AJ$9+1) ->  | AN45: 0 | AO45: ¢ | AP45: 0
G46: =IF(H46=0,"",COUNTIF(G$12:G45,">0")+G$9+1) ->  | K46: =VLOOKUP($G46,Klasse_1!$AT$11:$BG$500,11,FALSE) ->  | L46: =VLOOKUP($G46,Klasse_1!$AT$11:$BG$500,8,FALSE) ->  | M46: =VLOOKUP($G46,Klasse_1!$AT$11:$BG$500,10,FALSE) ->  | N46: =VLOOKUP($G46,Klasse_1!$AT$11:$BG$500,2,FALSE) ->  | P46: =IF(Q46=0,"",COUNTIF(P$12:P45,">0")+P$9+1) ->  | T46: =VLOOKUP($P46,Klasse_2!$AT$11:$BG$500,11,FALSE) ->  | U46: =VLOOKUP($P46,Klasse_2!$AT$11:$BG$500,8,FALSE) ->  | V46: =VLOOKUP($P46,Klasse_2!$AT$11:$BG$500,10,FALSE) ->  | W46: =VLOOKUP($P46,Klasse_2!$AT$11:$BG$500,2,FALSE) ->  | AA46: =IF(AB46=0,"",COUNTIF(AA$12:AA45,">0")+AA$9+1) ->  | AE46: 0 | AF46: ¢ | AG46: 0 | AJ46: =IF(AK46=0,"",COUNTIF(AJ$12:AJ45,">0")+AJ$9+1) ->  | AN46: 0 | AO46: ¢ | AP46: 0
G47: =IF(H47=0,"",COUNTIF(G$12:G46,">0")+G$9+1) ->  | K47: =VLOOKUP($G47,Klasse_1!$AT$11:$BG$500,11,FALSE) ->  | L47: =VLOOKUP($G47,Klasse_1!$AT$11:$BG$500,8,FALSE) ->  | M47: =VLOOKUP($G47,Klasse_1!$AT$11:$BG$500,10,FALSE) ->  | N47: =VLOOKUP($G47,Klasse_1!$AT$11:$BG$500,2,FALSE) ->  | P47: =IF(Q47=0,"",COUNTIF(P$12:P46,">0")+P$9+1) ->  | T47: =VLOOKUP($P47,Klasse_2!$AT$11:$BG$500,11,FALSE) ->  | U47: =VLOOKUP($P47,Klasse_2!$AT$11:$BG$500,8,FALSE) ->  | V47: =VLOOKUP($P47,Klasse_2!$AT$11:$BG$500,10,FALSE) ->  | W47: =VLOOKUP($P47,Klasse_2!$AT$11:$BG$500,2,FALSE) ->  | AA47: =IF(AB47=0,"",COUNTIF(AA$12:AA46,">0")+AA$9+1) ->  | AE47: 0 | AF47: ¢ | AG47: 0 | AJ47: =IF(AK47=0,"",COUNTIF(AJ$12:AJ46,">0")+AJ$9+1) ->  | AN47: 0 | AO47: ¢ | AP47: 0
B48: =B18 -> D | G48: =" "&K48&" "&$D$4 -> 2. Mannschaft Aufgelegt | K48: 2. Mannschaft | L48: =VLOOKUP(G51,Klasse_M!$S$12:$Z$200,6,FALSE) ->  | M48: =VLOOKUP(G51,Klasse_M!$S$12:$Z$200,8,FALSE) ->  | N48: =VLOOKUP(G51,Klasse_M!$S$12:$Z$200,2,FALSE) ->  | P48: =" "&T48&" "&$D$4 -> 2. Mannschaft Aufgelegt | T48: 2. Mannschaft | U48: =VLOOKUP(P51,Klasse_M!$AO$12:$AV$200,6,FALSE) ->  | V48: =VLOOKUP(P51,Klasse_M!$AO$12:$AV$200,8,FALSE) ->  | W48: =VLOOKUP(P51,Klasse_M!$AO$12:$AV$200,2,FALSE) ->  | AA48: =" "&AE48&" "&$D$4 -> 2. Mannschaft Aufgelegt | AE48: 2. Mannschaft | AF48: ¢ | AG48: 0 | AJ48: =" "&AN48&" "&$D$4 -> 2. Mannschaft Aufgelegt | AN48: 2. Mannschaft | AO48: ¢ | AP48: 0
G49: =IF(H49=0,"",COUNTIF(G$12:G48,">0")+G$9+1) ->  | K49: =VLOOKUP($G49,Klasse_1!$AT$11:$BG$500,11,FALSE) ->  | L49: =VLOOKUP($G49,Klasse_1!$AT$11:$BG$500,8,FALSE) ->  | M49: =VLOOKUP($G49,Klasse_1!$AT$11:$BG$500,10,FALSE) ->  | N49: =VLOOKUP($G49,Klasse_1!$AT$11:$BG$500,2,FALSE) ->  | P49: =IF(Q49=0,"",COUNTIF(P$12:P48,">0")+P$9+1) ->  | T49: =VLOOKUP($P49,Klasse_2!$AT$11:$BG$500,11,FALSE) ->  | U49: =VLOOKUP($P49,Klasse_2!$AT$11:$BG$500,8,FALSE) ->  | V49: =VLOOKUP($P49,Klasse_2!$AT$11:$BG$500,10,FALSE) ->  | W49: =VLOOKUP($P49,Klasse_2!$AT$11:$BG$500,2,FALSE) ->  | AA49: =IF(AB49=0,"",COUNTIF(AA$12:AA48,">0")+AA$9+1) ->  | AE49: 0 | AF49: ¢ | AG49: 0 | AJ49: =IF(AK49=0,"",COUNTIF(AJ$12:AJ48,">0")+AJ$9+1) ->  | AN49: 0 | AO49: ¢ | AP49: 0
B50: =VLOOKUP($B$18,Brief!$AG$45:$AO$68,3,FALSE) -> BSGi Holten 1308 e.V. | G50: =IF(H50=0,"",COUNTIF(G$12:G49,">0")+G$9+1) ->  | K50: =VLOOKUP($G50,Klasse_1!$AT$11:$BG$500,11,FALSE) ->  | L50: =VLOOKUP($G50,Klasse_1!$AT$11:$BG$500,8,FALSE) ->  | M50: =VLOOKUP($G50,Klasse_1!$AT$11:$BG$500,10,FALSE) ->  | N50: =VLOOKUP($G50,Klasse_1!$AT$11:$BG$500,2,FALSE) ->  | P50: =IF(Q50=0,"",COUNTIF(P$12:P49,">0")+P$9+1) ->  | T50: =VLOOKUP($P50,Klasse_2!$AT$11:$BG$500,11,FALSE) ->  | U50: =VLOOKUP($P50,Klasse_2!$AT$11:$BG$500,8,FALSE) ->  | V50: =VLOOKUP($P50,Klasse_2!$AT$11:$BG$500,10,FALSE) ->  | W50: =VLOOKUP($P50,Klasse_2!$AT$11:$BG$500,2,FALSE) ->  | AA50: =IF(AB50=0,"",COUNTIF(AA$12:AA49,">0")+AA$9+1) ->  | AE50: 0 | AF50: ¢ | AG50: 0 | AJ50: =IF(AK50=0,"",COUNTIF(AJ$12:AJ49,">0")+AJ$9+1) ->  | AN50: 0 | AO50: ¢ | AP50: 0
B51: VereinsNr. | C51: =VLOOKUP($B$18,Brief!$AG$45:$AP$68,10,FALSE) -> 1106 | G51: =IF(H51=0,"",COUNTIF(G$12:G50,">0")+G$9+1) ->  | K51: =VLOOKUP($G51,Klasse_1!$AT$11:$BG$500,11,FALSE) ->  | L51: =VLOOKUP($G51,Klasse_1!$AT$11:$BG$500,8,FALSE) ->  | M51: =VLOOKUP($G51,Klasse_1!$AT$11:$BG$500,10,FALSE) ->  | N51: =VLOOKUP($G51,Klasse_1!$AT$11:$BG$500,2,FALSE) ->  | P51: =IF(Q51=0,"",COUNTIF(P$12:P50,">0")+P$9+1) ->  | T51: =VLOOKUP($P51,Klasse_2!$AT$11:$BG$500,11,FALSE) ->  | U51: =VLOOKUP($P51,Klasse_2!$AT$11:$BG$500,8,FALSE) ->  | V51: =VLOOKUP($P51,Klasse_2!$AT$11:$BG$500,10,FALSE) ->  | W51: =VLOOKUP($P51,Klasse_2!$AT$11:$BG$500,2,FALSE) ->  | AA51: =IF(AB51=0,"",COUNTIF(AA$12:AA50,">0")+AA$9+1) ->  | AE51: 0 | AF51: ¢ | AG51: 0 | AJ51: =IF(AK51=0,"",COUNTIF(AJ$12:AJ50,">0")+AJ$9+1) ->  | AN51: 0 | AO51: ¢ | AP51: 0
B52: Anspr. | C52: =VLOOKUP($B$18,Brief!$AG$45:$AO$68,4,FALSE) -> Bylicki, Kai | G52: =IF(H52=0,"",COUNTIF(G$12:G51,">0")+G$9+1) ->  | K52: =VLOOKUP($G52,Klasse_1!$AT$11:$BG$500,11,FALSE) ->  | L52: =VLOOKUP($G52,Klasse_1!$AT$11:$BG$500,8,FALSE) ->  | M52: =VLOOKUP($G52,Klasse_1!$AT$11:$BG$500,10,FALSE) ->  | N52: =VLOOKUP($G52,Klasse_1!$AT$11:$BG$500,2,FALSE) ->  | P52: =IF(Q52=0,"",COUNTIF(P$12:P51,">0")+P$9+1) ->  | T52: =VLOOKUP($P52,Klasse_2!$AT$11:$BG$500,11,FALSE) ->  | U52: =VLOOKUP($P52,Klasse_2!$AT$11:$BG$500,8,FALSE) ->  | V52: =VLOOKUP($P52,Klasse_2!$AT$11:$BG$500,10,FALSE) ->  | W52: =VLOOKUP($P52,Klasse_2!$AT$11:$BG$500,2,FALSE) ->  | AA52: =IF(AB52=0,"",COUNTIF(AA$12:AA51,">0")+AA$9+1) ->  | AE52: 0 | AF52: ¢ | AG52: 0 | AJ52: =IF(AK52=0,"",COUNTIF(AJ$12:AJ51,">0")+AJ$9+1) ->  | AN52: 0 | AO52: ¢ | AP52: 0
B53: Anschrift | C53: =VLOOKUP($B$18,Brief!$AG$45:$AO$68,5,FALSE) -> Weierstr. 95 | G53: =IF(H53=0,"",COUNTIF(G$12:G52,">0")+G$9+1) ->  | K53: =VLOOKUP($G53,Klasse_1!$AT$11:$BG$500,11,FALSE) ->  | L53: =VLOOKUP($G53,Klasse_1!$AT$11:$BG$500,8,FALSE) ->  | M53: =VLOOKUP($G53,Klasse_1!$AT$11:$BG$500,10,FALSE) ->  | N53: =VLOOKUP($G53,Klasse_1!$AT$11:$BG$500,2,FALSE) ->  | P53: =IF(Q53=0,"",COUNTIF(P$12:P52,">0")+P$9+1) ->  | T53: =VLOOKUP($P53,Klasse_2!$AT$11:$BG$500,11,FALSE) ->  | U53: =VLOOKUP($P53,Klasse_2!$AT$11:$BG$500,8,FALSE) ->  | V53: =VLOOKUP($P53,Klasse_2!$AT$11:$BG$500,10,FALSE) ->  | W53: =VLOOKUP($P53,Klasse_2!$AT$11:$BG$500,2,FALSE) ->  | AA53: =IF(AB53=0,"",COUNTIF(AA$12:AA52,">0")+AA$9+1) ->  | AE53: 0 | AF53: ¢ | AG53: 0 | AJ53: =IF(AK53=0,"",COUNTIF(AJ$12:AJ52,">0")+AJ$9+1) ->  | AN53: 0 | AO53: ¢ | AP53: 0
B54: PLZ / Ort | C54: =VLOOKUP($B$18,Brief!$AG$45:$AO$68,6,FALSE) -> 46149 Oberhausen | G54: =" "&K54&" "&$D$4 -> 3. Mannschaft Aufgelegt | K54: 3. Mannschaft | L54: =VLOOKUP(G57,Klasse_M!$S$12:$Z$200,6,FALSE) ->  | M54: =VLOOKUP(G57,Klasse_M!$S$12:$Z$200,8,FALSE) ->  | N54: =VLOOKUP(G57,Klasse_M!$S$12:$Z$200,2,FALSE) ->  | P54: =" "&T54&" "&$D$4 -> 3. Mannschaft Aufgelegt | T54: 3. Mannschaft | U54: =VLOOKUP(P57,Klasse_M!$AO$12:$AV$200,6,FALSE) ->  | V54: =VLOOKUP(P57,Klasse_M!$AO$12:$AV$200,8,FALSE) ->  | W54: =VLOOKUP(P57,Klasse_M!$AO$12:$AV$200,2,FALSE) ->  | AA54: =" "&AE54&" "&$D$4 -> 3. Mannschaft Aufgelegt | AE54: 3. Mannschaft | AF54: ¢ | AG54: 0 | AJ54: =" "&AN54&" "&$D$4 -> 3. Mannschaft Aufgelegt | AN54: 3. Mannschaft | AO54: ¢ | AP54: 0
B55: Tel. | C55: =VLOOKUP($B$18,Brief!$AG$45:$AO$68,7,FALSE) ->  | G55: =IF(H55=0,"",COUNTIF(G$12:G54,">0")+G$9+1) ->  | K55: =VLOOKUP($G55,Klasse_1!$AT$11:$BG$500,11,FALSE) ->  | L55: =VLOOKUP($G55,Klasse_1!$AT$11:$BG$500,8,FALSE) ->  | M55: =VLOOKUP($G55,Klasse_1!$AT$11:$BG$500,10,FALSE) ->  | N55: =VLOOKUP($G55,Klasse_1!$AT$11:$BG$500,2,FALSE) ->  | P55: =IF(Q55=0,"",COUNTIF(P$12:P54,">0")+P$9+1) ->  | T55: =VLOOKUP($P55,Klasse_2!$AT$11:$BG$500,11,FALSE) ->  | U55: =VLOOKUP($P55,Klasse_2!$AT$11:$BG$500,8,FALSE) ->  | V55: =VLOOKUP($P55,Klasse_2!$AT$11:$BG$500,10,FALSE) ->  | W55: =VLOOKUP($P55,Klasse_2!$AT$11:$BG$500,2,FALSE) ->  | AA55: =IF(AB55=0,"",COUNTIF(AA$12:AA54,">0")+AA$9+1) ->  | AE55: 0 | AF55: ¢ | AG55: 0 | AJ55: =IF(AK55=0,"",COUNTIF(AJ$12:AJ54,">0")+AJ$9+1) ->  | AN55: 0 | AO55: ¢ | AP55: 0
B56: Sportleit. | C56: =VLOOKUP($B$18,Brief!$AG$45:$AO$68,8,FALSE) ->  | G56: =IF(H56=0,"",COUNTIF(G$12:G55,">0")+G$9+1) ->  | K56: =VLOOKUP($G56,Klasse_1!$AT$11:$BG$500,11,FALSE) ->  | L56: =VLOOKUP($G56,Klasse_1!$AT$11:$BG$500,8,FALSE) ->  | M56: =VLOOKUP($G56,Klasse_1!$AT$11:$BG$500,10,FALSE) ->  | N56: =VLOOKUP($G56,Klasse_1!$AT$11:$BG$500,2,FALSE) ->  | P56: =IF(Q56=0,"",COUNTIF(P$12:P55,">0")+P$9+1) ->  | T56: =VLOOKUP($P56,Klasse_2!$AT$11:$BG$500,11,FALSE) ->  | U56: =VLOOKUP($P56,Klasse_2!$AT$11:$BG$500,8,FALSE) ->  | V56: =VLOOKUP($P56,Klasse_2!$AT$11:$BG$500,10,FALSE) ->  | W56: =VLOOKUP($P56,Klasse_2!$AT$11:$BG$500,2,FALSE) ->  | AA56: =IF(AB56=0,"",COUNTIF(AA$12:AA55,">0")+AA$9+1) ->  | AE56: 0 | AF56: ¢ | AG56: 0 | AJ56: =IF(AK56=0,"",COUNTIF(AJ$12:AJ55,">0")+AJ$9+1) ->  | AN56: 0 | AO56: ¢ | AP56: 0
B57: Tel. | C57: =VLOOKUP($B$18,Brief!$AG$45:$AO$68,9,FALSE) ->  | G57: =IF(H57=0,"",COUNTIF(G$12:G56,">0")+G$9+1) ->  | K57: =VLOOKUP($G57,Klasse_1!$AT$11:$BG$500,11,FALSE) ->  | L57: =VLOOKUP($G57,Klasse_1!$AT$11:$BG$500,8,FALSE) ->  | M57: =VLOOKUP($G57,Klasse_1!$AT$11:$BG$500,10,FALSE) ->  | N57: =VLOOKUP($G57,Klasse_1!$AT$11:$BG$500,2,FALSE) ->  | P57: =IF(Q57=0,"",COUNTIF(P$12:P56,">0")+P$9+1) ->  | T57: =VLOOKUP($P57,Klasse_2!$AT$11:$BG$500,11,FALSE) ->  | U57: =VLOOKUP($P57,Klasse_2!$AT$11:$BG$500,8,FALSE) ->  | V57: =VLOOKUP($P57,Klasse_2!$AT$11:$BG$500,10,FALSE) ->  | W57: =VLOOKUP($P57,Klasse_2!$AT$11:$BG$500,2,FALSE) ->  | AA57: =IF(AB57=0,"",COUNTIF(AA$12:AA56,">0")+AA$9+1) ->  | AE57: 0 | AF57: ¢ | AG57: 0 | AJ57: =IF(AK57=0,"",COUNTIF(AJ$12:AJ56,">0")+AJ$9+1) ->  | AN57: 0 | AO57: ¢ | AP57: 0
G58: =IF(H58=0,"",COUNTIF(G$12:G57,">0")+G$9+1) ->  | K58: =VLOOKUP($G58,Klasse_1!$AT$11:$BG$500,11,FALSE) ->  | L58: =VLOOKUP($G58,Klasse_1!$AT$11:$BG$500,8,FALSE) ->  | M58: =VLOOKUP($G58,Klasse_1!$AT$11:$BG$500,10,FALSE) ->  | N58: =VLOOKUP($G58,Klasse_1!$AT$11:$BG$500,2,FALSE) ->  | P58: =IF(Q58=0,"",COUNTIF(P$12:P57,">0")+P$9+1) ->  | T58: =VLOOKUP($P58,Klasse_2!$AT$11:$BG$500,11,FALSE) ->  | U58: =VLOOKUP($P58,Klasse_2!$AT$11:$BG$500,8,FALSE) ->  | V58: =VLOOKUP($P58,Klasse_2!$AT$11:$BG$500,10,FALSE) ->  | W58: =VLOOKUP($P58,Klasse_2!$AT$11:$BG$500,2,FALSE) ->  | AA58: =IF(AB58=0,"",COUNTIF(AA$12:AA57,">0")+AA$9+1) ->  | AE58: 0 | AF58: ¢ | AG58: 0 | AJ58: =IF(AK58=0,"",COUNTIF(AJ$12:AJ57,">0")+AJ$9+1) ->  | AN58: 0 | AO58: ¢ | AP58: 0
G59: =IF(H59=0,"",COUNTIF(G$12:G58,">0")+G$9+1) ->  | K59: =VLOOKUP($G59,Klasse_1!$AT$11:$BG$500,11,FALSE) ->  | L59: =VLOOKUP($G59,Klasse_1!$AT$11:$BG$500,8,FALSE) ->  | M59: =VLOOKUP($G59,Klasse_1!$AT$11:$BG$500,10,FALSE) ->  | N59: =VLOOKUP($G59,Klasse_1!$AT$11:$BG$500,2,FALSE) ->  | P59: =IF(Q59=0,"",COUNTIF(P$12:P58,">0")+P$9+1) ->  | T59: =VLOOKUP($P59,Klasse_2!$AT$11:$BG$500,11,FALSE) ->  | U59: =VLOOKUP($P59,Klasse_2!$AT$11:$BG$500,8,FALSE) ->  | V59: =VLOOKUP($P59,Klasse_2!$AT$11:$BG$500,10,FALSE) ->  | W59: =VLOOKUP($P59,Klasse_2!$AT$11:$BG$500,2,FALSE) ->  | AA59: =IF(AB59=0,"",COUNTIF(AA$12:AA58,">0")+AA$9+1) ->  | AE59: 0 | AF59: ¢ | AG59: 0 | AJ59: =IF(AK59=0,"",COUNTIF(AJ$12:AJ58,">0")+AJ$9+1) ->  | AN59: 0 | AO59: ¢ | AP59: 0
G60: =" "&K60&" "&$D$4 -> 4. Mannschaft Aufgelegt | K60: 4. Mannschaft | L60: =VLOOKUP(G63,Klasse_M!$S$12:$Z$200,6,FALSE) ->  | M60: =VLOOKUP(G63,Klasse_M!$S$12:$Z$200,8,FALSE) ->  | N60: =VLOOKUP(G63,Klasse_M!$S$12:$Z$200,2,FALSE) ->  | P60: =" "&T60&" "&$D$4 -> 4. Mannschaft Aufgelegt | T60: 4. Mannschaft | U60: =VLOOKUP(P63,Klasse_M!$AO$12:$AV$200,6,FALSE) ->  | V60: =VLOOKUP(P63,Klasse_M!$AO$12:$AV$200,8,FALSE) ->  | W60: =VLOOKUP(P63,Klasse_M!$AO$12:$AV$200,2,FALSE) ->  | AA60: =" "&AE60&" "&$D$4 -> 4. Mannschaft Aufgelegt | AE60: 4. Mannschaft | AF60: ¢ | AG60: 0 | AJ60: =" "&AN60&" "&$D$4 -> 4. Mannschaft Aufgelegt | AN60: 4. Mannschaft | AO60: ¢ | AP60: 0
G61: =IF(H61=0,"",COUNTIF(G$12:G60,">0")+G$9+1) ->  | K61: =VLOOKUP($G61,Klasse_1!$AT$11:$BG$500,11,FALSE) ->  | L61: =VLOOKUP($G61,Klasse_1!$AT$11:$BG$500,8,FALSE) ->  | M61: =VLOOKUP($G61,Klasse_1!$AT$11:$BG$500,10,FALSE) ->  | N61: =VLOOKUP($G61,Klasse_1!$AT$11:$BG$500,2,FALSE) ->  | P61: =IF(Q61=0,"",COUNTIF(P$12:P60,">0")+P$9+1) ->  | T61: =VLOOKUP($P61,Klasse_2!$AT$11:$BG$500,11,FALSE) ->  | U61: =VLOOKUP($P61,Klasse_2!$AT$11:$BG$500,8,FALSE) ->  | V61: =VLOOKUP($P61,Klasse_2!$AT$11:$BG$500,10,FALSE) ->  | W61: =VLOOKUP($P61,Klasse_2!$AT$11:$BG$500,2,FALSE) ->  | AA61: =IF(AB61=0,"",COUNTIF(AA$12:AA60,">0")+AA$9+1) ->  | AE61: 0 | AF61: ¢ | AG61: 0 | AJ61: =IF(AK61=0,"",COUNTIF(AJ$12:AJ60,">0")+AJ$9+1) ->  | AN61: 0 | AO61: ¢ | AP61: 0
G62: =IF(H62=0,"",COUNTIF(G$12:G61,">0")+G$9+1) ->  | K62: =VLOOKUP($G62,Klasse_1!$AT$11:$BG$500,11,FALSE) ->  | L62: =VLOOKUP($G62,Klasse_1!$AT$11:$BG$500,8,FALSE) ->  | M62: =VLOOKUP($G62,Klasse_1!$AT$11:$BG$500,10,FALSE) ->  | N62: =VLOOKUP($G62,Klasse_1!$AT$11:$BG$500,2,FALSE) ->  | P62: =IF(Q62=0,"",COUNTIF(P$12:P61,">0")+P$9+1) ->  | T62: =VLOOKUP($P62,Klasse_2!$AT$11:$BG$500,11,FALSE) ->  | U62: =VLOOKUP($P62,Klasse_2!$AT$11:$BG$500,8,FALSE) ->  | V62: =VLOOKUP($P62,Klasse_2!$AT$11:$BG$500,10,FALSE) ->  | W62: =VLOOKUP($P62,Klasse_2!$AT$11:$BG$500,2,FALSE) ->  | AA62: =IF(AB62=0,"",COUNTIF(AA$12:AA61,">0")+AA$9+1) ->  | AE62: 0 | AF62: ¢ | AG62: 0 | AJ62: =IF(AK62=0,"",COUNTIF(AJ$12:AJ61,">0")+AJ$9+1) ->  | AN62: 0 | AO62: ¢ | AP62: 0
G63: =IF(H63=0,"",COUNTIF(G$12:G62,">0")+G$9+1) ->  | K63: =VLOOKUP($G63,Klasse_1!$AT$11:$BG$500,11,FALSE) ->  | L63: =VLOOKUP($G63,Klasse_1!$AT$11:$BG$500,8,FALSE) ->  | M63: =VLOOKUP($G63,Klasse_1!$AT$11:$BG$500,10,FALSE) ->  | N63: =VLOOKUP($G63,Klasse_1!$AT$11:$BG$500,2,FALSE) ->  | P63: =IF(Q63=0,"",COUNTIF(P$12:P62,">0")+P$9+1) ->  | T63: =VLOOKUP($P63,Klasse_2!$AT$11:$BG$500,11,FALSE) ->  | U63: =VLOOKUP($P63,Klasse_2!$AT$11:$BG$500,8,FALSE) ->  | V63: =VLOOKUP($P63,Klasse_2!$AT$11:$BG$500,10,FALSE) ->  | W63: =VLOOKUP($P63,Klasse_2!$AT$11:$BG$500,2,FALSE) ->  | AA63: =IF(AB63=0,"",COUNTIF(AA$12:AA62,">0")+AA$9+1) ->  | AE63: 0 | AF63: ¢ | AG63: 0 | AJ63: =IF(AK63=0,"",COUNTIF(AJ$12:AJ62,">0")+AJ$9+1) ->  | AN63: 0 | AO63: ¢ | AP63: 0
G64: =IF(H64=0,"",COUNTIF(G$12:G63,">0")+G$9+1) ->  | K64: =VLOOKUP($G64,Klasse_1!$AT$11:$BG$500,11,FALSE) ->  | L64: =VLOOKUP($G64,Klasse_1!$AT$11:$BG$500,8,FALSE) ->  | M64: =VLOOKUP($G64,Klasse_1!$AT$11:$BG$500,10,FALSE) ->  | N64: =VLOOKUP($G64,Klasse_1!$AT$11:$BG$500,2,FALSE) ->  | P64: =IF(Q64=0,"",COUNTIF(P$12:P63,">0")+P$9+1) ->  | T64: =VLOOKUP($P64,Klasse_2!$AT$11:$BG$500,11,FALSE) ->  | U64: =VLOOKUP($P64,Klasse_2!$AT$11:$BG$500,8,FALSE) ->  | V64: =VLOOKUP($P64,Klasse_2!$AT$11:$BG$500,10,FALSE) ->  | W64: =VLOOKUP($P64,Klasse_2!$AT$11:$BG$500,2,FALSE) ->  | AA64: =IF(AB64=0,"",COUNTIF(AA$12:AA63,">0")+AA$9+1) ->  | AE64: 0 | AF64: ¢ | AG64: 0 | AJ64: =IF(AK64=0,"",COUNTIF(AJ$12:AJ63,">0")+AJ$9+1) ->  | AN64: 0 | AO64: ¢ | AP64: 0
G65: =IF(H65=0,"",COUNTIF(G$12:G64,">0")+G$9+1) ->  | K65: =VLOOKUP($G65,Klasse_1!$AT$11:$BG$500,11,FALSE) ->  | L65: =VLOOKUP($G65,Klasse_1!$AT$11:$BG$500,8,FALSE) ->  | M65: =VLOOKUP($G65,Klasse_1!$AT$11:$BG$500,10,FALSE) ->  | N65: =VLOOKUP($G65,Klasse_1!$AT$11:$BG$500,2,FALSE) ->  | P65: =IF(Q65=0,"",COUNTIF(P$12:P64,">0")+P$9+1) ->  | T65: =VLOOKUP($P65,Klasse_2!$AT$11:$BG$500,11,FALSE) ->  | U65: =VLOOKUP($P65,Klasse_2!$AT$11:$BG$500,8,FALSE) ->  | V65: =VLOOKUP($P65,Klasse_2!$AT$11:$BG$500,10,FALSE) ->  | W65: =VLOOKUP($P65,Klasse_2!$AT$11:$BG$500,2,FALSE) ->  | AA65: =IF(AB65=0,"",COUNTIF(AA$12:AA64,">0")+AA$9+1) ->  | AE65: 0 | AF65: ¢ | AG65: 0 | AJ65: =IF(AK65=0,"",COUNTIF(AJ$12:AJ64,">0")+AJ$9+1) ->  | AN65: 0 | AO65: ¢ | AP65: 0

Sheet E
D1: =Brief!D1 -> Schützen | G1: =" "&Brief!$K$13&" "&Brief!$K$14&" "&Brief!$K$15 -> SV Rothebusch 1922 e.V. 21. Optik Giepen Pokal 03/04. Febr. 2018 | AA1: =" "&Brief!$K$13&" "&Brief!$K$14&" "&Brief!$K$15 -> SV Rothebusch 1922 e.V. 21. Optik Giepen Pokal 03/04. Febr. 2018 | AU1: =" "&Brief!$K$13&" "&Brief!$K$14&" "&Brief!$K$15 -> SV Rothebusch 1922 e.V. 21. Optik Giepen Pokal 03/04. Febr. 2018 | BJ1: =" "&Brief!$K$13&" "&Brief!$K$14&" "&Brief!$K$15 -> SV Rothebusch 1922 e.V. 21. Optik Giepen Pokal 03/04. Febr. 2018
B2: =Brief!$AH$45 -> SV Rothebusch 1922 e.V. | D2: =Brief!D2 -> Damen | E2: =A!$E$2 -> 22 | F2: =IF($B$18="A",$B$18,"") ->  | Z2: =$F2 ->  | AT2: =$F2 ->  | BI2: =$F2 -> 
B3: =Brief!$AH$46 -> ABSV 1921 | D3: =Brief!D3 -> Freistehend | E3: =A!$E$3 -> 22 | F3: =IF($B$18="B",$B$18,"") -> 
B4: =Brief!$AH$47 -> Buschhausen | D4: =Brief!D4 -> Aufgelegt | E4: =A!$E$4 -> 28 | F4: =IF($B$18="C",$B$18,"") ->  | G4: =VLOOKUP($B$18,Brief!$AG$45:$AO$68,3,FALSE) -> BSV 1882 Osterfeld e.V. | P4: Wertungen | AA4: =VLOOKUP($B$18,Brief!$AG$45:$AO$68,3,FALSE) -> BSV 1882 Osterfeld e.V. | AJ4: Wertungen | AU4: =VLOOKUP($B$18,Brief!$AG$45:$AO$68,3,FALSE) -> BSV 1882 Osterfeld e.V.
B5: =Brief!$AH$48 -> BSG Holten | D5: =Brief!D5 ->  | E5: =A!$E$5 -> 28 | F5: =IF($B$18="D",$B$18,"") ->  | BJ5: =VLOOKUP($B$18,Brief!$AG$45:$AO$68,3,FALSE) -> BSV 1882 Osterfeld e.V.
B6: =Brief!$AH$49 -> 1882 Osterfeld | D6: =Brief!D6 ->  | E6: =A!$E$6 -> 42 | F6: =IF($B$18="E",$B$18,"") -> E | Z6: E | AT6: E | BI6: E
B7: =Brief!$AH$50 -> Hubertus | D7: =Brief!D7 ->  | E7: =A!$E$7 -> 52 | F7: =IF($B$18="F",$B$18,"") ->  | BK7: Ansprechpartner | BL7: =VLOOKUP($B$18,Brief!$AG$45:$AO$68,4,FALSE) -> Wahl. Claudia | BQ7: =NOW() -> 2018-02-05T11:14:19.790 | BR7: =VLOOKUP($B$18,Brief!$AG$45:$AP$68,10,FALSE) -> 1102
B8: =Brief!$AH$51 -> St. Lirich | C8: =Brief!$AH$52 -> Waidmannsheil | D8: =Brief!D8 ->  | E8: =A!$E$8 -> -56 -74 | F8: =IF($B$18="G",$B$18,"") ->  | H8: =IF(Brief!$K$43=0,"",Brief!$K$43&" "&Brief!$M$43) -> Luftgewehr 10 m | Q8: =IF(Brief!$K$46=0,"",Brief!$K$46&" "&Brief!$M$46) -> Luftgewehr 10 m | AB8: =IF(Brief!$K$49=0,"",Brief!$K$49&" "&Brief!$M$49) ->  | AK8: =IF(Brief!$K$52=0,"",Brief!$K$52&" "&Brief!$M$52) ->  | BK8: Anschrift | BL8: =VLOOKUP($B$18,Brief!$AG$45:$AO$68,5,FALSE) -> Fahnhorststr.69
B9: =Brief!$AH$53 -> Klosterhardt | C9: =Brief!$AH$54 -> Königshardt | D9: =Brief!D9 ->  | E9: =A!$E$9 -> -78 -78 | F9: =IF($B$18="K",$B$18,"") ->  | G9: =D!$AJ$10 -> 28 | H9: =$D$1 -> Schützen | K9: 1 | P9: =G10 -> 42 | Q9: =$D$2 -> Damen | T9: 2 | AA9: =P10 -> 42 | AB9: =$D$5 ->  | AE9: 3 | AJ9: =AA10 -> 42 | AK9: =$D$8 ->  | AN9: 4 | AU9: Pass | AV9: =$D$1 -> Schützen | AX9: Pass | AY9: =$D$2 -> Damen | BA9: Pass | BB9: =$D$5 ->  | BD9: Pass | BE9: =$D$8 ->  | BK9: PLZ / Ort | BL9: =VLOOKUP($B$18,Brief!$AG$45:$AO$68,6,FALSE) -> 46147 Oberhausen | BQ9: Sportleiter | BR9: =VLOOKUP($B$18,Brief!$AG$45:$AO$68,8,FALSE) -> 
B10: =Brief!$AH$55 -> BSG 1862 Oberhausen | C10: =Brief!$AH$56 -> 1981 Mitte | D10: =Brief!D10 ->  | E10: =A!$E$10 -> -78 -78 | F10: =IF($B$18="M",$B$18,"") ->  | G10: =MAX(G11:G65) -> 42 | P10: =MAX(P11:P65) -> 42 | AA10: =MAX(AA11:AA65) -> 42 | AJ10: =AA9 -> 42 | AU10: Nr. | AX10: Nr. | BA10: Nr. | BD10: Nr. | BK10: Tel., Ansprechpartner | BL10: =VLOOKUP($B$18,Brief!$AG$45:$AO$68,7,FALSE) ->  | BQ10: Telefon, Sportleiter | BR10: =VLOOKUP($B$18,Brief!$AG$45:$AO$68,9,FALSE) -> 
G11: =G9 -> 28 | P11: =P9 -> 42 | AA11: =AA9 -> 42 | AJ11: =AJ9 -> 42 | BJ11: Nr. | BK11: =$D$1 -> Schützen | BM11: Nr. | BN11: =$D$2 -> Damen | BP11: =IF(BQ11="","","Nr.") ->  | BQ11: =$D$5 ->  | BS11: =IF(BT11="","","Nr.") ->  | BT11: =$D$8 -> 
B12: EINGABE | G12: =" "&K12&" "&$D$3 -> 1. Mannschaft Freistehend | K12: 1. Mannschaft | L12: =VLOOKUP(G15,Klasse_M!$H$12:$O$200,6,FALSE) ->  | M12: =VLOOKUP(G15,Klasse_M!$H$12:$O$200,8,FALSE) -> 0 | N12: =VLOOKUP(G15,Klasse_M!$H$12:$O$200,2,FALSE) -> 1 | P12: =" "&T12&" "&$D$3 -> 1. Mannschaft Freistehend | T12: 1. Mannschaft | U12: =VLOOKUP(P15,Klasse_M!$AD$12:$AK$200,6,FALSE) ->  | V12: =VLOOKUP(P15,Klasse_M!$AD$12:$AK$200,8,FALSE) ->  | W12: =VLOOKUP(P15,Klasse_M!$AD$12:$AK$200,2,FALSE) ->  | AA12: =" "&AE12&" "&$D$3 -> 1. Mannschaft Freistehend | AE12: 1. Mannschaft | AF12: ¢ | AG12: 0 | AJ12: =" "&AN12&" "&$D$3 -> 1. Mannschaft Freistehend | AN12: 1. Mannschaft | AO12: ¢ | AP12: 0 | AV12: Atrops, Edith | AX12: 119 | AY12: Atrops Edith | BJ12: =IF(AU12=0,"",AU12) ->  | BK12: =IF(AV12=0,"",AV12) -> Atrops, Edith | BM12: =IF(AX12=0,"",AX12) -> 119 | BN12: =IF(AY12=0,"",AY12) -> Atrops Edith | BP12: =IF(BA12=0,"",BA12) ->  | BQ12: =IF(BB12=0,"",BB12) ->  | BS12: =IF(BD12=0,"",BD12) ->  | BT12: =IF(BE12=0,"",BE12) -> 
G13: =IF(H13=0,"",COUNTIF(G$12:G12,">0")+G$9+1) -> 29 | H13: Benz, Manuel | K13: =VLOOKUP($G13,Klasse_1!$X$11:$AK$500,11,FALSE) ->  | L13: =VLOOKUP($G13,Klasse_1!$X$11:$AK$500,8,FALSE) ->  | M13: =VLOOKUP($G13,Klasse_1!$X$11:$AK$500,10,FALSE) ->  | N13: =VLOOKUP($G13,Klasse_1!$X$11:$AK$500,2,FALSE) ->  | P13: =IF(Q13=0,"",COUNTIF(P$12:P12,">0")+P$9+1) ->  | T13: =VLOOKUP($P13,Klasse_2!$X$11:$AK$500,11,FALSE) ->  | U13: =VLOOKUP($P13,Klasse_2!$X$11:$AK$500,8,FALSE) ->  | V13: =VLOOKUP($P13,Klasse_2!$X$11:$AK$500,10,FALSE) ->  | W13: =VLOOKUP($P13,Klasse_2!$X$11:$AK$500,2,FALSE) ->  | AA13: =IF(AB13=0,"",COUNTIF(AA$12:AA12,">0")+AA$9+1) ->  | AE13: 0 | AF13: ¢ | AG13: 0 | AJ13: =IF(AK13=0,"",COUNTIF(AJ$12:AJ12,">0")+AJ$9+1) ->  | AN13: 0 | AO13: ¢ | AP13: 0 | AV13: Awater, Erika | AY13: Awater, Erika | BK13: Awater, Erika | BN13: Awater, Erika
B14: =$D$1 -> Schützen | C14: =$D$2 -> Damen | G14: =IF(H14=0,"",COUNTIF(G$12:G13,">0")+G$9+1) -> 30 | H14: Nadolski, Jens | K14: =VLOOKUP($G14,Klasse_1!$X$11:$AK$500,11,FALSE) ->  | L14: =VLOOKUP($G14,Klasse_1!$X$11:$AK$500,8,FALSE) ->  | M14: =VLOOKUP($G14,Klasse_1!$X$11:$AK$500,10,FALSE) ->  | N14: =VLOOKUP($G14,Klasse_1!$X$11:$AK$500,2,FALSE) ->  | P14: =IF(Q14=0,"",COUNTIF(P$12:P13,">0")+P$9+1) ->  | T14: =VLOOKUP($P14,Klasse_2!$X$11:$AK$500,11,FALSE) ->  | U14: =VLOOKUP($P14,Klasse_2!$X$11:$AK$500,8,FALSE) ->  | V14: =VLOOKUP($P14,Klasse_2!$X$11:$AK$500,10,FALSE) ->  | W14: =VLOOKUP($P14,Klasse_2!$X$11:$AK$500,2,FALSE) ->  | AA14: =IF(AB14=0,"",COUNTIF(AA$12:AA13,">0")+AA$9+1) ->  | AE14: 0 | AF14: ¢ | AG14: 0 | AJ14: =IF(AK14=0,"",COUNTIF(AJ$12:AJ13,">0")+AJ$9+1) ->  | AN14: 0 | AO14: ¢ | AP14: 0 | AU14: 26 | AV14: Awater, Karl Heinz | AY14: Hoimann Doren | BJ14: 26 | BK14: Awater, Karl Heinz | BN14: Hoimann Doren
B15: =$D$5 ->  | C15: =$D$8 ->  | G15: =IF(H15=0,"",COUNTIF(G$12:G14,">0")+G$9+1) -> 31 | H15: Hoimann, Doren | K15: =VLOOKUP($G15,Klasse_1!$X$11:$AK$500,11,FALSE) ->  | L15: =VLOOKUP($G15,Klasse_1!$X$11:$AK$500,8,FALSE) ->  | M15: =VLOOKUP($G15,Klasse_1!$X$11:$AK$500,10,FALSE) ->  | N15: =VLOOKUP($G15,Klasse_1!$X$11:$AK$500,2,FALSE) ->  | P15: =IF(Q15=0,"",COUNTIF(P$12:P14,">0")+P$9+1) ->  | T15: =VLOOKUP($P15,Klasse_2!$X$11:$AK$500,11,FALSE) ->  | U15: =VLOOKUP($P15,Klasse_2!$X$11:$AK$500,8,FALSE) ->  | V15: =VLOOKUP($P15,Klasse_2!$X$11:$AK$500,10,FALSE) ->  | W15: =VLOOKUP($P15,Klasse_2!$X$11:$AK$500,2,FALSE) ->  | AA15: =IF(AB15=0,"",COUNTIF(AA$12:AA14,">0")+AA$9+1) ->  | AE15: 0 | AF15: ¢ | AG15: 0 | AJ15: =IF(AK15=0,"",COUNTIF(AJ$12:AJ14,">0")+AJ$9+1) ->  | AN15: 0 | AO15: ¢ | AP15: 0 | AV15: Benz, Manuel | AX15: 198 | AY15: Nadolski, Andrea | BK15: Benz, Manuel | BM15: 198 | BN15: Nadolski, Andrea
G16: =IF(H16=0,"",COUNTIF(G$12:G15,">0")+G$9+1) ->  | K16: =VLOOKUP($G16,Klasse_1!$X$11:$AK$500,11,FALSE) ->  | L16: =VLOOKUP($G16,Klasse_1!$X$11:$AK$500,8,FALSE) ->  | M16: =VLOOKUP($G16,Klasse_1!$X$11:$AK$500,10,FALSE) ->  | N16: =VLOOKUP($G16,Klasse_1!$X$11:$AK$500,2,FALSE) ->  | P16: =IF(Q16=0,"",COUNTIF(P$12:P15,">0")+P$9+1) ->  | T16: =VLOOKUP($P16,Klasse_2!$X$11:$AK$500,11,FALSE) ->  | U16: =VLOOKUP($P16,Klasse_2!$X$11:$AK$500,8,FALSE) ->  | V16: =VLOOKUP($P16,Klasse_2!$X$11:$AK$500,10,FALSE) ->  | W16: =VLOOKUP($P16,Klasse_2!$X$11:$AK$500,2,FALSE) ->  | AA16: =IF(AB16=0,"",COUNTIF(AA$12:AA15,">0")+AA$9+1) ->  | AE16: 0 | AF16: ¢ | AG16: 0 | AJ16: =IF(AK16=0,"",COUNTIF(AJ$12:AJ15,">0")+AJ$9+1) ->  | AN16: 0 | AO16: ¢ | AP16: 0 | AU16: 109 | AV16: Gandolfo, Nico | AX16: 24 | AY16: Ochs, Ulla | BJ16: 109 | BK16: Gandolfo, Nico | BM16: 24 | BN16: Ochs, Ulla
G17: =IF(H17=0,"",COUNTIF(G$12:G16,">0")+G$9+1) ->  | K17: =VLOOKUP($G17,Klasse_1!$X$11:$AK$500,11,FALSE) ->  | L17: =VLOOKUP($G17,Klasse_1!$X$11:$AK$500,8,FALSE) ->  | M17: =VLOOKUP($G17,Klasse_1!$X$11:$AK$500,10,FALSE) ->  | N17: =VLOOKUP($G17,Klasse_1!$X$11:$AK$500,2,FALSE) ->  | P17: =IF(Q17=0,"",COUNTIF(P$12:P16,">0")+P$9+1) ->  | T17: =VLOOKUP($P17,Klasse_2!$X$11:$AK$500,11,FALSE) ->  | U17: =VLOOKUP($P17,Klasse_2!$X$11:$AK$500,8,FALSE) ->  | V17: =VLOOKUP($P17,Klasse_2!$X$11:$AK$500,10,FALSE) ->  | W17: =VLOOKUP($P17,Klasse_2!$X$11:$AK$500,2,FALSE) ->  | AA17: =IF(AB17=0,"",COUNTIF(AA$12:AA16,">0")+AA$9+1) ->  | AE17: 0 | AF17: ¢ | AG17: 0 | AJ17: =IF(AK17=0,"",COUNTIF(AJ$12:AJ16,">0")+AJ$9+1) ->  | AN17: 0 | AO17: ¢ | AP17: 0 | AU17: 214 | AV17: Gernardt, Stephan | AY17: Schemmann, Patricia | BJ17: 214 | BK17: Gernardt, Stephan | BN17: Schemmann, Patricia
B18: E | G18: =" "&K18&" "&$D$3 -> 2. Mannschaft Freistehend | K18: 2. Mannschaft | L18: =VLOOKUP(G21,Klasse_M!$H$12:$O$200,6,FALSE) ->  | M18: =VLOOKUP(G21,Klasse_M!$H$12:$O$200,8,FALSE) ->  | N18: =VLOOKUP(G21,Klasse_M!$H$12:$O$200,2,FALSE) ->  | P18: =" "&T18&" "&$D$3 -> 2. Mannschaft Freistehend | T18: 2. Mannschaft | U18: =VLOOKUP(P21,Klasse_M!$AD$12:$AK$200,6,FALSE) ->  | V18: =VLOOKUP(P21,Klasse_M!$AD$12:$AK$200,8,FALSE) ->  | W18: =VLOOKUP(P21,Klasse_M!$AD$12:$AK$200,2,FALSE) ->  | AA18: =" "&AE18&" "&$D$3 -> 2. Mannschaft Freistehend | AE18: 2. Mannschaft | AF18: ¢ | AG18: 0 | AJ18: =" "&AN18&" "&$D$3 -> 2. Mannschaft Freistehend | AN18: 2. Mannschaft | AO18: ¢ | AP18: 0 | AV18: Hauck, Michael | AX18: 172 | AY18: Schemmannn, Susanne | BK18: Hauck, Michael | BM18: 172 | BN18: Schemmannn, Susanne
G19: =IF(H19=0,"",COUNTIF(G$12:G18,">0")+G$9+1) ->  | K19: =VLOOKUP($G19,Klasse_1!$X$11:$AK$500,11,FALSE) ->  | L19: =VLOOKUP($G19,Klasse_1!$X$11:$AK$500,8,FALSE) ->  | M19: =VLOOKUP($G19,Klasse_1!$X$11:$AK$500,10,FALSE) ->  | N19: =VLOOKUP($G19,Klasse_1!$X$11:$AK$500,2,FALSE) ->  | P19: =IF(Q19=0,"",COUNTIF(P$12:P18,">0")+P$9+1) ->  | T19: =VLOOKUP($P19,Klasse_2!$X$11:$AK$500,11,FALSE) ->  | U19: =VLOOKUP($P19,Klasse_2!$X$11:$AK$500,8,FALSE) ->  | V19: =VLOOKUP($P19,Klasse_2!$X$11:$AK$500,10,FALSE) ->  | W19: =VLOOKUP($P19,Klasse_2!$X$11:$AK$500,2,FALSE) ->  | AA19: =IF(AB19=0,"",COUNTIF(AA$12:AA18,">0")+AA$9+1) ->  | AE19: 0 | AF19: ¢ | AG19: 0 | AJ19: =IF(AK19=0,"",COUNTIF(AJ$12:AJ18,">0")+AJ$9+1) ->  | AN19: 0 | AO19: ¢ | AP19: 0 | AU19: 99 | AV19: Hoimann, Doren | AX19: 59 | AY19: Stache, Esther | BJ19: 99 | BK19: Hoimann, Doren | BM19: 59 | BN19: Stache, Esther
B20: =VLOOKUP($B$18,Brief!$AG$45:$AO$68,3,FALSE) -> BSV 1882 Osterfeld e.V. | G20: =IF(H20=0,"",COUNTIF(G$12:G19,">0")+G$9+1) ->  | K20: =VLOOKUP($G20,Klasse_1!$X$11:$AK$500,11,FALSE) ->  | L20: =VLOOKUP($G20,Klasse_1!$X$11:$AK$500,8,FALSE) ->  | M20: =VLOOKUP($G20,Klasse_1!$X$11:$AK$500,10,FALSE) ->  | N20: =VLOOKUP($G20,Klasse_1!$X$11:$AK$500,2,FALSE) ->  | P20: =IF(Q20=0,"",COUNTIF(P$12:P19,">0")+P$9+1) ->  | T20: =VLOOKUP($P20,Klasse_2!$X$11:$AK$500,11,FALSE) ->  | U20: =VLOOKUP($P20,Klasse_2!$X$11:$AK$500,8,FALSE) ->  | V20: =VLOOKUP($P20,Klasse_2!$X$11:$AK$500,10,FALSE) ->  | W20: =VLOOKUP($P20,Klasse_2!$X$11:$AK$500,2,FALSE) ->  | AA20: =IF(AB20=0,"",COUNTIF(AA$12:AA19,">0")+AA$9+1) ->  | AE20: 0 | AF20: ¢ | AG20: 0 | AJ20: =IF(AK20=0,"",COUNTIF(AJ$12:AJ19,">0")+AJ$9+1) ->  | AN20: 0 | AO20: ¢ | AP20: 0 | AU20: 81 | AV20: Nadolski, Andrea | BJ20: 81 | BK20: Nadolski, Andrea
B21: VereinsNr. | C21: =VLOOKUP($B$18,Brief!$AG$45:$AP$68,10,FALSE) -> 1102 | G21: =IF(H21=0,"",COUNTIF(G$12:G20,">0")+G$9+1) ->  | K21: =VLOOKUP($G21,Klasse_1!$X$11:$AK$500,11,FALSE) ->  | L21: =VLOOKUP($G21,Klasse_1!$X$11:$AK$500,8,FALSE) ->  | M21: =VLOOKUP($G21,Klasse_1!$X$11:$AK$500,10,FALSE) ->  | N21: =VLOOKUP($G21,Klasse_1!$X$11:$AK$500,2,FALSE) ->  | P21: =IF(Q21=0,"",COUNTIF(P$12:P20,">0")+P$9+1) ->  | T21: =VLOOKUP($P21,Klasse_2!$X$11:$AK$500,11,FALSE) ->  | U21: =VLOOKUP($P21,Klasse_2!$X$11:$AK$500,8,FALSE) ->  | V21: =VLOOKUP($P21,Klasse_2!$X$11:$AK$500,10,FALSE) ->  | W21: =VLOOKUP($P21,Klasse_2!$X$11:$AK$500,2,FALSE) ->  | AA21: =IF(AB21=0,"",COUNTIF(AA$12:AA20,">0")+AA$9+1) ->  | AE21: 0 | AF21: ¢ | AG21: 0 | AJ21: =IF(AK21=0,"",COUNTIF(AJ$12:AJ20,">0")+AJ$9+1) ->  | AN21: 0 | AO21: ¢ | AP21: 0 | AV21: Nadolski, Gerhard | BK21: Nadolski, Gerhard
B22: Anspr. | C22: =VLOOKUP($B$18,Brief!$AG$45:$AO$68,4,FALSE) -> Wahl. Claudia | G22: =IF(H22=0,"",COUNTIF(G$12:G21,">0")+G$9+1) ->  | K22: =VLOOKUP($G22,Klasse_1!$X$11:$AK$500,11,FALSE) ->  | L22: =VLOOKUP($G22,Klasse_1!$X$11:$AK$500,8,FALSE) ->  | M22: =VLOOKUP($G22,Klasse_1!$X$11:$AK$500,10,FALSE) ->  | N22: =VLOOKUP($G22,Klasse_1!$X$11:$AK$500,2,FALSE) ->  | P22: =IF(Q22=0,"",COUNTIF(P$12:P21,">0")+P$9+1) ->  | T22: =VLOOKUP($P22,Klasse_2!$X$11:$AK$500,11,FALSE) ->  | U22: =VLOOKUP($P22,Klasse_2!$X$11:$AK$500,8,FALSE) ->  | V22: =VLOOKUP($P22,Klasse_2!$X$11:$AK$500,10,FALSE) ->  | W22: =VLOOKUP($P22,Klasse_2!$X$11:$AK$500,2,FALSE) ->  | AA22: =IF(AB22=0,"",COUNTIF(AA$12:AA21,">0")+AA$9+1) ->  | AE22: 0 | AF22: ¢ | AG22: 0 | AJ22: =IF(AK22=0,"",COUNTIF(AJ$12:AJ21,">0")+AJ$9+1) ->  | AN22: 0 | AO22: ¢ | AP22: 0 | AV22: Nadolski, Jens | BK22: Nadolski, Jens
B23: Anschrift | C23: =VLOOKUP($B$18,Brief!$AG$45:$AO$68,5,FALSE) -> Fahnhorststr.69 | G23: =IF(H23=0,"",COUNTIF(G$12:G22,">0")+G$9+1) ->  | K23: =VLOOKUP($G23,Klasse_1!$X$11:$AK$500,11,FALSE) ->  | L23: =VLOOKUP($G23,Klasse_1!$X$11:$AK$500,8,FALSE) ->  | M23: =VLOOKUP($G23,Klasse_1!$X$11:$AK$500,10,FALSE) ->  | N23: =VLOOKUP($G23,Klasse_1!$X$11:$AK$500,2,FALSE) ->  | P23: =IF(Q23=0,"",COUNTIF(P$12:P22,">0")+P$9+1) ->  | T23: =VLOOKUP($P23,Klasse_2!$X$11:$AK$500,11,FALSE) ->  | U23: =VLOOKUP($P23,Klasse_2!$X$11:$AK$500,8,FALSE) ->  | V23: =VLOOKUP($P23,Klasse_2!$X$11:$AK$500,10,FALSE) ->  | W23: =VLOOKUP($P23,Klasse_2!$X$11:$AK$500,2,FALSE) ->  | AA23: =IF(AB23=0,"",COUNTIF(AA$12:AA22,">0")+AA$9+1) ->  | AE23: 0 | AF23: ¢ | AG23: 0 | AJ23: =IF(AK23=0,"",COUNTIF(AJ$12:AJ22,">0")+AJ$9+1) ->  | AN23: 0 | AO23: ¢ | AP23: 0 | AU23: 2 | AV23: Nadolski, Joachim | BJ23: 2 | BK23: Nadolski, Joachim
B24: PLZ / Ort | C24: =VLOOKUP($B$18,Brief!$AG$45:$AO$68,6,FALSE) -> 46147 Oberhausen | G24: =" "&K24&" "&$D$3 -> 3. Mannschaft Freistehend | K24: 3. Mannschaft | L24: =VLOOKUP(G27,Klasse_M!$H$12:$O$200,6,FALSE) ->  | M24: =VLOOKUP(G27,Klasse_M!$H$12:$O$200,8,FALSE) ->  | N24: =VLOOKUP(G27,Klasse_M!$H$12:$O$200,2,FALSE) ->  | P24: =" "&T24&" "&$D$3 -> 3. Mannschaft Freistehend | T24: 3. Mannschaft | U24: =VLOOKUP(P27,Klasse_M!$AD$12:$AK$200,6,FALSE) ->  | V24: =VLOOKUP(P27,Klasse_M!$AD$12:$AK$200,8,FALSE) ->  | W24: =VLOOKUP(P27,Klasse_M!$AD$12:$AK$200,2,FALSE) ->  | AA24: =" "&AE24&" "&$D$3 -> 3. Mannschaft Freistehend | AE24: 3. Mannschaft | AF24: ¢ | AG24: 0 | AJ24: =" "&AN24&" "&$D$3 -> 3. Mannschaft Freistehend | AN24: 3. Mannschaft | AO24: ¢ | AP24: 0 | AV24: Ochs, Ulla | BK24: Ochs, Ulla
B25: Tel. | C25: =VLOOKUP($B$18,Brief!$AG$45:$AO$68,7,FALSE) ->  | G25: =IF(H25=0,"",COUNTIF(G$12:G24,">0")+G$9+1) ->  | K25: =VLOOKUP($G25,Klasse_1!$X$11:$AK$500,11,FALSE) ->  | L25: =VLOOKUP($G25,Klasse_1!$X$11:$AK$500,8,FALSE) ->  | M25: =VLOOKUP($G25,Klasse_1!$X$11:$AK$500,10,FALSE) ->  | N25: =VLOOKUP($G25,Klasse_1!$X$11:$AK$500,2,FALSE) ->  | P25: =IF(Q25=0,"",COUNTIF(P$12:P24,">0")+P$9+1) ->  | T25: =VLOOKUP($P25,Klasse_2!$X$11:$AK$500,11,FALSE) ->  | U25: =VLOOKUP($P25,Klasse_2!$X$11:$AK$500,8,FALSE) ->  | V25: =VLOOKUP($P25,Klasse_2!$X$11:$AK$500,10,FALSE) ->  | W25: =VLOOKUP($P25,Klasse_2!$X$11:$AK$500,2,FALSE) ->  | AA25: =IF(AB25=0,"",COUNTIF(AA$12:AA24,">0")+AA$9+1) ->  | AE25: 0 | AF25: ¢ | AG25: 0 | AJ25: =IF(AK25=0,"",COUNTIF(AJ$12:AJ24,">0")+AJ$9+1) ->  | AN25: 0 | AO25: ¢ | AP25: 0 | AV25: Rump, Ralf | BK25: Rump, Ralf
B26: Sportleit. | C26: =VLOOKUP($B$18,Brief!$AG$45:$AO$68,8,FALSE) ->  | G26: =IF(H26=0,"",COUNTIF(G$12:G25,">0")+G$9+1) ->  | K26: =VLOOKUP($G26,Klasse_1!$X$11:$AK$500,11,FALSE) ->  | L26: =VLOOKUP($G26,Klasse_1!$X$11:$AK$500,8,FALSE) ->  | M26: =VLOOKUP($G26,Klasse_1!$X$11:$AK$500,10,FALSE) ->  | N26: =VLOOKUP($G26,Klasse_1!$X$11:$AK$500,2,FALSE) ->  | P26: =IF(Q26=0,"",COUNTIF(P$12:P25,">0")+P$9+1) ->  | T26: =VLOOKUP($P26,Klasse_2!$X$11:$AK$500,11,FALSE) ->  | U26: =VLOOKUP($P26,Klasse_2!$X$11:$AK$500,8,FALSE) ->  | V26: =VLOOKUP($P26,Klasse_2!$X$11:$AK$500,10,FALSE) ->  | W26: =VLOOKUP($P26,Klasse_2!$X$11:$AK$500,2,FALSE) ->  | AA26: =IF(AB26=0,"",COUNTIF(AA$12:AA25,">0")+AA$9+1) ->  | AE26: 0 | AF26: ¢ | AG26: 0 | AJ26: =IF(AK26=0,"",COUNTIF(AJ$12:AJ25,">0")+AJ$9+1) ->  | AN26: 0 | AO26: ¢ | AP26: 0 | AU26: 18 | AV26: Schemmann, Bernd | BJ26: 18 | BK26: Schemmann, Bernd
B27: Tel. | C27: =VLOOKUP($B$18,Brief!$AG$45:$AO$68,9,FALSE) ->  | G27: =IF(H27=0,"",COUNTIF(G$12:G26,">0")+G$9+1) ->  | K27: =VLOOKUP($G27,Klasse_1!$X$11:$AK$500,11,FALSE) ->  | L27: =VLOOKUP($G27,Klasse_1!$X$11:$AK$500,8,FALSE) ->  | M27: =VLOOKUP($G27,Klasse_1!$X$11:$AK$500,10,FALSE) ->  | N27: =VLOOKUP($G27,Klasse_1!$X$11:$AK$500,2,FALSE) ->  | P27: =IF(Q27=0,"",COUNTIF(P$12:P26,">0")+P$9+1) ->  | T27: =VLOOKUP($P27,Klasse_2!$X$11:$AK$500,11,FALSE) ->  | U27: =VLOOKUP($P27,Klasse_2!$X$11:$AK$500,8,FALSE) ->  | V27: =VLOOKUP($P27,Klasse_2!$X$11:$AK$500,10,FALSE) ->  | W27: =VLOOKUP($P27,Klasse_2!$X$11:$AK$500,2,FALSE) ->  | AA27: =IF(AB27=0,"",COUNTIF(AA$12:AA26,">0")+AA$9+1) ->  | AE27: 0 | AF27: ¢ | AG27: 0 | AJ27: =IF(AK27=0,"",COUNTIF(AJ$12:AJ26,">0")+AJ$9+1) ->  | AN27: 0 | AO27: ¢ | AP27: 0 | AV27: Schemmann, Patricia | BK27: Schemmann, Patricia
G28: =IF(H28=0,"",COUNTIF(G$12:G27,">0")+G$9+1) ->  | K28: =VLOOKUP($G28,Klasse_1!$X$11:$AK$500,11,FALSE) ->  | L28: =VLOOKUP($G28,Klasse_1!$X$11:$AK$500,8,FALSE) ->  | M28: =VLOOKUP($G28,Klasse_1!$X$11:$AK$500,10,FALSE) ->  | N28: =VLOOKUP($G28,Klasse_1!$X$11:$AK$500,2,FALSE) ->  | P28: =IF(Q28=0,"",COUNTIF(P$12:P27,">0")+P$9+1) ->  | T28: =VLOOKUP($P28,Klasse_2!$X$11:$AK$500,11,FALSE) ->  | U28: =VLOOKUP($P28,Klasse_2!$X$11:$AK$500,8,FALSE) ->  | V28: =VLOOKUP($P28,Klasse_2!$X$11:$AK$500,10,FALSE) ->  | W28: =VLOOKUP($P28,Klasse_2!$X$11:$AK$500,2,FALSE) ->  | AA28: =IF(AB28=0,"",COUNTIF(AA$12:AA27,">0")+AA$9+1) ->  | AE28: 0 | AF28: ¢ | AG28: 0 | AJ28: =IF(AK28=0,"",COUNTIF(AJ$12:AJ27,">0")+AJ$9+1) ->  | AN28: 0 | AO28: ¢ | AP28: 0 | AU28: 85 | AV28: Schemmann, Susanne | BJ28: 85 | BK28: Schemmann, Susanne
G29: =IF(H29=0,"",COUNTIF(G$12:G28,">0")+G$9+1) ->  | K29: =VLOOKUP($G29,Klasse_1!$X$11:$AK$500,11,FALSE) ->  | L29: =VLOOKUP($G29,Klasse_1!$X$11:$AK$500,8,FALSE) ->  | M29: =VLOOKUP($G29,Klasse_1!$X$11:$AK$500,10,FALSE) ->  | N29: =VLOOKUP($G29,Klasse_1!$X$11:$AK$500,2,FALSE) ->  | P29: =IF(Q29=0,"",COUNTIF(P$12:P28,">0")+P$9+1) ->  | T29: =VLOOKUP($P29,Klasse_2!$X$11:$AK$500,11,FALSE) ->  | U29: =VLOOKUP($P29,Klasse_2!$X$11:$AK$500,8,FALSE) ->  | V29: =VLOOKUP($P29,Klasse_2!$X$11:$AK$500,10,FALSE) ->  | W29: =VLOOKUP($P29,Klasse_2!$X$11:$AK$500,2,FALSE) ->  | AA29: =IF(AB29=0,"",COUNTIF(AA$12:AA28,">0")+AA$9+1) ->  | AE29: 0 | AF29: ¢ | AG29: 0 | AJ29: =IF(AK29=0,"",COUNTIF(AJ$12:AJ28,">0")+AJ$9+1) ->  | AN29: 0 | AO29: ¢ | AP29: 0 | AV29: Stache Frank | BK29: Stache Frank
G30: =" "&K30&" "&$D$3 -> 4. Mannschaft Freistehend | K30: 4. Mannschaft | L30: =VLOOKUP(G33,Klasse_M!$H$12:$O$200,6,FALSE) ->  | M30: =VLOOKUP(G33,Klasse_M!$H$12:$O$200,8,FALSE) ->  | N30: =VLOOKUP(G33,Klasse_M!$H$12:$O$200,2,FALSE) ->  | P30: =" "&T30&" "&$D$3 -> 4. Mannschaft Freistehend | T30: 4. Mannschaft | U30: =VLOOKUP(P33,Klasse_M!$AD$12:$AK$200,6,FALSE) ->  | V30: =VLOOKUP(P33,Klasse_M!$AD$12:$AK$200,8,FALSE) ->  | W30: =VLOOKUP(P33,Klasse_M!$AD$12:$AK$200,2,FALSE) ->  | AA30: =" "&AE30&" "&$D$3 -> 4. Mannschaft Freistehend | AE30: 4. Mannschaft | AF30: ¢ | AG30: 0 | AJ30: =" "&AN30&" "&$D$3 -> 4. Mannschaft Freistehend | AN30: 4. Mannschaft | AO30: ¢ | AP30: 0 | AV30: Stache, Esther | BK30: Stache, Esther
G31: =IF(H31=0,"",COUNTIF(G$12:G30,">0")+G$9+1) ->  | K31: =VLOOKUP($G31,Klasse_1!$X$11:$AK$500,11,FALSE) ->  | L31: =VLOOKUP($G31,Klasse_1!$X$11:$AK$500,8,FALSE) ->  | M31: =VLOOKUP($G31,Klasse_1!$X$11:$AK$500,10,FALSE) ->  | N31: =VLOOKUP($G31,Klasse_1!$X$11:$AK$500,2,FALSE) ->  | P31: =IF(Q31=0,"",COUNTIF(P$12:P30,">0")+P$9+1) ->  | T31: =VLOOKUP($P31,Klasse_2!$X$11:$AK$500,11,FALSE) ->  | U31: =VLOOKUP($P31,Klasse_2!$X$11:$AK$500,8,FALSE) ->  | V31: =VLOOKUP($P31,Klasse_2!$X$11:$AK$500,10,FALSE) ->  | W31: =VLOOKUP($P31,Klasse_2!$X$11:$AK$500,2,FALSE) ->  | AA31: =IF(AB31=0,"",COUNTIF(AA$12:AA30,">0")+AA$9+1) ->  | AE31: 0 | AF31: ¢ | AG31: 0 | AJ31: =IF(AK31=0,"",COUNTIF(AJ$12:AJ30,">0")+AJ$9+1) ->  | AN31: 0 | AO31: ¢ | AP31: 0 | AV31: Weihrauch, Hugo | BK31: Weihrauch, Hugo
G32: =IF(H32=0,"",COUNTIF(G$12:G31,">0")+G$9+1) ->  | K32: =VLOOKUP($G32,Klasse_1!$X$11:$AK$500,11,FALSE) ->  | L32: =VLOOKUP($G32,Klasse_1!$X$11:$AK$500,8,FALSE) ->  | M32: =VLOOKUP($G32,Klasse_1!$X$11:$AK$500,10,FALSE) ->  | N32: =VLOOKUP($G32,Klasse_1!$X$11:$AK$500,2,FALSE) ->  | P32: =IF(Q32=0,"",COUNTIF(P$12:P31,">0")+P$9+1) ->  | T32: =VLOOKUP($P32,Klasse_2!$X$11:$AK$500,11,FALSE) ->  | U32: =VLOOKUP($P32,Klasse_2!$X$11:$AK$500,8,FALSE) ->  | V32: =VLOOKUP($P32,Klasse_2!$X$11:$AK$500,10,FALSE) ->  | W32: =VLOOKUP($P32,Klasse_2!$X$11:$AK$500,2,FALSE) ->  | AA32: =IF(AB32=0,"",COUNTIF(AA$12:AA31,">0")+AA$9+1) ->  | AE32: 0 | AF32: ¢ | AG32: 0 | AJ32: =IF(AK32=0,"",COUNTIF(AJ$12:AJ31,">0")+AJ$9+1) ->  | AN32: 0 | AO32: ¢ | AP32: 0
